Workbook

Sheet Index
A1: =Inputs!$D$6&" - Introduction and Index" -> Força Açoreana, S.A.: Azores Photovoltaic Energy Venture - Introduction and Index
B4: Overview | I4: Worksheet Navigation
B6: Project Name: | D6: Azores Photovoltaic Energy Venture | J6: Inputs | L6: Inputs | P6: Summary | R6: Project Summary Information | S6: Calculations | U6: Production Calculations
B7: Project Developer: | D7: Força Açoreana, S.A. | L7: General | R7: Key Project Information | U7: Electricity Production
B8: Location: | D8: =Inputs!D7 -> Horta, Faial, Azores, Portugal | L8: Timing | R8: Sources and Uses
B9: Projections by: | D9: R. Bercuvitz | F9: rbercuvitz@bell.net | L9: Electricity Production | R9: Financial Metrics
L10: Revenues | R10: Key Dates
L11: Capital Expenses Monthly Breakdown | R11: Error Checks | S11: Calculations | U11: Debt
L12: Reserve Accounts | R12: Summary Financials | U12: Subordinated Debt
L13: Financing | R13: Project Spend Curve (chart) | U13: Senior Debt
L14: Depreciation and Tax | R14: Debt Service Coverage (chart) | U14: Amortization Table
R15: Senior Debt Amortization (chart) | U15: Debt Covenants
R16: Equity Cash Flow (chart)
L17: Cell Style Guide | U17: Equity
J18: 1234 | L18: Input (project-specific) | P18: Timeline | R18: Project Timeline | U18: Equity Drawdown Detail
J19: 1234 | L19: Input reference from another sheet | R19: Timeline | U19: Dividend Detail
J20: 1234 | L20: Calculation | U20: IRR Calculation
J21: 1234 | L21: Sum or Max Reference Calculation | P21: AFS | R21: Annual Financial Statements
J22: OK | L22: Positive Error Check Result | R22: Income Statement | U22: Startup Costs
J23: NO | L23: Negative Error Check Result | R23: Balance Sheet | U23: Startup Costs
R24: Cash Flow Statement
R25: Cash Waterfall | U25: Capital Expenses
U26: Capital Expense Detail & Assumptions
P27: QFS | R27: Quarterly Financial Statements | U27: Construction Labor
R28: Income Statement
R29: Balance Sheet | U29: Revenues
R30: Cash Flow Statement | U30: Revenue Calculations (Electricity)
R31: Cash Waterfall
U32: Operating Expenses
P33: MFS | R33: Monthly Financial Statements | U33: Operating Expenses
R34: Income Statement | U34: Payroll and Staffing
R35: Balance Sheet | U35: Monthly Expenses
R36: Cash Flow Statement
R37: Cash Waterfall | U37: Other Calculations
U38: Flags and Timing
U39: Indexation Factors
U40: Uses of Funds
U41: Sources of Funds
U42: Working Capital
U43: Depreciation
U44: Taxes
U45: Retained Earnings

Sheet AFS
A1: =Inputs!$D$6&" - Annual Financial Statements" -> Força Açoreana, S.A.: Azores Photovoltaic Energy Venture - Annual Financial Statements
C2: Year | D2: 2028-2045 | E2: 2045-2052 | H2: 2028-2052 | I2: =YEAR(I3) -> 2026 | J2: =YEAR(J3) -> 2027 | K2: 2028 | L2: 2029 | M2: 2030 | N2: 2031 | O2: 2032 | P2: 2033 | Q2: 2034 | R2: 2035 | S2: 2036 | T2: 2037 | U2: 2038 | V2: 2039 | W2: 2040 | X2: 2041 | Y2: 2042 | Z2: 2043 | AA2: 2044 | AB2: 2045 | AC2: 2046 | AD2: 2047 | AE2: 2048 | AF2: 2049 | AG2: 2050 | AH2: 2051 | AI2: 2052
C3: Period End | D3: 17.5 Years | E3: 7.5 Years | H3: 2052-12-31 | I3: 2026-12-31 | J3: =I3+365 -> 2027-12-31 | K3: =J3+365 -> 2028-12-30 | L3: =K3+366 -> 2029-12-31 | M3: =L3+365 -> 2030-12-31 | N3: 2031-12-31 | O3: 2032-12-30 | P3: =O3+366 -> 2033-12-31 | Q3: 2034-12-31 | R3: 2035-12-31 | S3: 2036-12-30 | T3: =S3+366 -> 2037-12-31 | U3: 2038-12-31 | V3: 2039-12-31 | W3: 2040-12-30 | X3: =W3+366 -> 2041-12-31 | Y3: 2042-12-31 | Z3: 2043-12-31 | AA3: 2044-12-30 | AB3: =AA3+366 -> 2045-12-31 | AC3: 2046-12-31 | AD3: 2047-12-31 | AE3: 2048-12-30 | AF3: =AE3+366 -> 2049-12-31 | AG3: 2050-12-31 | AH3: 2051-12-31 | AI3: 2052-12-30
A4: · | B4: Income Statement | F4: Unit
A5: =Summary!$C$49 -> OK
C6: =Calculations!C351 -> Revenues | H6: Project Lifetime
C7: Electricity Produced | D7: =SUM(K7:AA7)+AB7/2 -> 222009637.5 | E7: =H7-D7 -> 83906461.91 | F7: Kwh | H7: =SUM(I7:AT7) -> 305916099.4 | I7: =SUMIF(Calculations!$I$8:$QJ$8, I$2, Calculations!$I210:$QJ210) -> 0 | J7: =SUMIF(Calculations!$I$8:$QJ$8, J$2, Calculations!$I210:$QJ210) -> 0 | K7: =SUMIF(Calculations!$I$8:$QJ$8, K$2, Calculations!$I215:$QJ215) -> 13701095.6 | L7: =SUMIF(Calculations!$I$8:$QJ$8, L$2, Calculations!$I215:$QJ215) -> 13628062.68 | M7: =SUMIF(Calculations!$I$8:$QJ$8, M$2, Calculations!$I215:$QJ215) -> 13492404.94 | N7: =SUMIF(Calculations!$I$8:$QJ$8, N$2, Calculations!$I215:$QJ215) -> 13358097.58 | O7: =SUMIF(Calculations!$I$8:$QJ$8, O$2, Calculations!$I215:$QJ215) -> 13225127.15 | P7: =SUMIF(Calculations!$I$8:$QJ$8, P$2, Calculations!$I215:$QJ215) -> 13093480.35 | Q7: =SUMIF(Calculations!$I$8:$QJ$8, Q$2, Calculations!$I215:$QJ215) -> 12963144 | R7: =SUMIF(Calculations!$I$8:$QJ$8, R$2, Calculations!$I215:$QJ215) -> 12834105.06 | S7: =SUMIF(Calculations!$I$8:$QJ$8, S$2, Calculations!$I215:$QJ215) -> 12706350.61 | T7: =SUMIF(Calculations!$I$8:$QJ$8, T$2, Calculations!$I215:$QJ215) -> 12579867.86 | U7: =SUMIF(Calculations!$I$8:$QJ$8, U$2, Calculations!$I215:$QJ215) -> 12454644.16 | V7: =SUMIF(Calculations!$I$8:$QJ$8, V$2, Calculations!$I215:$QJ215) -> 12330666.97 | W7: =SUMIF(Calculations!$I$8:$QJ$8, W$2, Calculations!$I215:$QJ215) -> 12207923.89 | X7: =SUMIF(Calculations!$I$8:$QJ$8, X$2, Calculations!$I215:$QJ215) -> 12086402.63 | Y7: =SUMIF(Calculations!$I$8:$QJ$8, Y$2, Calculations!$I215:$QJ215) -> 11966091.03 | Z7: =SUMIF(Calculations!$I$8:$QJ$8, Z$2, Calculations!$I215:$QJ215) -> 11846977.04 | AA7: =SUMIF(Calculations!$I$8:$QJ$8, AA$2, Calculations!$I215:$QJ215) -> 11729048.75 | AB7: =SUMIF(Calculations!$I$8:$QJ$8, AB$2, Calculations!$I215:$QJ215) -> 11612294.36 | AC7: =SUMIF(Calculations!$I$8:$QJ$8, AC$2, Calculations!$I215:$QJ215) -> 11496702.17 | AD7: =SUMIF(Calculations!$I$8:$QJ$8, AD$2, Calculations!$I215:$QJ215) -> 11382260.62 | AE7: =SUMIF(Calculations!$I$8:$QJ$8, AE$2, Calculations!$I215:$QJ215) -> 11268958.25 | AF7: =SUMIF(Calculations!$I$8:$QJ$8, AF$2, Calculations!$I215:$QJ215) -> 11156783.73 | AG7: =SUMIF(Calculations!$I$8:$QJ$8, AG$2, Calculations!$I215:$QJ215) -> 11045725.83 | AH7: =SUMIF(Calculations!$I$8:$QJ$8, AH$2, Calculations!$I215:$QJ215) -> 10935773.43 | AI7: =SUMIF(Calculations!$I$8:$QJ$8, AI$2, Calculations!$I215:$QJ215) -> 10814110.69
C8: Electricity Sold | D8: =SUM(K8:AA8)+AB8/2 -> 236952143.2 | E8: =H8-D8 -> 98267183.22 | F8: Kwh | H8: =SUM(I8:AT8) -> 335219326.5 | I8: =SUMIF(Calculations!$I$8:$QJ$8, I$2, Calculations!$I215:$QJ215) -> 0 | J8: =SUMIF(Calculations!$I$8:$QJ$8, J$2, Calculations!$I215:$QJ215) -> 0 | K8: =SUMIF(Calculations!$I$8:$QJ$8, K$2, Calculations!$I218:$QJ218)+SUMIF(Calculations!$I$8:$QJ$8, K$2, Calculations!$I225:$QJ225) -> 13344397.9 | L8: =SUMIF(Calculations!$I$8:$QJ$8, L$2, Calculations!$I218:$QJ218)+SUMIF(Calculations!$I$8:$QJ$8, L$2, Calculations!$I225:$QJ225) -> 13396229.23 | M8: =SUMIF(Calculations!$I$8:$QJ$8, M$2, Calculations!$I218:$QJ218)+SUMIF(Calculations!$I$8:$QJ$8, M$2, Calculations!$I225:$QJ225) -> 13434918.02 | N8: =SUMIF(Calculations!$I$8:$QJ$8, N$2, Calculations!$I218:$QJ218)+SUMIF(Calculations!$I$8:$QJ$8, N$2, Calculations!$I225:$QJ225) -> 13470912.99 | O8: =SUMIF(Calculations!$I$8:$QJ$8, O$2, Calculations!$I218:$QJ218)+SUMIF(Calculations!$I$8:$QJ$8, O$2, Calculations!$I225:$QJ225) -> 13518182.27 | P8: =SUMIF(Calculations!$I$8:$QJ$8, P$2, Calculations!$I218:$QJ218)+SUMIF(Calculations!$I$8:$QJ$8, P$2, Calculations!$I225:$QJ225) -> 13533824.99 | Q8: =SUMIF(Calculations!$I$8:$QJ$8, Q$2, Calculations!$I218:$QJ218)+SUMIF(Calculations!$I$8:$QJ$8, Q$2, Calculations!$I225:$QJ225) -> 13550729.95 | R8: =SUMIF(Calculations!$I$8:$QJ$8, R$2, Calculations!$I218:$QJ218)+SUMIF(Calculations!$I$8:$QJ$8, R$2, Calculations!$I225:$QJ225) -> 13573059.17 | S8: =SUMIF(Calculations!$I$8:$QJ$8, S$2, Calculations!$I218:$QJ218)+SUMIF(Calculations!$I$8:$QJ$8, S$2, Calculations!$I225:$QJ225) -> 13604042.41 | T8: =SUMIF(Calculations!$I$8:$QJ$8, T$2, Calculations!$I218:$QJ218)+SUMIF(Calculations!$I$8:$QJ$8, T$2, Calculations!$I225:$QJ225) -> 13609602.71 | U8: =SUMIF(Calculations!$I$8:$QJ$8, U$2, Calculations!$I218:$QJ218)+SUMIF(Calculations!$I$8:$QJ$8, U$2, Calculations!$I225:$QJ225) -> 13613394.33 | V8: =SUMIF(Calculations!$I$8:$QJ$8, V$2, Calculations!$I218:$QJ218)+SUMIF(Calculations!$I$8:$QJ$8, V$2, Calculations!$I225:$QJ225) -> 13612885.12 | W8: =SUMIF(Calculations!$I$8:$QJ$8, W$2, Calculations!$I218:$QJ218)+SUMIF(Calculations!$I$8:$QJ$8, W$2, Calculations!$I225:$QJ225) -> 13625128.47 | X8: =SUMIF(Calculations!$I$8:$QJ$8, X$2, Calculations!$I218:$QJ218)+SUMIF(Calculations!$I$8:$QJ$8, X$2, Calculations!$I225:$QJ225) -> 13613949.19 | Y8: =SUMIF(Calculations!$I$8:$QJ$8, Y$2, Calculations!$I218:$QJ218)+SUMIF(Calculations!$I$8:$QJ$8, Y$2, Calculations!$I225:$QJ225) -> 13595929.79 | Z8: =SUMIF(Calculations!$I$8:$QJ$8, Z$2, Calculations!$I218:$QJ218)+SUMIF(Calculations!$I$8:$QJ$8, Z$2, Calculations!$I225:$QJ225) -> 13571473.13 | AA8: =SUMIF(Calculations!$I$8:$QJ$8, AA$2, Calculations!$I218:$QJ218)+SUMIF(Calculations!$I$8:$QJ$8, AA$2, Calculations!$I225:$QJ225) -> 13538045.12 | AB8: =SUMIF(Calculations!$I$8:$QJ$8, AB$2, Calculations!$I218:$QJ218)+SUMIF(Calculations!$I$8:$QJ$8, AB$2, Calculations!$I225:$QJ225) -> 13490876.89 | AC8: =SUMIF(Calculations!$I$8:$QJ$8, AC$2, Calculations!$I218:$QJ218)+SUMIF(Calculations!$I$8:$QJ$8, AC$2, Calculations!$I225:$QJ225) -> 13419426.49 | AD8: =SUMIF(Calculations!$I$8:$QJ$8, AD$2, Calculations!$I218:$QJ218)+SUMIF(Calculations!$I$8:$QJ$8, AD$2, Calculations!$I225:$QJ225) -> 13315921.82 | AE8: =SUMIF(Calculations!$I$8:$QJ$8, AE$2, Calculations!$I218:$QJ218)+SUMIF(Calculations!$I$8:$QJ$8, AE$2, Calculations!$I225:$QJ225) -> 13200937.63 | AF8: =SUMIF(Calculations!$I$8:$QJ$8, AF$2, Calculations!$I218:$QJ218)+SUMIF(Calculations!$I$8:$QJ$8, AF$2, Calculations!$I225:$QJ225) -> 13076293.13 | AG8: =SUMIF(Calculations!$I$8:$QJ$8, AG$2, Calculations!$I218:$QJ218)+SUMIF(Calculations!$I$8:$QJ$8, AG$2, Calculations!$I225:$QJ225) -> 12958538.24 | AH8: =SUMIF(Calculations!$I$8:$QJ$8, AH$2, Calculations!$I218:$QJ218)+SUMIF(Calculations!$I$8:$QJ$8, AH$2, Calculations!$I225:$QJ225) -> 12842140.53 | AI8: =SUMIF(Calculations!$I$8:$QJ$8, AI$2, Calculations!$I218:$QJ218)+SUMIF(Calculations!$I$8:$QJ$8, AI$2, Calculations!$I225:$QJ225) -> 12708486.93
C9: Average PPA Price | D9: =(D13-D12)/D8 -> 0.1578 | E9: =(E13-E12)/E8 -> 0.1578 | H9: =(H13-H12)/H8 -> 0.1578 | K9: =(K13-K12)/K8 -> 0.1578 | L9: 0.1578 | M9: 0.1578 | N9: 0.1578 | O9: 0.1578 | P9: 0.1578 | Q9: 0.1578 | R9: 0.1578 | S9: 0.1578 | T9: 0.1578 | U9: 0.1578 | V9: 0.1578 | W9: 0.1578 | X9: 0.1578 | Y9: 0.1578 | Z9: 0.1578 | AA9: 0.1578 | AB9: 0.1578 | AC9: 0.1578 | AD9: 0.1578 | AE9: 0.1578 | AF9: 0.1578 | AG9: 0.1578 | AH9: 0.1578 | AI9: 0.1578
C10: =Calculations!C352 -> Production Sold | D10: =SUM(K10:AA10)+AB10/2 -> 29780438.98 | E10: =H10-D10 -> 12773352.57 | F10: EUR | H10: =SUM(I10:AT10) -> 42553791.54 | I10: =SUMIF(Calculations!$I$8:$QJ$8, I$2, Calculations!$I352:$QJ352) -> 0 | J10: =SUMIF(Calculations!$I$8:$QJ$8, J$2, Calculations!$I352:$QJ352) -> 0 | K10: =SUMIF(Calculations!$I$8:$QJ$8, K$2, Calculations!$I229:$QJ229) -> 1616465.118 | L10: =SUMIF(Calculations!$I$8:$QJ$8, L$2, Calculations!$I229:$QJ229) -> 1631652.721 | M10: =SUMIF(Calculations!$I$8:$QJ$8, M$2, Calculations!$I229:$QJ229) -> 1645021.256 | N10: =SUMIF(Calculations!$I$8:$QJ$8, N$2, Calculations!$I229:$QJ229) -> 1657433.208 | O10: =SUMIF(Calculations!$I$8:$QJ$8, O$2, Calculations!$I229:$QJ229) -> 1670010.312 | P10: =SUMIF(Calculations!$I$8:$QJ$8, P$2, Calculations!$I229:$QJ229) -> 1680494.219 | Q10: =SUMIF(Calculations!$I$8:$QJ$8, Q$2, Calculations!$I229:$QJ229) -> 1690290.92 | R10: =SUMIF(Calculations!$I$8:$QJ$8, R$2, Calculations!$I229:$QJ229) -> 1700256.61 | S10: =SUMIF(Calculations!$I$8:$QJ$8, S$2, Calculations!$I229:$QJ229) -> 1710392.272 | T10: =SUMIF(Calculations!$I$8:$QJ$8, T$2, Calculations!$I229:$QJ229) -> 1718633.017 | U10: =SUMIF(Calculations!$I$8:$QJ$8, U$2, Calculations!$I229:$QJ229) -> 1725291.976 | V10: =SUMIF(Calculations!$I$8:$QJ$8, V$2, Calculations!$I229:$QJ229) -> 1732123.989 | W10: =SUMIF(Calculations!$I$8:$QJ$8, W$2, Calculations!$I229:$QJ229) -> 1739129.725 | X10: =SUMIF(Calculations!$I$8:$QJ$8, X$2, Calculations!$I229:$QJ229) -> 1744470.992 | Y10: =SUMIF(Calculations!$I$8:$QJ$8, Y$2, Calculations!$I229:$QJ229) -> 1747433.653 | Z10: =SUMIF(Calculations!$I$8:$QJ$8, Z$2, Calculations!$I229:$QJ229) -> 1749253.978 | AA10: =SUMIF(Calculations!$I$8:$QJ$8, AA$2, Calculations!$I229:$QJ229) -> 1748390.362 | AB10: =SUMIF(Calculations!$I$8:$QJ$8, AB$2, Calculations!$I229:$QJ229) -> 1747389.297 | AC10: =SUMIF(Calculations!$I$8:$QJ$8, AC$2, Calculations!$I229:$QJ229) -> 1741130.349 | AD10: =SUMIF(Calculations!$I$8:$QJ$8, AD$2, Calculations!$I229:$QJ229) -> 1729422.903 | AE10: =SUMIF(Calculations!$I$8:$QJ$8, AE$2, Calculations!$I229:$QJ229) -> 1714661.87 | AF10: =SUMIF(Calculations!$I$8:$QJ$8, AF$2, Calculations!$I229:$QJ229) -> 1700352.112 | AG10: =SUMIF(Calculations!$I$8:$QJ$8, AG$2, Calculations!$I229:$QJ229) -> 1686079.376 | AH10: =SUMIF(Calculations!$I$8:$QJ$8, AH$2, Calculations!$I229:$QJ229) -> 1671979.835 | AI10: =SUMIF(Calculations!$I$8:$QJ$8, AI$2, Calculations!$I229:$QJ229) -> 1656031.473
C11: Storage Sold | D11: 7610609.226 | E11: 2733208.946 | F11: EUR | H11: 10343818.17 | I11: =SUMIF(Calculations!$I$8:$QJ$8, I$2, Calculations!$I353:$QJ353) -> 0 | J11: =SUMIF(Calculations!$I$8:$QJ$8, J$2, Calculations!$I353:$QJ353) -> 0 | K11: =SUMIF(Calculations!$I$8:$QJ$8, K$2, Calculations!$I230:$QJ230) -> 489280.8707 | L11: =SUMIF(Calculations!$I$8:$QJ$8, L$2, Calculations!$I230:$QJ230) -> 482272.2506 | M11: =SUMIF(Calculations!$I$8:$QJ$8, M$2, Calculations!$I230:$QJ230) -> 475008.8077 | N11: =SUMIF(Calculations!$I$8:$QJ$8, N$2, Calculations!$I230:$QJ230) -> 468276.8618 | O11: =SUMIF(Calculations!$I$8:$QJ$8, O$2, Calculations!$I230:$QJ230) -> 463158.8504 | P11: =SUMIF(Calculations!$I$8:$QJ$8, P$2, Calculations!$I230:$QJ230) -> 455143.364 | Q11: =SUMIF(Calculations!$I$8:$QJ$8, Q$2, Calculations!$I230:$QJ230) -> 448014.2656 | R11: =SUMIF(Calculations!$I$8:$QJ$8, R$2, Calculations!$I230:$QJ230) -> 441572.1274 | S11: =SUMIF(Calculations!$I$8:$QJ$8, S$2, Calculations!$I230:$QJ230) -> 436325.62 | T11: =SUMIF(Calculations!$I$8:$QJ$8, T$2, Calculations!$I230:$QJ230) -> 428962.2899 | U11: =SUMIF(Calculations!$I$8:$QJ$8, U$2, Calculations!$I230:$QJ230) -> 422901.6486 | V11: =SUMIF(Calculations!$I$8:$QJ$8, V$2, Calculations!$I230:$QJ230) -> 415989.2834 | W11: =SUMIF(Calculations!$I$8:$QJ$8, W$2, Calculations!$I230:$QJ230) -> 410915.5484 | X11: =SUMIF(Calculations!$I$8:$QJ$8, X$2, Calculations!$I230:$QJ230) -> 403810.1902 | Y11: =SUMIF(Calculations!$I$8:$QJ$8, Y$2, Calculations!$I230:$QJ230) -> 398004.0679 | Z11: =SUMIF(Calculations!$I$8:$QJ$8, Z$2, Calculations!$I230:$QJ230) -> 392324.4823 | AA11: =SUMIF(Calculations!$I$8:$QJ$8, AA$2, Calculations!$I230:$QJ230) -> 387913.1588 | AB11: =SUMIF(Calculations!$I$8:$QJ$8, AB$2, Calculations!$I230:$QJ230) -> 381471.0764 | AC11: =SUMIF(Calculations!$I$8:$QJ$8, AC$2, Calculations!$I230:$QJ230) -> 376455.1515 | AD11: =SUMIF(Calculations!$I$8:$QJ$8, AD$2, Calculations!$I230:$QJ230) -> 371829.5606 | AE11: =SUMIF(Calculations!$I$8:$QJ$8, AE$2, Calculations!$I230:$QJ230) -> 368446.0877 | AF11: =SUMIF(Calculations!$I$8:$QJ$8, AF$2, Calculations!$I230:$QJ230) -> 363086.9451 | AG11: =SUMIF(Calculations!$I$8:$QJ$8, AG$2, Calculations!$I230:$QJ230) -> 358777.9577 | AH11: =SUMIF(Calculations!$I$8:$QJ$8, AH$2, Calculations!$I230:$QJ230) -> 354509.941 | AI11: =SUMIF(Calculations!$I$8:$QJ$8, AI$2, Calculations!$I230:$QJ230) -> 349367.7647
E12: 0
C13: Gross Revenues | D13: 37391048.2 | E13: 15506561.51 | F13: =Calculations!E355 -> EUR | H13: 52897609.72 | I13: =I10+I11+I12 -> 0 | J13: 0 | K13: 2105745.988 | L13: 2113924.972 | M13: 2120030.064 | N13: 2125710.069 | O13: 2133169.163 | P13: 2135637.583 | Q13: 2138305.186 | R13: 2141828.738 | S13: 2146717.893 | T13: 2147595.307 | U13: 2148193.625 | V13: 2148113.272 | W13: 2150045.273 | X13: 2148281.182 | Y13: 2145437.721 | Z13: 2141578.46 | AA13: 2136303.521 | AB13: 2128860.373 | AC13: 2117585.5 | AD13: 2101252.464 | AE13: 2083107.957 | AF13: 2063439.057 | AG13: 2044857.334 | AH13: 2026489.776 | AI13: 2005399.238
C14: less: Cost of Goods Sold | D14: -3958010.575 | E14: =H14-D14 -> -2524135.602 | F14: =Calculations!E355 -> EUR | H14: =SUM(I14:AT14) -> -6482146.178 | I14: =SUMIF(Calculations!$I$8:$QJ$8, I$2, Calculations!$I231:$QJ232) -> 0 | J14: =SUMIF(Calculations!$I$8:$QJ$8, J$2, Calculations!$I231:$QJ232) -> 0 | K14: =SUMIF(Calculations!$I$8:$QJ$8, K$2, Calculations!$I354:$QJ354) -> -127674.1325 | L14: =SUMIF(Calculations!$I$8:$QJ$8, L$2, Calculations!$I354:$QJ354) -> -132247.3954 | M14: =SUMIF(Calculations!$I$8:$QJ$8, M$2, Calculations!$I354:$QJ354) -> -141693.9145 | N14: =SUMIF(Calculations!$I$8:$QJ$8, N$2, Calculations!$I354:$QJ354) -> -151676.2516 | O14: =SUMIF(Calculations!$I$8:$QJ$8, O$2, Calculations!$I354:$QJ354) -> -166218.7355 | P14: =SUMIF(Calculations!$I$8:$QJ$8, P$2, Calculations!$I354:$QJ354) -> -176141.6781 | Q14: =SUMIF(Calculations!$I$8:$QJ$8, Q$2, Calculations!$I354:$QJ354) -> -191165.9901 | R14: =SUMIF(Calculations!$I$8:$QJ$8, R$2, Calculations!$I354:$QJ354) -> -207056.2993 | S14: =SUMIF(Calculations!$I$8:$QJ$8, S$2, Calculations!$I354:$QJ354) -> -224163.0404 | T14: =SUMIF(Calculations!$I$8:$QJ$8, T$2, Calculations!$I354:$QJ354) -> -237374.5169 | U14: =SUMIF(Calculations!$I$8:$QJ$8, U$2, Calculations!$I354:$QJ354) -> -250509.4315 | V14: =SUMIF(Calculations!$I$8:$QJ$8, V$2, Calculations!$I354:$QJ354) -> -263854.1528 | W14: =SUMIF(Calculations!$I$8:$QJ$8, W$2, Calculations!$I354:$QJ354) -> -280268.0104 | X14: =SUMIF(Calculations!$I$8:$QJ$8, X$2, Calculations!$I354:$QJ354) -> -293054.7402 | Y14: =SUMIF(Calculations!$I$8:$QJ$8, Y$2, Calculations!$I354:$QJ354) -> -305132.373 | Z14: =SUMIF(Calculations!$I$8:$QJ$8, Z$2, Calculations!$I354:$QJ354) -> -316267.3118 | AA14: =SUMIF(Calculations!$I$8:$QJ$8, AA$2, Calculations!$I354:$QJ354) -> -326424.1056 | AB14: =SUMIF(Calculations!$I$8:$QJ$8, AB$2, Calculations!$I354:$QJ354) -> -334176.9916 | AC14: =SUMIF(Calculations!$I$8:$QJ$8, AC$2, Calculations!$I354:$QJ354) -> -339051.3408 | AD14: =SUMIF(Calculations!$I$8:$QJ$8, AD$2, Calculations!$I354:$QJ354) -> -339804.3046 | AE14: =SUMIF(Calculations!$I$8:$QJ$8, AE$2, Calculations!$I354:$QJ354) -> -339266.1774 | AF14: =SUMIF(Calculations!$I$8:$QJ$8, AF$2, Calculations!$I354:$QJ354) -> -336850.1832 | AG14: =SUMIF(Calculations!$I$8:$QJ$8, AG$2, Calculations!$I354:$QJ354) -> -335429.1286 | AH14: =SUMIF(Calculations!$I$8:$QJ$8, AH$2, Calculations!$I354:$QJ354) -> -334045.219 | AI14: =SUMIF(Calculations!$I$8:$QJ$8, AI$2, Calculations!$I354:$QJ354) -> -332600.7529
C15: =Calculations!C356 -> less: Operating Expenses | D15: -10325218.39 | E15: -5717829.558 | F15: =Calculations!E356 -> EUR | H15: -16043047.95 | I15: =SUMIF(Calculations!$I$8:$QJ$8, I$2, Calculations!$I356:$QJ356) -> 0 | J15: =SUMIF(Calculations!$I$8:$QJ$8, J$2, Calculations!$I356:$QJ356) -> 0 | K15: =SUMIF(Calculations!$I$8:$QJ$8, K$2, Calculations!$I356:$QJ356) -> -561786.2297 | L15: =SUMIF(Calculations!$I$8:$QJ$8, L$2, Calculations!$I356:$QJ356) -> -575186.329 | M15: =SUMIF(Calculations!$I$8:$QJ$8, M$2, Calculations!$I356:$QJ356) -> -577023.1363 | N15: =SUMIF(Calculations!$I$8:$QJ$8, N$2, Calculations!$I356:$QJ356) -> -579638.3164 | O15: =SUMIF(Calculations!$I$8:$QJ$8, O$2, Calculations!$I356:$QJ356) -> -582465.8768 | P15: =SUMIF(Calculations!$I$8:$QJ$8, P$2, Calculations!$I356:$QJ356) -> -584147.5732 | Q15: =SUMIF(Calculations!$I$8:$QJ$8, Q$2, Calculations!$I356:$QJ356) -> -586001.6968 | R15: =SUMIF(Calculations!$I$8:$QJ$8, R$2, Calculations!$I356:$QJ356) -> -587908.1509 | S15: =SUMIF(Calculations!$I$8:$QJ$8, S$2, Calculations!$I356:$QJ356) -> -590090.6539 | T15: =SUMIF(Calculations!$I$8:$QJ$8, T$2, Calculations!$I356:$QJ356) -> -591887.5767 | U15: =SUMIF(Calculations!$I$8:$QJ$8, U$2, Calculations!$I356:$QJ356) -> -593956.2402 | V15: =SUMIF(Calculations!$I$8:$QJ$8, V$2, Calculations!$I356:$QJ356) -> -596065.119 | W15: =SUMIF(Calculations!$I$8:$QJ$8, W$2, Calculations!$I356:$QJ356) -> -598431.5175 | X15: =SUMIF(Calculations!$I$8:$QJ$8, X$2, Calculations!$I356:$QJ356) -> -600419.0155 | Y15: =SUMIF(Calculations!$I$8:$QJ$8, Y$2, Calculations!$I356:$QJ356) -> -602680.7722 | Z15: =SUMIF(Calculations!$I$8:$QJ$8, Z$2, Calculations!$I356:$QJ356) -> -605005.0712 | AA15: =SUMIF(Calculations!$I$8:$QJ$8, AA$2, Calculations!$I356:$QJ356) -> -607605.4449 | AB15: =SUMIF(Calculations!$I$8:$QJ$8, AB$2, Calculations!$I356:$QJ356) -> -609839.3358 | AC15: =SUMIF(Calculations!$I$8:$QJ$8, AC$2, Calculations!$I356:$QJ356) -> -612342.3095 | AD15: =SUMIF(Calculations!$I$8:$QJ$8, AD$2, Calculations!$I356:$QJ356) -> -614897.1965 | AE15: =SUMIF(Calculations!$I$8:$QJ$8, AE$2, Calculations!$I356:$QJ356) -> -617733.312 | AF15: =SUMIF(Calculations!$I$8:$QJ$8, AF$2, Calculations!$I356:$QJ356) -> -620212.2808 | AG15: =SUMIF(Calculations!$I$8:$QJ$8, AG$2, Calculations!$I356:$QJ356) -> -622988.3965 | AH15: =SUMIF(Calculations!$I$8:$QJ$8, AH$2, Calculations!$I356:$QJ356) -> -625846.0357 | AI15: =SUMIF(Calculations!$I$8:$QJ$8, AI$2, Calculations!$I356:$QJ356) -> -1698890.359
C16: =Calculations!C357 -> EBITDA | D16: 23107819.24 | E16: 7264596.352 | F16: =Calculations!E357 -> EUR | H16: 30372415.59 | I16: =SUM(I13:I15) -> 0 | J16: 0 | K16: 1416285.626 | L16: 1406491.247 | M16: 1401313.013 | N16: 1394395.501 | O16: 1384484.55 | P16: 1375348.332 | Q16: 1361137.499 | R16: 1346864.288 | S16: 1332464.198 | T16: 1318333.214 | U16: 1303727.953 | V16: 1288194 | W16: 1271345.745 | X16: 1254807.426 | Y16: 1237624.576 | Z16: 1220306.077 | AA16: 1202273.97 | AB16: 1184844.046 | AC16: 1166191.85 | AD16: 1146550.963 | AE16: 1126108.468 | AF16: 1106376.593 | AG16: 1086439.809 | AH16: 1066598.522 | AI16: -26091.87449
D17: 0 | E17: 0
C18: =Calculations!C359 -> less: Depreciation and Amortization | D18: -11810950.05 | E18: -2130188.151 | F18: =Calculations!E359 -> EUR | H18: =SUM(I18:AT18) -> -13941138.2 | I18: =SUMIF(Calculations!$I$8:$QJ$8, I$2, Calculations!$I359:$QJ359) -> 0 | J18: =SUMIF(Calculations!$I$8:$QJ$8, J$2, Calculations!$I359:$QJ359) -> 0 | K18: =SUMIF(Calculations!$I$8:$QJ$8, K$2, Calculations!$I359:$QJ359) -> -1080250.649 | L18: =SUMIF(Calculations!$I$8:$QJ$8, L$2, Calculations!$I359:$QJ359) -> -1080250.649 | M18: =SUMIF(Calculations!$I$8:$QJ$8, M$2, Calculations!$I359:$QJ359) -> -1080250.649 | N18: =SUMIF(Calculations!$I$8:$QJ$8, N$2, Calculations!$I359:$QJ359) -> -1080250.649 | O18: =SUMIF(Calculations!$I$8:$QJ$8, O$2, Calculations!$I359:$QJ359) -> -1080250.649 | P18: =SUMIF(Calculations!$I$8:$QJ$8, P$2, Calculations!$I359:$QJ359) -> -1048150.649 | Q18: =SUMIF(Calculations!$I$8:$QJ$8, Q$2, Calculations!$I359:$QJ359) -> -1048150.649 | R18: =SUMIF(Calculations!$I$8:$QJ$8, R$2, Calculations!$I359:$QJ359) -> -629279.385 | S18: =SUMIF(Calculations!$I$8:$QJ$8, S$2, Calculations!$I359:$QJ359) -> -629279.385 | T18: =SUMIF(Calculations!$I$8:$QJ$8, T$2, Calculations!$I359:$QJ359) -> -629059.385 | U18: =SUMIF(Calculations!$I$8:$QJ$8, U$2, Calculations!$I359:$QJ359) -> -402594.8675 | V18: =SUMIF(Calculations!$I$8:$QJ$8, V$2, Calculations!$I359:$QJ359) -> -402594.8675 | W18: =SUMIF(Calculations!$I$8:$QJ$8, W$2, Calculations!$I359:$QJ359) -> -343221.8961 | X18: =SUMIF(Calculations!$I$8:$QJ$8, X$2, Calculations!$I359:$QJ359) -> -283848.9246 | Y18: =SUMIF(Calculations!$I$8:$QJ$8, Y$2, Calculations!$I359:$QJ359) -> -283848.9246 | Z18: =SUMIF(Calculations!$I$8:$QJ$8, Z$2, Calculations!$I359:$QJ359) -> -283848.9246 | AA18: =SUMIF(Calculations!$I$8:$QJ$8, AA$2, Calculations!$I359:$QJ359) -> -283848.9246 | AB18: =SUMIF(Calculations!$I$8:$QJ$8, AB$2, Calculations!$I359:$QJ359) -> -283940.043 | AC18: =SUMIF(Calculations!$I$8:$QJ$8, AC$2, Calculations!$I359:$QJ359) -> -284031.1614 | AD18: =SUMIF(Calculations!$I$8:$QJ$8, AD$2, Calculations!$I359:$QJ359) -> -284031.1614 | AE18: =SUMIF(Calculations!$I$8:$QJ$8, AE$2, Calculations!$I359:$QJ359) -> -284031.1614 | AF18: =SUMIF(Calculations!$I$8:$QJ$8, AF$2, Calculations!$I359:$QJ359) -> -284031.1614 | AG18: =SUMIF(Calculations!$I$8:$QJ$8, AG$2, Calculations!$I359:$QJ359) -> -284031.1614 | AH18: =SUMIF(Calculations!$I$8:$QJ$8, AH$2, Calculations!$I359:$QJ359) -> -284031.1614 | AI18: =SUMIF(Calculations!$I$8:$QJ$8, AI$2, Calculations!$I359:$QJ359) -> -284031.1614
C19: =Calculations!C360 -> EBIT | D19: 11296869.19 | E19: 5134408.201 | F19: =Calculations!E360 -> EUR | H19: =SUM(I19:AT19) -> 16431277.39 | I19: =I16+I18 -> 0 | J19: =J16+J18 -> 0 | K19: 336034.9773 | L19: 326240.5986 | M19: 321062.3641 | N19: 314144.8526 | O19: 304233.9016 | P19: 327197.6831 | Q19: 312986.8501 | R19: 717584.9026 | S19: 703184.8133 | T19: 689273.8288 | U19: 901133.0857 | V19: 885599.1327 | W19: 928123.8491 | X19: 970958.5018 | Y19: 953775.6512 | Z19: 936457.1528 | AA19: 918425.0454 | AB19: 900904.003 | AC19: 882160.6886 | AD19: 862519.8011 | AE19: 842077.3066 | AF19: 822345.4312 | AG19: 802408.6475 | AH19: 782567.3602 | AI19: -310123.0359
D20: 0 | E20: 0
C21: =Calculations!C362 -> less: Senior Debt Interest Expense | D21: -4397289.07 | E21: -7486.370219 | F21: =Calculations!E362 -> EUR | H21: =SUM(I21:AT21) -> -4404775.44 | I21: =SUMIF(Calculations!$I$8:$QJ$8, I$2, Calculations!$I362:$QJ362) -> 0 | J21: =SUMIF(Calculations!$I$8:$QJ$8, J$2, Calculations!$I362:$QJ362) -> 0 | K21: =SUMIF(Calculations!$I$8:$QJ$8, K$2, Calculations!$I362:$QJ362) -> -416065.301 | L21: =SUMIF(Calculations!$I$8:$QJ$8, L$2, Calculations!$I362:$QJ362) -> -402122.1656 | M21: =SUMIF(Calculations!$I$8:$QJ$8, M$2, Calculations!$I362:$QJ362) -> -386575.9047 | N21: =SUMIF(Calculations!$I$8:$QJ$8, N$2, Calculations!$I362:$QJ362) -> -370152.7124 | O21: =SUMIF(Calculations!$I$8:$QJ$8, O$2, Calculations!$I362:$QJ362) -> -352803.123 | P21: =SUMIF(Calculations!$I$8:$QJ$8, P$2, Calculations!$I362:$QJ362) -> -334474.8804 | Q21: =SUMIF(Calculations!$I$8:$QJ$8, Q$2, Calculations!$I362:$QJ362) -> -315112.7808 | R21: =SUMIF(Calculations!$I$8:$QJ$8, R$2, Calculations!$I362:$QJ362) -> -294658.5066 | S21: =SUMIF(Calculations!$I$8:$QJ$8, S$2, Calculations!$I362:$QJ362) -> -273050.4506 | T21: =SUMIF(Calculations!$I$8:$QJ$8, T$2, Calculations!$I362:$QJ362) -> -250223.5304 | U21: =SUMIF(Calculations!$I$8:$QJ$8, U$2, Calculations!$I362:$QJ362) -> -226108.9924 | V21: =SUMIF(Calculations!$I$8:$QJ$8, V$2, Calculations!$I362:$QJ362) -> -200634.205 | W21: =SUMIF(Calculations!$I$8:$QJ$8, W$2, Calculations!$I362:$QJ362) -> -173722.4393 | X21: =SUMIF(Calculations!$I$8:$QJ$8, X$2, Calculations!$I362:$QJ362) -> -145292.6384 | Y21: =SUMIF(Calculations!$I$8:$QJ$8, Y$2, Calculations!$I362:$QJ362) -> -115259.1734 | Z21: =SUMIF(Calculations!$I$8:$QJ$8, Z$2, Calculations!$I362:$QJ362) -> -83531.5848 | AA21: =SUMIF(Calculations!$I$8:$QJ$8, AA$2, Calculations!$I362:$QJ362) -> -50014.31085 | AB21: =SUMIF(Calculations!$I$8:$QJ$8, AB$2, Calculations!$I362:$QJ362) -> -14972.74044 | AC21: =SUMIF(Calculations!$I$8:$QJ$8, AC$2, Calculations!$I362:$QJ362) -> 0 | AD21: =SUMIF(Calculations!$I$8:$QJ$8, AD$2, Calculations!$I362:$QJ362) -> 0 | AE21: =SUMIF(Calculations!$I$8:$QJ$8, AE$2, Calculations!$I362:$QJ362) -> 0 | AF21: =SUMIF(Calculations!$I$8:$QJ$8, AF$2, Calculations!$I362:$QJ362) -> 0 | AG21: =SUMIF(Calculations!$I$8:$QJ$8, AG$2, Calculations!$I362:$QJ362) -> 0 | AH21: =SUMIF(Calculations!$I$8:$QJ$8, AH$2, Calculations!$I362:$QJ362) -> 0 | AI21: =SUMIF(Calculations!$I$8:$QJ$8, AI$2, Calculations!$I362:$QJ362) -> 0
C22: =Calculations!C363 -> less: Subordinated Debt Interest Expense | D22: -5569733.416 | E22: 810465.252 | F22: =Calculations!E363 -> EUR | H22: =SUM(I22:AT22) -> -4759268.164 | I22: =SUMIF(Calculations!$I$8:$QJ$8, I$2, Calculations!$I363:$QJ363) -> 0 | J22: 0 | K22: =SUMIF(Calculations!$I$8:$QJ$8, K$2, Calculations!$I363:$QJ363) -> -457728.6201 | L22: =SUMIF(Calculations!$I$8:$QJ$8, L$2, Calculations!$I363:$QJ363) -> -449470.4334 | M22: =SUMIF(Calculations!$I$8:$QJ$8, M$2, Calculations!$I363:$QJ363) -> -440413.0756 | N22: =SUMIF(Calculations!$I$8:$QJ$8, N$2, Calculations!$I363:$QJ363) -> -430207.0181 | O22: =SUMIF(Calculations!$I$8:$QJ$8, O$2, Calculations!$I363:$QJ363) -> -418706.5771 | P22: =SUMIF(Calculations!$I$8:$QJ$8, P$2, Calculations!$I363:$QJ363) -> -405747.5923 | Q22: =SUMIF(Calculations!$I$8:$QJ$8, Q$2, Calculations!$I363:$QJ363) -> -391145.0839 | R22: =SUMIF(Calculations!$I$8:$QJ$8, R$2, Calculations!$I363:$QJ363) -> -374690.6119 | S22: =SUMIF(Calculations!$I$8:$QJ$8, S$2, Calculations!$I363:$QJ363) -> -356149.301 | T22: =SUMIF(Calculations!$I$8:$QJ$8, T$2, Calculations!$I363:$QJ363) -> -335256.4878 | U22: =SUMIF(Calculations!$I$8:$QJ$8, U$2, Calculations!$I363:$QJ363) -> -311713.9429 | V22: =SUMIF(Calculations!$I$8:$QJ$8, V$2, Calculations!$I363:$QJ363) -> -285185.614 | W22: =SUMIF(Calculations!$I$8:$QJ$8, W$2, Calculations!$I363:$QJ363) -> -255292.829 | X22: =SUMIF(Calculations!$I$8:$QJ$8, X$2, Calculations!$I363:$QJ363) -> -221608.8907 | Y22: =SUMIF(Calculations!$I$8:$QJ$8, Y$2, Calculations!$I363:$QJ363) -> -183652.9859 | Z22: =SUMIF(Calculations!$I$8:$QJ$8, Z$2, Calculations!$I363:$QJ363) -> -140883.3223 | AA22: =SUMIF(Calculations!$I$8:$QJ$8, AA$2, Calculations!$I363:$QJ363) -> -92689.39489 | AB22: =SUMIF(Calculations!$I$8:$QJ$8, AB$2, Calculations!$I363:$QJ363) -> -38383.27113 | AC22: =SUMIF(Calculations!$I$8:$QJ$8, AC$2, Calculations!$I363:$QJ363) -> 22810.2284 | AD22: =SUMIF(Calculations!$I$8:$QJ$8, AD$2, Calculations!$I363:$QJ363) -> 91764.59536 | AE22: =SUMIF(Calculations!$I$8:$QJ$8, AE$2, Calculations!$I363:$QJ363) -> 169464.102 | AF22: =SUMIF(Calculations!$I$8:$QJ$8, AF$2, Calculations!$I363:$QJ363) -> 257017.8509 | AG22: =SUMIF(Calculations!$I$8:$QJ$8, AG$2, Calculations!$I363:$QJ363) -> 288600.111 | AH22: =SUMIF(Calculations!$I$8:$QJ$8, AH$2, Calculations!$I363:$QJ363) -> 0 | AI22: =SUMIF(Calculations!$I$8:$QJ$8, AI$2, Calculations!$I363:$QJ363) -> 0
C23: =Calculations!C364 -> add: Interest on Reserve Accounts | D23: 0 | E23: 0 | F23: =Calculations!E364 -> EUR | H23: =SUM(I23:AT23) -> 0 | I23: =SUMIF(Calculations!$I$8:$QJ$8, I$2, Calculations!$I364:$QJ364) -> 0 | J23: =SUMIF(Calculations!$I$8:$QJ$8, J$2, Calculations!$I364:$QJ364) -> 0 | K23: =SUMIF(Calculations!$I$8:$QJ$8, K$2, Calculations!$I364:$QJ364) -> 0 | L23: =SUMIF(Calculations!$I$8:$QJ$8, L$2, Calculations!$I364:$QJ364) -> 0 | M23: =SUMIF(Calculations!$I$8:$QJ$8, M$2, Calculations!$I364:$QJ364) -> 0 | N23: =SUMIF(Calculations!$I$8:$QJ$8, N$2, Calculations!$I364:$QJ364) -> 0 | O23: =SUMIF(Calculations!$I$8:$QJ$8, O$2, Calculations!$I364:$QJ364) -> 0 | P23: =SUMIF(Calculations!$I$8:$QJ$8, P$2, Calculations!$I364:$QJ364) -> 0 | Q23: =SUMIF(Calculations!$I$8:$QJ$8, Q$2, Calculations!$I364:$QJ364) -> 0 | R23: =SUMIF(Calculations!$I$8:$QJ$8, R$2, Calculations!$I364:$QJ364) -> 0 | S23: =SUMIF(Calculations!$I$8:$QJ$8, S$2, Calculations!$I364:$QJ364) -> 0 | T23: =SUMIF(Calculations!$I$8:$QJ$8, T$2, Calculations!$I364:$QJ364) -> 0 | U23: =SUMIF(Calculations!$I$8:$QJ$8, U$2, Calculations!$I364:$QJ364) -> 0 | V23: =SUMIF(Calculations!$I$8:$QJ$8, V$2, Calculations!$I364:$QJ364) -> 0 | W23: =SUMIF(Calculations!$I$8:$QJ$8, W$2, Calculations!$I364:$QJ364) -> 0 | X23: =SUMIF(Calculations!$I$8:$QJ$8, X$2, Calculations!$I364:$QJ364) -> 0 | Y23: =SUMIF(Calculations!$I$8:$QJ$8, Y$2, Calculations!$I364:$QJ364) -> 0 | Z23: =SUMIF(Calculations!$I$8:$QJ$8, Z$2, Calculations!$I364:$QJ364) -> 0 | AA23: =SUMIF(Calculations!$I$8:$QJ$8, AA$2, Calculations!$I364:$QJ364) -> 0 | AB23: =SUMIF(Calculations!$I$8:$QJ$8, AB$2, Calculations!$I364:$QJ364) -> 0 | AC23: =SUMIF(Calculations!$I$8:$QJ$8, AC$2, Calculations!$I364:$QJ364) -> 0 | AD23: =SUMIF(Calculations!$I$8:$QJ$8, AD$2, Calculations!$I364:$QJ364) -> 0 | AE23: =SUMIF(Calculations!$I$8:$QJ$8, AE$2, Calculations!$I364:$QJ364) -> 0 | AF23: =SUMIF(Calculations!$I$8:$QJ$8, AF$2, Calculations!$I364:$QJ364) -> 0 | AG23: =SUMIF(Calculations!$I$8:$QJ$8, AG$2, Calculations!$I364:$QJ364) -> 0 | AH23: =SUMIF(Calculations!$I$8:$QJ$8, AH$2, Calculations!$I364:$QJ364) -> 0 | AI23: =SUMIF(Calculations!$I$8:$QJ$8, AI$2, Calculations!$I364:$QJ364) -> 0
C24: =Calculations!C365 -> EBT | D24: 1329846.706 | E24: 5937387.083 | F24: =Calculations!E365 -> EUR | H24: =SUM(I24:AT24) -> 7267233.788 | I24: =I19+SUM(I21:I23) -> 0 | J24: 0 | K24: -537758.9438 | L24: -525352.0004 | M24: -505926.6162 | N24: -486214.878 | O24: -467275.7985 | P24: -413024.7896 | Q24: -393271.0146 | R24: 48235.78404 | S24: 73985.06167 | T24: 103793.8106 | U24: 363310.1504 | V24: 399779.3137 | W24: 499108.5808 | X24: 604056.9726 | Y24: 654863.4919 | Z24: 712042.2456 | AA24: 775721.3396 | AB24: 847547.9915 | AC24: 904970.917 | AD24: 954284.3965 | AE24: 1011541.409 | AF24: 1079363.282 | AG24: 1091008.759 | AH24: 782567.3602 | AI24: -310123.0359
D25: 0 | E25: 0
C26: =Calculations!C367 -> less: Taxes | D26: 0 | E26: -1025305.484 | F26: =Calculations!E367 -> EUR | H26: =SUM(I26:AT26) -> -1025305.484 | I26: =SUMIF(Calculations!$I$8:$QJ$8, I$2, Calculations!$I367:$QJ367) -> 0 | J26: =SUMIF(Calculations!$I$8:$QJ$8, J$2, Calculations!$I367:$QJ367) -> 0 | K26: =SUMIF(Calculations!$I$8:$QJ$8, K$2, Calculations!$I367:$QJ367) -> 0 | L26: =SUMIF(Calculations!$I$8:$QJ$8, L$2, Calculations!$I367:$QJ367) -> 0 | M26: =SUMIF(Calculations!$I$8:$QJ$8, M$2, Calculations!$I367:$QJ367) -> 0 | N26: =SUMIF(Calculations!$I$8:$QJ$8, N$2, Calculations!$I367:$QJ367) -> 0 | O26: =SUMIF(Calculations!$I$8:$QJ$8, O$2, Calculations!$I367:$QJ367) -> 0 | P26: =SUMIF(Calculations!$I$8:$QJ$8, P$2, Calculations!$I367:$QJ367) -> 0 | Q26: =SUMIF(Calculations!$I$8:$QJ$8, Q$2, Calculations!$I367:$QJ367) -> 0 | R26: =SUMIF(Calculations!$I$8:$QJ$8, R$2, Calculations!$I367:$QJ367) -> 0 | S26: =SUMIF(Calculations!$I$8:$QJ$8, S$2, Calculations!$I367:$QJ367) -> 0 | T26: =SUMIF(Calculations!$I$8:$QJ$8, T$2, Calculations!$I367:$QJ367) -> 0 | U26: =SUMIF(Calculations!$I$8:$QJ$8, U$2, Calculations!$I367:$QJ367) -> 0 | V26: =SUMIF(Calculations!$I$8:$QJ$8, V$2, Calculations!$I367:$QJ367) -> 0 | W26: =SUMIF(Calculations!$I$8:$QJ$8, W$2, Calculations!$I367:$QJ367) -> 0 | X26: =SUMIF(Calculations!$I$8:$QJ$8, X$2, Calculations!$I367:$QJ367) -> 0 | Y26: =SUMIF(Calculations!$I$8:$QJ$8, Y$2, Calculations!$I367:$QJ367) -> 0 | Z26: =SUMIF(Calculations!$I$8:$QJ$8, Z$2, Calculations!$I367:$QJ367) -> 0 | AA26: =SUMIF(Calculations!$I$8:$QJ$8, AA$2, Calculations!$I367:$QJ367) -> 0 | AB26: =SUMIF(Calculations!$I$8:$QJ$8, AB$2, Calculations!$I367:$QJ367) -> 0 | AC26: =SUMIF(Calculations!$I$8:$QJ$8, AC$2, Calculations!$I367:$QJ367) -> -24874.13923 | AD26: =SUMIF(Calculations!$I$8:$QJ$8, AD$2, Calculations!$I367:$QJ367) -> -167505.1327 | AE26: =SUMIF(Calculations!$I$8:$QJ$8, AE$2, Calculations!$I367:$QJ367) -> -177324.4764 | AF26: =SUMIF(Calculations!$I$8:$QJ$8, AF$2, Calculations!$I367:$QJ367) -> -188718.5511 | AG26: =SUMIF(Calculations!$I$8:$QJ$8, AG$2, Calculations!$I367:$QJ367) -> -192232.1553 | AH26: =SUMIF(Calculations!$I$8:$QJ$8, AH$2, Calculations!$I367:$QJ367) -> -139010.2363 | AI26: =SUMIF(Calculations!$I$8:$QJ$8, AI$2, Calculations!$I367:$QJ367) -> -135640.7925
C27: =Calculations!C368 -> add: Change in Deferred Tax Asset | D27: 233114.5194 | E27: -51048.01242 | F27: =Calculations!E368 -> EUR | H27: =SUM(I27:AT27) -> 182066.507 | I27: =SUMIF(Calculations!$I$8:$QJ$8, I$2, Calculations!$I368:$QJ368) -> 0 | J27: 0 | K27: =SUMIF(Calculations!$I$8:$QJ$8, K$2, Calculations!$I368:$QJ368) -> 152935.5087 | L27: =SUMIF(Calculations!$I$8:$QJ$8, L$2, Calculations!$I368:$QJ368) -> 150851.1422 | M27: =SUMIF(Calculations!$I$8:$QJ$8, M$2, Calculations!$I368:$QJ368) -> 147587.6776 | N27: =SUMIF(Calculations!$I$8:$QJ$8, N$2, Calculations!$I368:$QJ368) -> 144276.1056 | O27: =SUMIF(Calculations!$I$8:$QJ$8, O$2, Calculations!$I368:$QJ368) -> 141094.3403 | P27: =SUMIF(Calculations!$I$8:$QJ$8, P$2, Calculations!$I368:$QJ368) -> 137372.9708 | Q27: =SUMIF(Calculations!$I$8:$QJ$8, Q$2, Calculations!$I368:$QJ368) -> 134054.3366 | R27: =SUMIF(Calculations!$I$8:$QJ$8, R$2, Calculations!$I368:$QJ368) -> 130251.5667 | S27: =SUMIF(Calculations!$I$8:$QJ$8, S$2, Calculations!$I368:$QJ368) -> 125925.6881 | T27: =SUMIF(Calculations!$I$8:$QJ$8, T$2, Calculations!$I368:$QJ368) -> 120954.7783 | U27: =SUMIF(Calculations!$I$8:$QJ$8, U$2, Calculations!$I368:$QJ368) -> -128672.043 | V27: =SUMIF(Calculations!$I$8:$QJ$8, V$2, Calculations!$I368:$QJ368) -> -134798.8624 | W27: =SUMIF(Calculations!$I$8:$QJ$8, W$2, Calculations!$I368:$QJ368) -> -141511.5201 | X27: =SUMIF(Calculations!$I$8:$QJ$8, X$2, Calculations!$I368:$QJ368) -> -149168.1907 | Y27: =SUMIF(Calculations!$I$8:$QJ$8, Y$2, Calculations!$I368:$QJ368) -> -157703.686 | Z27: =SUMIF(Calculations!$I$8:$QJ$8, Z$2, Calculations!$I368:$QJ368) -> -167309.7166 | AA27: =SUMIF(Calculations!$I$8:$QJ$8, AA$2, Calculations!$I368:$QJ368) -> -178007.8044 | AB27: =SUMIF(Calculations!$I$8:$QJ$8, AB$2, Calculations!$I368:$QJ368) -> -190035.5441 | AC27: =SUMIF(Calculations!$I$8:$QJ$8, AC$2, Calculations!$I368:$QJ368) -> -137896.5817 | AD27: =SUMIF(Calculations!$I$8:$QJ$8, AD$2, Calculations!$I368:$QJ368) -> -200.1656599 | AE27: =SUMIF(Calculations!$I$8:$QJ$8, AE$2, Calculations!$I368:$QJ368) -> 0 | AF27: =SUMIF(Calculations!$I$8:$QJ$8, AF$2, Calculations!$I368:$QJ368) -> 0 | AG27: =SUMIF(Calculations!$I$8:$QJ$8, AG$2, Calculations!$I368:$QJ368) -> 1557.164112 | AH27: =SUMIF(Calculations!$I$8:$QJ$8, AH$2, Calculations!$I368:$QJ368) -> 153.400075 | AI27: =SUMIF(Calculations!$I$8:$QJ$8, AI$2, Calculations!$I368:$QJ368) -> 180355.9428
C28: =Calculations!C369 -> Net Income / (Loss) | D28: 1562961.225 | E28: 4861033.587 | F28: =Calculations!E369 -> EUR | H28: =SUM(I28:AT28) -> 6423994.812 | I28: =I24+SUM(I26:I27) -> 0 | J28: =J24+SUM(J26:J27) -> 0 | K28: -384823.4352 | L28: -374500.8582 | M28: -358338.9386 | N28: -341938.7724 | O28: -326181.4582 | P28: -275651.8188 | Q28: -259216.6781 | R28: 178487.3508 | S28: 199910.7497 | T28: 224748.5889 | U28: 234638.1074 | V28: 264980.4513 | W28: 357597.0607 | X28: 454888.7819 | Y28: 497159.8059 | Z28: 544732.529 | AA28: 597713.5352 | AB28: 657512.4474 | AC28: 742200.1961 | AD28: 786579.0982 | AE28: 834216.9322 | AF28: 890644.731 | AG28: 900333.7673 | AH28: 643710.524 | AI28: -265407.8856
A30: · | B30: Balance Sheet | F30: Unit
B32: Current Assets
C33: =Calculations!C374 -> Unrestricted Cash | F33: =Calculations!E374 -> EUR | I33: =LOOKUP(I$3, Calculations!$I$4:$QJ$4, Calculations!$I374:$QJ374) -> 77990.10493 | J33: =LOOKUP(J$3, Calculations!$I$4:$QJ$4, Calculations!$I374:$QJ374) -> 472347.1923 | K33: =LOOKUP(K$3, Calculations!$I$4:$QJ$4, Calculations!$I374:$QJ374) -> 462774.0015 | L33: =LOOKUP(L$3, Calculations!$I$4:$QJ$4, Calculations!$I374:$QJ374) -> 787960.8805 | M33: =LOOKUP(M$3, Calculations!$I$4:$QJ$4, Calculations!$I374:$QJ374) -> 992638.4358 | N33: =LOOKUP(N$3, Calculations!$I$4:$QJ$4, Calculations!$I374:$QJ374) -> 1190602.049 | O33: =LOOKUP(O$3, Calculations!$I$4:$QJ$4, Calculations!$I374:$QJ374) -> 1269271.35 | P33: =LOOKUP(P$3, Calculations!$I$4:$QJ$4, Calculations!$I374:$QJ374) -> 1557513.392 | Q33: =LOOKUP(Q$3, Calculations!$I$4:$QJ$4, Calculations!$I374:$QJ374) -> 1722161.742 | R33: =LOOKUP(R$3, Calculations!$I$4:$QJ$4, Calculations!$I374:$QJ374) -> 1872518.294 | S33: =LOOKUP(S$3, Calculations!$I$4:$QJ$4, Calculations!$I374:$QJ374) -> 1905905.174 | T33: =LOOKUP(T$3, Calculations!$I$4:$QJ$4, Calculations!$I374:$QJ374) -> 2130245.474 | U33: =LOOKUP(U$3, Calculations!$I$4:$QJ$4, Calculations!$I374:$QJ374) -> 2237411.426 | V33: =LOOKUP(V$3, Calculations!$I$4:$QJ$4, Calculations!$I374:$QJ374) -> 2329025.829 | W33: =LOOKUP(W$3, Calculations!$I$4:$QJ$4, Calculations!$I374:$QJ374) -> 2308034.032 | X33: =LOOKUP(X$3, Calculations!$I$4:$QJ$4, Calculations!$I374:$QJ374) -> 2461968.004 | Y33: =LOOKUP(Y$3, Calculations!$I$4:$QJ$4, Calculations!$I374:$QJ374) -> 2502961.67 | Z33: =LOOKUP(Z$3, Calculations!$I$4:$QJ$4, Calculations!$I374:$QJ374) -> 2526620.221 | AA33: =LOOKUP(AA$3, Calculations!$I$4:$QJ$4, Calculations!$I374:$QJ374) -> 2443145.195 | AB33: =LOOKUP(AB$3, Calculations!$I$4:$QJ$4, Calculations!$I374:$QJ374) -> 3056734.82 | AC33: =LOOKUP(AC$3, Calculations!$I$4:$QJ$4, Calculations!$I374:$QJ374) -> 1293086.891 | AD33: =LOOKUP(AD$3, Calculations!$I$4:$QJ$4, Calculations!$I374:$QJ374) -> 1754598.118 | AE33: =LOOKUP(AE$3, Calculations!$I$4:$QJ$4, Calculations!$I374:$QJ374) -> 2116634.87 | AF33: =LOOKUP(AF$3, Calculations!$I$4:$QJ$4, Calculations!$I374:$QJ374) -> 2587132.238 | AG33: =LOOKUP(AG$3, Calculations!$I$4:$QJ$4, Calculations!$I374:$QJ374) -> 6292213.929 | AH33: =LOOKUP(AH$3, Calculations!$I$4:$QJ$4, Calculations!$I374:$QJ374) -> 7221422.788 | AI33: =LOOKUP(AI$3, Calculations!$I$4:$QJ$4, Calculations!$I374:$QJ374) -> 8066971.949
C34: =Calculations!C375 -> DSRA | F34: =Calculations!E375 -> EUR | I34: =LOOKUP(I$3, Calculations!$I$4:$QJ$4, Calculations!$I375:$QJ375) -> 0 | J34: =LOOKUP(J$3, Calculations!$I$4:$QJ$4, Calculations!$I375:$QJ375) -> 169431.6699 | K34: =LOOKUP(K$3, Calculations!$I$4:$QJ$4, Calculations!$I375:$QJ375) -> 338863.3398 | L34: =LOOKUP(L$3, Calculations!$I$4:$QJ$4, Calculations!$I375:$QJ375) -> 338863.3398 | M34: =LOOKUP(M$3, Calculations!$I$4:$QJ$4, Calculations!$I375:$QJ375) -> 338863.3398 | N34: =LOOKUP(N$3, Calculations!$I$4:$QJ$4, Calculations!$I375:$QJ375) -> 338863.3398 | O34: =LOOKUP(O$3, Calculations!$I$4:$QJ$4, Calculations!$I375:$QJ375) -> 338863.3398 | P34: =LOOKUP(P$3, Calculations!$I$4:$QJ$4, Calculations!$I375:$QJ375) -> 338863.3398 | Q34: =LOOKUP(Q$3, Calculations!$I$4:$QJ$4, Calculations!$I375:$QJ375) -> 338863.3398 | R34: =LOOKUP(R$3, Calculations!$I$4:$QJ$4, Calculations!$I375:$QJ375) -> 338863.3398 | S34: =LOOKUP(S$3, Calculations!$I$4:$QJ$4, Calculations!$I375:$QJ375) -> 338863.3398 | T34: =LOOKUP(T$3, Calculations!$I$4:$QJ$4, Calculations!$I375:$QJ375) -> 338863.3398 | U34: =LOOKUP(U$3, Calculations!$I$4:$QJ$4, Calculations!$I375:$QJ375) -> 338863.3398 | V34: =LOOKUP(V$3, Calculations!$I$4:$QJ$4, Calculations!$I375:$QJ375) -> 338863.3398 | W34: =LOOKUP(W$3, Calculations!$I$4:$QJ$4, Calculations!$I375:$QJ375) -> 338863.3398 | X34: =LOOKUP(X$3, Calculations!$I$4:$QJ$4, Calculations!$I375:$QJ375) -> 338863.3398 | Y34: =LOOKUP(Y$3, Calculations!$I$4:$QJ$4, Calculations!$I375:$QJ375) -> 338863.3398 | Z34: =LOOKUP(Z$3, Calculations!$I$4:$QJ$4, Calculations!$I375:$QJ375) -> 338863.3398 | AA34: =LOOKUP(AA$3, Calculations!$I$4:$QJ$4, Calculations!$I375:$QJ375) -> 338863.3398 | AB34: =LOOKUP(AB$3, Calculations!$I$4:$QJ$4, Calculations!$I375:$QJ375) -> 0 | AC34: =LOOKUP(AC$3, Calculations!$I$4:$QJ$4, Calculations!$I375:$QJ375) -> 0 | AD34: =LOOKUP(AD$3, Calculations!$I$4:$QJ$4, Calculations!$I375:$QJ375) -> 0 | AE34: =LOOKUP(AE$3, Calculations!$I$4:$QJ$4, Calculations!$I375:$QJ375) -> 0 | AF34: =LOOKUP(AF$3, Calculations!$I$4:$QJ$4, Calculations!$I375:$QJ375) -> 0 | AG34: =LOOKUP(AG$3, Calculations!$I$4:$QJ$4, Calculations!$I375:$QJ375) -> 0 | AH34: =LOOKUP(AH$3, Calculations!$I$4:$QJ$4, Calculations!$I375:$QJ375) -> 0 | AI34: =LOOKUP(AI$3, Calculations!$I$4:$QJ$4, Calculations!$I375:$QJ375) -> 0
C35: =Calculations!C376 -> MMRA | F35: =Calculations!E376 -> EUR | I35: =LOOKUP(I$3, Calculations!$I$4:$QJ$4, Calculations!$I376:$QJ376) -> 0 | J35: =LOOKUP(J$3, Calculations!$I$4:$QJ$4, Calculations!$I376:$QJ376) -> 0 | K35: =LOOKUP(K$3, Calculations!$I$4:$QJ$4, Calculations!$I376:$QJ376) -> 0 | L35: =LOOKUP(L$3, Calculations!$I$4:$QJ$4, Calculations!$I376:$QJ376) -> 0 | M35: =LOOKUP(M$3, Calculations!$I$4:$QJ$4, Calculations!$I376:$QJ376) -> 0 | N35: =LOOKUP(N$3, Calculations!$I$4:$QJ$4, Calculations!$I376:$QJ376) -> 0 | O35: =LOOKUP(O$3, Calculations!$I$4:$QJ$4, Calculations!$I376:$QJ376) -> 0 | P35: =LOOKUP(P$3, Calculations!$I$4:$QJ$4, Calculations!$I376:$QJ376) -> 0 | Q35: =LOOKUP(Q$3, Calculations!$I$4:$QJ$4, Calculations!$I376:$QJ376) -> 0 | R35: =LOOKUP(R$3, Calculations!$I$4:$QJ$4, Calculations!$I376:$QJ376) -> 0 | S35: =LOOKUP(S$3, Calculations!$I$4:$QJ$4, Calculations!$I376:$QJ376) -> 0 | T35: =LOOKUP(T$3, Calculations!$I$4:$QJ$4, Calculations!$I376:$QJ376) -> 0 | U35: =LOOKUP(U$3, Calculations!$I$4:$QJ$4, Calculations!$I376:$QJ376) -> 0 | V35: =LOOKUP(V$3, Calculations!$I$4:$QJ$4, Calculations!$I376:$QJ376) -> 0 | W35: =LOOKUP(W$3, Calculations!$I$4:$QJ$4, Calculations!$I376:$QJ376) -> 0 | X35: =LOOKUP(X$3, Calculations!$I$4:$QJ$4, Calculations!$I376:$QJ376) -> 0 | Y35: =LOOKUP(Y$3, Calculations!$I$4:$QJ$4, Calculations!$I376:$QJ376) -> 0 | Z35: =LOOKUP(Z$3, Calculations!$I$4:$QJ$4, Calculations!$I376:$QJ376) -> 0 | AA35: =LOOKUP(AA$3, Calculations!$I$4:$QJ$4, Calculations!$I376:$QJ376) -> 0 | AB35: =LOOKUP(AB$3, Calculations!$I$4:$QJ$4, Calculations!$I376:$QJ376) -> 0 | AC35: =LOOKUP(AC$3, Calculations!$I$4:$QJ$4, Calculations!$I376:$QJ376) -> 0 | AD35: =LOOKUP(AD$3, Calculations!$I$4:$QJ$4, Calculations!$I376:$QJ376) -> 0 | AE35: =LOOKUP(AE$3, Calculations!$I$4:$QJ$4, Calculations!$I376:$QJ376) -> 0 | AF35: =LOOKUP(AF$3, Calculations!$I$4:$QJ$4, Calculations!$I376:$QJ376) -> 0 | AG35: =LOOKUP(AG$3, Calculations!$I$4:$QJ$4, Calculations!$I376:$QJ376) -> 0 | AH35: =LOOKUP(AH$3, Calculations!$I$4:$QJ$4, Calculations!$I376:$QJ376) -> 0 | AI35: =LOOKUP(AI$3, Calculations!$I$4:$QJ$4, Calculations!$I376:$QJ376) -> 0
C36: =Calculations!C377 -> Accounts Receivable | F36: =Calculations!E377 -> EUR | I36: =LOOKUP(I$3, Calculations!$I$4:$QJ$4, Calculations!$I377:$QJ377) -> 123343.4274 | J36: =LOOKUP(J$3, Calculations!$I$4:$QJ$4, Calculations!$I377:$QJ377) -> 0 | K36: =LOOKUP(K$3, Calculations!$I$4:$QJ$4, Calculations!$I377:$QJ377) -> 288322.1864 | L36: =LOOKUP(L$3, Calculations!$I$4:$QJ$4, Calculations!$I377:$QJ377) -> 204123.3785 | M36: =LOOKUP(M$3, Calculations!$I$4:$QJ$4, Calculations!$I377:$QJ377) -> 202211.8639 | N36: =LOOKUP(N$3, Calculations!$I$4:$QJ$4, Calculations!$I377:$QJ377) -> 200098.4377 | O36: =LOOKUP(O$3, Calculations!$I$4:$QJ$4, Calculations!$I377:$QJ377) -> 279991.2326 | P36: =LOOKUP(P$3, Calculations!$I$4:$QJ$4, Calculations!$I377:$QJ377) -> 195934.4889 | Q36: =LOOKUP(Q$3, Calculations!$I$4:$QJ$4, Calculations!$I377:$QJ377) -> 193883.5495 | R36: =LOOKUP(R$3, Calculations!$I$4:$QJ$4, Calculations!$I377:$QJ377) -> 191853.0258 | S36: =LOOKUP(S$3, Calculations!$I$4:$QJ$4, Calculations!$I377:$QJ377) -> 268775.5455 | T36: =LOOKUP(T$3, Calculations!$I$4:$QJ$4, Calculations!$I377:$QJ377) -> 187852.4144 | U36: =LOOKUP(U$3, Calculations!$I$4:$QJ$4, Calculations!$I377:$QJ377) -> 185881.9264 | V36: =LOOKUP(V$3, Calculations!$I$4:$QJ$4, Calculations!$I377:$QJ377) -> 183931.0532 | W36: =LOOKUP(W$3, Calculations!$I$4:$QJ$4, Calculations!$I377:$QJ377) -> 257836.1653 | X36: =LOOKUP(X$3, Calculations!$I$4:$QJ$4, Calculations!$I377:$QJ377) -> 180087.3721 | Y36: =LOOKUP(Y$3, Calculations!$I$4:$QJ$4, Calculations!$I377:$QJ377) -> 178194.1796 | Z36: =LOOKUP(Z$3, Calculations!$I$4:$QJ$4, Calculations!$I377:$QJ377) -> 176319.8325 | AA36: =LOOKUP(AA$3, Calculations!$I$4:$QJ$4, Calculations!$I377:$QJ377) -> 247325.8996 | AB36: =LOOKUP(AB$3, Calculations!$I$4:$QJ$4, Calculations!$I377:$QJ377) -> 172626.9259 | AC36: =LOOKUP(AC$3, Calculations!$I$4:$QJ$4, Calculations!$I377:$QJ377) -> 170807.9968 | AD36: =LOOKUP(AD$3, Calculations!$I$4:$QJ$4, Calculations!$I377:$QJ377) -> 169007.1739 | AE36: =LOOKUP(AE$3, Calculations!$I$4:$QJ$4, Calculations!$I377:$QJ377) -> 237227.9157 | AF36: =LOOKUP(AF$3, Calculations!$I$4:$QJ$4, Calculations!$I377:$QJ377) -> 165459.1275 | AG36: =LOOKUP(AG$3, Calculations!$I$4:$QJ$4, Calculations!$I377:$QJ377) -> 163711.5488 | AH36: =LOOKUP(AH$3, Calculations!$I$4:$QJ$4, Calculations!$I377:$QJ377) -> 161981.366 | AI36: =LOOKUP(AI$3, Calculations!$I$4:$QJ$4, Calculations!$I377:$QJ377) -> 227526.0412
C37: =Calculations!C378 -> Total Current Assets | F37: =Calculations!E378 -> EUR | I37: =SUM(I33:I36) -> 201333.5323 | J37: =SUM(J33:J36) -> 641778.8623 | K37: 1089959.528 | L37: 1330947.599 | M37: 1533713.64 | N37: 1729563.827 | O37: 1888125.922 | P37: 2092311.22 | Q37: 2254908.631 | R37: 2403234.66 | S37: 2513544.059 | T37: 2656961.229 | U37: 2762156.692 | V37: 2851820.222 | W37: 2904733.537 | X37: 2980918.716 | Y37: 3020019.189 | Z37: 3041803.394 | AA37: 3029334.434 | AB37: 3229361.746 | AC37: 1463894.888 | AD37: 1923605.292 | AE37: 2353862.786 | AF37: 2752591.366 | AG37: =SUM(AG33:AG36) -> 6455925.478 | AH37: 7383404.154 | AI37: 8294497.99
B39: Non-Current Assets
C40: =Calculations!C381 -> Net Property, Plant and Equipment | F40: =Calculations!E381 -> EUR | I40: =LOOKUP(I$3, Calculations!$I$4:$QJ$4, Calculations!$I381:$QJ381) -> 7402416.468 | J40: =LOOKUP(J$3, Calculations!$I$4:$QJ$4, Calculations!$I381:$QJ381) -> 14528221.14 | K40: =LOOKUP(K$3, Calculations!$I$4:$QJ$4, Calculations!$I381:$QJ381) -> 13537991.38 | L40: =LOOKUP(L$3, Calculations!$I$4:$QJ$4, Calculations!$I381:$QJ381) -> 12367719.84 | M40: =LOOKUP(M$3, Calculations!$I$4:$QJ$4, Calculations!$I381:$QJ381) -> 11287469.19 | N40: =LOOKUP(N$3, Calculations!$I$4:$QJ$4, Calculations!$I381:$QJ381) -> 10207218.54 | O40: =LOOKUP(O$3, Calculations!$I$4:$QJ$4, Calculations!$I381:$QJ381) -> 9216988.781 | P40: =LOOKUP(P$3, Calculations!$I$4:$QJ$4, Calculations!$I381:$QJ381) -> 8078817.245 | Q40: =LOOKUP(Q$3, Calculations!$I$4:$QJ$4, Calculations!$I381:$QJ381) -> 7030666.596 | R40: =LOOKUP(R$3, Calculations!$I$4:$QJ$4, Calculations!$I381:$QJ381) -> 6401387.211 | S40: =LOOKUP(S$3, Calculations!$I$4:$QJ$4, Calculations!$I381:$QJ381) -> 5824547.775 | T40: =LOOKUP(T$3, Calculations!$I$4:$QJ$4, Calculations!$I381:$QJ381) -> 5143048.441 | U40: =LOOKUP(U$3, Calculations!$I$4:$QJ$4, Calculations!$I381:$QJ381) -> 4740453.573 | V40: =LOOKUP(V$3, Calculations!$I$4:$QJ$4, Calculations!$I381:$QJ381) -> 4337858.706 | W40: =LOOKUP(W$3, Calculations!$I$4:$QJ$4, Calculations!$I381:$QJ381) -> 4018290.887 | X40: =LOOKUP(X$3, Calculations!$I$4:$QJ$4, Calculations!$I381:$QJ381) -> 3710787.885 | Y40: =LOOKUP(Y$3, Calculations!$I$4:$QJ$4, Calculations!$I381:$QJ381) -> 3426938.961 | Z40: =LOOKUP(Z$3, Calculations!$I$4:$QJ$4, Calculations!$I381:$QJ381) -> 3143090.036 | AA40: =LOOKUP(AA$3, Calculations!$I$4:$QJ$4, Calculations!$I381:$QJ381) -> 2882895.188 | AB40: =LOOKUP(AB$3, Calculations!$I$4:$QJ$4, Calculations!$I381:$QJ381) -> 2583079.028 | AC40: =LOOKUP(AC$3, Calculations!$I$4:$QJ$4, Calculations!$I381:$QJ381) -> 4691967.251 | AD40: =LOOKUP(AD$3, Calculations!$I$4:$QJ$4, Calculations!$I381:$QJ381) -> 4407936.09 | AE40: =LOOKUP(AE$3, Calculations!$I$4:$QJ$4, Calculations!$I381:$QJ381) -> 4147574.192 | AF40: =LOOKUP(AF$3, Calculations!$I$4:$QJ$4, Calculations!$I381:$QJ381) -> 3839873.767 | AG40: =LOOKUP(AG$3, Calculations!$I$4:$QJ$4, Calculations!$I381:$QJ381) -> 3555842.605 | AH40: =LOOKUP(AH$3, Calculations!$I$4:$QJ$4, Calculations!$I381:$QJ381) -> 3271811.444 | AI40: =LOOKUP(AI$3, Calculations!$I$4:$QJ$4, Calculations!$I381:$QJ381) -> 3011449.546
C41: =Calculations!C382 -> Goodwill (net of amortization) | F41: =Calculations!E382 -> EUR | I41: =LOOKUP(I$3, Calculations!$I$4:$QJ$4, Calculations!$I382:$QJ382) -> 0 | J41: =LOOKUP(J$3, Calculations!$I$4:$QJ$4, Calculations!$I382:$QJ382) -> 0 | K41: =LOOKUP(K$3, Calculations!$I$4:$QJ$4, Calculations!$I382:$QJ382) -> 0 | L41: =LOOKUP(L$3, Calculations!$I$4:$QJ$4, Calculations!$I382:$QJ382) -> 0 | M41: =LOOKUP(M$3, Calculations!$I$4:$QJ$4, Calculations!$I382:$QJ382) -> 0 | N41: =LOOKUP(N$3, Calculations!$I$4:$QJ$4, Calculations!$I382:$QJ382) -> 0 | O41: =LOOKUP(O$3, Calculations!$I$4:$QJ$4, Calculations!$I382:$QJ382) -> 0 | P41: =LOOKUP(P$3, Calculations!$I$4:$QJ$4, Calculations!$I382:$QJ382) -> 0 | Q41: =LOOKUP(Q$3, Calculations!$I$4:$QJ$4, Calculations!$I382:$QJ382) -> 0 | R41: =LOOKUP(R$3, Calculations!$I$4:$QJ$4, Calculations!$I382:$QJ382) -> 0 | S41: =LOOKUP(S$3, Calculations!$I$4:$QJ$4, Calculations!$I382:$QJ382) -> 0 | T41: =LOOKUP(T$3, Calculations!$I$4:$QJ$4, Calculations!$I382:$QJ382) -> 0 | U41: =LOOKUP(U$3, Calculations!$I$4:$QJ$4, Calculations!$I382:$QJ382) -> 0 | V41: =LOOKUP(V$3, Calculations!$I$4:$QJ$4, Calculations!$I382:$QJ382) -> 0 | W41: =LOOKUP(W$3, Calculations!$I$4:$QJ$4, Calculations!$I382:$QJ382) -> 0 | X41: =LOOKUP(X$3, Calculations!$I$4:$QJ$4, Calculations!$I382:$QJ382) -> 0 | Y41: =LOOKUP(Y$3, Calculations!$I$4:$QJ$4, Calculations!$I382:$QJ382) -> 0 | Z41: =LOOKUP(Z$3, Calculations!$I$4:$QJ$4, Calculations!$I382:$QJ382) -> 0 | AA41: =LOOKUP(AA$3, Calculations!$I$4:$QJ$4, Calculations!$I382:$QJ382) -> 0 | AB41: =LOOKUP(AB$3, Calculations!$I$4:$QJ$4, Calculations!$I382:$QJ382) -> 0 | AC41: =LOOKUP(AC$3, Calculations!$I$4:$QJ$4, Calculations!$I382:$QJ382) -> 0 | AD41: =LOOKUP(AD$3, Calculations!$I$4:$QJ$4, Calculations!$I382:$QJ382) -> 0 | AE41: =LOOKUP(AE$3, Calculations!$I$4:$QJ$4, Calculations!$I382:$QJ382) -> 0 | AF41: =LOOKUP(AF$3, Calculations!$I$4:$QJ$4, Calculations!$I382:$QJ382) -> 0 | AG41: =LOOKUP(AG$3, Calculations!$I$4:$QJ$4, Calculations!$I382:$QJ382) -> 0 | AH41: =LOOKUP(AH$3, Calculations!$I$4:$QJ$4, Calculations!$I382:$QJ382) -> 0 | AI41: =LOOKUP(AI$3, Calculations!$I$4:$QJ$4, Calculations!$I382:$QJ382) -> 0
C42: =Calculations!C383 -> Deferred Tax Asset | F42: =Calculations!E383 -> EUR | I42: =LOOKUP(I$3, Calculations!$I$4:$QJ$4, Calculations!$I383:$QJ383) -> 0 | J42: =LOOKUP(J$3, Calculations!$I$4:$QJ$4, Calculations!$I383:$QJ383) -> 0 | K42: =LOOKUP(K$3, Calculations!$I$4:$QJ$4, Calculations!$I383:$QJ383) -> 126049.0008 | L42: =LOOKUP(L$3, Calculations!$I$4:$QJ$4, Calculations!$I383:$QJ383) -> 303786.6508 | M42: =LOOKUP(M$3, Calculations!$I$4:$QJ$4, Calculations!$I383:$QJ383) -> 451374.3285 | N42: =LOOKUP(N$3, Calculations!$I$4:$QJ$4, Calculations!$I383:$QJ383) -> 595650.4341 | O42: =LOOKUP(O$3, Calculations!$I$4:$QJ$4, Calculations!$I383:$QJ383) -> 710398.9382 | P42: =LOOKUP(P$3, Calculations!$I$4:$QJ$4, Calculations!$I383:$QJ383) -> 874117.7451 | Q42: =LOOKUP(Q$3, Calculations!$I$4:$QJ$4, Calculations!$I383:$QJ383) -> 1008172.082 | R42: =LOOKUP(R$3, Calculations!$I$4:$QJ$4, Calculations!$I383:$QJ383) -> 1138423.648 | S42: =LOOKUP(S$3, Calculations!$I$4:$QJ$4, Calculations!$I383:$QJ383) -> 1239441.104 | T42: =LOOKUP(T$3, Calculations!$I$4:$QJ$4, Calculations!$I383:$QJ383) -> 1385304.115 | U42: =LOOKUP(U$3, Calculations!$I$4:$QJ$4, Calculations!$I383:$QJ383) -> 1256632.072 | V42: =LOOKUP(V$3, Calculations!$I$4:$QJ$4, Calculations!$I383:$QJ383) -> 1121833.209 | W42: =LOOKUP(W$3, Calculations!$I$4:$QJ$4, Calculations!$I383:$QJ383) -> 978045.3201 | X42: =LOOKUP(X$3, Calculations!$I$4:$QJ$4, Calculations!$I383:$QJ383) -> 831153.4984 | Y42: =LOOKUP(Y$3, Calculations!$I$4:$QJ$4, Calculations!$I383:$QJ383) -> 673449.8124 | Z42: =LOOKUP(Z$3, Calculations!$I$4:$QJ$4, Calculations!$I383:$QJ383) -> 506140.0958 | AA42: =LOOKUP(AA$3, Calculations!$I$4:$QJ$4, Calculations!$I383:$QJ383) -> 329416.4555 | AB42: =LOOKUP(AB$3, Calculations!$I$4:$QJ$4, Calculations!$I383:$QJ383) -> 138096.7474 | AC42: =LOOKUP(AC$3, Calculations!$I$4:$QJ$4, Calculations!$I383:$QJ383) -> 200.1656599 | AD42: =LOOKUP(AD$3, Calculations!$I$4:$QJ$4, Calculations!$I383:$QJ383) -> 0 | AE42: =LOOKUP(AE$3, Calculations!$I$4:$QJ$4, Calculations!$I383:$QJ383) -> 0 | AF42: =LOOKUP(AF$3, Calculations!$I$4:$QJ$4, Calculations!$I383:$QJ383) -> 0 | AG42: =LOOKUP(AG$3, Calculations!$I$4:$QJ$4, Calculations!$I383:$QJ383) -> 1557.164112 | AH42: =LOOKUP(AH$3, Calculations!$I$4:$QJ$4, Calculations!$I383:$QJ383) -> 1710.564187 | AI42: =LOOKUP(AI$3, Calculations!$I$4:$QJ$4, Calculations!$I383:$QJ383) -> 0
C43: =Calculations!C384 -> Total Non-Current Assets | F43: =Calculations!E384 -> EUR | I43: =SUM(I40:I42) -> 7402416.468 | J43: =SUM(J40:J42) -> 14528221.14 | K43: 13664040.38 | L43: 12671506.49 | M43: 11738843.52 | N43: 10802868.98 | O43: 9927387.719 | P43: 8952934.99 | Q43: 8038838.677 | R43: 7539810.859 | S43: 7063988.878 | T43: 6528352.556 | U43: 5997085.645 | V43: 5459691.915 | W43: 4996336.207 | X43: 4541941.384 | Y43: 4100388.773 | Z43: 3649230.132 | AA43: 3212311.644 | AB43: 2721175.776 | AC43: 4692167.417 | AD43: 4407936.09 | AE43: 4147574.192 | AF43: 3839873.767 | AG43: =SUM(AG40:AG42) -> 3557399.769 | AH43: 3273522.008 | AI43: 3011449.546
B45: Total Assets | F45: =Calculations!E386 -> EUR | I45: =I37+I43 -> 7603750 | J45: =J37+J43 -> 15170000 | K45: 14753999.9 | L45: 14002454.09 | M45: 13272557.16 | N45: 12532432.8 | O45: 11815513.64 | P45: 11045246.21 | Q45: 10293747.31 | R45: 9943045.519 | S45: 9577532.938 | T45: 9185313.784 | U45: 8759242.337 | V45: 8311512.137 | W45: 7901069.744 | X45: 7522860.1 | Y45: 7120407.962 | Z45: 6691033.525 | AA45: 6241646.078 | AB45: 5950537.521 | AC45: 6156062.304 | AD45: 6331541.382 | AE45: 6501436.977 | AF45: 6592465.133 | AG45: =AG37+AG43 -> 10013325.25 | AH45: 10656926.16 | AI45: 11305947.54
B47: Current Liabilities
C48: =Calculations!C389 -> Accounts Payable | F48: =Calculations!E389 -> EUR | I48: =LOOKUP(I$3, Calculations!$I$4:$QJ$4, Calculations!$I389:$QJ389) -> 0 | J48: =LOOKUP(J$3, Calculations!$I$4:$QJ$4, Calculations!$I389:$QJ389) -> 0 | K48: =LOOKUP(K$3, Calculations!$I$4:$QJ$4, Calculations!$I389:$QJ389) -> 2587.706613 | L48: =LOOKUP(L$3, Calculations!$I$4:$QJ$4, Calculations!$I389:$QJ389) -> 2652.399278 | M48: =LOOKUP(M$3, Calculations!$I$4:$QJ$4, Calculations!$I389:$QJ389) -> 2718.70926 | N48: =LOOKUP(N$3, Calculations!$I$4:$QJ$4, Calculations!$I389:$QJ389) -> 2786.676992 | O48: =LOOKUP(O$3, Calculations!$I$4:$QJ$4, Calculations!$I389:$QJ389) -> 2856.343917 | P48: =LOOKUP(P$3, Calculations!$I$4:$QJ$4, Calculations!$I389:$QJ389) -> 2927.752515 | Q48: =LOOKUP(Q$3, Calculations!$I$4:$QJ$4, Calculations!$I389:$QJ389) -> 3000.946328 | R48: =LOOKUP(R$3, Calculations!$I$4:$QJ$4, Calculations!$I389:$QJ389) -> 3075.969986 | S48: =LOOKUP(S$3, Calculations!$I$4:$QJ$4, Calculations!$I389:$QJ389) -> 3152.869235 | T48: =LOOKUP(T$3, Calculations!$I$4:$QJ$4, Calculations!$I389:$QJ389) -> 3231.690966 | U48: =LOOKUP(U$3, Calculations!$I$4:$QJ$4, Calculations!$I389:$QJ389) -> 3312.48324 | V48: =LOOKUP(V$3, Calculations!$I$4:$QJ$4, Calculations!$I389:$QJ389) -> 3395.295321 | W48: =LOOKUP(W$3, Calculations!$I$4:$QJ$4, Calculations!$I389:$QJ389) -> 3480.177704 | X48: =LOOKUP(X$3, Calculations!$I$4:$QJ$4, Calculations!$I389:$QJ389) -> 3567.182147 | Y48: =LOOKUP(Y$3, Calculations!$I$4:$QJ$4, Calculations!$I389:$QJ389) -> 3656.361701 | Z48: =LOOKUP(Z$3, Calculations!$I$4:$QJ$4, Calculations!$I389:$QJ389) -> 3747.770743 | AA48: =LOOKUP(AA$3, Calculations!$I$4:$QJ$4, Calculations!$I389:$QJ389) -> 3841.465012 | AB48: =LOOKUP(AB$3, Calculations!$I$4:$QJ$4, Calculations!$I389:$QJ389) -> 3937.501637 | AC48: =LOOKUP(AC$3, Calculations!$I$4:$QJ$4, Calculations!$I389:$QJ389) -> 10958.91959 | AD48: =LOOKUP(AD$3, Calculations!$I$4:$QJ$4, Calculations!$I389:$QJ389) -> 11844.8249 | AE48: =LOOKUP(AE$3, Calculations!$I$4:$QJ$4, Calculations!$I389:$QJ389) -> 17151.76945 | AF48: =LOOKUP(AF$3, Calculations!$I$4:$QJ$4, Calculations!$I389:$QJ389) -> 14026.77658 | AG48: =LOOKUP(AG$3, Calculations!$I$4:$QJ$4, Calculations!$I389:$QJ389) -> 9751.069142 | AH48: =LOOKUP(AH$3, Calculations!$I$4:$QJ$4, Calculations!$I389:$QJ389) -> 9641.460226 | AI48: =LOOKUP(AI$3, Calculations!$I$4:$QJ$4, Calculations!$I389:$QJ389) -> 13889.74726
C49: =Calculations!C390 -> Accrued Interest: Subordinated Debt | F49: =Calculations!E390 -> EUR | I49: =LOOKUP(I$3, Calculations!$I$4:$QJ$4, Calculations!$I390:$QJ390) -> 0 | J49: =LOOKUP(J$3, Calculations!$I$4:$QJ$4, Calculations!$I390:$QJ390) -> 0 | K49: =LOOKUP(K$3, Calculations!$I$4:$QJ$4, Calculations!$I390:$QJ390) -> 37455.90016 | L49: =LOOKUP(L$3, Calculations!$I$4:$QJ$4, Calculations!$I390:$QJ390) -> 73879.17866 | M49: =LOOKUP(M$3, Calculations!$I$4:$QJ$4, Calculations!$I390:$QJ390) -> 72293.53227 | N49: =LOOKUP(N$3, Calculations!$I$4:$QJ$4, Calculations!$I390:$QJ390) -> 70506.78622 | O49: =LOOKUP(O$3, Calculations!$I$4:$QJ$4, Calculations!$I390:$QJ390) -> 34076.33634 | P49: =LOOKUP(P$3, Calculations!$I$4:$QJ$4, Calculations!$I390:$QJ390) -> 66224.74268 | Q49: =LOOKUP(Q$3, Calculations!$I$4:$QJ$4, Calculations!$I390:$QJ390) -> 63668.32221 | R49: =LOOKUP(R$3, Calculations!$I$4:$QJ$4, Calculations!$I390:$QJ390) -> 60787.68363 | S49: =LOOKUP(S$3, Calculations!$I$4:$QJ$4, Calculations!$I390:$QJ390) -> 28627.71541 | T49: =LOOKUP(T$3, Calculations!$I$4:$QJ$4, Calculations!$I390:$QJ390) -> 53884.06137 | U49: =LOOKUP(U$3, Calculations!$I$4:$QJ$4, Calculations!$I390:$QJ390) -> 49762.53362 | V49: =LOOKUP(V$3, Calculations!$I$4:$QJ$4, Calculations!$I390:$QJ390) -> 45118.29299 | W49: =LOOKUP(W$3, Calculations!$I$4:$QJ$4, Calculations!$I390:$QJ390) -> 19843.30667 | X49: =LOOKUP(X$3, Calculations!$I$4:$QJ$4, Calculations!$I390:$QJ390) -> 33988.09316 | Y49: =LOOKUP(Y$3, Calculations!$I$4:$QJ$4, Calculations!$I390:$QJ390) -> 27343.25864 | Z49: =LOOKUP(Z$3, Calculations!$I$4:$QJ$4, Calculations!$I390:$QJ390) -> 19855.69278 | AA49: =LOOKUP(AA$3, Calculations!$I$4:$QJ$4, Calculations!$I390:$QJ390) -> 5680.853811 | AB49: =LOOKUP(AB$3, Calculations!$I$4:$QJ$4, Calculations!$I390:$QJ390) -> 1911.294358 | AC49: =LOOKUP(AC$3, Calculations!$I$4:$QJ$4, Calculations!$I390:$QJ390) -> -8801.681134 | AD49: =LOOKUP(AD$3, Calculations!$I$4:$QJ$4, Calculations!$I390:$QJ390) -> -20873.33007 | AE49: =LOOKUP(AE$3, Calculations!$I$4:$QJ$4, Calculations!$I390:$QJ390) -> -17152.22201 | AF49: =LOOKUP(AF$3, Calculations!$I$4:$QJ$4, Calculations!$I390:$QJ390) -> -49803.75715 | AG49: =LOOKUP(AG$3, Calculations!$I$4:$QJ$4, Calculations!$I390:$QJ390) -> 0 | AH49: =LOOKUP(AH$3, Calculations!$I$4:$QJ$4, Calculations!$I390:$QJ390) -> 0 | AI49: =LOOKUP(AI$3, Calculations!$I$4:$QJ$4, Calculations!$I390:$QJ390) -> 0
C50: =Calculations!C391 -> Accrued Interest: Senior Debt | F50: =Calculations!E391 -> EUR | I50: =LOOKUP(I$3, Calculations!$I$4:$QJ$4, Calculations!$I391:$QJ391) -> 0 | J50: =LOOKUP(J$3, Calculations!$I$4:$QJ$4, Calculations!$I391:$QJ391) -> 0 | K50: =LOOKUP(K$3, Calculations!$I$4:$QJ$4, Calculations!$I391:$QJ391) -> 34029.21452 | L50: =LOOKUP(L$3, Calculations!$I$4:$QJ$4, Calculations!$I391:$QJ391) -> 65705.28485 | M50: =LOOKUP(M$3, Calculations!$I$4:$QJ$4, Calculations!$I391:$QJ391) -> 63054.63982 | N50: =LOOKUP(N$3, Calculations!$I$4:$QJ$4, Calculations!$I391:$QJ391) -> 60254.47757 | O50: =LOOKUP(O$3, Calculations!$I$4:$QJ$4, Calculations!$I391:$QJ391) -> 28582.68011 | P50: =LOOKUP(P$3, Calculations!$I$4:$QJ$4, Calculations!$I391:$QJ391) -> 54171.38991 | Q50: =LOOKUP(Q$3, Calculations!$I$4:$QJ$4, Calculations!$I391:$QJ391) -> 50870.14254 | R50: =LOOKUP(R$3, Calculations!$I$4:$QJ$4, Calculations!$I391:$QJ391) -> 47382.67887 | S50: =LOOKUP(S$3, Calculations!$I$4:$QJ$4, Calculations!$I391:$QJ391) -> 21799.29071 | T50: =LOOKUP(T$3, Calculations!$I$4:$QJ$4, Calculations!$I391:$QJ391) -> 39806.49387 | U50: =LOOKUP(U$3, Calculations!$I$4:$QJ$4, Calculations!$I391:$QJ391) -> 35694.95346 | V50: =LOOKUP(V$3, Calculations!$I$4:$QJ$4, Calculations!$I391:$QJ391) -> 31351.48984 | W50: =LOOKUP(W$3, Calculations!$I$4:$QJ$4, Calculations!$I391:$QJ391) -> 13350.91452 | X50: =LOOKUP(X$3, Calculations!$I$4:$QJ$4, Calculations!$I391:$QJ391) -> 21915.72591 | Y50: =LOOKUP(Y$3, Calculations!$I$4:$QJ$4, Calculations!$I391:$QJ391) -> 16795.00556 | Z50: =LOOKUP(Z$3, Calculations!$I$4:$QJ$4, Calculations!$I391:$QJ391) -> 11385.43632 | AA50: =LOOKUP(AA$3, Calculations!$I$4:$QJ$4, Calculations!$I391:$QJ391) -> 2828.879579 | AB50: =LOOKUP(AB$3, Calculations!$I$4:$QJ$4, Calculations!$I391:$QJ391) -> 0 | AC50: =LOOKUP(AC$3, Calculations!$I$4:$QJ$4, Calculations!$I391:$QJ391) -> 0 | AD50: =LOOKUP(AD$3, Calculations!$I$4:$QJ$4, Calculations!$I391:$QJ391) -> 0 | AE50: =LOOKUP(AE$3, Calculations!$I$4:$QJ$4, Calculations!$I391:$QJ391) -> 0 | AF50: =LOOKUP(AF$3, Calculations!$I$4:$QJ$4, Calculations!$I391:$QJ391) -> 0 | AG50: =LOOKUP(AG$3, Calculations!$I$4:$QJ$4, Calculations!$I391:$QJ391) -> 0 | AH50: =LOOKUP(AH$3, Calculations!$I$4:$QJ$4, Calculations!$I391:$QJ391) -> 0 | AI50: =LOOKUP(AI$3, Calculations!$I$4:$QJ$4, Calculations!$I391:$QJ391) -> 0
C51: =Calculations!C392 -> Income Tax Payable | F51: =Calculations!E392 -> EUR | I51: =LOOKUP(I$3, Calculations!$I$4:$QJ$4, Calculations!$I392:$QJ392) -> 0 | J51: =LOOKUP(J$3, Calculations!$I$4:$QJ$4, Calculations!$I392:$QJ392) -> 0 | K51: =LOOKUP(K$3, Calculations!$I$4:$QJ$4, Calculations!$I392:$QJ392) -> 0 | L51: =LOOKUP(L$3, Calculations!$I$4:$QJ$4, Calculations!$I392:$QJ392) -> 0 | M51: =LOOKUP(M$3, Calculations!$I$4:$QJ$4, Calculations!$I392:$QJ392) -> 0 | N51: =LOOKUP(N$3, Calculations!$I$4:$QJ$4, Calculations!$I392:$QJ392) -> 0 | O51: =LOOKUP(O$3, Calculations!$I$4:$QJ$4, Calculations!$I392:$QJ392) -> 0 | P51: =LOOKUP(P$3, Calculations!$I$4:$QJ$4, Calculations!$I392:$QJ392) -> 0 | Q51: =LOOKUP(Q$3, Calculations!$I$4:$QJ$4, Calculations!$I392:$QJ392) -> 0 | R51: =LOOKUP(R$3, Calculations!$I$4:$QJ$4, Calculations!$I392:$QJ392) -> 0 | S51: =LOOKUP(S$3, Calculations!$I$4:$QJ$4, Calculations!$I392:$QJ392) -> 0 | T51: =LOOKUP(T$3, Calculations!$I$4:$QJ$4, Calculations!$I392:$QJ392) -> 0 | U51: =LOOKUP(U$3, Calculations!$I$4:$QJ$4, Calculations!$I392:$QJ392) -> 0 | V51: =LOOKUP(V$3, Calculations!$I$4:$QJ$4, Calculations!$I392:$QJ392) -> 0 | W51: =LOOKUP(W$3, Calculations!$I$4:$QJ$4, Calculations!$I392:$QJ392) -> 0 | X51: =LOOKUP(X$3, Calculations!$I$4:$QJ$4, Calculations!$I392:$QJ392) -> 0 | Y51: =LOOKUP(Y$3, Calculations!$I$4:$QJ$4, Calculations!$I392:$QJ392) -> 0 | Z51: =LOOKUP(Z$3, Calculations!$I$4:$QJ$4, Calculations!$I392:$QJ392) -> 0 | AA51: =LOOKUP(AA$3, Calculations!$I$4:$QJ$4, Calculations!$I392:$QJ392) -> 0 | AB51: =LOOKUP(AB$3, Calculations!$I$4:$QJ$4, Calculations!$I392:$QJ392) -> 0 | AC51: =LOOKUP(AC$3, Calculations!$I$4:$QJ$4, Calculations!$I392:$QJ392) -> 0 | AD51: =LOOKUP(AD$3, Calculations!$I$4:$QJ$4, Calculations!$I392:$QJ392) -> 665.2720414 | AE51: =LOOKUP(AE$3, Calculations!$I$4:$QJ$4, Calculations!$I392:$QJ392) -> 8621.769147 | AF51: =LOOKUP(AF$3, Calculations!$I$4:$QJ$4, Calculations!$I392:$QJ392) -> 2800.565594 | AG51: =LOOKUP(AG$3, Calculations!$I$4:$QJ$4, Calculations!$I392:$QJ392) -> 0 | AH51: =LOOKUP(AH$3, Calculations!$I$4:$QJ$4, Calculations!$I392:$QJ392) -> 0 | AI51: =LOOKUP(AI$3, Calculations!$I$4:$QJ$4, Calculations!$I392:$QJ392) -> 4854.818618
C52: =Calculations!C393 -> Current Portion of Subordinated Debt | F52: =Calculations!E393 -> EUR | I52: =LOOKUP(I$3, Calculations!$I$4:$QJ$4, Calculations!$I393:$QJ393) -> 0 | J52: =LOOKUP(J$3, Calculations!$I$4:$QJ$4, Calculations!$I393:$QJ393) -> 46909.98357 | K52: =LOOKUP(K$3, Calculations!$I$4:$QJ$4, Calculations!$I393:$QJ393) -> 70008.9884 | L52: =LOOKUP(L$3, Calculations!$I$4:$QJ$4, Calculations!$I393:$QJ393) -> 78887.88046 | M52: =LOOKUP(M$3, Calculations!$I$4:$QJ$4, Calculations!$I393:$QJ393) -> 88892.83828 | N52: =LOOKUP(N$3, Calculations!$I$4:$QJ$4, Calculations!$I393:$QJ393) -> 100166.6752 | O52: =LOOKUP(O$3, Calculations!$I$4:$QJ$4, Calculations!$I393:$QJ393) -> 112870.3168 | P52: =LOOKUP(P$3, Calculations!$I$4:$QJ$4, Calculations!$I393:$QJ393) -> 127185.0981 | Q52: =LOOKUP(Q$3, Calculations!$I$4:$QJ$4, Calculations!$I393:$QJ393) -> 143315.352 | R52: =LOOKUP(R$3, Calculations!$I$4:$QJ$4, Calculations!$I393:$QJ393) -> 161491.3258 | S52: =LOOKUP(S$3, Calculations!$I$4:$QJ$4, Calculations!$I393:$QJ393) -> 181972.4681 | T52: =LOOKUP(T$3, Calculations!$I$4:$QJ$4, Calculations!$I393:$QJ393) -> 205051.1318 | U52: =LOOKUP(U$3, Calculations!$I$4:$QJ$4, Calculations!$I393:$QJ393) -> 231056.7478 | V52: =LOOKUP(V$3, Calculations!$I$4:$QJ$4, Calculations!$I393:$QJ393) -> 260360.5268 | W52: =LOOKUP(W$3, Calculations!$I$4:$QJ$4, Calculations!$I393:$QJ393) -> 293380.7585 | X52: =LOOKUP(X$3, Calculations!$I$4:$QJ$4, Calculations!$I393:$QJ393) -> 330588.782 | Y52: =LOOKUP(Y$3, Calculations!$I$4:$QJ$4, Calculations!$I393:$QJ393) -> 372515.7143 | Z52: =LOOKUP(Z$3, Calculations!$I$4:$QJ$4, Calculations!$I393:$QJ393) -> 419760.0309 | AA52: =LOOKUP(AA$3, Calculations!$I$4:$QJ$4, Calculations!$I393:$QJ393) -> 472996.1095 | AB52: =LOOKUP(AB$3, Calculations!$I$4:$QJ$4, Calculations!$I393:$QJ393) -> 95089.27156 | AC52: =LOOKUP(AC$3, Calculations!$I$4:$QJ$4, Calculations!$I393:$QJ393) -> -437894.5838 | AD52: =LOOKUP(AD$3, Calculations!$I$4:$QJ$4, Calculations!$I393:$QJ393) -> -1038474.133 | AE52: =LOOKUP(AE$3, Calculations!$I$4:$QJ$4, Calculations!$I393:$QJ393) -> -1715222.201 | AF52: =LOOKUP(AF$3, Calculations!$I$4:$QJ$4, Calculations!$I393:$QJ393) -> -2477798.863 | AG52: =LOOKUP(AG$3, Calculations!$I$4:$QJ$4, Calculations!$I393:$QJ393) -> 0 | AH52: =LOOKUP(AH$3, Calculations!$I$4:$QJ$4, Calculations!$I393:$QJ393) -> 0 | AI52: =LOOKUP(AI$3, Calculations!$I$4:$QJ$4, Calculations!$I393:$QJ393) -> 0
C53: =Calculations!C394 -> Current Portion of Senior Debt | F53: =Calculations!E394 -> EUR | I53: =LOOKUP(I$3, Calculations!$I$4:$QJ$4, Calculations!$I394:$QJ394) -> 1915000 | J53: =LOOKUP(J$3, Calculations!$I$4:$QJ$4, Calculations!$I394:$QJ394) -> 160444.105 | K53: =LOOKUP(K$3, Calculations!$I$4:$QJ$4, Calculations!$I394:$QJ394) -> 273095.4026 | L53: =LOOKUP(L$3, Calculations!$I$4:$QJ$4, Calculations!$I394:$QJ394) -> 288500.13 | M53: =LOOKUP(M$3, Calculations!$I$4:$QJ$4, Calculations!$I394:$QJ394) -> 304773.805 | N53: =LOOKUP(N$3, Calculations!$I$4:$QJ$4, Calculations!$I394:$QJ394) -> 321965.4433 | O53: =LOOKUP(O$3, Calculations!$I$4:$QJ$4, Calculations!$I394:$QJ394) -> 340126.825 | P53: =LOOKUP(P$3, Calculations!$I$4:$QJ$4, Calculations!$I394:$QJ394) -> 359312.6515 | Q53: =LOOKUP(Q$3, Calculations!$I$4:$QJ$4, Calculations!$I394:$QJ394) -> 379580.7094 | R53: =LOOKUP(R$3, Calculations!$I$4:$QJ$4, Calculations!$I394:$QJ394) -> 400992.045 | S53: =LOOKUP(S$3, Calculations!$I$4:$QJ$4, Calculations!$I394:$QJ394) -> 423611.1483 | T53: =LOOKUP(T$3, Calculations!$I$4:$QJ$4, Calculations!$I394:$QJ394) -> 447506.1469 | U53: =LOOKUP(U$3, Calculations!$I$4:$QJ$4, Calculations!$I394:$QJ394) -> 472749.0111 | V53: =LOOKUP(V$3, Calculations!$I$4:$QJ$4, Calculations!$I394:$QJ394) -> 499415.7713 | W53: =LOOKUP(W$3, Calculations!$I$4:$QJ$4, Calculations!$I394:$QJ394) -> 527586.7464 | X53: =LOOKUP(X$3, Calculations!$I$4:$QJ$4, Calculations!$I394:$QJ394) -> 557346.786 | Y53: =LOOKUP(Y$3, Calculations!$I$4:$QJ$4, Calculations!$I394:$QJ394) -> 588785.5256 | Z53: =LOOKUP(Z$3, Calculations!$I$4:$QJ$4, Calculations!$I394:$QJ394) -> 621997.6574 | AA53: =LOOKUP(AA$3, Calculations!$I$4:$QJ$4, Calculations!$I394:$QJ394) -> 617210.09 | AB53: =LOOKUP(AB$3, Calculations!$I$4:$QJ$4, Calculations!$I394:$QJ394) -> 0 | AC53: =LOOKUP(AC$3, Calculations!$I$4:$QJ$4, Calculations!$I394:$QJ394) -> 0 | AD53: =LOOKUP(AD$3, Calculations!$I$4:$QJ$4, Calculations!$I394:$QJ394) -> 0 | AE53: =LOOKUP(AE$3, Calculations!$I$4:$QJ$4, Calculations!$I394:$QJ394) -> 0 | AF53: =LOOKUP(AF$3, Calculations!$I$4:$QJ$4, Calculations!$I394:$QJ394) -> 0 | AG53: =LOOKUP(AG$3, Calculations!$I$4:$QJ$4, Calculations!$I394:$QJ394) -> 0 | AH53: =LOOKUP(AH$3, Calculations!$I$4:$QJ$4, Calculations!$I394:$QJ394) -> 0 | AI53: =LOOKUP(AI$3, Calculations!$I$4:$QJ$4, Calculations!$I394:$QJ394) -> 0
C54: =Calculations!C395 -> Total Current Liabilities | F54: =Calculations!E395 -> EUR | I54: =SUM(I48:I53) -> 1915000 | J54: =SUM(J48:J53) -> 207354.0886 | K54: 417177.2123 | L54: 509624.8732 | M54: 531733.5247 | N54: 555680.0592 | O54: 518512.5022 | P54: 609821.6347 | Q54: 640435.4725 | R54: 673729.7034 | S54: 659163.4918 | T54: 749479.5249 | U54: 792575.7293 | V54: 839641.3763 | W54: 857641.9038 | X54: 947406.5692 | Y54: 1009095.866 | Z54: 1076746.588 | AA54: 1102557.398 | AB54: 100938.0676 | AC54: -435737.3454 | AD54: -1046837.366 | AE54: -1706600.884 | AF54: -2510775.278 | AG54: =SUM(AG48:AG53) -> 9751.069142 | AH54: 9641.460226 | AI54: 18744.56588
B56: Non-Current Liabilities
C57: =Calculations!C398 -> Subordinated Debt | F57: =Calculations!E398 -> EUR | I57: =LOOKUP(I$3, Calculations!$I$4:$QJ$4, Calculations!$I398:$QJ398) -> 1896250 | J57: =LOOKUP(J$3, Calculations!$I$4:$QJ$4, Calculations!$I398:$QJ398) -> 3745590.016 | K57: =LOOKUP(K$3, Calculations!$I$4:$QJ$4, Calculations!$I398:$QJ398) -> 3675581.028 | L57: =LOOKUP(L$3, Calculations!$I$4:$QJ$4, Calculations!$I398:$QJ398) -> 3596693.148 | M57: =LOOKUP(M$3, Calculations!$I$4:$QJ$4, Calculations!$I398:$QJ398) -> 3507800.309 | N57: =LOOKUP(N$3, Calculations!$I$4:$QJ$4, Calculations!$I398:$QJ398) -> 3407633.634 | O57: =LOOKUP(O$3, Calculations!$I$4:$QJ$4, Calculations!$I398:$QJ398) -> 3294763.317 | P57: =LOOKUP(P$3, Calculations!$I$4:$QJ$4, Calculations!$I398:$QJ398) -> 3167578.219 | Q57: =LOOKUP(Q$3, Calculations!$I$4:$QJ$4, Calculations!$I398:$QJ398) -> 3024262.867 | R57: =LOOKUP(R$3, Calculations!$I$4:$QJ$4, Calculations!$I398:$QJ398) -> 2862771.541 | S57: =LOOKUP(S$3, Calculations!$I$4:$QJ$4, Calculations!$I398:$QJ398) -> 2680799.073 | T57: =LOOKUP(T$3, Calculations!$I$4:$QJ$4, Calculations!$I398:$QJ398) -> 2475747.941 | U57: =LOOKUP(U$3, Calculations!$I$4:$QJ$4, Calculations!$I398:$QJ398) -> 2244691.194 | V57: =LOOKUP(V$3, Calculations!$I$4:$QJ$4, Calculations!$I398:$QJ398) -> 1984330.667 | W57: =LOOKUP(W$3, Calculations!$I$4:$QJ$4, Calculations!$I398:$QJ398) -> 1690949.908 | X57: =LOOKUP(X$3, Calculations!$I$4:$QJ$4, Calculations!$I398:$QJ398) -> 1360361.126 | Y57: =LOOKUP(Y$3, Calculations!$I$4:$QJ$4, Calculations!$I398:$QJ398) -> 987845.412 | Z57: =LOOKUP(Z$3, Calculations!$I$4:$QJ$4, Calculations!$I398:$QJ398) -> 568085.3811 | AA57: =LOOKUP(AA$3, Calculations!$I$4:$QJ$4, Calculations!$I398:$QJ398) -> 95089.27156 | AB57: =LOOKUP(AB$3, Calculations!$I$4:$QJ$4, Calculations!$I398:$QJ398) -> 0 | AC57: =LOOKUP(AC$3, Calculations!$I$4:$QJ$4, Calculations!$I398:$QJ398) -> 0 | AD57: =LOOKUP(AD$3, Calculations!$I$4:$QJ$4, Calculations!$I398:$QJ398) -> 0 | AE57: =LOOKUP(AE$3, Calculations!$I$4:$QJ$4, Calculations!$I398:$QJ398) -> 0 | AF57: =LOOKUP(AF$3, Calculations!$I$4:$QJ$4, Calculations!$I398:$QJ398) -> 0 | AG57: =LOOKUP(AG$3, Calculations!$I$4:$QJ$4, Calculations!$I398:$QJ398) -> 0 | AH57: =LOOKUP(AH$3, Calculations!$I$4:$QJ$4, Calculations!$I398:$QJ398) -> 0 | AI57: =LOOKUP(AI$3, Calculations!$I$4:$QJ$4, Calculations!$I398:$QJ398) -> 0
C58: =Calculations!C399 -> Long-Term Senior Debt | F58: =Calculations!E399 -> EUR | I58: =LOOKUP(I$3, Calculations!$I$4:$QJ$4, Calculations!$I399:$QJ399) -> 0 | J58: =LOOKUP(J$3, Calculations!$I$4:$QJ$4, Calculations!$I399:$QJ399) -> 7424555.895 | K58: =LOOKUP(K$3, Calculations!$I$4:$QJ$4, Calculations!$I399:$QJ399) -> 7151460.492 | L58: =LOOKUP(L$3, Calculations!$I$4:$QJ$4, Calculations!$I399:$QJ399) -> 6862960.362 | M58: =LOOKUP(M$3, Calculations!$I$4:$QJ$4, Calculations!$I399:$QJ399) -> 6558186.557 | N58: =LOOKUP(N$3, Calculations!$I$4:$QJ$4, Calculations!$I399:$QJ399) -> 6236221.114 | O58: =LOOKUP(O$3, Calculations!$I$4:$QJ$4, Calculations!$I399:$QJ399) -> 5896094.289 | P58: =LOOKUP(P$3, Calculations!$I$4:$QJ$4, Calculations!$I399:$QJ399) -> 5536781.637 | Q58: =LOOKUP(Q$3, Calculations!$I$4:$QJ$4, Calculations!$I399:$QJ399) -> 5157200.928 | R58: =LOOKUP(R$3, Calculations!$I$4:$QJ$4, Calculations!$I399:$QJ399) -> 4756208.883 | S58: =LOOKUP(S$3, Calculations!$I$4:$QJ$4, Calculations!$I399:$QJ399) -> 4332597.735 | T58: =LOOKUP(T$3, Calculations!$I$4:$QJ$4, Calculations!$I399:$QJ399) -> 3885091.588 | U58: =LOOKUP(U$3, Calculations!$I$4:$QJ$4, Calculations!$I399:$QJ399) -> 3412342.577 | V58: =LOOKUP(V$3, Calculations!$I$4:$QJ$4, Calculations!$I399:$QJ399) -> 2912926.805 | W58: =LOOKUP(W$3, Calculations!$I$4:$QJ$4, Calculations!$I399:$QJ399) -> 2385340.059 | X58: =LOOKUP(X$3, Calculations!$I$4:$QJ$4, Calculations!$I399:$QJ399) -> 1827993.273 | Y58: =LOOKUP(Y$3, Calculations!$I$4:$QJ$4, Calculations!$I399:$QJ399) -> 1239207.747 | Z58: =LOOKUP(Z$3, Calculations!$I$4:$QJ$4, Calculations!$I399:$QJ399) -> 617210.09 | AA58: =LOOKUP(AA$3, Calculations!$I$4:$QJ$4, Calculations!$I399:$QJ399) -> 0 | AB58: =LOOKUP(AB$3, Calculations!$I$4:$QJ$4, Calculations!$I399:$QJ399) -> 0 | AC58: =LOOKUP(AC$3, Calculations!$I$4:$QJ$4, Calculations!$I399:$QJ399) -> 0 | AD58: =LOOKUP(AD$3, Calculations!$I$4:$QJ$4, Calculations!$I399:$QJ399) -> 0 | AE58: =LOOKUP(AE$3, Calculations!$I$4:$QJ$4, Calculations!$I399:$QJ399) -> 0 | AF58: =LOOKUP(AF$3, Calculations!$I$4:$QJ$4, Calculations!$I399:$QJ399) -> 0 | AG58: =LOOKUP(AG$3, Calculations!$I$4:$QJ$4, Calculations!$I399:$QJ399) -> 0 | AH58: =LOOKUP(AH$3, Calculations!$I$4:$QJ$4, Calculations!$I399:$QJ399) -> 0 | AI58: =LOOKUP(AI$3, Calculations!$I$4:$QJ$4, Calculations!$I399:$QJ399) -> 0
C59: =Calculations!C400 -> Total Non-Current Liabilities | F59: =Calculations!E400 -> EUR | I59: =SUM(I57:I58) -> 1896250 | J59: 11170145.91 | K59: 10827041.52 | L59: 10459653.51 | M59: 10065986.87 | N59: 9643854.748 | O59: 9190857.606 | P59: 8704359.857 | Q59: 8181463.795 | R59: 7618980.424 | S59: 7013396.808 | T59: 6360839.529 | U59: 5657033.77 | V59: 4897257.472 | W59: 4076289.967 | X59: 3188354.399 | Y59: 2227053.159 | Z59: 1185295.471 | AA59: 95089.27156 | AB59: 0 | AC59: 0 | AD59: 0 | AE59: 0 | AF59: 0 | AG59: 0 | AH59: 0 | AI59: 0
B61: Total Liabilities | F61: =Calculations!E402 -> EUR | I61: =I54+I59 -> 3811250 | J61: 11377500 | K61: 11244218.73 | L61: 10969278.38 | M61: 10597720.39 | N61: 10199534.81 | O61: 9709370.109 | P61: 9314181.491 | Q61: 8821899.268 | R61: 8292710.128 | S61: 7672560.3 | T61: 7110319.054 | U61: 6449609.5 | V61: 5736898.849 | W61: 4933931.871 | X61: 4135760.969 | Y61: 3236149.025 | Z61: 2262042.059 | AA61: 1197646.67 | AB61: 100938.0676 | AC61: -435737.3454 | AD61: -1046837.366 | AE61: -1706600.884 | AF61: -2510775.278 | AG61: 9751.069142 | AH61: 9641.460226 | AI61: 18744.56588
B63: Shareholders' Equity
C64: =Calculations!C405 -> Share Capital | F64: =Calculations!E405 -> EUR | I64: =LOOKUP(I$3, Calculations!$I$4:$QJ$4, Calculations!$I405:$QJ405) -> 3792500 | J64: =LOOKUP(J$3, Calculations!$I$4:$QJ$4, Calculations!$I405:$QJ405) -> 3792500 | K64: =LOOKUP(K$3, Calculations!$I$4:$QJ$4, Calculations!$I405:$QJ405) -> 3792500 | L64: =LOOKUP(L$3, Calculations!$I$4:$QJ$4, Calculations!$I405:$QJ405) -> 3792500 | M64: =LOOKUP(M$3, Calculations!$I$4:$QJ$4, Calculations!$I405:$QJ405) -> 3792500 | N64: =LOOKUP(N$3, Calculations!$I$4:$QJ$4, Calculations!$I405:$QJ405) -> 3792500 | O64: =LOOKUP(O$3, Calculations!$I$4:$QJ$4, Calculations!$I405:$QJ405) -> 3792500 | P64: =LOOKUP(P$3, Calculations!$I$4:$QJ$4, Calculations!$I405:$QJ405) -> 3792500 | Q64: =LOOKUP(Q$3, Calculations!$I$4:$QJ$4, Calculations!$I405:$QJ405) -> 3792500 | R64: =LOOKUP(R$3, Calculations!$I$4:$QJ$4, Calculations!$I405:$QJ405) -> 3792500 | S64: =LOOKUP(S$3, Calculations!$I$4:$QJ$4, Calculations!$I405:$QJ405) -> 3792500 | T64: =LOOKUP(T$3, Calculations!$I$4:$QJ$4, Calculations!$I405:$QJ405) -> 3792500 | U64: =LOOKUP(U$3, Calculations!$I$4:$QJ$4, Calculations!$I405:$QJ405) -> 3792500 | V64: =LOOKUP(V$3, Calculations!$I$4:$QJ$4, Calculations!$I405:$QJ405) -> 3792500 | W64: =LOOKUP(W$3, Calculations!$I$4:$QJ$4, Calculations!$I405:$QJ405) -> 3792500 | X64: =LOOKUP(X$3, Calculations!$I$4:$QJ$4, Calculations!$I405:$QJ405) -> 3792500 | Y64: =LOOKUP(Y$3, Calculations!$I$4:$QJ$4, Calculations!$I405:$QJ405) -> 3792500 | Z64: =LOOKUP(Z$3, Calculations!$I$4:$QJ$4, Calculations!$I405:$QJ405) -> 3792500 | AA64: =LOOKUP(AA$3, Calculations!$I$4:$QJ$4, Calculations!$I405:$QJ405) -> 3792500 | AB64: =LOOKUP(AB$3, Calculations!$I$4:$QJ$4, Calculations!$I405:$QJ405) -> 3792500 | AC64: =LOOKUP(AC$3, Calculations!$I$4:$QJ$4, Calculations!$I405:$QJ405) -> 3792500 | AD64: =LOOKUP(AD$3, Calculations!$I$4:$QJ$4, Calculations!$I405:$QJ405) -> 3792500 | AE64: =LOOKUP(AE$3, Calculations!$I$4:$QJ$4, Calculations!$I405:$QJ405) -> 3792500 | AF64: =LOOKUP(AF$3, Calculations!$I$4:$QJ$4, Calculations!$I405:$QJ405) -> 3792500 | AG64: =LOOKUP(AG$3, Calculations!$I$4:$QJ$4, Calculations!$I405:$QJ405) -> 3792500 | AH64: =LOOKUP(AH$3, Calculations!$I$4:$QJ$4, Calculations!$I405:$QJ405) -> 3792500 | AI64: =LOOKUP(AI$3, Calculations!$I$4:$QJ$4, Calculations!$I405:$QJ405) -> 3792500
C65: =Calculations!C406 -> Retained Earnings | F65: =Calculations!E406 -> EUR | I65: =LOOKUP(I$3, Calculations!$I$4:$QJ$4, Calculations!$I406:$QJ406) -> 0 | J65: =LOOKUP(J$3, Calculations!$I$4:$QJ$4, Calculations!$I406:$QJ406) -> 0 | K65: =LOOKUP(K$3, Calculations!$I$4:$QJ$4, Calculations!$I406:$QJ406) -> -282720 | L65: =LOOKUP(L$3, Calculations!$I$4:$QJ$4, Calculations!$I406:$QJ406) -> -759327 | M65: =LOOKUP(M$3, Calculations!$I$4:$QJ$4, Calculations!$I406:$QJ406) -> -1117667 | N65: =LOOKUP(N$3, Calculations!$I$4:$QJ$4, Calculations!$I406:$QJ406) -> -1459605 | O65: =LOOKUP(O$3, Calculations!$I$4:$QJ$4, Calculations!$I406:$QJ406) -> -1686360 | P65: =LOOKUP(P$3, Calculations!$I$4:$QJ$4, Calculations!$I406:$QJ406) -> -2061437 | Q65: =LOOKUP(Q$3, Calculations!$I$4:$QJ$4, Calculations!$I406:$QJ406) -> -2320654 | R65: =LOOKUP(R$3, Calculations!$I$4:$QJ$4, Calculations!$I406:$QJ406) -> -2142168 | S65: =LOOKUP(S$3, Calculations!$I$4:$QJ$4, Calculations!$I406:$QJ406) -> -1887531 | T65: =LOOKUP(T$3, Calculations!$I$4:$QJ$4, Calculations!$I406:$QJ406) -> -1717509 | U65: =LOOKUP(U$3, Calculations!$I$4:$QJ$4, Calculations!$I406:$QJ406) -> -1482872 | V65: =LOOKUP(V$3, Calculations!$I$4:$QJ$4, Calculations!$I406:$QJ406) -> -1217892 | W65: =LOOKUP(W$3, Calculations!$I$4:$QJ$4, Calculations!$I406:$QJ406) -> -825368 | X65: =LOOKUP(X$3, Calculations!$I$4:$QJ$4, Calculations!$I406:$QJ406) -> -405407 | Y65: =LOOKUP(Y$3, Calculations!$I$4:$QJ$4, Calculations!$I406:$QJ406) -> 91754 | Z65: =LOOKUP(Z$3, Calculations!$I$4:$QJ$4, Calculations!$I406:$QJ406) -> 636487 | AA65: =LOOKUP(AA$3, Calculations!$I$4:$QJ$4, Calculations!$I406:$QJ406) -> 1251495 | AB65: =LOOKUP(AB$3, Calculations!$I$4:$QJ$4, Calculations!$I406:$QJ406) -> 1891713 | AC65: =LOOKUP(AC$3, Calculations!$I$4:$QJ$4, Calculations!$I406:$QJ406) -> 2633914 | AD65: =LOOKUP(AD$3, Calculations!$I$4:$QJ$4, Calculations!$I406:$QJ406) -> 3420493 | AE65: =LOOKUP(AE$3, Calculations!$I$4:$QJ$4, Calculations!$I406:$QJ406) -> 4250152 | AF65: =LOOKUP(AF$3, Calculations!$I$4:$QJ$4, Calculations!$I406:$QJ406) -> 5145355 | AG65: =LOOKUP(AG$3, Calculations!$I$4:$QJ$4, Calculations!$I406:$QJ406) -> 6045689 | AH65: =LOOKUP(AH$3, Calculations!$I$4:$QJ$4, Calculations!$I406:$QJ406) -> 6689400 | AI65: =LOOKUP(AI$3, Calculations!$I$4:$QJ$4, Calculations!$I406:$QJ406) -> 7329316
C66: =Calculations!C407 -> Rounding | F66: =Calculations!E407 -> 0 | I66: =LOOKUP(I$3, Calculations!$I$4:$QJ$4, Calculations!$I407:$QJ407) -> -9.313225746e-10 | J66: =LOOKUP(J$3, Calculations!$I$4:$QJ$4, Calculations!$I407:$QJ407) -> 0 | K66: =LOOKUP(K$3, Calculations!$I$4:$QJ$4, Calculations!$I407:$QJ407) -> 1.172190025 | L66: =LOOKUP(L$3, Calculations!$I$4:$QJ$4, Calculations!$I407:$QJ407) -> 2.706638495 | M66: =LOOKUP(M$3, Calculations!$I$4:$QJ$4, Calculations!$I407:$QJ407) -> 3.768057581 | N66: =LOOKUP(N$3, Calculations!$I$4:$QJ$4, Calculations!$I407:$QJ407) -> 2.995702263 | O66: =LOOKUP(O$3, Calculations!$I$4:$QJ$4, Calculations!$I407:$QJ407) -> 3.532685356 | P66: =LOOKUP(P$3, Calculations!$I$4:$QJ$4, Calculations!$I407:$QJ407) -> 1.718634591 | Q66: =LOOKUP(Q$3, Calculations!$I$4:$QJ$4, Calculations!$I407:$QJ407) -> 2.040563017 | R66: =LOOKUP(R$3, Calculations!$I$4:$QJ$4, Calculations!$I407:$QJ407) -> 3.391326327 | S66: =LOOKUP(S$3, Calculations!$I$4:$QJ$4, Calculations!$I407:$QJ407) -> 3.637789661 | T66: =LOOKUP(T$3, Calculations!$I$4:$QJ$4, Calculations!$I407:$QJ407) -> 3.729952004 | U66: =LOOKUP(U$3, Calculations!$I$4:$QJ$4, Calculations!$I407:$QJ407) -> 4.837377755 | V66: =LOOKUP(V$3, Calculations!$I$4:$QJ$4, Calculations!$I407:$QJ407) -> 5.288637301 | W66: =LOOKUP(W$3, Calculations!$I$4:$QJ$4, Calculations!$I407:$QJ407) -> 5.873339862 | X66: =LOOKUP(X$3, Calculations!$I$4:$QJ$4, Calculations!$I407:$QJ407) -> 6.131197592 | Y66: =LOOKUP(Y$3, Calculations!$I$4:$QJ$4, Calculations!$I407:$QJ407) -> 4.937110512 | Z66: =LOOKUP(Z$3, Calculations!$I$4:$QJ$4, Calculations!$I407:$QJ407) -> 4.466145714 | AA66: =LOOKUP(AA$3, Calculations!$I$4:$QJ$4, Calculations!$I407:$QJ407) -> 4.408584118 | AB66: =LOOKUP(AB$3, Calculations!$I$4:$QJ$4, Calculations!$I407:$QJ407) -> 165386.4536 | AC66: =LOOKUP(AC$3, Calculations!$I$4:$QJ$4, Calculations!$I407:$QJ407) -> 165385.6496 | AD66: =LOOKUP(AD$3, Calculations!$I$4:$QJ$4, Calculations!$I407:$QJ407) -> 165385.7478 | AE66: =LOOKUP(AE$3, Calculations!$I$4:$QJ$4, Calculations!$I407:$QJ407) -> 165385.8617 | AF66: =LOOKUP(AF$3, Calculations!$I$4:$QJ$4, Calculations!$I407:$QJ407) -> 165385.411 | AG66: =LOOKUP(AG$3, Calculations!$I$4:$QJ$4, Calculations!$I407:$QJ407) -> 165385.1783 | AH66: =LOOKUP(AH$3, Calculations!$I$4:$QJ$4, Calculations!$I407:$QJ407) -> 165384.7023 | AI66: =LOOKUP(AI$3, Calculations!$I$4:$QJ$4, Calculations!$I407:$QJ407) -> 165386.9702
C67: =Calculations!C408 -> Total Shareholders' Equity | F67: =Calculations!E408 -> EUR | I67: =LOOKUP(I$3, Calculations!$I$4:$QJ$4, Calculations!$I408:$QJ408) -> 3792500 | J67: =LOOKUP(J$3, Calculations!$I$4:$QJ$4, Calculations!$I408:$QJ408) -> 3792500 | K67: =LOOKUP(K$3, Calculations!$I$4:$QJ$4, Calculations!$I408:$QJ408) -> 3509781.172 | L67: =LOOKUP(L$3, Calculations!$I$4:$QJ$4, Calculations!$I408:$QJ408) -> 3033175.707 | M67: =LOOKUP(M$3, Calculations!$I$4:$QJ$4, Calculations!$I408:$QJ408) -> 2674836.768 | N67: =LOOKUP(N$3, Calculations!$I$4:$QJ$4, Calculations!$I408:$QJ408) -> 2332897.996 | O67: =LOOKUP(O$3, Calculations!$I$4:$QJ$4, Calculations!$I408:$QJ408) -> 2106143.533 | P67: =LOOKUP(P$3, Calculations!$I$4:$QJ$4, Calculations!$I408:$QJ408) -> 1731064.719 | Q67: =LOOKUP(Q$3, Calculations!$I$4:$QJ$4, Calculations!$I408:$QJ408) -> 1471848.041 | R67: =LOOKUP(R$3, Calculations!$I$4:$QJ$4, Calculations!$I408:$QJ408) -> 1650335.391 | S67: =LOOKUP(S$3, Calculations!$I$4:$QJ$4, Calculations!$I408:$QJ408) -> 1904972.638 | T67: =LOOKUP(T$3, Calculations!$I$4:$QJ$4, Calculations!$I408:$QJ408) -> 2074994.73 | U67: =LOOKUP(U$3, Calculations!$I$4:$QJ$4, Calculations!$I408:$QJ408) -> 2309632.837 | V67: =LOOKUP(V$3, Calculations!$I$4:$QJ$4, Calculations!$I408:$QJ408) -> 2574613.289 | W67: =LOOKUP(W$3, Calculations!$I$4:$QJ$4, Calculations!$I408:$QJ408) -> 2967137.873 | X67: =LOOKUP(X$3, Calculations!$I$4:$QJ$4, Calculations!$I408:$QJ408) -> 3387099.131 | Y67: =LOOKUP(Y$3, Calculations!$I$4:$QJ$4, Calculations!$I408:$QJ408) -> 3884258.937 | Z67: =LOOKUP(Z$3, Calculations!$I$4:$QJ$4, Calculations!$I408:$QJ408) -> 4428991.466 | AA67: =LOOKUP(AA$3, Calculations!$I$4:$QJ$4, Calculations!$I408:$QJ408) -> 5043999.409 | AB67: =LOOKUP(AB$3, Calculations!$I$4:$QJ$4, Calculations!$I408:$QJ408) -> 5849599.454 | AC67: =LOOKUP(AC$3, Calculations!$I$4:$QJ$4, Calculations!$I408:$QJ408) -> 6591799.65 | AD67: =LOOKUP(AD$3, Calculations!$I$4:$QJ$4, Calculations!$I408:$QJ408) -> 7378378.748 | AE67: =LOOKUP(AE$3, Calculations!$I$4:$QJ$4, Calculations!$I408:$QJ408) -> 8208037.862 | AF67: =LOOKUP(AF$3, Calculations!$I$4:$QJ$4, Calculations!$I408:$QJ408) -> 9103240.411 | AG67: =LOOKUP(AG$3, Calculations!$I$4:$QJ$4, Calculations!$I408:$QJ408) -> 10003574.18 | AH67: =LOOKUP(AH$3, Calculations!$I$4:$QJ$4, Calculations!$I408:$QJ408) -> 10647284.7 | AI67: =LOOKUP(AI$3, Calculations!$I$4:$QJ$4, Calculations!$I408:$QJ408) -> 11287202.97
B69: Total Liabilities & Shareholders' Equity | F69: =Calculations!E410 -> EUR | I69: =I61+I67 -> 7603750 | J69: =J61+J67 -> 15170000 | K69: 14753999.9 | L69: 14002454.09 | M69: 13272557.16 | N69: 12532432.8 | O69: 11815513.64 | P69: 11045246.21 | Q69: 10293747.31 | R69: 9943045.519 | S69: 9577532.938 | T69: 9185313.784 | U69: 8759242.337 | V69: 8311512.137 | W69: 7901069.744 | X69: 7522860.1 | Y69: 7120407.962 | Z69: 6691033.525 | AA69: 6241646.078 | AB69: 5950537.521 | AC69: 6156062.304 | AD69: 6331541.382 | AE69: 6501436.977 | AF69: 6592465.133 | AG69: =AG61+AG67 -> 10013325.25 | AH69: 10656926.16 | AI69: 11305947.54
M70: =M45-M69 -> 0 | N70: =N45-N69 -> 0 | O70: =O45-O69 -> 0 | P70: 0 | Q70: 0 | R70: 0 | S70: 0 | T70: 0 | U70: 0 | V70: 0
C71: Balance Check | F71: Check | H71: =IF(COUNTIF(I71:AT71, "NO")>0, "NO", "OK") -> OK | I71: =IF(ROUND(I45-I69, 0)=0, "OK", "NO") -> OK | J71: =IF(ROUND(J45-J69, 0)=0, "OK", "NO") -> OK | K71: OK | L71: OK | M71: OK | N71: OK | O71: OK | P71: OK | Q71: OK | R71: OK | S71: OK | T71: OK | U71: OK | V71: OK | W71: OK | X71: OK | Y71: OK | Z71: OK | AA71: OK | AB71: OK | AC71: OK | AD71: OK | AE71: OK | AF71: OK | AG71: OK | AH71: OK | AI71: OK
A73: · | B73: Cash Flow Statement | F73: Unit
B75: Operating Activities
C76: =Calculations!C417 -> Net Income | D76: =SUM(K76:AA76)+AB76/2 -> 1562961.225 | E76: =H76-D76 -> 4861033.587 | F76: =Calculations!E417 -> EUR | H76: =SUM(I76:AT76) -> 6423994.812 | I76: =SUMIF(Calculations!$I$8:$QJ$8, I$2, Calculations!$I417:$QJ417) -> 0 | J76: 0 | K76: =SUMIF(Calculations!$I$8:$QJ$8, K$2, Calculations!$I417:$QJ417) -> -384823.4352 | L76: =SUMIF(Calculations!$I$8:$QJ$8, L$2, Calculations!$I417:$QJ417) -> -374500.8582 | M76: =SUMIF(Calculations!$I$8:$QJ$8, M$2, Calculations!$I417:$QJ417) -> -358338.9386 | N76: =SUMIF(Calculations!$I$8:$QJ$8, N$2, Calculations!$I417:$QJ417) -> -341938.7724 | O76: =SUMIF(Calculations!$I$8:$QJ$8, O$2, Calculations!$I417:$QJ417) -> -326181.4582 | P76: =SUMIF(Calculations!$I$8:$QJ$8, P$2, Calculations!$I417:$QJ417) -> -275651.8188 | Q76: =SUMIF(Calculations!$I$8:$QJ$8, Q$2, Calculations!$I417:$QJ417) -> -259216.6781 | R76: =SUMIF(Calculations!$I$8:$QJ$8, R$2, Calculations!$I417:$QJ417) -> 178487.3508 | S76: =SUMIF(Calculations!$I$8:$QJ$8, S$2, Calculations!$I417:$QJ417) -> 199910.7497 | T76: =SUMIF(Calculations!$I$8:$QJ$8, T$2, Calculations!$I417:$QJ417) -> 224748.5889 | U76: =SUMIF(Calculations!$I$8:$QJ$8, U$2, Calculations!$I417:$QJ417) -> 234638.1074 | V76: =SUMIF(Calculations!$I$8:$QJ$8, V$2, Calculations!$I417:$QJ417) -> 264980.4513 | W76: =SUMIF(Calculations!$I$8:$QJ$8, W$2, Calculations!$I417:$QJ417) -> 357597.0607 | X76: =SUMIF(Calculations!$I$8:$QJ$8, X$2, Calculations!$I417:$QJ417) -> 454888.7819 | Y76: =SUMIF(Calculations!$I$8:$QJ$8, Y$2, Calculations!$I417:$QJ417) -> 497159.8059 | Z76: =SUMIF(Calculations!$I$8:$QJ$8, Z$2, Calculations!$I417:$QJ417) -> 544732.529 | AA76: =SUMIF(Calculations!$I$8:$QJ$8, AA$2, Calculations!$I417:$QJ417) -> 597713.5352 | AB76: =SUMIF(Calculations!$I$8:$QJ$8, AB$2, Calculations!$I417:$QJ417) -> 657512.4474 | AC76: =SUMIF(Calculations!$I$8:$QJ$8, AC$2, Calculations!$I417:$QJ417) -> 742200.1961 | AD76: =SUMIF(Calculations!$I$8:$QJ$8, AD$2, Calculations!$I417:$QJ417) -> 786579.0982 | AE76: =SUMIF(Calculations!$I$8:$QJ$8, AE$2, Calculations!$I417:$QJ417) -> 834216.9322 | AF76: =SUMIF(Calculations!$I$8:$QJ$8, AF$2, Calculations!$I417:$QJ417) -> 890644.731 | AG76: =SUMIF(Calculations!$I$8:$QJ$8, AG$2, Calculations!$I417:$QJ417) -> 900333.7673 | AH76: =SUMIF(Calculations!$I$8:$QJ$8, AH$2, Calculations!$I417:$QJ417) -> 643710.524 | AI76: =SUMIF(Calculations!$I$8:$QJ$8, AI$2, Calculations!$I417:$QJ417) -> -265407.8856
C77: =Calculations!C418 -> less: Changes in Net Working Capital | D77: -169656.0512 | E77: 21671.05832 | F77: =Calculations!E418 -> EUR | H77: -147984.9929 | I77: =SUMIF(Calculations!$I$8:$QJ$8, I$2, Calculations!$I418:$QJ418) -> -123343.4274 | J77: =SUMIF(Calculations!$I$8:$QJ$8, J$2, Calculations!$I418:$QJ418) -> 123343.4274 | K77: =SUMIF(Calculations!$I$8:$QJ$8, K$2, Calculations!$I418:$QJ418) -> -202986.4518 | L77: =SUMIF(Calculations!$I$8:$QJ$8, L$2, Calculations!$I418:$QJ418) -> 1515.472549 | M77: =SUMIF(Calculations!$I$8:$QJ$8, M$2, Calculations!$I418:$QJ418) -> 1977.824535 | N77: =SUMIF(Calculations!$I$8:$QJ$8, N$2, Calculations!$I418:$QJ418) -> 2181.393945 | O77: =SUMIF(Calculations!$I$8:$QJ$8, O$2, Calculations!$I418:$QJ418) -> 2162.055473 | P77: =SUMIF(Calculations!$I$8:$QJ$8, P$2, Calculations!$I418:$QJ418) -> 2142.968896 | Q77: =SUMIF(Calculations!$I$8:$QJ$8, Q$2, Calculations!$I418:$QJ418) -> 2124.133191 | R77: =SUMIF(Calculations!$I$8:$QJ$8, R$2, Calculations!$I418:$QJ418) -> 2105.547384 | S77: =SUMIF(Calculations!$I$8:$QJ$8, S$2, Calculations!$I418:$QJ418) -> 2087.210545 | T77: =SUMIF(Calculations!$I$8:$QJ$8, T$2, Calculations!$I418:$QJ418) -> 2069.121798 | U77: =SUMIF(Calculations!$I$8:$QJ$8, U$2, Calculations!$I418:$QJ418) -> 2051.280309 | V77: =SUMIF(Calculations!$I$8:$QJ$8, V$2, Calculations!$I418:$QJ418) -> 2033.685299 | W77: =SUMIF(Calculations!$I$8:$QJ$8, W$2, Calculations!$I418:$QJ418) -> 2016.336036 | X77: =SUMIF(Calculations!$I$8:$QJ$8, X$2, Calculations!$I418:$QJ418) -> 1999.231839 | Y77: =SUMIF(Calculations!$I$8:$QJ$8, Y$2, Calculations!$I418:$QJ418) -> 1982.372077 | Z77: =SUMIF(Calculations!$I$8:$QJ$8, Z$2, Calculations!$I418:$QJ418) -> 1965.756171 | AA77: =SUMIF(Calculations!$I$8:$QJ$8, AA$2, Calculations!$I418:$QJ418) -> 1949.383595 | AB77: =SUMIF(Calculations!$I$8:$QJ$8, AB$2, Calculations!$I418:$QJ418) -> 1933.253875 | AC77: =SUMIF(Calculations!$I$8:$QJ$8, AC$2, Calculations!$I418:$QJ418) -> 8840.346998 | AD77: =SUMIF(Calculations!$I$8:$QJ$8, AD$2, Calculations!$I418:$QJ418) -> 3352.000257 | AE77: =SUMIF(Calculations!$I$8:$QJ$8, AE$2, Calculations!$I418:$QJ418) -> 3794.892013 | AF77: =SUMIF(Calculations!$I$8:$QJ$8, AF$2, Calculations!$I418:$QJ418) -> 4070.399683 | AG77: =SUMIF(Calculations!$I$8:$QJ$8, AG$2, Calculations!$I418:$QJ418) -> -5328.69435 | AH77: =SUMIF(Calculations!$I$8:$QJ$8, AH$2, Calculations!$I418:$QJ418) -> 1620.573852 | AI77: =SUMIF(Calculations!$I$8:$QJ$8, AI$2, Calculations!$I418:$QJ418) -> 4354.912926
C78: =Calculations!C419 -> less: Change in Deferred Tax Asset | D78: -233114.5194 | E78: 51048.01242 | F78: =Calculations!E419 -> EUR | H78: -182066.507 | I78: =SUMIF(Calculations!$I$8:$QJ$8, I$2, Calculations!$I419:$QJ419) -> 0 | J78: 0 | K78: =SUMIF(Calculations!$I$8:$QJ$8, K$2, Calculations!$I419:$QJ419) -> -152935.5087 | L78: =SUMIF(Calculations!$I$8:$QJ$8, L$2, Calculations!$I419:$QJ419) -> -150851.1422 | M78: =SUMIF(Calculations!$I$8:$QJ$8, M$2, Calculations!$I419:$QJ419) -> -147587.6776 | N78: =SUMIF(Calculations!$I$8:$QJ$8, N$2, Calculations!$I419:$QJ419) -> -144276.1056 | O78: =SUMIF(Calculations!$I$8:$QJ$8, O$2, Calculations!$I419:$QJ419) -> -141094.3403 | P78: =SUMIF(Calculations!$I$8:$QJ$8, P$2, Calculations!$I419:$QJ419) -> -137372.9708 | Q78: =SUMIF(Calculations!$I$8:$QJ$8, Q$2, Calculations!$I419:$QJ419) -> -134054.3366 | R78: =SUMIF(Calculations!$I$8:$QJ$8, R$2, Calculations!$I419:$QJ419) -> -130251.5667 | S78: =SUMIF(Calculations!$I$8:$QJ$8, S$2, Calculations!$I419:$QJ419) -> -125925.6881 | T78: =SUMIF(Calculations!$I$8:$QJ$8, T$2, Calculations!$I419:$QJ419) -> -120954.7783 | U78: =SUMIF(Calculations!$I$8:$QJ$8, U$2, Calculations!$I419:$QJ419) -> 128672.043 | V78: =SUMIF(Calculations!$I$8:$QJ$8, V$2, Calculations!$I419:$QJ419) -> 134798.8624 | W78: =SUMIF(Calculations!$I$8:$QJ$8, W$2, Calculations!$I419:$QJ419) -> 141511.5201 | X78: =SUMIF(Calculations!$I$8:$QJ$8, X$2, Calculations!$I419:$QJ419) -> 149168.1907 | Y78: =SUMIF(Calculations!$I$8:$QJ$8, Y$2, Calculations!$I419:$QJ419) -> 157703.686 | Z78: =SUMIF(Calculations!$I$8:$QJ$8, Z$2, Calculations!$I419:$QJ419) -> 167309.7166 | AA78: =SUMIF(Calculations!$I$8:$QJ$8, AA$2, Calculations!$I419:$QJ419) -> 178007.8044 | AB78: =SUMIF(Calculations!$I$8:$QJ$8, AB$2, Calculations!$I419:$QJ419) -> 190035.5441 | AC78: =SUMIF(Calculations!$I$8:$QJ$8, AC$2, Calculations!$I419:$QJ419) -> 137896.5817 | AD78: =SUMIF(Calculations!$I$8:$QJ$8, AD$2, Calculations!$I419:$QJ419) -> 200.1656599 | AE78: =SUMIF(Calculations!$I$8:$QJ$8, AE$2, Calculations!$I419:$QJ419) -> 0 | AF78: =SUMIF(Calculations!$I$8:$QJ$8, AF$2, Calculations!$I419:$QJ419) -> 0 | AG78: =SUMIF(Calculations!$I$8:$QJ$8, AG$2, Calculations!$I419:$QJ419) -> -1557.164112 | AH78: =SUMIF(Calculations!$I$8:$QJ$8, AH$2, Calculations!$I419:$QJ419) -> -153.400075 | AI78: =SUMIF(Calculations!$I$8:$QJ$8, AI$2, Calculations!$I419:$QJ419) -> -180355.9428
C79: =Calculations!C420 -> add: Depreciation | D79: 11810950.05 | E79: 2130188.151 | F79: =Calculations!E420 -> EUR | H79: 13941138.2 | I79: =SUMIF(Calculations!$I$8:$QJ$8, I$2, Calculations!$I420:$QJ420) -> 0 | J79: =SUMIF(Calculations!$I$8:$QJ$8, J$2, Calculations!$I420:$QJ420) -> 0 | K79: =SUMIF(Calculations!$I$8:$QJ$8, K$2, Calculations!$I420:$QJ420) -> 1080250.649 | L79: =SUMIF(Calculations!$I$8:$QJ$8, L$2, Calculations!$I420:$QJ420) -> 1080250.649 | M79: =SUMIF(Calculations!$I$8:$QJ$8, M$2, Calculations!$I420:$QJ420) -> 1080250.649 | N79: =SUMIF(Calculations!$I$8:$QJ$8, N$2, Calculations!$I420:$QJ420) -> 1080250.649 | O79: =SUMIF(Calculations!$I$8:$QJ$8, O$2, Calculations!$I420:$QJ420) -> 1080250.649 | P79: =SUMIF(Calculations!$I$8:$QJ$8, P$2, Calculations!$I420:$QJ420) -> 1048150.649 | Q79: =SUMIF(Calculations!$I$8:$QJ$8, Q$2, Calculations!$I420:$QJ420) -> 1048150.649 | R79: =SUMIF(Calculations!$I$8:$QJ$8, R$2, Calculations!$I420:$QJ420) -> 629279.385 | S79: =SUMIF(Calculations!$I$8:$QJ$8, S$2, Calculations!$I420:$QJ420) -> 629279.385 | T79: =SUMIF(Calculations!$I$8:$QJ$8, T$2, Calculations!$I420:$QJ420) -> 629059.385 | U79: =SUMIF(Calculations!$I$8:$QJ$8, U$2, Calculations!$I420:$QJ420) -> 402594.8675 | V79: =SUMIF(Calculations!$I$8:$QJ$8, V$2, Calculations!$I420:$QJ420) -> 402594.8675 | W79: =SUMIF(Calculations!$I$8:$QJ$8, W$2, Calculations!$I420:$QJ420) -> 343221.8961 | X79: =SUMIF(Calculations!$I$8:$QJ$8, X$2, Calculations!$I420:$QJ420) -> 283848.9246 | Y79: =SUMIF(Calculations!$I$8:$QJ$8, Y$2, Calculations!$I420:$QJ420) -> 283848.9246 | Z79: =SUMIF(Calculations!$I$8:$QJ$8, Z$2, Calculations!$I420:$QJ420) -> 283848.9246 | AA79: =SUMIF(Calculations!$I$8:$QJ$8, AA$2, Calculations!$I420:$QJ420) -> 283848.9246 | AB79: =SUMIF(Calculations!$I$8:$QJ$8, AB$2, Calculations!$I420:$QJ420) -> 283940.043 | AC79: =SUMIF(Calculations!$I$8:$QJ$8, AC$2, Calculations!$I420:$QJ420) -> 284031.1614 | AD79: =SUMIF(Calculations!$I$8:$QJ$8, AD$2, Calculations!$I420:$QJ420) -> 284031.1614 | AE79: =SUMIF(Calculations!$I$8:$QJ$8, AE$2, Calculations!$I420:$QJ420) -> 284031.1614 | AF79: =SUMIF(Calculations!$I$8:$QJ$8, AF$2, Calculations!$I420:$QJ420) -> 284031.1614 | AG79: =SUMIF(Calculations!$I$8:$QJ$8, AG$2, Calculations!$I420:$QJ420) -> 284031.1614 | AH79: =SUMIF(Calculations!$I$8:$QJ$8, AH$2, Calculations!$I420:$QJ420) -> 284031.1614 | AI79: =SUMIF(Calculations!$I$8:$QJ$8, AI$2, Calculations!$I420:$QJ420) -> 284031.1614
C80: =Calculations!C421 -> add: Senior Debt Interest Expense | D80: 4397289.07 | E80: 7486.370219 | F80: =Calculations!E421 -> EUR | H80: 4404775.44 | I80: =SUMIF(Calculations!$I$8:$QJ$8, I$2, Calculations!$I421:$QJ421) -> 0 | J80: =SUMIF(Calculations!$I$8:$QJ$8, J$2, Calculations!$I421:$QJ421) -> 0 | K80: =SUMIF(Calculations!$I$8:$QJ$8, K$2, Calculations!$I421:$QJ421) -> 416065.301 | L80: =SUMIF(Calculations!$I$8:$QJ$8, L$2, Calculations!$I421:$QJ421) -> 402122.1656 | M80: =SUMIF(Calculations!$I$8:$QJ$8, M$2, Calculations!$I421:$QJ421) -> 386575.9047 | N80: =SUMIF(Calculations!$I$8:$QJ$8, N$2, Calculations!$I421:$QJ421) -> 370152.7124 | O80: =SUMIF(Calculations!$I$8:$QJ$8, O$2, Calculations!$I421:$QJ421) -> 352803.123 | P80: =SUMIF(Calculations!$I$8:$QJ$8, P$2, Calculations!$I421:$QJ421) -> 334474.8804 | Q80: =SUMIF(Calculations!$I$8:$QJ$8, Q$2, Calculations!$I421:$QJ421) -> 315112.7808 | R80: =SUMIF(Calculations!$I$8:$QJ$8, R$2, Calculations!$I421:$QJ421) -> 294658.5066 | S80: =SUMIF(Calculations!$I$8:$QJ$8, S$2, Calculations!$I421:$QJ421) -> 273050.4506 | T80: =SUMIF(Calculations!$I$8:$QJ$8, T$2, Calculations!$I421:$QJ421) -> 250223.5304 | U80: =SUMIF(Calculations!$I$8:$QJ$8, U$2, Calculations!$I421:$QJ421) -> 226108.9924 | V80: =SUMIF(Calculations!$I$8:$QJ$8, V$2, Calculations!$I421:$QJ421) -> 200634.205 | W80: =SUMIF(Calculations!$I$8:$QJ$8, W$2, Calculations!$I421:$QJ421) -> 173722.4393 | X80: =SUMIF(Calculations!$I$8:$QJ$8, X$2, Calculations!$I421:$QJ421) -> 145292.6384 | Y80: =SUMIF(Calculations!$I$8:$QJ$8, Y$2, Calculations!$I421:$QJ421) -> 115259.1734 | Z80: =SUMIF(Calculations!$I$8:$QJ$8, Z$2, Calculations!$I421:$QJ421) -> 83531.5848 | AA80: =SUMIF(Calculations!$I$8:$QJ$8, AA$2, Calculations!$I421:$QJ421) -> 50014.31085 | AB80: =SUMIF(Calculations!$I$8:$QJ$8, AB$2, Calculations!$I421:$QJ421) -> 14972.74044 | AC80: =SUMIF(Calculations!$I$8:$QJ$8, AC$2, Calculations!$I421:$QJ421) -> 0 | AD80: =SUMIF(Calculations!$I$8:$QJ$8, AD$2, Calculations!$I421:$QJ421) -> 0 | AE80: =SUMIF(Calculations!$I$8:$QJ$8, AE$2, Calculations!$I421:$QJ421) -> 0 | AF80: =SUMIF(Calculations!$I$8:$QJ$8, AF$2, Calculations!$I421:$QJ421) -> 0 | AG80: =SUMIF(Calculations!$I$8:$QJ$8, AG$2, Calculations!$I421:$QJ421) -> 0 | AH80: =SUMIF(Calculations!$I$8:$QJ$8, AH$2, Calculations!$I421:$QJ421) -> 0 | AI80: =SUMIF(Calculations!$I$8:$QJ$8, AI$2, Calculations!$I421:$QJ421) -> 0
C81: =Calculations!C422 -> add: Subordinated Debt Interest Expense | D81: 5569733.416 | E81: -810465.252 | F81: =Calculations!E422 -> EUR | H81: 4759268.164 | I81: =SUMIF(Calculations!$I$8:$QJ$8, I$2, Calculations!$I422:$QJ422) -> 0 | J81: =SUMIF(Calculations!$I$8:$QJ$8, J$2, Calculations!$I422:$QJ422) -> 0 | K81: =SUMIF(Calculations!$I$8:$QJ$8, K$2, Calculations!$I422:$QJ422) -> 457728.6201 | L81: =SUMIF(Calculations!$I$8:$QJ$8, L$2, Calculations!$I422:$QJ422) -> 449470.4334 | M81: =SUMIF(Calculations!$I$8:$QJ$8, M$2, Calculations!$I422:$QJ422) -> 440413.0756 | N81: =SUMIF(Calculations!$I$8:$QJ$8, N$2, Calculations!$I422:$QJ422) -> 430207.0181 | O81: =SUMIF(Calculations!$I$8:$QJ$8, O$2, Calculations!$I422:$QJ422) -> 418706.5771 | P81: =SUMIF(Calculations!$I$8:$QJ$8, P$2, Calculations!$I422:$QJ422) -> 405747.5923 | Q81: =SUMIF(Calculations!$I$8:$QJ$8, Q$2, Calculations!$I422:$QJ422) -> 391145.0839 | R81: =SUMIF(Calculations!$I$8:$QJ$8, R$2, Calculations!$I422:$QJ422) -> 374690.6119 | S81: =SUMIF(Calculations!$I$8:$QJ$8, S$2, Calculations!$I422:$QJ422) -> 356149.301 | T81: =SUMIF(Calculations!$I$8:$QJ$8, T$2, Calculations!$I422:$QJ422) -> 335256.4878 | U81: =SUMIF(Calculations!$I$8:$QJ$8, U$2, Calculations!$I422:$QJ422) -> 311713.9429 | V81: =SUMIF(Calculations!$I$8:$QJ$8, V$2, Calculations!$I422:$QJ422) -> 285185.614 | W81: =SUMIF(Calculations!$I$8:$QJ$8, W$2, Calculations!$I422:$QJ422) -> 255292.829 | X81: =SUMIF(Calculations!$I$8:$QJ$8, X$2, Calculations!$I422:$QJ422) -> 221608.8907 | Y81: =SUMIF(Calculations!$I$8:$QJ$8, Y$2, Calculations!$I422:$QJ422) -> 183652.9859 | Z81: =SUMIF(Calculations!$I$8:$QJ$8, Z$2, Calculations!$I422:$QJ422) -> 140883.3223 | AA81: =SUMIF(Calculations!$I$8:$QJ$8, AA$2, Calculations!$I422:$QJ422) -> 92689.39489 | AB81: =SUMIF(Calculations!$I$8:$QJ$8, AB$2, Calculations!$I422:$QJ422) -> 38383.27113 | AC81: =SUMIF(Calculations!$I$8:$QJ$8, AC$2, Calculations!$I422:$QJ422) -> -22810.2284 | AD81: =SUMIF(Calculations!$I$8:$QJ$8, AD$2, Calculations!$I422:$QJ422) -> -91764.59536 | AE81: =SUMIF(Calculations!$I$8:$QJ$8, AE$2, Calculations!$I422:$QJ422) -> -169464.102 | AF81: =SUMIF(Calculations!$I$8:$QJ$8, AF$2, Calculations!$I422:$QJ422) -> -257017.8509 | AG81: =SUMIF(Calculations!$I$8:$QJ$8, AG$2, Calculations!$I422:$QJ422) -> -288600.111 | AH81: =SUMIF(Calculations!$I$8:$QJ$8, AH$2, Calculations!$I422:$QJ422) -> 0 | AI81: =SUMIF(Calculations!$I$8:$QJ$8, AI$2, Calculations!$I422:$QJ422) -> 0
C82: =Calculations!C423 -> less: Interest on Reserve Accounts | D82: 0 | E82: 0 | F82: =Calculations!E423 -> EUR | H82: 0 | I82: =SUMIF(Calculations!$I$8:$QJ$8, I$2, Calculations!$I423:$QJ423) -> 0 | J82: =SUMIF(Calculations!$I$8:$QJ$8, J$2, Calculations!$I423:$QJ423) -> 0 | K82: =SUMIF(Calculations!$I$8:$QJ$8, K$2, Calculations!$I423:$QJ423) -> 0 | L82: =SUMIF(Calculations!$I$8:$QJ$8, L$2, Calculations!$I423:$QJ423) -> 0 | M82: =SUMIF(Calculations!$I$8:$QJ$8, M$2, Calculations!$I423:$QJ423) -> 0 | N82: =SUMIF(Calculations!$I$8:$QJ$8, N$2, Calculations!$I423:$QJ423) -> 0 | O82: =SUMIF(Calculations!$I$8:$QJ$8, O$2, Calculations!$I423:$QJ423) -> 0 | P82: =SUMIF(Calculations!$I$8:$QJ$8, P$2, Calculations!$I423:$QJ423) -> 0 | Q82: =SUMIF(Calculations!$I$8:$QJ$8, Q$2, Calculations!$I423:$QJ423) -> 0 | R82: =SUMIF(Calculations!$I$8:$QJ$8, R$2, Calculations!$I423:$QJ423) -> 0 | S82: =SUMIF(Calculations!$I$8:$QJ$8, S$2, Calculations!$I423:$QJ423) -> 0 | T82: =SUMIF(Calculations!$I$8:$QJ$8, T$2, Calculations!$I423:$QJ423) -> 0 | U82: =SUMIF(Calculations!$I$8:$QJ$8, U$2, Calculations!$I423:$QJ423) -> 0 | V82: =SUMIF(Calculations!$I$8:$QJ$8, V$2, Calculations!$I423:$QJ423) -> 0 | W82: =SUMIF(Calculations!$I$8:$QJ$8, W$2, Calculations!$I423:$QJ423) -> 0 | X82: =SUMIF(Calculations!$I$8:$QJ$8, X$2, Calculations!$I423:$QJ423) -> 0 | Y82: =SUMIF(Calculations!$I$8:$QJ$8, Y$2, Calculations!$I423:$QJ423) -> 0 | Z82: =SUMIF(Calculations!$I$8:$QJ$8, Z$2, Calculations!$I423:$QJ423) -> 0 | AA82: =SUMIF(Calculations!$I$8:$QJ$8, AA$2, Calculations!$I423:$QJ423) -> 0 | AB82: =SUMIF(Calculations!$I$8:$QJ$8, AB$2, Calculations!$I423:$QJ423) -> 0 | AC82: =SUMIF(Calculations!$I$8:$QJ$8, AC$2, Calculations!$I423:$QJ423) -> 0 | AD82: =SUMIF(Calculations!$I$8:$QJ$8, AD$2, Calculations!$I423:$QJ423) -> 0 | AE82: =SUMIF(Calculations!$I$8:$QJ$8, AE$2, Calculations!$I423:$QJ423) -> 0 | AF82: =SUMIF(Calculations!$I$8:$QJ$8, AF$2, Calculations!$I423:$QJ423) -> 0 | AG82: =SUMIF(Calculations!$I$8:$QJ$8, AG$2, Calculations!$I423:$QJ423) -> 0 | AH82: =SUMIF(Calculations!$I$8:$QJ$8, AH$2, Calculations!$I423:$QJ423) -> 0 | AI82: =SUMIF(Calculations!$I$8:$QJ$8, AI$2, Calculations!$I423:$QJ423) -> 0
C83: =Calculations!C424 -> Cash Flows From Operating Activities | D83: 22938163.19 | E83: 6260961.927 | F83: =Calculations!E424 -> EUR | H83: 29199125.12 | I83: =SUM(I76:I82) -> -123343.4274 | J83: =SUM(J76:J82) -> 123343.4274 | K83: =SUM(K76:K82) -> 1213299.174 | L83: 1408006.72 | M83: 1403290.837 | N83: 1396576.895 | O83: 1386646.606 | P83: 1377491.301 | Q83: 1363261.632 | R83: 1348969.835 | S83: 1334551.409 | T83: 1320402.336 | U83: 1305779.234 | V83: 1290227.685 | W83: 1273362.081 | X83: 1256806.658 | Y83: 1239606.948 | Z83: 1222271.834 | AA83: 1204223.354 | AB83: 1186777.3 | AC83: 1150158.058 | AD83: 982397.8301 | AE83: 952578.8836 | AF83: 921728.4412 | AG83: =SUM(AG76:AG82) -> 888878.9593 | AH83: 929208.8592 | AI83: -157377.7541
D84: 0 | E84: 0
B85: Investing Activities | D85: 0 | E85: 0
C86: =Calculations!C427 -> Capital Expenditures | D86: -3888.97991 | E86: -16925029.5 | F86: =Calculations!E427 -> EUR | H86: =SUM(I86:AT86) -> -16928918.48 | I86: =SUMIF(Calculations!$I$8:$QJ$8, I$2, Calculations!$I429:$QJ429) -> -7402416.468 | J86: =SUMIF(Calculations!$I$8:$QJ$8, J$2, Calculations!$I429:$QJ429) -> -7125804.67 | K86: =SUMIF(Calculations!$I$8:$QJ$8, K$2, Calculations!$I429:$QJ429) -> 0 | L86: =SUMIF(Calculations!$I$8:$QJ$8, L$2, Calculations!$I429:$QJ429) -> 0 | M86: =SUMIF(Calculations!$I$8:$QJ$8, M$2, Calculations!$I429:$QJ429) -> 0 | N86: =SUMIF(Calculations!$I$8:$QJ$8, N$2, Calculations!$I429:$QJ429) -> 0 | O86: =SUMIF(Calculations!$I$8:$QJ$8, O$2, Calculations!$I429:$QJ429) -> 0 | P86: =SUMIF(Calculations!$I$8:$QJ$8, P$2, Calculations!$I429:$QJ429) -> 0 | Q86: =SUMIF(Calculations!$I$8:$QJ$8, Q$2, Calculations!$I429:$QJ429) -> 0 | R86: =SUMIF(Calculations!$I$8:$QJ$8, R$2, Calculations!$I429:$QJ429) -> 0 | S86: =SUMIF(Calculations!$I$8:$QJ$8, S$2, Calculations!$I429:$QJ429) -> 0 | T86: =SUMIF(Calculations!$I$8:$QJ$8, T$2, Calculations!$I429:$QJ429) -> 0 | U86: =SUMIF(Calculations!$I$8:$QJ$8, U$2, Calculations!$I429:$QJ429) -> 0 | V86: =SUMIF(Calculations!$I$8:$QJ$8, V$2, Calculations!$I429:$QJ429) -> 0 | W86: =SUMIF(Calculations!$I$8:$QJ$8, W$2, Calculations!$I429:$QJ429) -> 0 | X86: =SUMIF(Calculations!$I$8:$QJ$8, X$2, Calculations!$I429:$QJ429) -> 0 | Y86: =SUMIF(Calculations!$I$8:$QJ$8, Y$2, Calculations!$I429:$QJ429) -> 0 | Z86: =SUMIF(Calculations!$I$8:$QJ$8, Z$2, Calculations!$I429:$QJ429) -> 0 | AA86: =SUMIF(Calculations!$I$8:$QJ$8, AA$2, Calculations!$I429:$QJ429) -> 0 | AB86: =SUMIF(Calculations!$I$8:$QJ$8, AB$2, Calculations!$I429:$QJ429) -> -7777.95982 | AC86: =SUMIF(Calculations!$I$8:$QJ$8, AC$2, Calculations!$I429:$QJ429) -> -2392919.384 | AD86: =SUMIF(Calculations!$I$8:$QJ$8, AD$2, Calculations!$I429:$QJ429) -> 0 | AE86: =SUMIF(Calculations!$I$8:$QJ$8, AE$2, Calculations!$I429:$QJ429) -> 0 | AF86: =SUMIF(Calculations!$I$8:$QJ$8, AF$2, Calculations!$I429:$QJ429) -> 0 | AG86: =SUMIF(Calculations!$I$8:$QJ$8, AG$2, Calculations!$I429:$QJ429) -> 0 | AH86: =SUMIF(Calculations!$I$8:$QJ$8, AH$2, Calculations!$I429:$QJ429) -> 0 | AI86: =SUMIF(Calculations!$I$8:$QJ$8, AI$2, Calculations!$I429:$QJ429) -> 0
C87: =Calculations!C429 -> Cash Flows From Investing Activities | D87: -3888.97991 | E87: -16925029.5 | F87: =Calculations!E429 -> EUR | H87: =SUM(I87:AT87) -> -16928918.48 | I87: =SUM(I86) -> -7402416.468 | J87: =SUM(J86) -> -7125804.67 | K87: 0 | L87: 0 | M87: 0 | N87: 0 | O87: 0 | P87: 0 | Q87: 0 | R87: 0 | S87: 0 | T87: 0 | U87: 0 | V87: 0 | W87: 0 | X87: 0 | Y87: 0 | Z87: 0 | AA87: 0 | AB87: -7777.95982 | AC87: -2392919.384 | AD87: 0 | AE87: 0 | AF87: 0 | AG87: =SUM(AG86) -> 0 | AH87: 0 | AI87: 0
D88: 0 | E88: 0
B89: Financing Activities | D89: 0 | E89: 0
C90: =Calculations!C432 -> Drawdown of Equity | D90: 0 | E90: 3792500 | F90: =Calculations!E432 -> EUR | H90: =SUM(I90:AT90) -> 3792500 | I90: =SUMIF(Calculations!$I$8:$QJ$8, I$2, Calculations!$I432:$QJ432) -> 3792500 | J90: =SUMIF(Calculations!$I$8:$QJ$8, J$2, Calculations!$I432:$QJ432) -> 0 | K90: =SUMIF(Calculations!$I$8:$QJ$8, K$2, Calculations!$I432:$QJ432) -> 0 | L90: =SUMIF(Calculations!$I$8:$QJ$8, L$2, Calculations!$I432:$QJ432) -> 0 | M90: =SUMIF(Calculations!$I$8:$QJ$8, M$2, Calculations!$I432:$QJ432) -> 0 | N90: =SUMIF(Calculations!$I$8:$QJ$8, N$2, Calculations!$I432:$QJ432) -> 0 | O90: =SUMIF(Calculations!$I$8:$QJ$8, O$2, Calculations!$I432:$QJ432) -> 0 | P90: =SUMIF(Calculations!$I$8:$QJ$8, P$2, Calculations!$I432:$QJ432) -> 0 | Q90: =SUMIF(Calculations!$I$8:$QJ$8, Q$2, Calculations!$I432:$QJ432) -> 0 | R90: =SUMIF(Calculations!$I$8:$QJ$8, R$2, Calculations!$I432:$QJ432) -> 0 | S90: =SUMIF(Calculations!$I$8:$QJ$8, S$2, Calculations!$I432:$QJ432) -> 0 | T90: =SUMIF(Calculations!$I$8:$QJ$8, T$2, Calculations!$I432:$QJ432) -> 0 | U90: =SUMIF(Calculations!$I$8:$QJ$8, U$2, Calculations!$I432:$QJ432) -> 0 | V90: =SUMIF(Calculations!$I$8:$QJ$8, V$2, Calculations!$I432:$QJ432) -> 0 | W90: =SUMIF(Calculations!$I$8:$QJ$8, W$2, Calculations!$I432:$QJ432) -> 0 | X90: =SUMIF(Calculations!$I$8:$QJ$8, X$2, Calculations!$I432:$QJ432) -> 0 | Y90: =SUMIF(Calculations!$I$8:$QJ$8, Y$2, Calculations!$I432:$QJ432) -> 0 | Z90: =SUMIF(Calculations!$I$8:$QJ$8, Z$2, Calculations!$I432:$QJ432) -> 0 | AA90: =SUMIF(Calculations!$I$8:$QJ$8, AA$2, Calculations!$I432:$QJ432) -> 0 | AB90: =SUMIF(Calculations!$I$8:$QJ$8, AB$2, Calculations!$I432:$QJ432) -> 0 | AC90: =SUMIF(Calculations!$I$8:$QJ$8, AC$2, Calculations!$I432:$QJ432) -> 0 | AD90: =SUMIF(Calculations!$I$8:$QJ$8, AD$2, Calculations!$I432:$QJ432) -> 0 | AE90: =SUMIF(Calculations!$I$8:$QJ$8, AE$2, Calculations!$I432:$QJ432) -> 0 | AF90: =SUMIF(Calculations!$I$8:$QJ$8, AF$2, Calculations!$I432:$QJ432) -> 0 | AG90: =SUMIF(Calculations!$I$8:$QJ$8, AG$2, Calculations!$I432:$QJ432) -> 0 | AH90: =SUMIF(Calculations!$I$8:$QJ$8, AH$2, Calculations!$I432:$QJ432) -> 0 | AI90: =SUMIF(Calculations!$I$8:$QJ$8, AI$2, Calculations!$I432:$QJ432) -> 0
C91: =Calculations!C433 -> Drawdown of Subordinated Debt | D91: 0 | E91: 3792500 | F91: =Calculations!E433 -> EUR | H91: 3792500 | I91: =SUMIF(Calculations!$I$8:$QJ$8, I$2, Calculations!$I433:$QJ433) -> 1896250 | J91: =SUMIF(Calculations!$I$8:$QJ$8, J$2, Calculations!$I433:$QJ433) -> 1896250 | K91: =SUMIF(Calculations!$I$8:$QJ$8, K$2, Calculations!$I433:$QJ433) -> 0 | L91: =SUMIF(Calculations!$I$8:$QJ$8, L$2, Calculations!$I433:$QJ433) -> 0 | M91: =SUMIF(Calculations!$I$8:$QJ$8, M$2, Calculations!$I433:$QJ433) -> 0 | N91: =SUMIF(Calculations!$I$8:$QJ$8, N$2, Calculations!$I433:$QJ433) -> 0 | O91: =SUMIF(Calculations!$I$8:$QJ$8, O$2, Calculations!$I433:$QJ433) -> 0 | P91: =SUMIF(Calculations!$I$8:$QJ$8, P$2, Calculations!$I433:$QJ433) -> 0 | Q91: =SUMIF(Calculations!$I$8:$QJ$8, Q$2, Calculations!$I433:$QJ433) -> 0 | R91: =SUMIF(Calculations!$I$8:$QJ$8, R$2, Calculations!$I433:$QJ433) -> 0 | S91: =SUMIF(Calculations!$I$8:$QJ$8, S$2, Calculations!$I433:$QJ433) -> 0 | T91: =SUMIF(Calculations!$I$8:$QJ$8, T$2, Calculations!$I433:$QJ433) -> 0 | U91: =SUMIF(Calculations!$I$8:$QJ$8, U$2, Calculations!$I433:$QJ433) -> 0 | V91: =SUMIF(Calculations!$I$8:$QJ$8, V$2, Calculations!$I433:$QJ433) -> 0 | W91: =SUMIF(Calculations!$I$8:$QJ$8, W$2, Calculations!$I433:$QJ433) -> 0 | X91: =SUMIF(Calculations!$I$8:$QJ$8, X$2, Calculations!$I433:$QJ433) -> 0 | Y91: =SUMIF(Calculations!$I$8:$QJ$8, Y$2, Calculations!$I433:$QJ433) -> 0 | Z91: =SUMIF(Calculations!$I$8:$QJ$8, Z$2, Calculations!$I433:$QJ433) -> 0 | AA91: =SUMIF(Calculations!$I$8:$QJ$8, AA$2, Calculations!$I433:$QJ433) -> 0 | AB91: =SUMIF(Calculations!$I$8:$QJ$8, AB$2, Calculations!$I433:$QJ433) -> 0 | AC91: =SUMIF(Calculations!$I$8:$QJ$8, AC$2, Calculations!$I433:$QJ433) -> 0 | AD91: =SUMIF(Calculations!$I$8:$QJ$8, AD$2, Calculations!$I433:$QJ433) -> 0 | AE91: =SUMIF(Calculations!$I$8:$QJ$8, AE$2, Calculations!$I433:$QJ433) -> 0 | AF91: =SUMIF(Calculations!$I$8:$QJ$8, AF$2, Calculations!$I433:$QJ433) -> 0 | AG91: =SUMIF(Calculations!$I$8:$QJ$8, AG$2, Calculations!$I433:$QJ433) -> 0 | AH91: =SUMIF(Calculations!$I$8:$QJ$8, AH$2, Calculations!$I433:$QJ433) -> 0 | AI91: =SUMIF(Calculations!$I$8:$QJ$8, AI$2, Calculations!$I433:$QJ433) -> 0
C92: =Calculations!C434 -> Drawdown of Construction Loan | D92: 0 | E92: 7585000 | F92: =Calculations!E434 -> EUR | H92: 7585000 | I92: =SUMIF(Calculations!$I$8:$QJ$8, I$2, Calculations!$I434:$QJ434) -> 1915000 | J92: =SUMIF(Calculations!$I$8:$QJ$8, J$2, Calculations!$I434:$QJ434) -> 5670000 | K92: =SUMIF(Calculations!$I$8:$QJ$8, K$2, Calculations!$I434:$QJ434) -> 0 | L92: =SUMIF(Calculations!$I$8:$QJ$8, L$2, Calculations!$I434:$QJ434) -> 0 | M92: =SUMIF(Calculations!$I$8:$QJ$8, M$2, Calculations!$I434:$QJ434) -> 0 | N92: =SUMIF(Calculations!$I$8:$QJ$8, N$2, Calculations!$I434:$QJ434) -> 0 | O92: =SUMIF(Calculations!$I$8:$QJ$8, O$2, Calculations!$I434:$QJ434) -> 0 | P92: =SUMIF(Calculations!$I$8:$QJ$8, P$2, Calculations!$I434:$QJ434) -> 0 | Q92: =SUMIF(Calculations!$I$8:$QJ$8, Q$2, Calculations!$I434:$QJ434) -> 0 | R92: =SUMIF(Calculations!$I$8:$QJ$8, R$2, Calculations!$I434:$QJ434) -> 0 | S92: =SUMIF(Calculations!$I$8:$QJ$8, S$2, Calculations!$I434:$QJ434) -> 0 | T92: =SUMIF(Calculations!$I$8:$QJ$8, T$2, Calculations!$I434:$QJ434) -> 0 | U92: =SUMIF(Calculations!$I$8:$QJ$8, U$2, Calculations!$I434:$QJ434) -> 0 | V92: =SUMIF(Calculations!$I$8:$QJ$8, V$2, Calculations!$I434:$QJ434) -> 0 | W92: =SUMIF(Calculations!$I$8:$QJ$8, W$2, Calculations!$I434:$QJ434) -> 0 | X92: =SUMIF(Calculations!$I$8:$QJ$8, X$2, Calculations!$I434:$QJ434) -> 0 | Y92: =SUMIF(Calculations!$I$8:$QJ$8, Y$2, Calculations!$I434:$QJ434) -> 0 | Z92: =SUMIF(Calculations!$I$8:$QJ$8, Z$2, Calculations!$I434:$QJ434) -> 0 | AA92: =SUMIF(Calculations!$I$8:$QJ$8, AA$2, Calculations!$I434:$QJ434) -> 0 | AB92: =SUMIF(Calculations!$I$8:$QJ$8, AB$2, Calculations!$I434:$QJ434) -> 0 | AC92: =SUMIF(Calculations!$I$8:$QJ$8, AC$2, Calculations!$I434:$QJ434) -> 0 | AD92: =SUMIF(Calculations!$I$8:$QJ$8, AD$2, Calculations!$I434:$QJ434) -> 0 | AE92: =SUMIF(Calculations!$I$8:$QJ$8, AE$2, Calculations!$I434:$QJ434) -> 0 | AF92: =SUMIF(Calculations!$I$8:$QJ$8, AF$2, Calculations!$I434:$QJ434) -> 0 | AG92: =SUMIF(Calculations!$I$8:$QJ$8, AG$2, Calculations!$I434:$QJ434) -> 0 | AH92: =SUMIF(Calculations!$I$8:$QJ$8, AH$2, Calculations!$I434:$QJ434) -> 0 | AI92: =SUMIF(Calculations!$I$8:$QJ$8, AI$2, Calculations!$I434:$QJ434) -> 0
C93: =Calculations!C435 -> Drawdown of Operating Loan | D93: 0 | E93: 0 | F93: =Calculations!E435 -> 0 | H93: 0 | I93: =SUMIF(Calculations!$I$8:$QJ$8, I$2, Calculations!$I435:$QJ435) -> 0 | J93: =SUMIF(Calculations!$I$8:$QJ$8, J$2, Calculations!$I435:$QJ435) -> 0 | K93: =SUMIF(Calculations!$I$8:$QJ$8, K$2, Calculations!$I435:$QJ435) -> 0 | L93: =SUMIF(Calculations!$I$8:$QJ$8, L$2, Calculations!$I435:$QJ435) -> 0 | M93: =SUMIF(Calculations!$I$8:$QJ$8, M$2, Calculations!$I435:$QJ435) -> 0 | N93: =SUMIF(Calculations!$I$8:$QJ$8, N$2, Calculations!$I435:$QJ435) -> 0 | O93: =SUMIF(Calculations!$I$8:$QJ$8, O$2, Calculations!$I435:$QJ435) -> 0 | P93: =SUMIF(Calculations!$I$8:$QJ$8, P$2, Calculations!$I435:$QJ435) -> 0 | Q93: =SUMIF(Calculations!$I$8:$QJ$8, Q$2, Calculations!$I435:$QJ435) -> 0 | R93: =SUMIF(Calculations!$I$8:$QJ$8, R$2, Calculations!$I435:$QJ435) -> 0 | S93: =SUMIF(Calculations!$I$8:$QJ$8, S$2, Calculations!$I435:$QJ435) -> 0 | T93: =SUMIF(Calculations!$I$8:$QJ$8, T$2, Calculations!$I435:$QJ435) -> 0 | U93: =SUMIF(Calculations!$I$8:$QJ$8, U$2, Calculations!$I435:$QJ435) -> 0 | V93: =SUMIF(Calculations!$I$8:$QJ$8, V$2, Calculations!$I435:$QJ435) -> 0 | W93: =SUMIF(Calculations!$I$8:$QJ$8, W$2, Calculations!$I435:$QJ435) -> 0 | X93: =SUMIF(Calculations!$I$8:$QJ$8, X$2, Calculations!$I435:$QJ435) -> 0 | Y93: =SUMIF(Calculations!$I$8:$QJ$8, Y$2, Calculations!$I435:$QJ435) -> 0 | Z93: =SUMIF(Calculations!$I$8:$QJ$8, Z$2, Calculations!$I435:$QJ435) -> 0 | AA93: =SUMIF(Calculations!$I$8:$QJ$8, AA$2, Calculations!$I435:$QJ435) -> 0 | AB93: =SUMIF(Calculations!$I$8:$QJ$8, AB$2, Calculations!$I435:$QJ435) -> 0 | AC93: =SUMIF(Calculations!$I$8:$QJ$8, AC$2, Calculations!$I435:$QJ435) -> 0 | AD93: =SUMIF(Calculations!$I$8:$QJ$8, AD$2, Calculations!$I435:$QJ435) -> 0 | AE93: =SUMIF(Calculations!$I$8:$QJ$8, AE$2, Calculations!$I435:$QJ435) -> 0 | AF93: =SUMIF(Calculations!$I$8:$QJ$8, AF$2, Calculations!$I435:$QJ435) -> 0 | AG93: =SUMIF(Calculations!$I$8:$QJ$8, AG$2, Calculations!$I435:$QJ435) -> 0 | AH93: =SUMIF(Calculations!$I$8:$QJ$8, AH$2, Calculations!$I435:$QJ435) -> 0 | AI93: =SUMIF(Calculations!$I$8:$QJ$8, AI$2, Calculations!$I435:$QJ435) -> 0
C94: =Calculations!C436 -> Principal Repayment of Subordinated Debt | D94: -3460912.674 | E94: -331587.3263 | F94: =Calculations!E436 -> EUR | H94: -3792500 | I94: =SUMIF(Calculations!$I$8:$QJ$8, I$2, Calculations!$I436:$QJ436) -> 0 | J94: =SUMIF(Calculations!$I$8:$QJ$8, J$2, Calculations!$I436:$QJ436) -> 0 | K94: =SUMIF(Calculations!$I$8:$QJ$8, K$2, Calculations!$I436:$QJ436) -> -46909.98357 | L94: =SUMIF(Calculations!$I$8:$QJ$8, L$2, Calculations!$I436:$QJ436) -> -70008.9884 | M94: =SUMIF(Calculations!$I$8:$QJ$8, M$2, Calculations!$I436:$QJ436) -> -78887.88046 | N94: =SUMIF(Calculations!$I$8:$QJ$8, N$2, Calculations!$I436:$QJ436) -> -88892.83828 | O94: =SUMIF(Calculations!$I$8:$QJ$8, O$2, Calculations!$I436:$QJ436) -> -100166.6752 | P94: =SUMIF(Calculations!$I$8:$QJ$8, P$2, Calculations!$I436:$QJ436) -> -112870.3168 | Q94: =SUMIF(Calculations!$I$8:$QJ$8, Q$2, Calculations!$I436:$QJ436) -> -127185.0981 | R94: =SUMIF(Calculations!$I$8:$QJ$8, R$2, Calculations!$I436:$QJ436) -> -143315.352 | S94: =SUMIF(Calculations!$I$8:$QJ$8, S$2, Calculations!$I436:$QJ436) -> -161491.3258 | T94: =SUMIF(Calculations!$I$8:$QJ$8, T$2, Calculations!$I436:$QJ436) -> -181972.4681 | U94: =SUMIF(Calculations!$I$8:$QJ$8, U$2, Calculations!$I436:$QJ436) -> -205051.1318 | V94: =SUMIF(Calculations!$I$8:$QJ$8, V$2, Calculations!$I436:$QJ436) -> -231056.7478 | W94: =SUMIF(Calculations!$I$8:$QJ$8, W$2, Calculations!$I436:$QJ436) -> -260360.5268 | X94: =SUMIF(Calculations!$I$8:$QJ$8, X$2, Calculations!$I436:$QJ436) -> -293380.7585 | Y94: =SUMIF(Calculations!$I$8:$QJ$8, Y$2, Calculations!$I436:$QJ436) -> -330588.782 | Z94: =SUMIF(Calculations!$I$8:$QJ$8, Z$2, Calculations!$I436:$QJ436) -> -372515.7143 | AA94: =SUMIF(Calculations!$I$8:$QJ$8, AA$2, Calculations!$I436:$QJ436) -> -419760.0309 | AB94: =SUMIF(Calculations!$I$8:$QJ$8, AB$2, Calculations!$I436:$QJ436) -> -472996.1095 | AC94: =SUMIF(Calculations!$I$8:$QJ$8, AC$2, Calculations!$I436:$QJ436) -> -532983.8554 | AD94: =SUMIF(Calculations!$I$8:$QJ$8, AD$2, Calculations!$I436:$QJ436) -> -600579.5489 | AE94: =SUMIF(Calculations!$I$8:$QJ$8, AE$2, Calculations!$I436:$QJ436) -> -676748.0683 | AF94: =SUMIF(Calculations!$I$8:$QJ$8, AF$2, Calculations!$I436:$QJ436) -> -762576.6624 | AG94: =SUMIF(Calculations!$I$8:$QJ$8, AG$2, Calculations!$I436:$QJ436) -> 2477798.863 | AH94: =SUMIF(Calculations!$I$8:$QJ$8, AH$2, Calculations!$I436:$QJ436) -> 0 | AI94: =SUMIF(Calculations!$I$8:$QJ$8, AI$2, Calculations!$I436:$QJ436) -> 0
C95: =Calculations!C437 -> Principal Repayment of Construction Loan | D95: 0 | E95: 0 | F95: =Calculations!E437 -> EUR | H95: 0 | I95: =SUMIF(Calculations!$I$8:$QJ$8, I$2, Calculations!$I437:$QJ437) -> 0 | J95: =SUMIF(Calculations!$I$8:$QJ$8, J$2, Calculations!$I437:$QJ437) -> 0 | K95: =SUMIF(Calculations!$I$8:$QJ$8, K$2, Calculations!$I437:$QJ437) -> 0 | L95: =SUMIF(Calculations!$I$8:$QJ$8, L$2, Calculations!$I437:$QJ437) -> 0 | M95: =SUMIF(Calculations!$I$8:$QJ$8, M$2, Calculations!$I437:$QJ437) -> 0 | N95: =SUMIF(Calculations!$I$8:$QJ$8, N$2, Calculations!$I437:$QJ437) -> 0 | O95: =SUMIF(Calculations!$I$8:$QJ$8, O$2, Calculations!$I437:$QJ437) -> 0 | P95: =SUMIF(Calculations!$I$8:$QJ$8, P$2, Calculations!$I437:$QJ437) -> 0 | Q95: =SUMIF(Calculations!$I$8:$QJ$8, Q$2, Calculations!$I437:$QJ437) -> 0 | R95: =SUMIF(Calculations!$I$8:$QJ$8, R$2, Calculations!$I437:$QJ437) -> 0 | S95: =SUMIF(Calculations!$I$8:$QJ$8, S$2, Calculations!$I437:$QJ437) -> 0 | T95: =SUMIF(Calculations!$I$8:$QJ$8, T$2, Calculations!$I437:$QJ437) -> 0 | U95: =SUMIF(Calculations!$I$8:$QJ$8, U$2, Calculations!$I437:$QJ437) -> 0 | V95: =SUMIF(Calculations!$I$8:$QJ$8, V$2, Calculations!$I437:$QJ437) -> 0 | W95: =SUMIF(Calculations!$I$8:$QJ$8, W$2, Calculations!$I437:$QJ437) -> 0 | X95: =SUMIF(Calculations!$I$8:$QJ$8, X$2, Calculations!$I437:$QJ437) -> 0 | Y95: =SUMIF(Calculations!$I$8:$QJ$8, Y$2, Calculations!$I437:$QJ437) -> 0 | Z95: =SUMIF(Calculations!$I$8:$QJ$8, Z$2, Calculations!$I437:$QJ437) -> 0 | AA95: =SUMIF(Calculations!$I$8:$QJ$8, AA$2, Calculations!$I437:$QJ437) -> 0 | AB95: =SUMIF(Calculations!$I$8:$QJ$8, AB$2, Calculations!$I437:$QJ437) -> 0 | AC95: =SUMIF(Calculations!$I$8:$QJ$8, AC$2, Calculations!$I437:$QJ437) -> 0 | AD95: =SUMIF(Calculations!$I$8:$QJ$8, AD$2, Calculations!$I437:$QJ437) -> 0 | AE95: =SUMIF(Calculations!$I$8:$QJ$8, AE$2, Calculations!$I437:$QJ437) -> 0 | AF95: =SUMIF(Calculations!$I$8:$QJ$8, AF$2, Calculations!$I437:$QJ437) -> 0 | AG95: =SUMIF(Calculations!$I$8:$QJ$8, AG$2, Calculations!$I437:$QJ437) -> 0 | AH95: =SUMIF(Calculations!$I$8:$QJ$8, AH$2, Calculations!$I437:$QJ437) -> 0 | AI95: =SUMIF(Calculations!$I$8:$QJ$8, AI$2, Calculations!$I437:$QJ437) -> 0
C96: =Calculations!C438 -> Principal Repayment of Operating Loan | D96: -7193703.953 | E96: -225914.0426 | F96: =Calculations!E438 -> EUR | H96: -7419617.995 | I96: =SUMIF(Calculations!$I$8:$QJ$8, I$2, Calculations!$I438:$QJ438) -> 0 | J96: =SUMIF(Calculations!$I$8:$QJ$8, J$2, Calculations!$I438:$QJ438) -> 0 | K96: =SUMIF(Calculations!$I$8:$QJ$8, K$2, Calculations!$I438:$QJ438) -> -160444.105 | L96: =SUMIF(Calculations!$I$8:$QJ$8, L$2, Calculations!$I438:$QJ438) -> -273095.4026 | M96: =SUMIF(Calculations!$I$8:$QJ$8, M$2, Calculations!$I438:$QJ438) -> -288500.13 | N96: =SUMIF(Calculations!$I$8:$QJ$8, N$2, Calculations!$I438:$QJ438) -> -304773.805 | O96: =SUMIF(Calculations!$I$8:$QJ$8, O$2, Calculations!$I438:$QJ438) -> -321965.4433 | P96: =SUMIF(Calculations!$I$8:$QJ$8, P$2, Calculations!$I438:$QJ438) -> -340126.825 | Q96: =SUMIF(Calculations!$I$8:$QJ$8, Q$2, Calculations!$I438:$QJ438) -> -359312.6515 | R96: =SUMIF(Calculations!$I$8:$QJ$8, R$2, Calculations!$I438:$QJ438) -> -379580.7094 | S96: =SUMIF(Calculations!$I$8:$QJ$8, S$2, Calculations!$I438:$QJ438) -> -400992.045 | T96: =SUMIF(Calculations!$I$8:$QJ$8, T$2, Calculations!$I438:$QJ438) -> -423611.1483 | U96: =SUMIF(Calculations!$I$8:$QJ$8, U$2, Calculations!$I438:$QJ438) -> -447506.1469 | V96: =SUMIF(Calculations!$I$8:$QJ$8, V$2, Calculations!$I438:$QJ438) -> -472749.0111 | W96: =SUMIF(Calculations!$I$8:$QJ$8, W$2, Calculations!$I438:$QJ438) -> -499415.7713 | X96: =SUMIF(Calculations!$I$8:$QJ$8, X$2, Calculations!$I438:$QJ438) -> -527586.7464 | Y96: =SUMIF(Calculations!$I$8:$QJ$8, Y$2, Calculations!$I438:$QJ438) -> -557346.786 | Z96: =SUMIF(Calculations!$I$8:$QJ$8, Z$2, Calculations!$I438:$QJ438) -> -588785.5256 | AA96: =SUMIF(Calculations!$I$8:$QJ$8, AA$2, Calculations!$I438:$QJ438) -> -621997.6574 | AB96: =SUMIF(Calculations!$I$8:$QJ$8, AB$2, Calculations!$I438:$QJ438) -> -451828.0852 | AC96: =SUMIF(Calculations!$I$8:$QJ$8, AC$2, Calculations!$I438:$QJ438) -> 0 | AD96: =SUMIF(Calculations!$I$8:$QJ$8, AD$2, Calculations!$I438:$QJ438) -> 0 | AE96: =SUMIF(Calculations!$I$8:$QJ$8, AE$2, Calculations!$I438:$QJ438) -> 0 | AF96: =SUMIF(Calculations!$I$8:$QJ$8, AF$2, Calculations!$I438:$QJ438) -> 0 | AG96: =SUMIF(Calculations!$I$8:$QJ$8, AG$2, Calculations!$I438:$QJ438) -> 0 | AH96: =SUMIF(Calculations!$I$8:$QJ$8, AH$2, Calculations!$I438:$QJ438) -> 0 | AI96: =SUMIF(Calculations!$I$8:$QJ$8, AI$2, Calculations!$I438:$QJ438) -> 0
C97: =Calculations!C439 -> Interest Payment on Senior Loan | D97: -4394453.707 | E97: -10321.73265 | F97: =Calculations!E439 -> EUR | H97: -4404775.44 | I97: =SUMIF(Calculations!$I$8:$QJ$8, I$2, Calculations!$I439:$QJ439) -> 0 | J97: =SUMIF(Calculations!$I$8:$QJ$8, J$2, Calculations!$I439:$QJ439) -> 0 | K97: =SUMIF(Calculations!$I$8:$QJ$8, K$2, Calculations!$I439:$QJ439) -> -347850.9047 | L97: =SUMIF(Calculations!$I$8:$QJ$8, L$2, Calculations!$I439:$QJ439) -> -404631.2771 | M97: =SUMIF(Calculations!$I$8:$QJ$8, M$2, Calculations!$I439:$QJ439) -> -389226.5497 | N97: =SUMIF(Calculations!$I$8:$QJ$8, N$2, Calculations!$I439:$QJ439) -> -372952.8747 | O97: =SUMIF(Calculations!$I$8:$QJ$8, O$2, Calculations!$I439:$QJ439) -> -355761.2364 | P97: =SUMIF(Calculations!$I$8:$QJ$8, P$2, Calculations!$I439:$QJ439) -> -337599.8546 | Q97: =SUMIF(Calculations!$I$8:$QJ$8, Q$2, Calculations!$I439:$QJ439) -> -318414.0282 | R97: =SUMIF(Calculations!$I$8:$QJ$8, R$2, Calculations!$I439:$QJ439) -> -298145.9703 | S97: =SUMIF(Calculations!$I$8:$QJ$8, S$2, Calculations!$I439:$QJ439) -> -276734.6346 | T97: =SUMIF(Calculations!$I$8:$QJ$8, T$2, Calculations!$I439:$QJ439) -> -254115.5313 | U97: =SUMIF(Calculations!$I$8:$QJ$8, U$2, Calculations!$I439:$QJ439) -> -230220.5328 | V97: =SUMIF(Calculations!$I$8:$QJ$8, V$2, Calculations!$I439:$QJ439) -> -204977.6686 | W97: =SUMIF(Calculations!$I$8:$QJ$8, W$2, Calculations!$I439:$QJ439) -> -178310.9084 | X97: =SUMIF(Calculations!$I$8:$QJ$8, X$2, Calculations!$I439:$QJ439) -> -150139.9333 | Y97: =SUMIF(Calculations!$I$8:$QJ$8, Y$2, Calculations!$I439:$QJ439) -> -120379.8937 | Z97: =SUMIF(Calculations!$I$8:$QJ$8, Z$2, Calculations!$I439:$QJ439) -> -88941.15404 | AA97: =SUMIF(Calculations!$I$8:$QJ$8, AA$2, Calculations!$I439:$QJ439) -> -55729.02231 | AB97: =SUMIF(Calculations!$I$8:$QJ$8, AB$2, Calculations!$I439:$QJ439) -> -20643.4653 | AC97: =SUMIF(Calculations!$I$8:$QJ$8, AC$2, Calculations!$I439:$QJ439) -> 0 | AD97: =SUMIF(Calculations!$I$8:$QJ$8, AD$2, Calculations!$I439:$QJ439) -> 0 | AE97: =SUMIF(Calculations!$I$8:$QJ$8, AE$2, Calculations!$I439:$QJ439) -> 0 | AF97: =SUMIF(Calculations!$I$8:$QJ$8, AF$2, Calculations!$I439:$QJ439) -> 0 | AG97: =SUMIF(Calculations!$I$8:$QJ$8, AG$2, Calculations!$I439:$QJ439) -> 0 | AH97: =SUMIF(Calculations!$I$8:$QJ$8, AH$2, Calculations!$I439:$QJ439) -> 0 | AI97: =SUMIF(Calculations!$I$8:$QJ$8, AI$2, Calculations!$I439:$QJ439) -> 0
C98: =Calculations!C440 -> Interest Payment on Subordinated Debt | D98: -5563068.511 | E98: 803800.3468 | F98: =Calculations!E440 -> EUR | H98: -4759268.164 | I98: =SUMIF(Calculations!$I$8:$QJ$8, I$2, Calculations!$I440:$QJ440) -> 0 | J98: =SUMIF(Calculations!$I$8:$QJ$8, J$2, Calculations!$I440:$QJ440) -> 0 | K98: =SUMIF(Calculations!$I$8:$QJ$8, K$2, Calculations!$I440:$QJ440) -> -382442.2608 | L98: =SUMIF(Calculations!$I$8:$QJ$8, L$2, Calculations!$I440:$QJ440) -> -450877.6141 | M98: =SUMIF(Calculations!$I$8:$QJ$8, M$2, Calculations!$I440:$QJ440) -> -441998.722 | N98: =SUMIF(Calculations!$I$8:$QJ$8, N$2, Calculations!$I440:$QJ440) -> -431993.7642 | O98: =SUMIF(Calculations!$I$8:$QJ$8, O$2, Calculations!$I440:$QJ440) -> -420719.9273 | P98: =SUMIF(Calculations!$I$8:$QJ$8, P$2, Calculations!$I440:$QJ440) -> -408016.2857 | Q98: =SUMIF(Calculations!$I$8:$QJ$8, Q$2, Calculations!$I440:$QJ440) -> -393701.5044 | R98: =SUMIF(Calculations!$I$8:$QJ$8, R$2, Calculations!$I440:$QJ440) -> -377571.2505 | S98: =SUMIF(Calculations!$I$8:$QJ$8, S$2, Calculations!$I440:$QJ440) -> -359395.2766 | T98: =SUMIF(Calculations!$I$8:$QJ$8, T$2, Calculations!$I440:$QJ440) -> -338914.1344 | U98: =SUMIF(Calculations!$I$8:$QJ$8, U$2, Calculations!$I440:$QJ440) -> -315835.4706 | V98: =SUMIF(Calculations!$I$8:$QJ$8, V$2, Calculations!$I440:$QJ440) -> -289829.8546 | W98: =SUMIF(Calculations!$I$8:$QJ$8, W$2, Calculations!$I440:$QJ440) -> -260526.0756 | X98: =SUMIF(Calculations!$I$8:$QJ$8, X$2, Calculations!$I440:$QJ440) -> -227505.844 | Y98: =SUMIF(Calculations!$I$8:$QJ$8, Y$2, Calculations!$I440:$QJ440) -> -190297.8204 | Z98: =SUMIF(Calculations!$I$8:$QJ$8, Z$2, Calculations!$I440:$QJ440) -> -148370.8882 | AA98: =SUMIF(Calculations!$I$8:$QJ$8, AA$2, Calculations!$I440:$QJ440) -> -101126.5715 | AB98: =SUMIF(Calculations!$I$8:$QJ$8, AB$2, Calculations!$I440:$QJ440) -> -47890.49293 | AC98: =SUMIF(Calculations!$I$8:$QJ$8, AC$2, Calculations!$I440:$QJ440) -> 12097.25291 | AD98: =SUMIF(Calculations!$I$8:$QJ$8, AD$2, Calculations!$I440:$QJ440) -> 79692.94643 | AE98: =SUMIF(Calculations!$I$8:$QJ$8, AE$2, Calculations!$I440:$QJ440) -> 155861.4658 | AF98: =SUMIF(Calculations!$I$8:$QJ$8, AF$2, Calculations!$I440:$QJ440) -> 241690.06 | AG98: =SUMIF(Calculations!$I$8:$QJ$8, AG$2, Calculations!$I440:$QJ440) -> 338403.8681 | AH98: =SUMIF(Calculations!$I$8:$QJ$8, AH$2, Calculations!$I440:$QJ440) -> 0 | AI98: =SUMIF(Calculations!$I$8:$QJ$8, AI$2, Calculations!$I440:$QJ440) -> 0
C99: =Calculations!C441 -> Dividends | D99: 0 | E99: 0 | F99: =Calculations!E441 -> EUR | H99: 0 | I99: =SUMIF(Calculations!$I$8:$QJ$8, I$2, Calculations!$I441:$QJ441) -> 0 | J99: =SUMIF(Calculations!$I$8:$QJ$8, J$2, Calculations!$I441:$QJ441) -> 0 | K99: =SUMIF(Calculations!$I$8:$QJ$8, K$2, Calculations!$I441:$QJ441) -> 0 | L99: =SUMIF(Calculations!$I$8:$QJ$8, L$2, Calculations!$I441:$QJ441) -> 0 | M99: =SUMIF(Calculations!$I$8:$QJ$8, M$2, Calculations!$I441:$QJ441) -> 0 | N99: =SUMIF(Calculations!$I$8:$QJ$8, N$2, Calculations!$I441:$QJ441) -> 0 | O99: =SUMIF(Calculations!$I$8:$QJ$8, O$2, Calculations!$I441:$QJ441) -> 0 | P99: =SUMIF(Calculations!$I$8:$QJ$8, P$2, Calculations!$I441:$QJ441) -> 0 | Q99: =SUMIF(Calculations!$I$8:$QJ$8, Q$2, Calculations!$I441:$QJ441) -> 0 | R99: =SUMIF(Calculations!$I$8:$QJ$8, R$2, Calculations!$I441:$QJ441) -> 0 | S99: =SUMIF(Calculations!$I$8:$QJ$8, S$2, Calculations!$I441:$QJ441) -> 0 | T99: =SUMIF(Calculations!$I$8:$QJ$8, T$2, Calculations!$I441:$QJ441) -> 0 | U99: =SUMIF(Calculations!$I$8:$QJ$8, U$2, Calculations!$I441:$QJ441) -> 0 | V99: =SUMIF(Calculations!$I$8:$QJ$8, V$2, Calculations!$I441:$QJ441) -> 0 | W99: =SUMIF(Calculations!$I$8:$QJ$8, W$2, Calculations!$I441:$QJ441) -> 0 | X99: =SUMIF(Calculations!$I$8:$QJ$8, X$2, Calculations!$I441:$QJ441) -> 0 | Y99: =SUMIF(Calculations!$I$8:$QJ$8, Y$2, Calculations!$I441:$QJ441) -> 0 | Z99: =SUMIF(Calculations!$I$8:$QJ$8, Z$2, Calculations!$I441:$QJ441) -> 0 | AA99: =SUMIF(Calculations!$I$8:$QJ$8, AA$2, Calculations!$I441:$QJ441) -> 0 | AB99: =SUMIF(Calculations!$I$8:$QJ$8, AB$2, Calculations!$I441:$QJ441) -> 0 | AC99: =SUMIF(Calculations!$I$8:$QJ$8, AC$2, Calculations!$I441:$QJ441) -> 0 | AD99: =SUMIF(Calculations!$I$8:$QJ$8, AD$2, Calculations!$I441:$QJ441) -> 0 | AE99: =SUMIF(Calculations!$I$8:$QJ$8, AE$2, Calculations!$I441:$QJ441) -> 0 | AF99: =SUMIF(Calculations!$I$8:$QJ$8, AF$2, Calculations!$I441:$QJ441) -> 0 | AG99: =SUMIF(Calculations!$I$8:$QJ$8, AG$2, Calculations!$I441:$QJ441) -> 0 | AH99: =SUMIF(Calculations!$I$8:$QJ$8, AH$2, Calculations!$I441:$QJ441) -> 0 | AI99: =SUMIF(Calculations!$I$8:$QJ$8, AI$2, Calculations!$I441:$QJ441) -> 0
C100: =Calculations!C442 -> Change in DSRA | D100: 0 | E100: 0 | F100: =Calculations!E442 -> EUR | H100: 0 | I100: =SUMIF(Calculations!$I$8:$QJ$8, I$2, Calculations!$I442:$QJ442) -> 0 | J100: =SUMIF(Calculations!$I$8:$QJ$8, J$2, Calculations!$I442:$QJ442) -> -169431.6699 | K100: =SUMIF(Calculations!$I$8:$QJ$8, K$2, Calculations!$I442:$QJ442) -> -169431.6699 | L100: =SUMIF(Calculations!$I$8:$QJ$8, L$2, Calculations!$I442:$QJ442) -> 0 | M100: =SUMIF(Calculations!$I$8:$QJ$8, M$2, Calculations!$I442:$QJ442) -> 0 | N100: =SUMIF(Calculations!$I$8:$QJ$8, N$2, Calculations!$I442:$QJ442) -> 0 | O100: =SUMIF(Calculations!$I$8:$QJ$8, O$2, Calculations!$I442:$QJ442) -> 0 | P100: =SUMIF(Calculations!$I$8:$QJ$8, P$2, Calculations!$I442:$QJ442) -> 0 | Q100: =SUMIF(Calculations!$I$8:$QJ$8, Q$2, Calculations!$I442:$QJ442) -> 0 | R100: =SUMIF(Calculations!$I$8:$QJ$8, R$2, Calculations!$I442:$QJ442) -> 0 | S100: =SUMIF(Calculations!$I$8:$QJ$8, S$2, Calculations!$I442:$QJ442) -> 0 | T100: =SUMIF(Calculations!$I$8:$QJ$8, T$2, Calculations!$I442:$QJ442) -> 0 | U100: =SUMIF(Calculations!$I$8:$QJ$8, U$2, Calculations!$I442:$QJ442) -> 0 | V100: =SUMIF(Calculations!$I$8:$QJ$8, V$2, Calculations!$I442:$QJ442) -> 0 | W100: =SUMIF(Calculations!$I$8:$QJ$8, W$2, Calculations!$I442:$QJ442) -> 0 | X100: =SUMIF(Calculations!$I$8:$QJ$8, X$2, Calculations!$I442:$QJ442) -> 0 | Y100: =SUMIF(Calculations!$I$8:$QJ$8, Y$2, Calculations!$I442:$QJ442) -> 0 | Z100: =SUMIF(Calculations!$I$8:$QJ$8, Z$2, Calculations!$I442:$QJ442) -> 0 | AA100: =SUMIF(Calculations!$I$8:$QJ$8, AA$2, Calculations!$I442:$QJ442) -> 0 | AB100: =SUMIF(Calculations!$I$8:$QJ$8, AB$2, Calculations!$I442:$QJ442) -> 338863.3398 | AC100: =SUMIF(Calculations!$I$8:$QJ$8, AC$2, Calculations!$I442:$QJ442) -> 0 | AD100: =SUMIF(Calculations!$I$8:$QJ$8, AD$2, Calculations!$I442:$QJ442) -> 0 | AE100: =SUMIF(Calculations!$I$8:$QJ$8, AE$2, Calculations!$I442:$QJ442) -> 0 | AF100: =SUMIF(Calculations!$I$8:$QJ$8, AF$2, Calculations!$I442:$QJ442) -> 0 | AG100: =SUMIF(Calculations!$I$8:$QJ$8, AG$2, Calculations!$I442:$QJ442) -> 0 | AH100: =SUMIF(Calculations!$I$8:$QJ$8, AH$2, Calculations!$I442:$QJ442) -> 0 | AI100: =SUMIF(Calculations!$I$8:$QJ$8, AI$2, Calculations!$I442:$QJ442) -> 0
C101: =Calculations!C443 -> Change in MMRA | D101: 0 | E101: 0 | F101: =Calculations!E443 -> EUR | H101: 0 | I101: =SUMIF(Calculations!$I$8:$QJ$8, I$2, Calculations!$I443:$QJ443) -> 0 | J101: =SUMIF(Calculations!$I$8:$QJ$8, J$2, Calculations!$I443:$QJ443) -> 0 | K101: =SUMIF(Calculations!$I$8:$QJ$8, K$2, Calculations!$I443:$QJ443) -> 0 | L101: =SUMIF(Calculations!$I$8:$QJ$8, L$2, Calculations!$I443:$QJ443) -> 0 | M101: =SUMIF(Calculations!$I$8:$QJ$8, M$2, Calculations!$I443:$QJ443) -> 0 | N101: =SUMIF(Calculations!$I$8:$QJ$8, N$2, Calculations!$I443:$QJ443) -> 0 | O101: =SUMIF(Calculations!$I$8:$QJ$8, O$2, Calculations!$I443:$QJ443) -> 0 | P101: =SUMIF(Calculations!$I$8:$QJ$8, P$2, Calculations!$I443:$QJ443) -> 0 | Q101: =SUMIF(Calculations!$I$8:$QJ$8, Q$2, Calculations!$I443:$QJ443) -> 0 | R101: =SUMIF(Calculations!$I$8:$QJ$8, R$2, Calculations!$I443:$QJ443) -> 0 | S101: =SUMIF(Calculations!$I$8:$QJ$8, S$2, Calculations!$I443:$QJ443) -> 0 | T101: =SUMIF(Calculations!$I$8:$QJ$8, T$2, Calculations!$I443:$QJ443) -> 0 | U101: =SUMIF(Calculations!$I$8:$QJ$8, U$2, Calculations!$I443:$QJ443) -> 0 | V101: =SUMIF(Calculations!$I$8:$QJ$8, V$2, Calculations!$I443:$QJ443) -> 0 | W101: =SUMIF(Calculations!$I$8:$QJ$8, W$2, Calculations!$I443:$QJ443) -> 0 | X101: =SUMIF(Calculations!$I$8:$QJ$8, X$2, Calculations!$I443:$QJ443) -> 0 | Y101: =SUMIF(Calculations!$I$8:$QJ$8, Y$2, Calculations!$I443:$QJ443) -> 0 | Z101: =SUMIF(Calculations!$I$8:$QJ$8, Z$2, Calculations!$I443:$QJ443) -> 0 | AA101: =SUMIF(Calculations!$I$8:$QJ$8, AA$2, Calculations!$I443:$QJ443) -> 0 | AB101: =SUMIF(Calculations!$I$8:$QJ$8, AB$2, Calculations!$I443:$QJ443) -> 0 | AC101: =SUMIF(Calculations!$I$8:$QJ$8, AC$2, Calculations!$I443:$QJ443) -> 0 | AD101: =SUMIF(Calculations!$I$8:$QJ$8, AD$2, Calculations!$I443:$QJ443) -> 0 | AE101: =SUMIF(Calculations!$I$8:$QJ$8, AE$2, Calculations!$I443:$QJ443) -> 0 | AF101: =SUMIF(Calculations!$I$8:$QJ$8, AF$2, Calculations!$I443:$QJ443) -> 0 | AG101: =SUMIF(Calculations!$I$8:$QJ$8, AG$2, Calculations!$I443:$QJ443) -> 0 | AH101: =SUMIF(Calculations!$I$8:$QJ$8, AH$2, Calculations!$I443:$QJ443) -> 0 | AI101: =SUMIF(Calculations!$I$8:$QJ$8, AI$2, Calculations!$I443:$QJ443) -> 0
C102: =Calculations!C444 -> Initial Funding of Working Capital | D102: 0 | E102: 0 | F102: =Calculations!E444 -> EUR | H102: 0 | I102: =SUMIF(Calculations!$I$8:$QJ$8, I$2, Calculations!$I444:$QJ444) -> 0 | J102: =SUMIF(Calculations!$I$8:$QJ$8, J$2, Calculations!$I444:$QJ444) -> 0 | K102: =SUMIF(Calculations!$I$8:$QJ$8, K$2, Calculations!$I444:$QJ444) -> 0 | L102: =SUMIF(Calculations!$I$8:$QJ$8, L$2, Calculations!$I444:$QJ444) -> 0 | M102: =SUMIF(Calculations!$I$8:$QJ$8, M$2, Calculations!$I444:$QJ444) -> 0 | N102: =SUMIF(Calculations!$I$8:$QJ$8, N$2, Calculations!$I444:$QJ444) -> 0 | O102: =SUMIF(Calculations!$I$8:$QJ$8, O$2, Calculations!$I444:$QJ444) -> 0 | P102: =SUMIF(Calculations!$I$8:$QJ$8, P$2, Calculations!$I444:$QJ444) -> 0 | Q102: =SUMIF(Calculations!$I$8:$QJ$8, Q$2, Calculations!$I444:$QJ444) -> 0 | R102: =SUMIF(Calculations!$I$8:$QJ$8, R$2, Calculations!$I444:$QJ444) -> 0 | S102: =SUMIF(Calculations!$I$8:$QJ$8, S$2, Calculations!$I444:$QJ444) -> 0 | T102: =SUMIF(Calculations!$I$8:$QJ$8, T$2, Calculations!$I444:$QJ444) -> 0 | U102: =SUMIF(Calculations!$I$8:$QJ$8, U$2, Calculations!$I444:$QJ444) -> 0 | V102: =SUMIF(Calculations!$I$8:$QJ$8, V$2, Calculations!$I444:$QJ444) -> 0 | W102: =SUMIF(Calculations!$I$8:$QJ$8, W$2, Calculations!$I444:$QJ444) -> 0 | X102: =SUMIF(Calculations!$I$8:$QJ$8, X$2, Calculations!$I444:$QJ444) -> 0 | Y102: =SUMIF(Calculations!$I$8:$QJ$8, Y$2, Calculations!$I444:$QJ444) -> 0 | Z102: =SUMIF(Calculations!$I$8:$QJ$8, Z$2, Calculations!$I444:$QJ444) -> 0 | AA102: =SUMIF(Calculations!$I$8:$QJ$8, AA$2, Calculations!$I444:$QJ444) -> 0 | AB102: =SUMIF(Calculations!$I$8:$QJ$8, AB$2, Calculations!$I444:$QJ444) -> 0 | AC102: =SUMIF(Calculations!$I$8:$QJ$8, AC$2, Calculations!$I444:$QJ444) -> 0 | AD102: =SUMIF(Calculations!$I$8:$QJ$8, AD$2, Calculations!$I444:$QJ444) -> 0 | AE102: =SUMIF(Calculations!$I$8:$QJ$8, AE$2, Calculations!$I444:$QJ444) -> 0 | AF102: =SUMIF(Calculations!$I$8:$QJ$8, AF$2, Calculations!$I444:$QJ444) -> 0 | AG102: =SUMIF(Calculations!$I$8:$QJ$8, AG$2, Calculations!$I444:$QJ444) -> 0 | AH102: =SUMIF(Calculations!$I$8:$QJ$8, AH$2, Calculations!$I444:$QJ444) -> 0 | AI102: =SUMIF(Calculations!$I$8:$QJ$8, AI$2, Calculations!$I444:$QJ444) -> 0
C103: =Calculations!C445 -> Interest on Reserve Accounts | D103: 0 | E103: 0 | F103: =Calculations!E445 -> EUR | H103: 0 | I103: =SUMIF(Calculations!$I$8:$QJ$8, I$2, Calculations!$I445:$QJ445) -> 0 | J103: =SUMIF(Calculations!$I$8:$QJ$8, J$2, Calculations!$I445:$QJ445) -> 0 | K103: =SUMIF(Calculations!$I$8:$QJ$8, K$2, Calculations!$I445:$QJ445) -> 0 | L103: =SUMIF(Calculations!$I$8:$QJ$8, L$2, Calculations!$I445:$QJ445) -> 0 | M103: =SUMIF(Calculations!$I$8:$QJ$8, M$2, Calculations!$I445:$QJ445) -> 0 | N103: =SUMIF(Calculations!$I$8:$QJ$8, N$2, Calculations!$I445:$QJ445) -> 0 | O103: =SUMIF(Calculations!$I$8:$QJ$8, O$2, Calculations!$I445:$QJ445) -> 0 | P103: =SUMIF(Calculations!$I$8:$QJ$8, P$2, Calculations!$I445:$QJ445) -> 0 | Q103: =SUMIF(Calculations!$I$8:$QJ$8, Q$2, Calculations!$I445:$QJ445) -> 0 | R103: =SUMIF(Calculations!$I$8:$QJ$8, R$2, Calculations!$I445:$QJ445) -> 0 | S103: =SUMIF(Calculations!$I$8:$QJ$8, S$2, Calculations!$I445:$QJ445) -> 0 | T103: =SUMIF(Calculations!$I$8:$QJ$8, T$2, Calculations!$I445:$QJ445) -> 0 | U103: =SUMIF(Calculations!$I$8:$QJ$8, U$2, Calculations!$I445:$QJ445) -> 0 | V103: =SUMIF(Calculations!$I$8:$QJ$8, V$2, Calculations!$I445:$QJ445) -> 0 | W103: =SUMIF(Calculations!$I$8:$QJ$8, W$2, Calculations!$I445:$QJ445) -> 0 | X103: =SUMIF(Calculations!$I$8:$QJ$8, X$2, Calculations!$I445:$QJ445) -> 0 | Y103: =SUMIF(Calculations!$I$8:$QJ$8, Y$2, Calculations!$I445:$QJ445) -> 0 | Z103: =SUMIF(Calculations!$I$8:$QJ$8, Z$2, Calculations!$I445:$QJ445) -> 0 | AA103: =SUMIF(Calculations!$I$8:$QJ$8, AA$2, Calculations!$I445:$QJ445) -> 0 | AB103: =SUMIF(Calculations!$I$8:$QJ$8, AB$2, Calculations!$I445:$QJ445) -> 0 | AC103: =SUMIF(Calculations!$I$8:$QJ$8, AC$2, Calculations!$I445:$QJ445) -> 0 | AD103: =SUMIF(Calculations!$I$8:$QJ$8, AD$2, Calculations!$I445:$QJ445) -> 0 | AE103: =SUMIF(Calculations!$I$8:$QJ$8, AE$2, Calculations!$I445:$QJ445) -> 0 | AF103: =SUMIF(Calculations!$I$8:$QJ$8, AF$2, Calculations!$I445:$QJ445) -> 0 | AG103: =SUMIF(Calculations!$I$8:$QJ$8, AG$2, Calculations!$I445:$QJ445) -> 0 | AH103: =SUMIF(Calculations!$I$8:$QJ$8, AH$2, Calculations!$I445:$QJ445) -> 0 | AI103: =SUMIF(Calculations!$I$8:$QJ$8, AI$2, Calculations!$I445:$QJ445) -> 0
C104: =Calculations!C446 -> Cash Flows From Financing Activities | D104: -20612138.84 | E104: 15405977.25 | F104: =Calculations!E446 -> EUR | H104: -5206161.6 | I104: =SUM(I90:I103) -> 7603750 | J104: 7396818.33 | K104: -1107078.924 | L104: -1198613.282 | M104: -1198613.282 | N104: -1198613.282 | O104: -1198613.282 | P104: -1198613.282 | Q104: -1198613.282 | R104: -1198613.282 | S104: -1198613.282 | T104: -1198613.282 | U104: -1198613.282 | V104: -1198613.282 | W104: -1198613.282 | X104: -1198613.282 | Y104: -1198613.282 | Z104: -1198613.282 | AA104: -1198613.282 | AB104: -654494.8131 | AC104: -520886.6025 | AD104: -520886.6025 | AE104: -520886.6025 | AF104: -520886.6025 | AG104: 2816202.732 | AH104: 0 | AI104: 0
D105: 0 | E105: 0
B106: Net Movements In Cash | D106: 2322135.364 | E106: 4741909.67 | F106: =Calculations!E448 -> EUR | H106: =SUM(I106:AT106) -> 7064045.034 | I106: =I83+I87+I104 -> 77990.10493 | J106: 394357.0874 | K106: 106220.2503 | L106: 209393.4379 | M106: 204677.5553 | N106: 197963.6132 | O106: 188033.3238 | P106: 178878.0187 | Q106: 164648.35 | R106: 150356.5528 | S106: 135938.1266 | T106: 121789.0534 | U106: 107165.9514 | V106: 91614.40332 | W106: 74748.79904 | X106: 58193.37612 | Y106: 40993.66575 | Z106: 23658.55145 | AA106: 5610.071461 | AB106: 524504.527 | AC106: -1763647.929 | AD106: 461511.2277 | AE106: 431692.2812 | AF106: 400841.8388 | AG106: 3705081.691 | AH106: 929208.8592 | AI106: -157377.7541
D107: =SUM(K107:AB107) -> 0
B108: Cash Position
C109: =Calculations!C451 -> Beginning of Period | F109: =Calculations!E451 -> EUR | I109: =H110 -> 0 | J109: =I110 -> 77990.10493 | K109: 472347.1923 | L109: 578567.4427 | M109: 787960.8805 | N109: =M110 -> 992638.4358 | O109: 1190602.049 | P109: 1378635.373 | Q109: 1557513.392 | R109: 1722161.742 | S109: 1872518.294 | T109: 2008456.421 | U109: 2130245.474 | V109: 2237411.426 | W109: 2329025.829 | X109: 2403774.628 | Y109: 2461968.004 | Z109: 2502961.67 | AA109: 2526620.221 | AB109: 2532230.293 | AC109: 3056734.82 | AD109: 1293086.891 | AE109: 1754598.118 | AF109: 2186290.4 | AG109: =AF110 -> 2587132.238 | AH109: 6292213.929 | AI109: 7221422.788
C110: =Calculations!C452 -> End of Period | F110: =Calculations!E452 -> EUR | H110: 0 | I110: =I106+I109 -> 77990.10493 | J110: =J106+J109 -> 472347.1923 | K110: 578567.4427 | L110: 787960.8805 | M110: 992638.4358 | N110: 1190602.049 | O110: 1378635.373 | P110: 1557513.392 | Q110: 1722161.742 | R110: 1872518.294 | S110: 2008456.421 | T110: 2130245.474 | U110: 2237411.426 | V110: 2329025.829 | W110: 2403774.628 | X110: 2461968.004 | Y110: 2502961.67 | Z110: 2526620.221 | AA110: 2532230.293 | AB110: 3056734.82 | AC110: 1293086.891 | AD110: 1754598.118 | AE110: 2186290.4 | AF110: 2587132.238 | AG110: =AG106+AG109 -> 6292213.929 | AH110: 7221422.788 | AI110: 7064045.034
A112: · | B112: Cash Waterfall | F112: Unit
C114: =Calculations!C459 -> Drawdown of Equity | F114: =Calculations!E459 -> EUR | H114: =SUM(I114:AT114) -> 3792500 | I114: =SUMIF(Calculations!$I$8:$QJ$8, I$2, Calculations!$I459:$QJ459) -> 3792500 | J114: =SUMIF(Calculations!$I$8:$QJ$8, J$2, Calculations!$I459:$QJ459) -> 0 | K114: =SUMIF(Calculations!$I$8:$QJ$8, K$2, Calculations!$I459:$QJ459) -> 0 | L114: =SUMIF(Calculations!$I$8:$QJ$8, L$2, Calculations!$I459:$QJ459) -> 0 | M114: =SUMIF(Calculations!$I$8:$QJ$8, M$2, Calculations!$I459:$QJ459) -> 0 | N114: =SUMIF(Calculations!$I$8:$QJ$8, N$2, Calculations!$I459:$QJ459) -> 0 | O114: =SUMIF(Calculations!$I$8:$QJ$8, O$2, Calculations!$I459:$QJ459) -> 0 | P114: =SUMIF(Calculations!$I$8:$QJ$8, P$2, Calculations!$I459:$QJ459) -> 0 | Q114: =SUMIF(Calculations!$I$8:$QJ$8, Q$2, Calculations!$I459:$QJ459) -> 0 | R114: =SUMIF(Calculations!$I$8:$QJ$8, R$2, Calculations!$I459:$QJ459) -> 0 | S114: =SUMIF(Calculations!$I$8:$QJ$8, S$2, Calculations!$I459:$QJ459) -> 0 | T114: =SUMIF(Calculations!$I$8:$QJ$8, T$2, Calculations!$I459:$QJ459) -> 0 | U114: =SUMIF(Calculations!$I$8:$QJ$8, U$2, Calculations!$I459:$QJ459) -> 0 | V114: =SUMIF(Calculations!$I$8:$QJ$8, V$2, Calculations!$I459:$QJ459) -> 0 | W114: =SUMIF(Calculations!$I$8:$QJ$8, W$2, Calculations!$I459:$QJ459) -> 0 | X114: =SUMIF(Calculations!$I$8:$QJ$8, X$2, Calculations!$I459:$QJ459) -> 0 | Y114: =SUMIF(Calculations!$I$8:$QJ$8, Y$2, Calculations!$I459:$QJ459) -> 0 | Z114: =SUMIF(Calculations!$I$8:$QJ$8, Z$2, Calculations!$I459:$QJ459) -> 0 | AA114: =SUMIF(Calculations!$I$8:$QJ$8, AA$2, Calculations!$I459:$QJ459) -> 0 | AB114: =SUMIF(Calculations!$I$8:$QJ$8, AB$2, Calculations!$I459:$QJ459) -> 0 | AC114: =SUMIF(Calculations!$I$8:$QJ$8, AC$2, Calculations!$I459:$QJ459) -> 0 | AD114: =SUMIF(Calculations!$I$8:$QJ$8, AD$2, Calculations!$I459:$QJ459) -> 0 | AE114: =SUMIF(Calculations!$I$8:$QJ$8, AE$2, Calculations!$I459:$QJ459) -> 0 | AF114: =SUMIF(Calculations!$I$8:$QJ$8, AF$2, Calculations!$I459:$QJ459) -> 0 | AG114: =SUMIF(Calculations!$I$8:$QJ$8, AG$2, Calculations!$I459:$QJ459) -> 0 | AH114: =SUMIF(Calculations!$I$8:$QJ$8, AH$2, Calculations!$I459:$QJ459) -> 0 | AI114: =SUMIF(Calculations!$I$8:$QJ$8, AI$2, Calculations!$I459:$QJ459) -> 0
C115: =Calculations!C460 -> Interest on Reserve Accounts | F115: =Calculations!E460 -> EUR | H115: 0 | I115: =SUMIF(Calculations!$I$8:$QJ$8, I$2, Calculations!$I460:$QJ460) -> 0 | J115: =SUMIF(Calculations!$I$8:$QJ$8, J$2, Calculations!$I460:$QJ460) -> 0 | K115: =SUMIF(Calculations!$I$8:$QJ$8, K$2, Calculations!$I460:$QJ460) -> 0 | L115: =SUMIF(Calculations!$I$8:$QJ$8, L$2, Calculations!$I460:$QJ460) -> 0 | M115: =SUMIF(Calculations!$I$8:$QJ$8, M$2, Calculations!$I460:$QJ460) -> 0 | N115: =SUMIF(Calculations!$I$8:$QJ$8, N$2, Calculations!$I460:$QJ460) -> 0 | O115: =SUMIF(Calculations!$I$8:$QJ$8, O$2, Calculations!$I460:$QJ460) -> 0 | P115: =SUMIF(Calculations!$I$8:$QJ$8, P$2, Calculations!$I460:$QJ460) -> 0 | Q115: =SUMIF(Calculations!$I$8:$QJ$8, Q$2, Calculations!$I460:$QJ460) -> 0 | R115: =SUMIF(Calculations!$I$8:$QJ$8, R$2, Calculations!$I460:$QJ460) -> 0 | S115: =SUMIF(Calculations!$I$8:$QJ$8, S$2, Calculations!$I460:$QJ460) -> 0 | T115: =SUMIF(Calculations!$I$8:$QJ$8, T$2, Calculations!$I460:$QJ460) -> 0 | U115: =SUMIF(Calculations!$I$8:$QJ$8, U$2, Calculations!$I460:$QJ460) -> 0 | V115: =SUMIF(Calculations!$I$8:$QJ$8, V$2, Calculations!$I460:$QJ460) -> 0 | W115: =SUMIF(Calculations!$I$8:$QJ$8, W$2, Calculations!$I460:$QJ460) -> 0 | X115: =SUMIF(Calculations!$I$8:$QJ$8, X$2, Calculations!$I460:$QJ460) -> 0 | Y115: =SUMIF(Calculations!$I$8:$QJ$8, Y$2, Calculations!$I460:$QJ460) -> 0 | Z115: =SUMIF(Calculations!$I$8:$QJ$8, Z$2, Calculations!$I460:$QJ460) -> 0 | AA115: =SUMIF(Calculations!$I$8:$QJ$8, AA$2, Calculations!$I460:$QJ460) -> 0 | AB115: =SUMIF(Calculations!$I$8:$QJ$8, AB$2, Calculations!$I460:$QJ460) -> 0 | AC115: =SUMIF(Calculations!$I$8:$QJ$8, AC$2, Calculations!$I460:$QJ460) -> 0 | AD115: =SUMIF(Calculations!$I$8:$QJ$8, AD$2, Calculations!$I460:$QJ460) -> 0 | AE115: =SUMIF(Calculations!$I$8:$QJ$8, AE$2, Calculations!$I460:$QJ460) -> 0 | AF115: =SUMIF(Calculations!$I$8:$QJ$8, AF$2, Calculations!$I460:$QJ460) -> 0 | AG115: =SUMIF(Calculations!$I$8:$QJ$8, AG$2, Calculations!$I460:$QJ460) -> 0 | AH115: =SUMIF(Calculations!$I$8:$QJ$8, AH$2, Calculations!$I460:$QJ460) -> 0 | AI115: =SUMIF(Calculations!$I$8:$QJ$8, AI$2, Calculations!$I460:$QJ460) -> 0
C116: =Calculations!C461 -> Cash Flow Available for Debt Service | F116: =Calculations!E461 -> EUR | H116: 32991625.12 | I116: =SUMIF(Calculations!$I$8:$QJ$8, I$2, Calculations!$I461:$QJ461) -> 3669156.573 | J116: =SUMIF(Calculations!$I$8:$QJ$8, J$2, Calculations!$I461:$QJ461) -> 123343.4274 | K116: =SUMIF(Calculations!$I$8:$QJ$8, K$2, Calculations!$I461:$QJ461) -> 1213299.174 | L116: =SUMIF(Calculations!$I$8:$QJ$8, L$2, Calculations!$I461:$QJ461) -> 1408006.72 | M116: =SUMIF(Calculations!$I$8:$QJ$8, M$2, Calculations!$I461:$QJ461) -> 1403290.837 | N116: =SUMIF(Calculations!$I$8:$QJ$8, N$2, Calculations!$I461:$QJ461) -> 1396576.895 | O116: =SUMIF(Calculations!$I$8:$QJ$8, O$2, Calculations!$I461:$QJ461) -> 1386646.606 | P116: =SUMIF(Calculations!$I$8:$QJ$8, P$2, Calculations!$I461:$QJ461) -> 1377491.301 | Q116: =SUMIF(Calculations!$I$8:$QJ$8, Q$2, Calculations!$I461:$QJ461) -> 1363261.632 | R116: =SUMIF(Calculations!$I$8:$QJ$8, R$2, Calculations!$I461:$QJ461) -> 1348969.835 | S116: =SUMIF(Calculations!$I$8:$QJ$8, S$2, Calculations!$I461:$QJ461) -> 1334551.409 | T116: =SUMIF(Calculations!$I$8:$QJ$8, T$2, Calculations!$I461:$QJ461) -> 1320402.336 | U116: =SUMIF(Calculations!$I$8:$QJ$8, U$2, Calculations!$I461:$QJ461) -> 1305779.234 | V116: =SUMIF(Calculations!$I$8:$QJ$8, V$2, Calculations!$I461:$QJ461) -> 1290227.685 | W116: =SUMIF(Calculations!$I$8:$QJ$8, W$2, Calculations!$I461:$QJ461) -> 1273362.081 | X116: =SUMIF(Calculations!$I$8:$QJ$8, X$2, Calculations!$I461:$QJ461) -> 1256806.658 | Y116: =SUMIF(Calculations!$I$8:$QJ$8, Y$2, Calculations!$I461:$QJ461) -> 1239606.948 | Z116: =SUMIF(Calculations!$I$8:$QJ$8, Z$2, Calculations!$I461:$QJ461) -> 1222271.834 | AA116: =SUMIF(Calculations!$I$8:$QJ$8, AA$2, Calculations!$I461:$QJ461) -> 1204223.354 | AB116: =SUMIF(Calculations!$I$8:$QJ$8, AB$2, Calculations!$I461:$QJ461) -> 1186777.3 | AC116: =SUMIF(Calculations!$I$8:$QJ$8, AC$2, Calculations!$I461:$QJ461) -> 1150158.058 | AD116: =SUMIF(Calculations!$I$8:$QJ$8, AD$2, Calculations!$I461:$QJ461) -> 982397.8301 | AE116: =SUMIF(Calculations!$I$8:$QJ$8, AE$2, Calculations!$I461:$QJ461) -> 952578.8836 | AF116: =SUMIF(Calculations!$I$8:$QJ$8, AF$2, Calculations!$I461:$QJ461) -> 921728.4412 | AG116: =SUMIF(Calculations!$I$8:$QJ$8, AG$2, Calculations!$I461:$QJ461) -> 888878.9593 | AH116: =SUMIF(Calculations!$I$8:$QJ$8, AH$2, Calculations!$I461:$QJ461) -> 929208.8592 | AI116: =SUMIF(Calculations!$I$8:$QJ$8, AI$2, Calculations!$I461:$QJ461) -> -157377.7541
C117: =Calculations!C462 -> less: Senior Debt Interest Expense | F117: =Calculations!E462 -> EUR | H117: -4404775.44 | I117: =SUMIF(Calculations!$I$8:$QJ$8, I$2, Calculations!$I462:$QJ462) -> 0 | J117: =SUMIF(Calculations!$I$8:$QJ$8, J$2, Calculations!$I462:$QJ462) -> 0 | K117: =SUMIF(Calculations!$I$8:$QJ$8, K$2, Calculations!$I462:$QJ462) -> -347850.9047 | L117: =SUMIF(Calculations!$I$8:$QJ$8, L$2, Calculations!$I462:$QJ462) -> -404631.2771 | M117: =SUMIF(Calculations!$I$8:$QJ$8, M$2, Calculations!$I462:$QJ462) -> -389226.5497 | N117: =SUMIF(Calculations!$I$8:$QJ$8, N$2, Calculations!$I462:$QJ462) -> -372952.8747 | O117: =SUMIF(Calculations!$I$8:$QJ$8, O$2, Calculations!$I462:$QJ462) -> -355761.2364 | P117: =SUMIF(Calculations!$I$8:$QJ$8, P$2, Calculations!$I462:$QJ462) -> -337599.8546 | Q117: =SUMIF(Calculations!$I$8:$QJ$8, Q$2, Calculations!$I462:$QJ462) -> -318414.0282 | R117: =SUMIF(Calculations!$I$8:$QJ$8, R$2, Calculations!$I462:$QJ462) -> -298145.9703 | S117: =SUMIF(Calculations!$I$8:$QJ$8, S$2, Calculations!$I462:$QJ462) -> -276734.6346 | T117: =SUMIF(Calculations!$I$8:$QJ$8, T$2, Calculations!$I462:$QJ462) -> -254115.5313 | U117: =SUMIF(Calculations!$I$8:$QJ$8, U$2, Calculations!$I462:$QJ462) -> -230220.5328 | V117: =SUMIF(Calculations!$I$8:$QJ$8, V$2, Calculations!$I462:$QJ462) -> -204977.6686 | W117: =SUMIF(Calculations!$I$8:$QJ$8, W$2, Calculations!$I462:$QJ462) -> -178310.9084 | X117: =SUMIF(Calculations!$I$8:$QJ$8, X$2, Calculations!$I462:$QJ462) -> -150139.9333 | Y117: =SUMIF(Calculations!$I$8:$QJ$8, Y$2, Calculations!$I462:$QJ462) -> -120379.8937 | Z117: =SUMIF(Calculations!$I$8:$QJ$8, Z$2, Calculations!$I462:$QJ462) -> -88941.15404 | AA117: =SUMIF(Calculations!$I$8:$QJ$8, AA$2, Calculations!$I462:$QJ462) -> -55729.02231 | AB117: =SUMIF(Calculations!$I$8:$QJ$8, AB$2, Calculations!$I462:$QJ462) -> -20643.4653 | AC117: =SUMIF(Calculations!$I$8:$QJ$8, AC$2, Calculations!$I462:$QJ462) -> 0 | AD117: =SUMIF(Calculations!$I$8:$QJ$8, AD$2, Calculations!$I462:$QJ462) -> 0 | AE117: =SUMIF(Calculations!$I$8:$QJ$8, AE$2, Calculations!$I462:$QJ462) -> 0 | AF117: =SUMIF(Calculations!$I$8:$QJ$8, AF$2, Calculations!$I462:$QJ462) -> 0 | AG117: =SUMIF(Calculations!$I$8:$QJ$8, AG$2, Calculations!$I462:$QJ462) -> 0 | AH117: =SUMIF(Calculations!$I$8:$QJ$8, AH$2, Calculations!$I462:$QJ462) -> 0 | AI117: =SUMIF(Calculations!$I$8:$QJ$8, AI$2, Calculations!$I462:$QJ462) -> 0
C118: =Calculations!C463 -> add: Drawdown on Senior Debt | F118: =Calculations!E463 -> EUR | H118: 7585000 | I118: =SUMIF(Calculations!$I$8:$QJ$8, I$2, Calculations!$I463:$QJ463) -> 1915000 | J118: =SUMIF(Calculations!$I$8:$QJ$8, J$2, Calculations!$I463:$QJ463) -> 5670000 | K118: =SUMIF(Calculations!$I$8:$QJ$8, K$2, Calculations!$I463:$QJ463) -> 0 | L118: =SUMIF(Calculations!$I$8:$QJ$8, L$2, Calculations!$I463:$QJ463) -> 0 | M118: =SUMIF(Calculations!$I$8:$QJ$8, M$2, Calculations!$I463:$QJ463) -> 0 | N118: =SUMIF(Calculations!$I$8:$QJ$8, N$2, Calculations!$I463:$QJ463) -> 0 | O118: =SUMIF(Calculations!$I$8:$QJ$8, O$2, Calculations!$I463:$QJ463) -> 0 | P118: =SUMIF(Calculations!$I$8:$QJ$8, P$2, Calculations!$I463:$QJ463) -> 0 | Q118: =SUMIF(Calculations!$I$8:$QJ$8, Q$2, Calculations!$I463:$QJ463) -> 0 | R118: =SUMIF(Calculations!$I$8:$QJ$8, R$2, Calculations!$I463:$QJ463) -> 0 | S118: =SUMIF(Calculations!$I$8:$QJ$8, S$2, Calculations!$I463:$QJ463) -> 0 | T118: =SUMIF(Calculations!$I$8:$QJ$8, T$2, Calculations!$I463:$QJ463) -> 0 | U118: =SUMIF(Calculations!$I$8:$QJ$8, U$2, Calculations!$I463:$QJ463) -> 0 | V118: =SUMIF(Calculations!$I$8:$QJ$8, V$2, Calculations!$I463:$QJ463) -> 0 | W118: =SUMIF(Calculations!$I$8:$QJ$8, W$2, Calculations!$I463:$QJ463) -> 0 | X118: =SUMIF(Calculations!$I$8:$QJ$8, X$2, Calculations!$I463:$QJ463) -> 0 | Y118: =SUMIF(Calculations!$I$8:$QJ$8, Y$2, Calculations!$I463:$QJ463) -> 0 | Z118: =SUMIF(Calculations!$I$8:$QJ$8, Z$2, Calculations!$I463:$QJ463) -> 0 | AA118: =SUMIF(Calculations!$I$8:$QJ$8, AA$2, Calculations!$I463:$QJ463) -> 0 | AB118: =SUMIF(Calculations!$I$8:$QJ$8, AB$2, Calculations!$I463:$QJ463) -> 0 | AC118: =SUMIF(Calculations!$I$8:$QJ$8, AC$2, Calculations!$I463:$QJ463) -> 0 | AD118: =SUMIF(Calculations!$I$8:$QJ$8, AD$2, Calculations!$I463:$QJ463) -> 0 | AE118: =SUMIF(Calculations!$I$8:$QJ$8, AE$2, Calculations!$I463:$QJ463) -> 0 | AF118: =SUMIF(Calculations!$I$8:$QJ$8, AF$2, Calculations!$I463:$QJ463) -> 0 | AG118: =SUMIF(Calculations!$I$8:$QJ$8, AG$2, Calculations!$I463:$QJ463) -> 0 | AH118: =SUMIF(Calculations!$I$8:$QJ$8, AH$2, Calculations!$I463:$QJ463) -> 0 | AI118: =SUMIF(Calculations!$I$8:$QJ$8, AI$2, Calculations!$I463:$QJ463) -> 0
C119: =Calculations!C464 -> less: Senior Debt Principal Repayment | F119: =Calculations!E464 -> EUR | H119: -7419617.995 | I119: =SUMIF(Calculations!$I$8:$QJ$8, I$2, Calculations!$I464:$QJ464) -> 0 | J119: =SUMIF(Calculations!$I$8:$QJ$8, J$2, Calculations!$I464:$QJ464) -> 0 | K119: =SUMIF(Calculations!$I$8:$QJ$8, K$2, Calculations!$I464:$QJ464) -> -160444.105 | L119: =SUMIF(Calculations!$I$8:$QJ$8, L$2, Calculations!$I464:$QJ464) -> -273095.4026 | M119: =SUMIF(Calculations!$I$8:$QJ$8, M$2, Calculations!$I464:$QJ464) -> -288500.13 | N119: =SUMIF(Calculations!$I$8:$QJ$8, N$2, Calculations!$I464:$QJ464) -> -304773.805 | O119: =SUMIF(Calculations!$I$8:$QJ$8, O$2, Calculations!$I464:$QJ464) -> -321965.4433 | P119: =SUMIF(Calculations!$I$8:$QJ$8, P$2, Calculations!$I464:$QJ464) -> -340126.825 | Q119: =SUMIF(Calculations!$I$8:$QJ$8, Q$2, Calculations!$I464:$QJ464) -> -359312.6515 | R119: =SUMIF(Calculations!$I$8:$QJ$8, R$2, Calculations!$I464:$QJ464) -> -379580.7094 | S119: =SUMIF(Calculations!$I$8:$QJ$8, S$2, Calculations!$I464:$QJ464) -> -400992.045 | T119: =SUMIF(Calculations!$I$8:$QJ$8, T$2, Calculations!$I464:$QJ464) -> -423611.1483 | U119: =SUMIF(Calculations!$I$8:$QJ$8, U$2, Calculations!$I464:$QJ464) -> -447506.1469 | V119: =SUMIF(Calculations!$I$8:$QJ$8, V$2, Calculations!$I464:$QJ464) -> -472749.0111 | W119: =SUMIF(Calculations!$I$8:$QJ$8, W$2, Calculations!$I464:$QJ464) -> -499415.7713 | X119: =SUMIF(Calculations!$I$8:$QJ$8, X$2, Calculations!$I464:$QJ464) -> -527586.7464 | Y119: =SUMIF(Calculations!$I$8:$QJ$8, Y$2, Calculations!$I464:$QJ464) -> -557346.786 | Z119: =SUMIF(Calculations!$I$8:$QJ$8, Z$2, Calculations!$I464:$QJ464) -> -588785.5256 | AA119: =SUMIF(Calculations!$I$8:$QJ$8, AA$2, Calculations!$I464:$QJ464) -> -621997.6574 | AB119: =SUMIF(Calculations!$I$8:$QJ$8, AB$2, Calculations!$I464:$QJ464) -> -451828.0852 | AC119: =SUMIF(Calculations!$I$8:$QJ$8, AC$2, Calculations!$I464:$QJ464) -> 0 | AD119: =SUMIF(Calculations!$I$8:$QJ$8, AD$2, Calculations!$I464:$QJ464) -> 0 | AE119: =SUMIF(Calculations!$I$8:$QJ$8, AE$2, Calculations!$I464:$QJ464) -> 0 | AF119: =SUMIF(Calculations!$I$8:$QJ$8, AF$2, Calculations!$I464:$QJ464) -> 0 | AG119: =SUMIF(Calculations!$I$8:$QJ$8, AG$2, Calculations!$I464:$QJ464) -> 0 | AH119: =SUMIF(Calculations!$I$8:$QJ$8, AH$2, Calculations!$I464:$QJ464) -> 0 | AI119: =SUMIF(Calculations!$I$8:$QJ$8, AI$2, Calculations!$I464:$QJ464) -> 0
C120: =Calculations!C465 -> Cash Flow Available for Reserve Accounts | F120: =Calculations!E465 -> EUR | H120: 28752231.68 | I120: =SUMIF(Calculations!$I$8:$QJ$8, I$2, Calculations!$I465:$QJ465) -> 5584156.573 | J120: =SUMIF(Calculations!$I$8:$QJ$8, J$2, Calculations!$I465:$QJ465) -> 5793343.427 | K120: =SUMIF(Calculations!$I$8:$QJ$8, K$2, Calculations!$I465:$QJ465) -> 705004.1646 | L120: =SUMIF(Calculations!$I$8:$QJ$8, L$2, Calculations!$I465:$QJ465) -> 730280.0403 | M120: =SUMIF(Calculations!$I$8:$QJ$8, M$2, Calculations!$I465:$QJ465) -> 725564.1578 | N120: =SUMIF(Calculations!$I$8:$QJ$8, N$2, Calculations!$I465:$QJ465) -> 718850.2157 | O120: =SUMIF(Calculations!$I$8:$QJ$8, O$2, Calculations!$I465:$QJ465) -> 708919.9263 | P120: =SUMIF(Calculations!$I$8:$QJ$8, P$2, Calculations!$I465:$QJ465) -> 699764.6212 | Q120: =SUMIF(Calculations!$I$8:$QJ$8, Q$2, Calculations!$I465:$QJ465) -> 685534.9524 | R120: =SUMIF(Calculations!$I$8:$QJ$8, R$2, Calculations!$I465:$QJ465) -> 671243.1552 | S120: =SUMIF(Calculations!$I$8:$QJ$8, S$2, Calculations!$I465:$QJ465) -> 656824.7291 | T120: =SUMIF(Calculations!$I$8:$QJ$8, T$2, Calculations!$I465:$QJ465) -> 642675.6558 | U120: =SUMIF(Calculations!$I$8:$QJ$8, U$2, Calculations!$I465:$QJ465) -> 628052.5538 | V120: =SUMIF(Calculations!$I$8:$QJ$8, V$2, Calculations!$I465:$QJ465) -> 612501.0058 | W120: =SUMIF(Calculations!$I$8:$QJ$8, W$2, Calculations!$I465:$QJ465) -> 595635.4015 | X120: =SUMIF(Calculations!$I$8:$QJ$8, X$2, Calculations!$I465:$QJ465) -> 579079.9786 | Y120: =SUMIF(Calculations!$I$8:$QJ$8, Y$2, Calculations!$I465:$QJ465) -> 561880.2682 | Z120: =SUMIF(Calculations!$I$8:$QJ$8, Z$2, Calculations!$I465:$QJ465) -> 544545.1539 | AA120: =SUMIF(Calculations!$I$8:$QJ$8, AA$2, Calculations!$I465:$QJ465) -> 526496.6739 | AB120: =SUMIF(Calculations!$I$8:$QJ$8, AB$2, Calculations!$I465:$QJ465) -> 714305.7494 | AC120: =SUMIF(Calculations!$I$8:$QJ$8, AC$2, Calculations!$I465:$QJ465) -> 1150158.058 | AD120: =SUMIF(Calculations!$I$8:$QJ$8, AD$2, Calculations!$I465:$QJ465) -> 982397.8301 | AE120: =SUMIF(Calculations!$I$8:$QJ$8, AE$2, Calculations!$I465:$QJ465) -> 952578.8836 | AF120: =SUMIF(Calculations!$I$8:$QJ$8, AF$2, Calculations!$I465:$QJ465) -> 921728.4412 | AG120: =SUMIF(Calculations!$I$8:$QJ$8, AG$2, Calculations!$I465:$QJ465) -> 888878.9593 | AH120: =SUMIF(Calculations!$I$8:$QJ$8, AH$2, Calculations!$I465:$QJ465) -> 929208.8592 | AI120: =SUMIF(Calculations!$I$8:$QJ$8, AI$2, Calculations!$I465:$QJ465) -> -157377.7541
C121: =Calculations!C466 -> less: Change in DSRA | F121: =Calculations!E466 -> EUR | H121: 0 | I121: =SUMIF(Calculations!$I$8:$QJ$8, I$2, Calculations!$I466:$QJ466) -> 0 | J121: =SUMIF(Calculations!$I$8:$QJ$8, J$2, Calculations!$I466:$QJ466) -> -169431.6699 | K121: =SUMIF(Calculations!$I$8:$QJ$8, K$2, Calculations!$I466:$QJ466) -> -169431.6699 | L121: =SUMIF(Calculations!$I$8:$QJ$8, L$2, Calculations!$I466:$QJ466) -> 0 | M121: =SUMIF(Calculations!$I$8:$QJ$8, M$2, Calculations!$I466:$QJ466) -> 0 | N121: =SUMIF(Calculations!$I$8:$QJ$8, N$2, Calculations!$I466:$QJ466) -> 0 | O121: =SUMIF(Calculations!$I$8:$QJ$8, O$2, Calculations!$I466:$QJ466) -> 0 | P121: =SUMIF(Calculations!$I$8:$QJ$8, P$2, Calculations!$I466:$QJ466) -> 0 | Q121: =SUMIF(Calculations!$I$8:$QJ$8, Q$2, Calculations!$I466:$QJ466) -> 0 | R121: =SUMIF(Calculations!$I$8:$QJ$8, R$2, Calculations!$I466:$QJ466) -> 0 | S121: =SUMIF(Calculations!$I$8:$QJ$8, S$2, Calculations!$I466:$QJ466) -> 0 | T121: =SUMIF(Calculations!$I$8:$QJ$8, T$2, Calculations!$I466:$QJ466) -> 0 | U121: =SUMIF(Calculations!$I$8:$QJ$8, U$2, Calculations!$I466:$QJ466) -> 0 | V121: =SUMIF(Calculations!$I$8:$QJ$8, V$2, Calculations!$I466:$QJ466) -> 0 | W121: =SUMIF(Calculations!$I$8:$QJ$8, W$2, Calculations!$I466:$QJ466) -> 0 | X121: =SUMIF(Calculations!$I$8:$QJ$8, X$2, Calculations!$I466:$QJ466) -> 0 | Y121: =SUMIF(Calculations!$I$8:$QJ$8, Y$2, Calculations!$I466:$QJ466) -> 0 | Z121: =SUMIF(Calculations!$I$8:$QJ$8, Z$2, Calculations!$I466:$QJ466) -> 0 | AA121: =SUMIF(Calculations!$I$8:$QJ$8, AA$2, Calculations!$I466:$QJ466) -> 0 | AB121: =SUMIF(Calculations!$I$8:$QJ$8, AB$2, Calculations!$I466:$QJ466) -> 338863.3398 | AC121: =SUMIF(Calculations!$I$8:$QJ$8, AC$2, Calculations!$I466:$QJ466) -> 0 | AD121: =SUMIF(Calculations!$I$8:$QJ$8, AD$2, Calculations!$I466:$QJ466) -> 0 | AE121: =SUMIF(Calculations!$I$8:$QJ$8, AE$2, Calculations!$I466:$QJ466) -> 0 | AF121: =SUMIF(Calculations!$I$8:$QJ$8, AF$2, Calculations!$I466:$QJ466) -> 0 | AG121: =SUMIF(Calculations!$I$8:$QJ$8, AG$2, Calculations!$I466:$QJ466) -> 0 | AH121: =SUMIF(Calculations!$I$8:$QJ$8, AH$2, Calculations!$I466:$QJ466) -> 0 | AI121: =SUMIF(Calculations!$I$8:$QJ$8, AI$2, Calculations!$I466:$QJ466) -> 0
C122: =Calculations!C467 -> less: Change in MMRA | F122: =Calculations!E467 -> EUR | H122: 0 | I122: =SUMIF(Calculations!$I$8:$QJ$8, I$2, Calculations!$I467:$QJ467) -> 0 | J122: =SUMIF(Calculations!$I$8:$QJ$8, J$2, Calculations!$I467:$QJ467) -> 0 | K122: =SUMIF(Calculations!$I$8:$QJ$8, K$2, Calculations!$I467:$QJ467) -> 0 | L122: =SUMIF(Calculations!$I$8:$QJ$8, L$2, Calculations!$I467:$QJ467) -> 0 | M122: =SUMIF(Calculations!$I$8:$QJ$8, M$2, Calculations!$I467:$QJ467) -> 0 | N122: =SUMIF(Calculations!$I$8:$QJ$8, N$2, Calculations!$I467:$QJ467) -> 0 | O122: =SUMIF(Calculations!$I$8:$QJ$8, O$2, Calculations!$I467:$QJ467) -> 0 | P122: =SUMIF(Calculations!$I$8:$QJ$8, P$2, Calculations!$I467:$QJ467) -> 0 | Q122: =SUMIF(Calculations!$I$8:$QJ$8, Q$2, Calculations!$I467:$QJ467) -> 0 | R122: =SUMIF(Calculations!$I$8:$QJ$8, R$2, Calculations!$I467:$QJ467) -> 0 | S122: =SUMIF(Calculations!$I$8:$QJ$8, S$2, Calculations!$I467:$QJ467) -> 0 | T122: =SUMIF(Calculations!$I$8:$QJ$8, T$2, Calculations!$I467:$QJ467) -> 0 | U122: =SUMIF(Calculations!$I$8:$QJ$8, U$2, Calculations!$I467:$QJ467) -> 0 | V122: =SUMIF(Calculations!$I$8:$QJ$8, V$2, Calculations!$I467:$QJ467) -> 0 | W122: =SUMIF(Calculations!$I$8:$QJ$8, W$2, Calculations!$I467:$QJ467) -> 0 | X122: =SUMIF(Calculations!$I$8:$QJ$8, X$2, Calculations!$I467:$QJ467) -> 0 | Y122: =SUMIF(Calculations!$I$8:$QJ$8, Y$2, Calculations!$I467:$QJ467) -> 0 | Z122: =SUMIF(Calculations!$I$8:$QJ$8, Z$2, Calculations!$I467:$QJ467) -> 0 | AA122: =SUMIF(Calculations!$I$8:$QJ$8, AA$2, Calculations!$I467:$QJ467) -> 0 | AB122: =SUMIF(Calculations!$I$8:$QJ$8, AB$2, Calculations!$I467:$QJ467) -> 0 | AC122: =SUMIF(Calculations!$I$8:$QJ$8, AC$2, Calculations!$I467:$QJ467) -> 0 | AD122: =SUMIF(Calculations!$I$8:$QJ$8, AD$2, Calculations!$I467:$QJ467) -> 0 | AE122: =SUMIF(Calculations!$I$8:$QJ$8, AE$2, Calculations!$I467:$QJ467) -> 0 | AF122: =SUMIF(Calculations!$I$8:$QJ$8, AF$2, Calculations!$I467:$QJ467) -> 0 | AG122: =SUMIF(Calculations!$I$8:$QJ$8, AG$2, Calculations!$I467:$QJ467) -> 0 | AH122: =SUMIF(Calculations!$I$8:$QJ$8, AH$2, Calculations!$I467:$QJ467) -> 0 | AI122: =SUMIF(Calculations!$I$8:$QJ$8, AI$2, Calculations!$I467:$QJ467) -> 0
C123: =Calculations!C468 -> Cash Flow Available for Subordinated Debt | F123: =Calculations!E468 -> EUR | H123: 28752231.68 | I123: =SUMIF(Calculations!$I$8:$QJ$8, I$2, Calculations!$I468:$QJ468) -> 5584156.573 | J123: =SUMIF(Calculations!$I$8:$QJ$8, J$2, Calculations!$I468:$QJ468) -> 5623911.757 | K123: =SUMIF(Calculations!$I$8:$QJ$8, K$2, Calculations!$I468:$QJ468) -> 535572.4947 | L123: =SUMIF(Calculations!$I$8:$QJ$8, L$2, Calculations!$I468:$QJ468) -> 730280.0403 | M123: =SUMIF(Calculations!$I$8:$QJ$8, M$2, Calculations!$I468:$QJ468) -> 725564.1578 | N123: =SUMIF(Calculations!$I$8:$QJ$8, N$2, Calculations!$I468:$QJ468) -> 718850.2157 | O123: =SUMIF(Calculations!$I$8:$QJ$8, O$2, Calculations!$I468:$QJ468) -> 708919.9263 | P123: =SUMIF(Calculations!$I$8:$QJ$8, P$2, Calculations!$I468:$QJ468) -> 699764.6212 | Q123: =SUMIF(Calculations!$I$8:$QJ$8, Q$2, Calculations!$I468:$QJ468) -> 685534.9524 | R123: =SUMIF(Calculations!$I$8:$QJ$8, R$2, Calculations!$I468:$QJ468) -> 671243.1552 | S123: =SUMIF(Calculations!$I$8:$QJ$8, S$2, Calculations!$I468:$QJ468) -> 656824.7291 | T123: =SUMIF(Calculations!$I$8:$QJ$8, T$2, Calculations!$I468:$QJ468) -> 642675.6558 | U123: =SUMIF(Calculations!$I$8:$QJ$8, U$2, Calculations!$I468:$QJ468) -> 628052.5538 | V123: =SUMIF(Calculations!$I$8:$QJ$8, V$2, Calculations!$I468:$QJ468) -> 612501.0058 | W123: =SUMIF(Calculations!$I$8:$QJ$8, W$2, Calculations!$I468:$QJ468) -> 595635.4015 | X123: =SUMIF(Calculations!$I$8:$QJ$8, X$2, Calculations!$I468:$QJ468) -> 579079.9786 | Y123: =SUMIF(Calculations!$I$8:$QJ$8, Y$2, Calculations!$I468:$QJ468) -> 561880.2682 | Z123: =SUMIF(Calculations!$I$8:$QJ$8, Z$2, Calculations!$I468:$QJ468) -> 544545.1539 | AA123: =SUMIF(Calculations!$I$8:$QJ$8, AA$2, Calculations!$I468:$QJ468) -> 526496.6739 | AB123: =SUMIF(Calculations!$I$8:$QJ$8, AB$2, Calculations!$I468:$QJ468) -> 1053169.089 | AC123: =SUMIF(Calculations!$I$8:$QJ$8, AC$2, Calculations!$I468:$QJ468) -> 1150158.058 | AD123: =SUMIF(Calculations!$I$8:$QJ$8, AD$2, Calculations!$I468:$QJ468) -> 982397.8301 | AE123: =SUMIF(Calculations!$I$8:$QJ$8, AE$2, Calculations!$I468:$QJ468) -> 952578.8836 | AF123: =SUMIF(Calculations!$I$8:$QJ$8, AF$2, Calculations!$I468:$QJ468) -> 921728.4412 | AG123: =SUMIF(Calculations!$I$8:$QJ$8, AG$2, Calculations!$I468:$QJ468) -> 888878.9593 | AH123: =SUMIF(Calculations!$I$8:$QJ$8, AH$2, Calculations!$I468:$QJ468) -> 929208.8592 | AI123: =SUMIF(Calculations!$I$8:$QJ$8, AI$2, Calculations!$I468:$QJ468) -> -157377.7541
C124: =Calculations!C469 -> less: Subordinated Debt Interest Expense | F124: =Calculations!E469 -> EUR | H124: -4759268.164 | I124: =SUMIF(Calculations!$I$8:$QJ$8, I$2, Calculations!$I469:$QJ469) -> 0 | J124: =SUMIF(Calculations!$I$8:$QJ$8, J$2, Calculations!$I469:$QJ469) -> 0 | K124: =SUMIF(Calculations!$I$8:$QJ$8, K$2, Calculations!$I469:$QJ469) -> -382442.2608 | L124: =SUMIF(Calculations!$I$8:$QJ$8, L$2, Calculations!$I469:$QJ469) -> -450877.6141 | M124: =SUMIF(Calculations!$I$8:$QJ$8, M$2, Calculations!$I469:$QJ469) -> -441998.722 | N124: =SUMIF(Calculations!$I$8:$QJ$8, N$2, Calculations!$I469:$QJ469) -> -431993.7642 | O124: =SUMIF(Calculations!$I$8:$QJ$8, O$2, Calculations!$I469:$QJ469) -> -420719.9273 | P124: =SUMIF(Calculations!$I$8:$QJ$8, P$2, Calculations!$I469:$QJ469) -> -408016.2857 | Q124: =SUMIF(Calculations!$I$8:$QJ$8, Q$2, Calculations!$I469:$QJ469) -> -393701.5044 | R124: =SUMIF(Calculations!$I$8:$QJ$8, R$2, Calculations!$I469:$QJ469) -> -377571.2505 | S124: =SUMIF(Calculations!$I$8:$QJ$8, S$2, Calculations!$I469:$QJ469) -> -359395.2766 | T124: =SUMIF(Calculations!$I$8:$QJ$8, T$2, Calculations!$I469:$QJ469) -> -338914.1344 | U124: =SUMIF(Calculations!$I$8:$QJ$8, U$2, Calculations!$I469:$QJ469) -> -315835.4706 | V124: =SUMIF(Calculations!$I$8:$QJ$8, V$2, Calculations!$I469:$QJ469) -> -289829.8546 | W124: =SUMIF(Calculations!$I$8:$QJ$8, W$2, Calculations!$I469:$QJ469) -> -260526.0756 | X124: =SUMIF(Calculations!$I$8:$QJ$8, X$2, Calculations!$I469:$QJ469) -> -227505.844 | Y124: =SUMIF(Calculations!$I$8:$QJ$8, Y$2, Calculations!$I469:$QJ469) -> -190297.8204 | Z124: =SUMIF(Calculations!$I$8:$QJ$8, Z$2, Calculations!$I469:$QJ469) -> -148370.8882 | AA124: =SUMIF(Calculations!$I$8:$QJ$8, AA$2, Calculations!$I469:$QJ469) -> -101126.5715 | AB124: =SUMIF(Calculations!$I$8:$QJ$8, AB$2, Calculations!$I469:$QJ469) -> -47890.49293 | AC124: =SUMIF(Calculations!$I$8:$QJ$8, AC$2, Calculations!$I469:$QJ469) -> 12097.25291 | AD124: =SUMIF(Calculations!$I$8:$QJ$8, AD$2, Calculations!$I469:$QJ469) -> 79692.94643 | AE124: =SUMIF(Calculations!$I$8:$QJ$8, AE$2, Calculations!$I469:$QJ469) -> 155861.4658 | AF124: =SUMIF(Calculations!$I$8:$QJ$8, AF$2, Calculations!$I469:$QJ469) -> 241690.06 | AG124: =SUMIF(Calculations!$I$8:$QJ$8, AG$2, Calculations!$I469:$QJ469) -> 338403.8681 | AH124: =SUMIF(Calculations!$I$8:$QJ$8, AH$2, Calculations!$I469:$QJ469) -> 0 | AI124: =SUMIF(Calculations!$I$8:$QJ$8, AI$2, Calculations!$I469:$QJ469) -> 0
C125: =Calculations!C470 -> add: Drawdown on Subordinated Debt | F125: =Calculations!E470 -> EUR | H125: 3792500 | I125: =SUMIF(Calculations!$I$8:$QJ$8, I$2, Calculations!$I470:$QJ470) -> 1896250 | J125: =SUMIF(Calculations!$I$8:$QJ$8, J$2, Calculations!$I470:$QJ470) -> 1896250 | K125: =SUMIF(Calculations!$I$8:$QJ$8, K$2, Calculations!$I470:$QJ470) -> 0 | L125: =SUMIF(Calculations!$I$8:$QJ$8, L$2, Calculations!$I470:$QJ470) -> 0 | M125: =SUMIF(Calculations!$I$8:$QJ$8, M$2, Calculations!$I470:$QJ470) -> 0 | N125: =SUMIF(Calculations!$I$8:$QJ$8, N$2, Calculations!$I470:$QJ470) -> 0 | O125: =SUMIF(Calculations!$I$8:$QJ$8, O$2, Calculations!$I470:$QJ470) -> 0 | P125: =SUMIF(Calculations!$I$8:$QJ$8, P$2, Calculations!$I470:$QJ470) -> 0 | Q125: =SUMIF(Calculations!$I$8:$QJ$8, Q$2, Calculations!$I470:$QJ470) -> 0 | R125: =SUMIF(Calculations!$I$8:$QJ$8, R$2, Calculations!$I470:$QJ470) -> 0 | S125: =SUMIF(Calculations!$I$8:$QJ$8, S$2, Calculations!$I470:$QJ470) -> 0 | T125: =SUMIF(Calculations!$I$8:$QJ$8, T$2, Calculations!$I470:$QJ470) -> 0 | U125: =SUMIF(Calculations!$I$8:$QJ$8, U$2, Calculations!$I470:$QJ470) -> 0 | V125: =SUMIF(Calculations!$I$8:$QJ$8, V$2, Calculations!$I470:$QJ470) -> 0 | W125: =SUMIF(Calculations!$I$8:$QJ$8, W$2, Calculations!$I470:$QJ470) -> 0 | X125: =SUMIF(Calculations!$I$8:$QJ$8, X$2, Calculations!$I470:$QJ470) -> 0 | Y125: =SUMIF(Calculations!$I$8:$QJ$8, Y$2, Calculations!$I470:$QJ470) -> 0 | Z125: =SUMIF(Calculations!$I$8:$QJ$8, Z$2, Calculations!$I470:$QJ470) -> 0 | AA125: =SUMIF(Calculations!$I$8:$QJ$8, AA$2, Calculations!$I470:$QJ470) -> 0 | AB125: =SUMIF(Calculations!$I$8:$QJ$8, AB$2, Calculations!$I470:$QJ470) -> 0 | AC125: =SUMIF(Calculations!$I$8:$QJ$8, AC$2, Calculations!$I470:$QJ470) -> 0 | AD125: =SUMIF(Calculations!$I$8:$QJ$8, AD$2, Calculations!$I470:$QJ470) -> 0 | AE125: =SUMIF(Calculations!$I$8:$QJ$8, AE$2, Calculations!$I470:$QJ470) -> 0 | AF125: =SUMIF(Calculations!$I$8:$QJ$8, AF$2, Calculations!$I470:$QJ470) -> 0 | AG125: =SUMIF(Calculations!$I$8:$QJ$8, AG$2, Calculations!$I470:$QJ470) -> 0 | AH125: =SUMIF(Calculations!$I$8:$QJ$8, AH$2, Calculations!$I470:$QJ470) -> 0 | AI125: =SUMIF(Calculations!$I$8:$QJ$8, AI$2, Calculations!$I470:$QJ470) -> 0
C126: =Calculations!C471 -> less: Subordinated Debt Principal Repayment | F126: =Calculations!E471 -> EUR | H126: -3792500 | I126: =SUMIF(Calculations!$I$8:$QJ$8, I$2, Calculations!$I471:$QJ471) -> 0 | J126: =SUMIF(Calculations!$I$8:$QJ$8, J$2, Calculations!$I471:$QJ471) -> 0 | K126: =SUMIF(Calculations!$I$8:$QJ$8, K$2, Calculations!$I471:$QJ471) -> -46909.98357 | L126: =SUMIF(Calculations!$I$8:$QJ$8, L$2, Calculations!$I471:$QJ471) -> -70008.9884 | M126: =SUMIF(Calculations!$I$8:$QJ$8, M$2, Calculations!$I471:$QJ471) -> -78887.88046 | N126: =SUMIF(Calculations!$I$8:$QJ$8, N$2, Calculations!$I471:$QJ471) -> -88892.83828 | O126: =SUMIF(Calculations!$I$8:$QJ$8, O$2, Calculations!$I471:$QJ471) -> -100166.6752 | P126: =SUMIF(Calculations!$I$8:$QJ$8, P$2, Calculations!$I471:$QJ471) -> -112870.3168 | Q126: =SUMIF(Calculations!$I$8:$QJ$8, Q$2, Calculations!$I471:$QJ471) -> -127185.0981 | R126: =SUMIF(Calculations!$I$8:$QJ$8, R$2, Calculations!$I471:$QJ471) -> -143315.352 | S126: =SUMIF(Calculations!$I$8:$QJ$8, S$2, Calculations!$I471:$QJ471) -> -161491.3258 | T126: =SUMIF(Calculations!$I$8:$QJ$8, T$2, Calculations!$I471:$QJ471) -> -181972.4681 | U126: =SUMIF(Calculations!$I$8:$QJ$8, U$2, Calculations!$I471:$QJ471) -> -205051.1318 | V126: =SUMIF(Calculations!$I$8:$QJ$8, V$2, Calculations!$I471:$QJ471) -> -231056.7478 | W126: =SUMIF(Calculations!$I$8:$QJ$8, W$2, Calculations!$I471:$QJ471) -> -260360.5268 | X126: =SUMIF(Calculations!$I$8:$QJ$8, X$2, Calculations!$I471:$QJ471) -> -293380.7585 | Y126: =SUMIF(Calculations!$I$8:$QJ$8, Y$2, Calculations!$I471:$QJ471) -> -330588.782 | Z126: =SUMIF(Calculations!$I$8:$QJ$8, Z$2, Calculations!$I471:$QJ471) -> -372515.7143 | AA126: =SUMIF(Calculations!$I$8:$QJ$8, AA$2, Calculations!$I471:$QJ471) -> -419760.0309 | AB126: =SUMIF(Calculations!$I$8:$QJ$8, AB$2, Calculations!$I471:$QJ471) -> -472996.1095 | AC126: =SUMIF(Calculations!$I$8:$QJ$8, AC$2, Calculations!$I471:$QJ471) -> -532983.8554 | AD126: =SUMIF(Calculations!$I$8:$QJ$8, AD$2, Calculations!$I471:$QJ471) -> -600579.5489 | AE126: =SUMIF(Calculations!$I$8:$QJ$8, AE$2, Calculations!$I471:$QJ471) -> -676748.0683 | AF126: =SUMIF(Calculations!$I$8:$QJ$8, AF$2, Calculations!$I471:$QJ471) -> -762576.6624 | AG126: =SUMIF(Calculations!$I$8:$QJ$8, AG$2, Calculations!$I471:$QJ471) -> 2477798.863 | AH126: =SUMIF(Calculations!$I$8:$QJ$8, AH$2, Calculations!$I471:$QJ471) -> 0 | AI126: =SUMIF(Calculations!$I$8:$QJ$8, AI$2, Calculations!$I471:$QJ471) -> 0
C127: =Calculations!C472 -> less: Capital Investment | F127: =Calculations!E472 -> EUR | H127: -16928918.48 | I127: =SUMIF(Calculations!$I$8:$QJ$8, I$2, Calculations!$I472:$QJ472) -> -7402416.468 | J127: =SUMIF(Calculations!$I$8:$QJ$8, J$2, Calculations!$I472:$QJ472) -> -7125804.67 | K127: =SUMIF(Calculations!$I$8:$QJ$8, K$2, Calculations!$I472:$QJ472) -> 0 | L127: =SUMIF(Calculations!$I$8:$QJ$8, L$2, Calculations!$I472:$QJ472) -> 0 | M127: =SUMIF(Calculations!$I$8:$QJ$8, M$2, Calculations!$I472:$QJ472) -> 0 | N127: =SUMIF(Calculations!$I$8:$QJ$8, N$2, Calculations!$I472:$QJ472) -> 0 | O127: =SUMIF(Calculations!$I$8:$QJ$8, O$2, Calculations!$I472:$QJ472) -> 0 | P127: =SUMIF(Calculations!$I$8:$QJ$8, P$2, Calculations!$I472:$QJ472) -> 0 | Q127: =SUMIF(Calculations!$I$8:$QJ$8, Q$2, Calculations!$I472:$QJ472) -> 0 | R127: =SUMIF(Calculations!$I$8:$QJ$8, R$2, Calculations!$I472:$QJ472) -> 0 | S127: =SUMIF(Calculations!$I$8:$QJ$8, S$2, Calculations!$I472:$QJ472) -> 0 | T127: =SUMIF(Calculations!$I$8:$QJ$8, T$2, Calculations!$I472:$QJ472) -> 0 | U127: =SUMIF(Calculations!$I$8:$QJ$8, U$2, Calculations!$I472:$QJ472) -> 0 | V127: =SUMIF(Calculations!$I$8:$QJ$8, V$2, Calculations!$I472:$QJ472) -> 0 | W127: =SUMIF(Calculations!$I$8:$QJ$8, W$2, Calculations!$I472:$QJ472) -> 0 | X127: =SUMIF(Calculations!$I$8:$QJ$8, X$2, Calculations!$I472:$QJ472) -> 0 | Y127: =SUMIF(Calculations!$I$8:$QJ$8, Y$2, Calculations!$I472:$QJ472) -> 0 | Z127: =SUMIF(Calculations!$I$8:$QJ$8, Z$2, Calculations!$I472:$QJ472) -> 0 | AA127: =SUMIF(Calculations!$I$8:$QJ$8, AA$2, Calculations!$I472:$QJ472) -> 0 | AB127: =SUMIF(Calculations!$I$8:$QJ$8, AB$2, Calculations!$I472:$QJ472) -> -7777.95982 | AC127: =SUMIF(Calculations!$I$8:$QJ$8, AC$2, Calculations!$I472:$QJ472) -> -2392919.384 | AD127: =SUMIF(Calculations!$I$8:$QJ$8, AD$2, Calculations!$I472:$QJ472) -> 0 | AE127: =SUMIF(Calculations!$I$8:$QJ$8, AE$2, Calculations!$I472:$QJ472) -> 0 | AF127: =SUMIF(Calculations!$I$8:$QJ$8, AF$2, Calculations!$I472:$QJ472) -> 0 | AG127: =SUMIF(Calculations!$I$8:$QJ$8, AG$2, Calculations!$I472:$QJ472) -> 0 | AH127: =SUMIF(Calculations!$I$8:$QJ$8, AH$2, Calculations!$I472:$QJ472) -> 0 | AI127: =SUMIF(Calculations!$I$8:$QJ$8, AI$2, Calculations!$I472:$QJ472) -> 0
C128: =Calculations!C473 -> Cash Flow Available for Dividends | F128: =Calculations!E473 -> EUR | H128: 7064045.034 | I128: =SUMIF(Calculations!$I$8:$QJ$8, I$2, Calculations!$I473:$QJ473) -> 77990.10493 | J128: =SUMIF(Calculations!$I$8:$QJ$8, J$2, Calculations!$I473:$QJ473) -> 394357.0874 | K128: =SUMIF(Calculations!$I$8:$QJ$8, K$2, Calculations!$I473:$QJ473) -> 106220.2503 | L128: =SUMIF(Calculations!$I$8:$QJ$8, L$2, Calculations!$I473:$QJ473) -> 209393.4379 | M128: =SUMIF(Calculations!$I$8:$QJ$8, M$2, Calculations!$I473:$QJ473) -> 204677.5553 | N128: =SUMIF(Calculations!$I$8:$QJ$8, N$2, Calculations!$I473:$QJ473) -> 197963.6132 | O128: =SUMIF(Calculations!$I$8:$QJ$8, O$2, Calculations!$I473:$QJ473) -> 188033.3238 | P128: =SUMIF(Calculations!$I$8:$QJ$8, P$2, Calculations!$I473:$QJ473) -> 178878.0187 | Q128: =SUMIF(Calculations!$I$8:$QJ$8, Q$2, Calculations!$I473:$QJ473) -> 164648.35 | R128: =SUMIF(Calculations!$I$8:$QJ$8, R$2, Calculations!$I473:$QJ473) -> 150356.5528 | S128: =SUMIF(Calculations!$I$8:$QJ$8, S$2, Calculations!$I473:$QJ473) -> 135938.1266 | T128: =SUMIF(Calculations!$I$8:$QJ$8, T$2, Calculations!$I473:$QJ473) -> 121789.0534 | U128: =SUMIF(Calculations!$I$8:$QJ$8, U$2, Calculations!$I473:$QJ473) -> 107165.9514 | V128: =SUMIF(Calculations!$I$8:$QJ$8, V$2, Calculations!$I473:$QJ473) -> 91614.40332 | W128: =SUMIF(Calculations!$I$8:$QJ$8, W$2, Calculations!$I473:$QJ473) -> 74748.79904 | X128: =SUMIF(Calculations!$I$8:$QJ$8, X$2, Calculations!$I473:$QJ473) -> 58193.37612 | Y128: =SUMIF(Calculations!$I$8:$QJ$8, Y$2, Calculations!$I473:$QJ473) -> 40993.66575 | Z128: =SUMIF(Calculations!$I$8:$QJ$8, Z$2, Calculations!$I473:$QJ473) -> 23658.55145 | AA128: =SUMIF(Calculations!$I$8:$QJ$8, AA$2, Calculations!$I473:$QJ473) -> 5610.071461 | AB128: =SUMIF(Calculations!$I$8:$QJ$8, AB$2, Calculations!$I473:$QJ473) -> 524504.527 | AC128: =SUMIF(Calculations!$I$8:$QJ$8, AC$2, Calculations!$I473:$QJ473) -> -1763647.929 | AD128: =SUMIF(Calculations!$I$8:$QJ$8, AD$2, Calculations!$I473:$QJ473) -> 461511.2277 | AE128: =SUMIF(Calculations!$I$8:$QJ$8, AE$2, Calculations!$I473:$QJ473) -> 431692.2812 | AF128: =SUMIF(Calculations!$I$8:$QJ$8, AF$2, Calculations!$I473:$QJ473) -> 400841.8388 | AG128: =SUMIF(Calculations!$I$8:$QJ$8, AG$2, Calculations!$I473:$QJ473) -> 3705081.691 | AH128: =SUMIF(Calculations!$I$8:$QJ$8, AH$2, Calculations!$I473:$QJ473) -> 929208.8592 | AI128: =SUMIF(Calculations!$I$8:$QJ$8, AI$2, Calculations!$I473:$QJ473) -> -157377.7541
C129: =Calculations!C474 -> Dividend | F129: =Calculations!E474 -> EUR | H129: 0 | I129: =SUMIF(Calculations!$I$8:$QJ$8, I$2, Calculations!$I474:$QJ474) -> 0 | J129: =SUMIF(Calculations!$I$8:$QJ$8, J$2, Calculations!$I474:$QJ474) -> 0 | K129: =SUMIF(Calculations!$I$8:$QJ$8, K$2, Calculations!$I474:$QJ474) -> 0 | L129: =SUMIF(Calculations!$I$8:$QJ$8, L$2, Calculations!$I474:$QJ474) -> 0 | M129: =SUMIF(Calculations!$I$8:$QJ$8, M$2, Calculations!$I474:$QJ474) -> 0 | N129: =SUMIF(Calculations!$I$8:$QJ$8, N$2, Calculations!$I474:$QJ474) -> 0 | O129: =SUMIF(Calculations!$I$8:$QJ$8, O$2, Calculations!$I474:$QJ474) -> 0 | P129: =SUMIF(Calculations!$I$8:$QJ$8, P$2, Calculations!$I474:$QJ474) -> 0 | Q129: =SUMIF(Calculations!$I$8:$QJ$8, Q$2, Calculations!$I474:$QJ474) -> 0 | R129: =SUMIF(Calculations!$I$8:$QJ$8, R$2, Calculations!$I474:$QJ474) -> 0 | S129: =SUMIF(Calculations!$I$8:$QJ$8, S$2, Calculations!$I474:$QJ474) -> 0 | T129: =SUMIF(Calculations!$I$8:$QJ$8, T$2, Calculations!$I474:$QJ474) -> 0 | U129: =SUMIF(Calculations!$I$8:$QJ$8, U$2, Calculations!$I474:$QJ474) -> 0 | V129: =SUMIF(Calculations!$I$8:$QJ$8, V$2, Calculations!$I474:$QJ474) -> 0 | W129: =SUMIF(Calculations!$I$8:$QJ$8, W$2, Calculations!$I474:$QJ474) -> 0 | X129: =SUMIF(Calculations!$I$8:$QJ$8, X$2, Calculations!$I474:$QJ474) -> 0 | Y129: =SUMIF(Calculations!$I$8:$QJ$8, Y$2, Calculations!$I474:$QJ474) -> 0 | Z129: =SUMIF(Calculations!$I$8:$QJ$8, Z$2, Calculations!$I474:$QJ474) -> 0 | AA129: =SUMIF(Calculations!$I$8:$QJ$8, AA$2, Calculations!$I474:$QJ474) -> 0 | AB129: =SUMIF(Calculations!$I$8:$QJ$8, AB$2, Calculations!$I474:$QJ474) -> 0 | AC129: =SUMIF(Calculations!$I$8:$QJ$8, AC$2, Calculations!$I474:$QJ474) -> 0 | AD129: =SUMIF(Calculations!$I$8:$QJ$8, AD$2, Calculations!$I474:$QJ474) -> 0 | AE129: =SUMIF(Calculations!$I$8:$QJ$8, AE$2, Calculations!$I474:$QJ474) -> 0 | AF129: =SUMIF(Calculations!$I$8:$QJ$8, AF$2, Calculations!$I474:$QJ474) -> 0 | AG129: =SUMIF(Calculations!$I$8:$QJ$8, AG$2, Calculations!$I474:$QJ474) -> 0 | AH129: =SUMIF(Calculations!$I$8:$QJ$8, AH$2, Calculations!$I474:$QJ474) -> 0 | AI129: =SUMIF(Calculations!$I$8:$QJ$8, AI$2, Calculations!$I474:$QJ474) -> 0
C130: =Calculations!C475 -> Net Movements in Cash | F130: =Calculations!E475 -> EUR | H130: 7064045.034 | I130: =SUMIF(Calculations!$I$8:$QJ$8, I$2, Calculations!$I475:$QJ475) -> 77990.10493 | J130: =SUMIF(Calculations!$I$8:$QJ$8, J$2, Calculations!$I475:$QJ475) -> 394357.0874 | K130: =SUMIF(Calculations!$I$8:$QJ$8, K$2, Calculations!$I475:$QJ475) -> 106220.2503 | L130: =SUMIF(Calculations!$I$8:$QJ$8, L$2, Calculations!$I475:$QJ475) -> 209393.4379 | M130: =SUMIF(Calculations!$I$8:$QJ$8, M$2, Calculations!$I475:$QJ475) -> 204677.5553 | N130: =SUMIF(Calculations!$I$8:$QJ$8, N$2, Calculations!$I475:$QJ475) -> 197963.6132 | O130: =SUMIF(Calculations!$I$8:$QJ$8, O$2, Calculations!$I475:$QJ475) -> 188033.3238 | P130: =SUMIF(Calculations!$I$8:$QJ$8, P$2, Calculations!$I475:$QJ475) -> 178878.0187 | Q130: =SUMIF(Calculations!$I$8:$QJ$8, Q$2, Calculations!$I475:$QJ475) -> 164648.35 | R130: =SUMIF(Calculations!$I$8:$QJ$8, R$2, Calculations!$I475:$QJ475) -> 150356.5528 | S130: =SUMIF(Calculations!$I$8:$QJ$8, S$2, Calculations!$I475:$QJ475) -> 135938.1266 | T130: =SUMIF(Calculations!$I$8:$QJ$8, T$2, Calculations!$I475:$QJ475) -> 121789.0534 | U130: =SUMIF(Calculations!$I$8:$QJ$8, U$2, Calculations!$I475:$QJ475) -> 107165.9514 | V130: =SUMIF(Calculations!$I$8:$QJ$8, V$2, Calculations!$I475:$QJ475) -> 91614.40332 | W130: =SUMIF(Calculations!$I$8:$QJ$8, W$2, Calculations!$I475:$QJ475) -> 74748.79904 | X130: =SUMIF(Calculations!$I$8:$QJ$8, X$2, Calculations!$I475:$QJ475) -> 58193.37612 | Y130: =SUMIF(Calculations!$I$8:$QJ$8, Y$2, Calculations!$I475:$QJ475) -> 40993.66575 | Z130: =SUMIF(Calculations!$I$8:$QJ$8, Z$2, Calculations!$I475:$QJ475) -> 23658.55145 | AA130: =SUMIF(Calculations!$I$8:$QJ$8, AA$2, Calculations!$I475:$QJ475) -> 5610.071461 | AB130: =SUMIF(Calculations!$I$8:$QJ$8, AB$2, Calculations!$I475:$QJ475) -> 524504.527 | AC130: =SUMIF(Calculations!$I$8:$QJ$8, AC$2, Calculations!$I475:$QJ475) -> -1763647.929 | AD130: =SUMIF(Calculations!$I$8:$QJ$8, AD$2, Calculations!$I475:$QJ475) -> 461511.2277 | AE130: =SUMIF(Calculations!$I$8:$QJ$8, AE$2, Calculations!$I475:$QJ475) -> 431692.2812 | AF130: =SUMIF(Calculations!$I$8:$QJ$8, AF$2, Calculations!$I475:$QJ475) -> 400841.8388 | AG130: =SUMIF(Calculations!$I$8:$QJ$8, AG$2, Calculations!$I475:$QJ475) -> 3705081.691 | AH130: =SUMIF(Calculations!$I$8:$QJ$8, AH$2, Calculations!$I475:$QJ475) -> 929208.8592 | AI130: =SUMIF(Calculations!$I$8:$QJ$8, AI$2, Calculations!$I475:$QJ475) -> -157377.7541
C132: =Calculations!C477 -> Beginning Cash Balance | F132: =Calculations!E477 -> EUR | I132: =H133 -> 0 | J132: =I133 -> 77990.10493 | K132: 472347.1923 | L132: 578567.4427 | M132: 787960.8805 | N132: =M133 -> 992638.4358 | O132: 1190602.049 | P132: 1378635.373 | Q132: 1557513.392 | R132: 1722161.742 | S132: 1872518.294 | T132: 2008456.421 | U132: 2130245.474 | V132: 2237411.426 | W132: 2329025.829 | X132: 2403774.628 | Y132: 2461968.004 | Z132: 2502961.67 | AA132: 2526620.221 | AB132: 2532230.293 | AC132: 3056734.82 | AD132: 1293086.891 | AE132: 1754598.118 | AF132: 2186290.4 | AG132: =AF133 -> 2587132.238 | AH132: 6292213.929 | AI132: 7221422.788
C133: =Calculations!C478 -> Closing Cash Balance | F133: =Calculations!E478 -> EUR | H133: 0 | I133: =I130+I132 -> 77990.10493 | J133: =J130+J132 -> 472347.1923 | K133: =K130+K132 -> 578567.4427 | L133: 787960.8805 | M133: 992638.4358 | N133: 1190602.049 | O133: 1378635.373 | P133: 1557513.392 | Q133: 1722161.742 | R133: 1872518.294 | S133: 2008456.421 | T133: 2130245.474 | U133: 2237411.426 | V133: 2329025.829 | W133: 2403774.628 | X133: 2461968.004 | Y133: 2502961.67 | Z133: 2526620.221 | AA133: 2532230.293 | AB133: 3056734.82 | AC133: 1293086.891 | AD133: 1754598.118 | AE133: 2186290.4 | AF133: 2587132.238 | AG133: =AG130+AG132 -> 6292213.929 | AH133: 7221422.788 | AI133: 7064045.034
C135: Annual = Monthly Check | F135: Check | G135: =IF(ROUND($H$28-Calculations!$H$369+$H$106-Calculations!$H$448, 0)=0, "OK", "NO") -> OK

Sheet QFS
A1: =Inputs!$D$6&" - Quarterly Financial Statements" -> Força Açoreana, S.A.: Azores Photovoltaic Energy Venture - Quarterly Financial Statements
C3: Year | H3: 2026 | I3: =H3 -> 2026 | J3: =I3 -> 2026 | K3: =J3 -> 2026 | L3: =H3+1 -> 2027 | M3: 2027 | N3: =J3+1 -> 2027 | O3: =K3+1 -> 2027 | P3: =L3+1 -> 2028 | Q3: =M3+1 -> 2028 | R3: =N3+1 -> 2028 | S3: =O3+1 -> 2028 | T3: =P3+1 -> 2029 | U3: =Q3+1 -> 2029 | V3: =R3+1 -> 2029 | W3: =S3+1 -> 2029 | X3: =T3+1 -> 2030 | Y3: =U3+1 -> 2030 | Z3: =V3+1 -> 2030 | AA3: =W3+1 -> 2030 | AB3: =X3+1 -> 2031 | AC3: =Y3+1 -> 2031 | AD3: =Z3+1 -> 2031 | AE3: =AA3+1 -> 2031 | AF3: =AB3+1 -> 2032 | AG3: =AC3+1 -> 2032 | AH3: =AD3+1 -> 2032 | AI3: =AE3+1 -> 2032 | AJ3: =AF3+1 -> 2033 | AK3: =AG3+1 -> 2033 | AL3: =AH3+1 -> 2033 | AM3: =AI3+1 -> 2033 | AN3: =AJ3+1 -> 2034 | AO3: =AK3+1 -> 2034 | AP3: =AL3+1 -> 2034 | AQ3: =AM3+1 -> 2034 | AR3: =AN3+1 -> 2035 | AS3: =AO3+1 -> 2035 | AT3: =AP3+1 -> 2035 | AU3: =AQ3+1 -> 2035 | AV3: =AR3+1 -> 2036 | AW3: =AS3+1 -> 2036 | AX3: =AT3+1 -> 2036 | AY3: =AU3+1 -> 2036 | AZ3: =AV3+1 -> 2037 | BA3: =AW3+1 -> 2037 | BB3: =AX3+1 -> 2037 | BC3: =AY3+1 -> 2037 | BD3: =AZ3+1 -> 2038 | BE3: =BA3+1 -> 2038 | BF3: =BB3+1 -> 2038 | BG3: =BC3+1 -> 2038 | BH3: =BD3+1 -> 2039 | BI3: =BE3+1 -> 2039 | BJ3: =BF3+1 -> 2039 | BK3: =BG3+1 -> 2039 | BL3: =BH3+1 -> 2040 | BM3: =BI3+1 -> 2040 | BN3: =BJ3+1 -> 2040 | BO3: =BK3+1 -> 2040 | BP3: =BL3+1 -> 2041 | BQ3: =BM3+1 -> 2041 | BR3: =BN3+1 -> 2041 | BS3: =BO3+1 -> 2041 | BT3: =BP3+1 -> 2042 | BU3: =BQ3+1 -> 2042 | BV3: =BR3+1 -> 2042 | BW3: =BS3+1 -> 2042 | BX3: =BT3+1 -> 2043 | BY3: =BU3+1 -> 2043 | BZ3: =BV3+1 -> 2043 | CA3: =BW3+1 -> 2043 | CB3: =BX3+1 -> 2044 | CC3: =BY3+1 -> 2044 | CD3: =BZ3+1 -> 2044 | CE3: =CA3+1 -> 2044 | CF3: =CB3+1 -> 2045 | CG3: =CC3+1 -> 2045 | CH3: =CD3+1 -> 2045 | CI3: =CE3+1 -> 2045 | CJ3: =CF3+1 -> 2046 | CK3: =CG3+1 -> 2046 | CL3: =CH3+1 -> 2046 | CM3: =CI3+1 -> 2046 | CN3: =CJ3+1 -> 2047 | CO3: =CK3+1 -> 2047 | CP3: =CL3+1 -> 2047 | CQ3: =CM3+1 -> 2047 | CR3: =CN3+1 -> 2048 | CS3: =CO3+1 -> 2048 | CT3: =CP3+1 -> 2048 | CU3: =CQ3+1 -> 2048 | CV3: =CR3+1 -> 2049 | CW3: =CS3+1 -> 2049 | CX3: =CT3+1 -> 2049 | CY3: =CU3+1 -> 2049 | CZ3: =CV3+1 -> 2050 | DA3: =CW3+1 -> 2050 | DB3: =CX3+1 -> 2050 | DC3: =CY3+1 -> 2050 | DD3: =CZ3+1 -> 2051 | DE3: =DA3+1 -> 2051 | DF3: =DB3+1 -> 2051 | DG3: =DC3+1 -> 2051 | DH3: =DD3+1 -> 2052 | DI3: =DE3+1 -> 2052 | DJ3: =DF3+1 -> 2052 | DK3: =DG3+1 -> 2052
C4: Quarter | H4: 1 | I4: =IF(H4=4, 1, H4+1) -> 2 | J4: =IF(I4=4, 1, I4+1) -> 3 | K4: =IF(J4=4, 1, J4+1) -> 4 | L4: =IF(K4=4, 1, K4+1) -> 1 | M4: 2 | N4: 3 | O4: 4 | P4: 1 | Q4: 2 | R4: 3 | S4: 4 | T4: 1 | U4: 2 | V4: 3 | W4: 4 | X4: 1 | Y4: 2 | Z4: 3 | AA4: 4 | AB4: 1 | AC4: 2 | AD4: 3 | AE4: 4 | AF4: 1 | AG4: 2 | AH4: 3 | AI4: 4 | AJ4: 1 | AK4: 2 | AL4: 3 | AM4: 4 | AN4: 1 | AO4: 2 | AP4: 3 | AQ4: 4 | AR4: 1 | AS4: 2 | AT4: 3 | AU4: 4 | AV4: 1 | AW4: 2 | AX4: 3 | AY4: 4 | AZ4: 1 | BA4: 2 | BB4: 3 | BC4: 4 | BD4: 1 | BE4: 2 | BF4: 3 | BG4: 4 | BH4: 1 | BI4: 2 | BJ4: 3 | BK4: 4 | BL4: 1 | BM4: 2 | BN4: 3 | BO4: 4 | BP4: 1 | BQ4: 2 | BR4: 3 | BS4: 4 | BT4: 1 | BU4: 2 | BV4: 3 | BW4: 4 | BX4: =IF(BW4=4, 1, BW4+1) -> 1 | BY4: 2 | BZ4: 3 | CA4: 4 | CB4: 1 | CC4: 2 | CD4: 3 | CE4: 4 | CF4: 1 | CG4: 2 | CH4: 3 | CI4: 4 | CJ4: 1 | CK4: 2 | CL4: 3 | CM4: 4 | CN4: 1 | CO4: 2 | CP4: 3 | CQ4: 4 | CR4: 1 | CS4: 2 | CT4: 3 | CU4: 4 | CV4: 1 | CW4: 2 | CX4: 3 | CY4: 4 | CZ4: 1 | DA4: 2 | DB4: =IF(DA4=4, 1, DA4+1) -> 3 | DC4: 4 | DD4: 1 | DE4: 2 | DF4: 3 | DG4: 4 | DH4: 1 | DI4: 2 | DJ4: =IF(DI4=4, 1, DI4+1) -> 3 | DK4: 4
C5: Period End | H5: =EOMONTH(DATE(H3, H4*3, 1), 0) -> 2026-03-31 | I5: 2026-06-30 | J5: 2026-09-30 | K5: 2026-12-31 | L5: 2027-03-31 | M5: 2027-06-30 | N5: 2027-09-30 | O5: 2027-12-31 | P5: 2028-03-31 | Q5: 2028-06-30 | R5: 2028-09-30 | S5: 2028-12-31 | T5: 2029-03-31 | U5: 2029-06-30 | V5: 2029-09-30 | W5: 2029-12-31 | X5: 2030-03-31 | Y5: 2030-06-30 | Z5: 2030-09-30 | AA5: 2030-12-31 | AB5: 2031-03-31 | AC5: 2031-06-30 | AD5: 2031-09-30 | AE5: 2031-12-31 | AF5: 2032-03-31 | AG5: 2032-06-30 | AH5: 2032-09-30 | AI5: 2032-12-31 | AJ5: 2033-03-31 | AK5: 2033-06-30 | AL5: 2033-09-30 | AM5: 2033-12-31 | AN5: 2034-03-31 | AO5: 2034-06-30 | AP5: 2034-09-30 | AQ5: 2034-12-31 | AR5: 2035-03-31 | AS5: 2035-06-30 | AT5: 2035-09-30 | AU5: 2035-12-31 | AV5: 2036-03-31 | AW5: 2036-06-30 | AX5: 2036-09-30 | AY5: 2036-12-31 | AZ5: 2037-03-31 | BA5: 2037-06-30 | BB5: 2037-09-30 | BC5: 2037-12-31 | BD5: 2038-03-31 | BE5: 2038-06-30 | BF5: 2038-09-30 | BG5: 2038-12-31 | BH5: 2039-03-31 | BI5: 2039-06-30 | BJ5: 2039-09-30 | BK5: 2039-12-31 | BL5: 2040-03-31 | BM5: 2040-06-30 | BN5: 2040-09-30 | BO5: 2040-12-31 | BP5: 2041-03-31 | BQ5: 2041-06-30 | BR5: 2041-09-30 | BS5: 2041-12-31 | BT5: =EOMONTH(DATE(BT3, BT4*3, 1), 0) -> 2042-03-31 | BU5: 2042-06-30 | BV5: 2042-09-30 | BW5: 2042-12-31 | BX5: 2043-03-31 | BY5: 2043-06-30 | BZ5: 2043-09-30 | CA5: 2043-12-31 | CB5: 2044-03-31 | CC5: 2044-06-30 | CD5: 2044-09-30 | CE5: 2044-12-31 | CF5: 2045-03-31 | CG5: 2045-06-30 | CH5: 2045-09-30 | CI5: 2045-12-31 | CJ5: 2046-03-31 | CK5: 2046-06-30 | CL5: 2046-09-30 | CM5: 2046-12-31 | CN5: 2047-03-31 | CO5: 2047-06-30 | CP5: 2047-09-30 | CQ5: 2047-12-31 | CR5: 2048-03-31 | CS5: 2048-06-30 | CT5: 2048-09-30 | CU5: 2048-12-31 | CV5: 2049-03-31 | CW5: 2049-06-30 | CX5: 2049-09-30 | CY5: 2049-12-31 | CZ5: 2050-03-31 | DA5: 2050-06-30 | DB5: =EOMONTH(DATE(DB3, DB4*3, 1), 0) -> 2050-09-30 | DC5: 2050-12-31 | DD5: 2051-03-31 | DE5: 2051-06-30 | DF5: 2051-09-30 | DG5: 2051-12-31 | DH5: 2052-03-31 | DI5: 2052-06-30 | DJ5: =EOMONTH(DATE(DJ3, DJ4*3, 1), 0) -> 2052-09-30 | DK5: 2052-12-31
A6: · | B6: Income Statement | E6: Unit
A7: =Summary!$C$49 -> OK
C8: Revenues | AE8: .
C9: =Calculations!C352 -> Production Sold | E9: EUR | G9: =SUM(H9:FA9) -> 42553791.54 | H9: =SUMIFS(Calculations!$I229:$QJ229, Calculations!$I$8:$QJ$8, H$3, Calculations!$I$10:$QJ$10, H$4) -> 0 | I9: =SUMIFS(Calculations!$I229:$QJ229, Calculations!$I$8:$QJ$8, I$3, Calculations!$I$10:$QJ$10, I$4) -> 0 | J9: =SUMIFS(Calculations!$I229:$QJ229, Calculations!$I$8:$QJ$8, J$3, Calculations!$I$10:$QJ$10, J$4) -> 0 | K9: =SUMIFS(Calculations!$I229:$QJ229, Calculations!$I$8:$QJ$8, K$3, Calculations!$I$10:$QJ$10, K$4) -> 0 | L9: =SUMIFS(Calculations!$I229:$QJ229, Calculations!$I$8:$QJ$8, L$3, Calculations!$I$10:$QJ$10, L$4) -> 0 | M9: =SUMIFS(Calculations!$I229:$QJ229, Calculations!$I$8:$QJ$8, M$3, Calculations!$I$10:$QJ$10, M$4) -> 0 | N9: =SUMIFS(Calculations!$I229:$QJ229, Calculations!$I$8:$QJ$8, N$3, Calculations!$I$10:$QJ$10, N$4) -> 0 | O9: =SUMIFS(Calculations!$I229:$QJ229, Calculations!$I$8:$QJ$8, O$3, Calculations!$I$10:$QJ$10, O$4) -> 0 | P9: =SUMIFS(Calculations!$I229:$QJ229, Calculations!$I$8:$QJ$8, P$3, Calculations!$I$10:$QJ$10, P$4) -> 286938.8972 | Q9: =SUMIFS(Calculations!$I229:$QJ229, Calculations!$I$8:$QJ$8, Q$3, Calculations!$I$10:$QJ$10, Q$4) -> 438295.1711 | R9: =SUMIFS(Calculations!$I229:$QJ229, Calculations!$I$8:$QJ$8, R$3, Calculations!$I$10:$QJ$10, R$4) -> 545538.4534 | S9: =SUMIFS(Calculations!$I229:$QJ229, Calculations!$I$8:$QJ$8, S$3, Calculations!$I$10:$QJ$10, S$4) -> 345692.5959 | T9: =SUMIFS(Calculations!$I229:$QJ229, Calculations!$I$8:$QJ$8, T$3, Calculations!$I$10:$QJ$10, T$4) -> 289808.2862 | U9: =SUMIFS(Calculations!$I229:$QJ229, Calculations!$I$8:$QJ$8, U$3, Calculations!$I$10:$QJ$10, U$4) -> 442678.1228 | V9: =SUMIFS(Calculations!$I229:$QJ229, Calculations!$I$8:$QJ$8, V$3, Calculations!$I$10:$QJ$10, V$4) -> 550993.8379 | W9: =SUMIFS(Calculations!$I229:$QJ229, Calculations!$I$8:$QJ$8, W$3, Calculations!$I$10:$QJ$10, W$4) -> 348172.4744 | X9: =SUMIFS(Calculations!$I229:$QJ229, Calculations!$I$8:$QJ$8, X$3, Calculations!$I$10:$QJ$10, X$4) -> 292706.3691 | Y9: =SUMIFS(Calculations!$I229:$QJ229, Calculations!$I$8:$QJ$8, Y$3, Calculations!$I$10:$QJ$10, Y$4) -> 447104.904 | Z9: =SUMIFS(Calculations!$I229:$QJ229, Calculations!$I$8:$QJ$8, Z$3, Calculations!$I$10:$QJ$10, Z$4) -> 556503.7763 | AA9: =SUMIFS(Calculations!$I229:$QJ229, Calculations!$I$8:$QJ$8, AA$3, Calculations!$I$10:$QJ$10, AA$4) -> 348706.2066 | AB9: =SUMIFS(Calculations!$I229:$QJ229, Calculations!$I$8:$QJ$8, AB$3, Calculations!$I$10:$QJ$10, AB$4) -> 295633.4328 | AC9: =SUMIFS(Calculations!$I229:$QJ229, Calculations!$I$8:$QJ$8, AC$3, Calculations!$I$10:$QJ$10, AC$4) -> 451575.953 | AD9: =SUMIFS(Calculations!$I229:$QJ229, Calculations!$I$8:$QJ$8, AD$3, Calculations!$I$10:$QJ$10, AD$4) -> 562068.8141 | AE9: =SUMIFS(Calculations!$I229:$QJ229, Calculations!$I$8:$QJ$8, AE$3, Calculations!$I$10:$QJ$10, AE$4) -> 348155.0078 | AF9: =SUMIFS(Calculations!$I229:$QJ229, Calculations!$I$8:$QJ$8, AF$3, Calculations!$I$10:$QJ$10, AF$4) -> 298589.7671 | AG9: =SUMIFS(Calculations!$I229:$QJ229, Calculations!$I$8:$QJ$8, AG$3, Calculations!$I$10:$QJ$10, AG$4) -> 456091.7126 | AH9: =SUMIFS(Calculations!$I229:$QJ229, Calculations!$I$8:$QJ$8, AH$3, Calculations!$I$10:$QJ$10, AH$4) -> 567689.5022 | AI9: =SUMIFS(Calculations!$I229:$QJ229, Calculations!$I$8:$QJ$8, AI$3, Calculations!$I$10:$QJ$10, AI$4) -> 347639.3306 | AJ9: =SUMIFS(Calculations!$I229:$QJ229, Calculations!$I$8:$QJ$8, AJ$3, Calculations!$I$10:$QJ$10, AJ$4) -> 301575.6648 | AK9: =SUMIFS(Calculations!$I229:$QJ229, Calculations!$I$8:$QJ$8, AK$3, Calculations!$I$10:$QJ$10, AK$4) -> 460652.6297 | AL9: =SUMIFS(Calculations!$I229:$QJ229, Calculations!$I$8:$QJ$8, AL$3, Calculations!$I$10:$QJ$10, AL$4) -> 573366.3972 | AM9: =SUMIFS(Calculations!$I229:$QJ229, Calculations!$I$8:$QJ$8, AM$3, Calculations!$I$10:$QJ$10, AM$4) -> 344899.5276 | AN9: =SUMIFS(Calculations!$I229:$QJ229, Calculations!$I$8:$QJ$8, AN$3, Calculations!$I$10:$QJ$10, AN$4) -> 304591.4214 | AO9: =SUMIFS(Calculations!$I229:$QJ229, Calculations!$I$8:$QJ$8, AO$3, Calculations!$I$10:$QJ$10, AO$4) -> 465259.156 | AP9: =SUMIFS(Calculations!$I229:$QJ229, Calculations!$I$8:$QJ$8, AP$3, Calculations!$I$10:$QJ$10, AP$4) -> 579100.0612 | AQ9: =SUMIFS(Calculations!$I229:$QJ229, Calculations!$I$8:$QJ$8, AQ$3, Calculations!$I$10:$QJ$10, AQ$4) -> 341340.2815 | AR9: =SUMIFS(Calculations!$I229:$QJ229, Calculations!$I$8:$QJ$8, AR$3, Calculations!$I$10:$QJ$10, AR$4) -> 307637.3356 | AS9: =SUMIFS(Calculations!$I229:$QJ229, Calculations!$I$8:$QJ$8, AS$3, Calculations!$I$10:$QJ$10, AS$4) -> 469911.7475 | AT9: =SUMIFS(Calculations!$I229:$QJ229, Calculations!$I$8:$QJ$8, AT$3, Calculations!$I$10:$QJ$10, AT$4) -> 584891.0618 | AU9: =SUMIFS(Calculations!$I229:$QJ229, Calculations!$I$8:$QJ$8, AU$3, Calculations!$I$10:$QJ$10, AU$4) -> 337816.4652 | AV9: =SUMIFS(Calculations!$I229:$QJ229, Calculations!$I$8:$QJ$8, AV$3, Calculations!$I$10:$QJ$10, AV$4) -> 310713.709 | AW9: =SUMIFS(Calculations!$I229:$QJ229, Calculations!$I$8:$QJ$8, AW$3, Calculations!$I$10:$QJ$10, AW$4) -> 474610.865 | AX9: =SUMIFS(Calculations!$I229:$QJ229, Calculations!$I$8:$QJ$8, AX$3, Calculations!$I$10:$QJ$10, AX$4) -> 590739.9724 | AY9: =SUMIFS(Calculations!$I229:$QJ229, Calculations!$I$8:$QJ$8, AY$3, Calculations!$I$10:$QJ$10, AY$4) -> 334327.7261 | AZ9: =SUMIFS(Calculations!$I229:$QJ229, Calculations!$I$8:$QJ$8, AZ$3, Calculations!$I$10:$QJ$10, AZ$4) -> 313820.8461 | BA9: =SUMIFS(Calculations!$I229:$QJ229, Calculations!$I$8:$QJ$8, BA$3, Calculations!$I$10:$QJ$10, BA$4) -> 479356.9737 | BB9: =SUMIFS(Calculations!$I229:$QJ229, Calculations!$I$8:$QJ$8, BB$3, Calculations!$I$10:$QJ$10, BB$4) -> 594581.4828 | BC9: =SUMIFS(Calculations!$I229:$QJ229, Calculations!$I$8:$QJ$8, BC$3, Calculations!$I$10:$QJ$10, BC$4) -> 330873.7148 | BD9: =SUMIFS(Calculations!$I229:$QJ229, Calculations!$I$8:$QJ$8, BD$3, Calculations!$I$10:$QJ$10, BD$4) -> 316959.0545 | BE9: =SUMIFS(Calculations!$I229:$QJ229, Calculations!$I$8:$QJ$8, BE$3, Calculations!$I$10:$QJ$10, BE$4) -> 484150.5434 | BF9: =SUMIFS(Calculations!$I229:$QJ229, Calculations!$I$8:$QJ$8, BF$3, Calculations!$I$10:$QJ$10, BF$4) -> 596728.2926 | BG9: =SUMIFS(Calculations!$I229:$QJ229, Calculations!$I$8:$QJ$8, BG$3, Calculations!$I$10:$QJ$10, BG$4) -> 327454.0858 | BH9: =SUMIFS(Calculations!$I229:$QJ229, Calculations!$I$8:$QJ$8, BH$3, Calculations!$I$10:$QJ$10, BH$4) -> 320128.6451 | BI9: =SUMIFS(Calculations!$I229:$QJ229, Calculations!$I$8:$QJ$8, BI$3, Calculations!$I$10:$QJ$10, BI$4) -> 488992.0488 | BJ9: =SUMIFS(Calculations!$I229:$QJ229, Calculations!$I$8:$QJ$8, BJ$3, Calculations!$I$10:$QJ$10, BJ$4) -> 598934.7978 | BK9: =SUMIFS(Calculations!$I229:$QJ229, Calculations!$I$8:$QJ$8, BK$3, Calculations!$I$10:$QJ$10, BK$4) -> 324068.4968 | BL9: =SUMIFS(Calculations!$I229:$QJ229, Calculations!$I$8:$QJ$8, BL$3, Calculations!$I$10:$QJ$10, BL$4) -> 323329.9315 | BM9: =SUMIFS(Calculations!$I229:$QJ229, Calculations!$I$8:$QJ$8, BM$3, Calculations!$I$10:$QJ$10, BM$4) -> 493881.9693 | BN9: =SUMIFS(Calculations!$I229:$QJ229, Calculations!$I$8:$QJ$8, BN$3, Calculations!$I$10:$QJ$10, BN$4) -> 601201.2149 | BO9: =SUMIFS(Calculations!$I229:$QJ229, Calculations!$I$8:$QJ$8, BO$3, Calculations!$I$10:$QJ$10, BO$4) -> 320716.6089 | BP9: =SUMIFS(Calculations!$I229:$QJ229, Calculations!$I$8:$QJ$8, BP$3, Calculations!$I$10:$QJ$10, BP$4) -> 326563.2308 | BQ9: =SUMIFS(Calculations!$I229:$QJ229, Calculations!$I$8:$QJ$8, BQ$3, Calculations!$I$10:$QJ$10, BQ$4) -> 498820.789 | BR9: =SUMIFS(Calculations!$I229:$QJ229, Calculations!$I$8:$QJ$8, BR$3, Calculations!$I$10:$QJ$10, BR$4) -> 601688.8852 | BS9: =SUMIFS(Calculations!$I229:$QJ229, Calculations!$I$8:$QJ$8, BS$3, Calculations!$I$10:$QJ$10, BS$4) -> 317398.0867 | BT9: =SUMIFS(Calculations!$I229:$QJ229, Calculations!$I$8:$QJ$8, BT$3, Calculations!$I$10:$QJ$10, BT$4) -> 329828.8631 | BU9: =SUMIFS(Calculations!$I229:$QJ229, Calculations!$I$8:$QJ$8, BU$3, Calculations!$I$10:$QJ$10, BU$4) -> 503808.9969 | BV9: =SUMIFS(Calculations!$I229:$QJ229, Calculations!$I$8:$QJ$8, BV$3, Calculations!$I$10:$QJ$10, BV$4) -> 599683.1949 | BW9: =SUMIFS(Calculations!$I229:$QJ229, Calculations!$I$8:$QJ$8, BW$3, Calculations!$I$10:$QJ$10, BW$4) -> 314112.5981 | BX9: =SUMIFS(Calculations!$I229:$QJ229, Calculations!$I$8:$QJ$8, BX$3, Calculations!$I$10:$QJ$10, BX$4) -> 333127.1518 | BY9: =SUMIFS(Calculations!$I229:$QJ229, Calculations!$I$8:$QJ$8, BY$3, Calculations!$I$10:$QJ$10, BY$4) -> 508847.0869 | BZ9: =SUMIFS(Calculations!$I229:$QJ229, Calculations!$I$8:$QJ$8, BZ$3, Calculations!$I$10:$QJ$10, BZ$4) -> 596419.9254 | CA9: =SUMIFS(Calculations!$I229:$QJ229, Calculations!$I$8:$QJ$8, CA$3, Calculations!$I$10:$QJ$10, CA$4) -> 310859.8141 | CB9: =SUMIFS(Calculations!$I229:$QJ229, Calculations!$I$8:$QJ$8, CB$3, Calculations!$I$10:$QJ$10, CB$4) -> 336458.4233 | CC9: =SUMIFS(Calculations!$I229:$QJ229, Calculations!$I$8:$QJ$8, CC$3, Calculations!$I$10:$QJ$10, CC$4) -> 513935.5578 | CD9: =SUMIFS(Calculations!$I229:$QJ229, Calculations!$I$8:$QJ$8, CD$3, Calculations!$I$10:$QJ$10, CD$4) -> 590356.9714 | CE9: =SUMIFS(Calculations!$I229:$QJ229, Calculations!$I$8:$QJ$8, CE$3, Calculations!$I$10:$QJ$10, CE$4) -> 307639.4094 | CF9: =SUMIFS(Calculations!$I229:$QJ229, Calculations!$I$8:$QJ$8, CF$3, Calculations!$I$10:$QJ$10, CF$4) -> 339823.0075 | CG9: =SUMIFS(Calculations!$I229:$QJ229, Calculations!$I$8:$QJ$8, CG$3, Calculations!$I$10:$QJ$10, CG$4) -> 518760.8583 | CH9: =SUMIFS(Calculations!$I229:$QJ229, Calculations!$I$8:$QJ$8, CH$3, Calculations!$I$10:$QJ$10, CH$4) -> 584354.3698 | CI9: =SUMIFS(Calculations!$I229:$QJ229, Calculations!$I$8:$QJ$8, CI$3, Calculations!$I$10:$QJ$10, CI$4) -> 304451.0615 | CJ9: =SUMIFS(Calculations!$I229:$QJ229, Calculations!$I$8:$QJ$8, CJ$3, Calculations!$I$10:$QJ$10, CJ$4) -> 341391.1787 | CK9: =SUMIFS(Calculations!$I229:$QJ229, Calculations!$I$8:$QJ$8, CK$3, Calculations!$I$10:$QJ$10, CK$4) -> 520033.1988 | CL9: =SUMIFS(Calculations!$I229:$QJ229, Calculations!$I$8:$QJ$8, CL$3, Calculations!$I$10:$QJ$10, CL$4) -> 578411.5199 | CM9: =SUMIFS(Calculations!$I229:$QJ229, Calculations!$I$8:$QJ$8, CM$3, Calculations!$I$10:$QJ$10, CM$4) -> 301294.4513 | CN9: =SUMIFS(Calculations!$I229:$QJ229, Calculations!$I$8:$QJ$8, CN$3, Calculations!$I$10:$QJ$10, CN$4) -> 339704.8725 | CO9: =SUMIFS(Calculations!$I229:$QJ229, Calculations!$I$8:$QJ$8, CO$3, Calculations!$I$10:$QJ$10, CO$4) -> 519020.9407 | CP9: =SUMIFS(Calculations!$I229:$QJ229, Calculations!$I$8:$QJ$8, CP$3, Calculations!$I$10:$QJ$10, CP$4) -> 572527.8269 | CQ9: =SUMIFS(Calculations!$I229:$QJ229, Calculations!$I$8:$QJ$8, CQ$3, Calculations!$I$10:$QJ$10, CQ$4) -> 298169.263 | CR9: =SUMIFS(Calculations!$I229:$QJ229, Calculations!$I$8:$QJ$8, CR$3, Calculations!$I$10:$QJ$10, CR$4) -> 336062.4734 | CS9: =SUMIFS(Calculations!$I229:$QJ229, Calculations!$I$8:$QJ$8, CS$3, Calculations!$I$10:$QJ$10, CS$4) -> 516821.5108 | CT9: =SUMIFS(Calculations!$I229:$QJ229, Calculations!$I$8:$QJ$8, CT$3, Calculations!$I$10:$QJ$10, CT$4) -> 566702.7018 | CU9: =SUMIFS(Calculations!$I229:$QJ229, Calculations!$I$8:$QJ$8, CU$3, Calculations!$I$10:$QJ$10, CU$4) -> 295075.1837 | CV9: =SUMIFS(Calculations!$I229:$QJ229, Calculations!$I$8:$QJ$8, CV$3, Calculations!$I$10:$QJ$10, CV$4) -> 332730.1653 | CW9: =SUMIFS(Calculations!$I229:$QJ229, Calculations!$I$8:$QJ$8, CW$3, Calculations!$I$10:$QJ$10, CW$4) -> 514674.4807 | CX9: =SUMIFS(Calculations!$I229:$QJ229, Calculations!$I$8:$QJ$8, CX$3, Calculations!$I$10:$QJ$10, CX$4) -> 560935.5618 | CY9: =SUMIFS(Calculations!$I229:$QJ229, Calculations!$I$8:$QJ$8, CY$3, Calculations!$I$10:$QJ$10, CY$4) -> 292011.9038 | CZ9: =SUMIFS(Calculations!$I229:$QJ229, Calculations!$I$8:$QJ$8, CZ$3, Calculations!$I$10:$QJ$10, CZ$4) -> 329294.7961 | DA9: =SUMIFS(Calculations!$I229:$QJ229, Calculations!$I$8:$QJ$8, DA$3, Calculations!$I$10:$QJ$10, DA$4) -> 512579.634 | DB9: =SUMIFS(Calculations!$I229:$QJ229, Calculations!$I$8:$QJ$8, DB$3, Calculations!$I$10:$QJ$10, DB$4) -> 555225.8296 | DC9: =SUMIFS(Calculations!$I229:$QJ229, Calculations!$I$8:$QJ$8, DC$3, Calculations!$I$10:$QJ$10, DC$4) -> 288979.1166 | DD9: =SUMIFS(Calculations!$I229:$QJ229, Calculations!$I$8:$QJ$8, DD$3, Calculations!$I$10:$QJ$10, DD$4) -> 325893.6236 | DE9: =SUMIFS(Calculations!$I229:$QJ229, Calculations!$I$8:$QJ$8, DE$3, Calculations!$I$10:$QJ$10, DE$4) -> 510536.7593 | DF9: =SUMIFS(Calculations!$I229:$QJ229, Calculations!$I$8:$QJ$8, DF$3, Calculations!$I$10:$QJ$10, DF$4) -> 549572.9337 | DG9: =SUMIFS(Calculations!$I229:$QJ229, Calculations!$I$8:$QJ$8, DG$3, Calculations!$I$10:$QJ$10, DG$4) -> 285976.5188 | DH9: =SUMIFS(Calculations!$I229:$QJ229, Calculations!$I$8:$QJ$8, DH$3, Calculations!$I$10:$QJ$10, DH$4) -> 322388.7057 | DI9: =SUMIFS(Calculations!$I229:$QJ229, Calculations!$I$8:$QJ$8, DI$3, Calculations!$I$10:$QJ$10, DI$4) -> 508545.6504 | DJ9: =SUMIFS(Calculations!$I229:$QJ229, Calculations!$I$8:$QJ$8, DJ$3, Calculations!$I$10:$QJ$10, DJ$4) -> 543976.3085 | DK9: =SUMIFS(Calculations!$I229:$QJ229, Calculations!$I$8:$QJ$8, DK$3, Calculations!$I$10:$QJ$10, DK$4) -> 281120.8083
C10: Storage | E10: EUR | G10: 10343818.17 | H10: =SUMIFS(Calculations!$I230:$QJ230, Calculations!$I$8:$QJ$8, H$3, Calculations!$I$10:$QJ$10, H$4) -> 0 | I10: =SUMIFS(Calculations!$I230:$QJ230, Calculations!$I$8:$QJ$8, I$3, Calculations!$I$10:$QJ$10, I$4) -> 0 | J10: =SUMIFS(Calculations!$I230:$QJ230, Calculations!$I$8:$QJ$8, J$3, Calculations!$I$10:$QJ$10, J$4) -> 0 | K10: =SUMIFS(Calculations!$I230:$QJ230, Calculations!$I$8:$QJ$8, K$3, Calculations!$I$10:$QJ$10, K$4) -> 0 | L10: =SUMIFS(Calculations!$I230:$QJ230, Calculations!$I$8:$QJ$8, L$3, Calculations!$I$10:$QJ$10, L$4) -> 0 | M10: =SUMIFS(Calculations!$I230:$QJ230, Calculations!$I$8:$QJ$8, M$3, Calculations!$I$10:$QJ$10, M$4) -> 0 | N10: =SUMIFS(Calculations!$I230:$QJ230, Calculations!$I$8:$QJ$8, N$3, Calculations!$I$10:$QJ$10, N$4) -> 0 | O10: =SUMIFS(Calculations!$I230:$QJ230, Calculations!$I$8:$QJ$8, O$3, Calculations!$I$10:$QJ$10, O$4) -> 0 | P10: =SUMIFS(Calculations!$I230:$QJ230, Calculations!$I$8:$QJ$8, P$3, Calculations!$I$10:$QJ$10, P$4) -> 122926.9872 | Q10: =SUMIFS(Calculations!$I230:$QJ230, Calculations!$I$8:$QJ$8, Q$3, Calculations!$I$10:$QJ$10, Q$4) -> 125299.0219 | R10: =SUMIFS(Calculations!$I230:$QJ230, Calculations!$I$8:$QJ$8, R$3, Calculations!$I$10:$QJ$10, R$4) -> 124791.4361 | S10: =SUMIFS(Calculations!$I230:$QJ230, Calculations!$I$8:$QJ$8, S$3, Calculations!$I$10:$QJ$10, S$4) -> 116263.4256 | T10: =SUMIFS(Calculations!$I230:$QJ230, Calculations!$I$8:$QJ$8, T$3, Calculations!$I$10:$QJ$10, T$4) -> 120297.4866 | U10: =SUMIFS(Calculations!$I230:$QJ230, Calculations!$I$8:$QJ$8, U$3, Calculations!$I$10:$QJ$10, U$4) -> 124033.7612 | V10: =SUMIFS(Calculations!$I230:$QJ230, Calculations!$I$8:$QJ$8, V$3, Calculations!$I$10:$QJ$10, V$4) -> 123310.9312 | W10: =SUMIFS(Calculations!$I230:$QJ230, Calculations!$I$8:$QJ$8, W$3, Calculations!$I$10:$QJ$10, W$4) -> 114630.0716 | X10: =SUMIFS(Calculations!$I230:$QJ230, Calculations!$I$8:$QJ$8, X$3, Calculations!$I$10:$QJ$10, X$4) -> 118079.4752 | Y10: =SUMIFS(Calculations!$I230:$QJ230, Calculations!$I$8:$QJ$8, Y$3, Calculations!$I$10:$QJ$10, Y$4) -> 122781.0954 | Z10: =SUMIFS(Calculations!$I230:$QJ230, Calculations!$I$8:$QJ$8, Z$3, Calculations!$I$10:$QJ$10, Z$4) -> 121040.0789 | AA10: =SUMIFS(Calculations!$I230:$QJ230, Calculations!$I$8:$QJ$8, AA$3, Calculations!$I$10:$QJ$10, AA$4) -> 113108.1583 | AB10: =SUMIFS(Calculations!$I230:$QJ230, Calculations!$I$8:$QJ$8, AB$3, Calculations!$I$10:$QJ$10, AB$4) -> 116412.4023 | AC10: =SUMIFS(Calculations!$I230:$QJ230, Calculations!$I$8:$QJ$8, AC$3, Calculations!$I$10:$QJ$10, AC$4) -> 121540.899 | AD10: =SUMIFS(Calculations!$I230:$QJ230, Calculations!$I$8:$QJ$8, AD$3, Calculations!$I$10:$QJ$10, AD$4) -> 118655.4776 | AE10: =SUMIFS(Calculations!$I230:$QJ230, Calculations!$I$8:$QJ$8, AE$3, Calculations!$I$10:$QJ$10, AE$4) -> 111668.0829 | AF10: =SUMIFS(Calculations!$I230:$QJ230, Calculations!$I$8:$QJ$8, AF$3, Calculations!$I$10:$QJ$10, AF$4) -> 115957.5646 | AG10: =SUMIFS(Calculations!$I230:$QJ230, Calculations!$I$8:$QJ$8, AG$3, Calculations!$I$10:$QJ$10, AG$4) -> 120313.0478 | AH10: =SUMIFS(Calculations!$I230:$QJ230, Calculations!$I$8:$QJ$8, AH$3, Calculations!$I$10:$QJ$10, AH$4) -> 116647.7508 | AI10: =SUMIFS(Calculations!$I230:$QJ230, Calculations!$I$8:$QJ$8, AI$3, Calculations!$I$10:$QJ$10, AI$4) -> 110240.4872 | AJ10: =SUMIFS(Calculations!$I230:$QJ230, Calculations!$I$8:$QJ$8, AJ$3, Calculations!$I$10:$QJ$10, AJ$4) -> 113117.0513 | AK10: =SUMIFS(Calculations!$I230:$QJ230, Calculations!$I$8:$QJ$8, AK$3, Calculations!$I$10:$QJ$10, AK$4) -> 118408.427 | AL10: =SUMIFS(Calculations!$I230:$QJ230, Calculations!$I$8:$QJ$8, AL$3, Calculations!$I$10:$QJ$10, AL$4) -> 114653.0815 | AM10: =SUMIFS(Calculations!$I230:$QJ230, Calculations!$I$8:$QJ$8, AM$3, Calculations!$I$10:$QJ$10, AM$4) -> 108964.8042 | AN10: =SUMIFS(Calculations!$I230:$QJ230, Calculations!$I$8:$QJ$8, AN$3, Calculations!$I$10:$QJ$10, AN$4) -> 111488.4437 | AO10: =SUMIFS(Calculations!$I230:$QJ230, Calculations!$I$8:$QJ$8, AO$3, Calculations!$I$10:$QJ$10, AO$4) -> 116100.4298 | AP10: =SUMIFS(Calculations!$I230:$QJ230, Calculations!$I$8:$QJ$8, AP$3, Calculations!$I$10:$QJ$10, AP$4) -> 112671.2704 | AQ10: =SUMIFS(Calculations!$I230:$QJ230, Calculations!$I$8:$QJ$8, AQ$3, Calculations!$I$10:$QJ$10, AQ$4) -> 107754.1217 | AR10: =SUMIFS(Calculations!$I230:$QJ230, Calculations!$I$8:$QJ$8, AR$3, Calculations!$I$10:$QJ$10, AR$4) -> 109872.3306 | AS10: =SUMIFS(Calculations!$I230:$QJ230, Calculations!$I$8:$QJ$8, AS$3, Calculations!$I$10:$QJ$10, AS$4) -> 114442.1865 | AT10: =SUMIFS(Calculations!$I230:$QJ230, Calculations!$I$8:$QJ$8, AT$3, Calculations!$I$10:$QJ$10, AT$4) -> 110702.1197 | AU10: =SUMIFS(Calculations!$I230:$QJ230, Calculations!$I$8:$QJ$8, AU$3, Calculations!$I$10:$QJ$10, AU$4) -> 106555.4906 | AV10: =SUMIFS(Calculations!$I230:$QJ230, Calculations!$I$8:$QJ$8, AV$3, Calculations!$I$10:$QJ$10, AV$4) -> 109415.0254 | AW10: =SUMIFS(Calculations!$I230:$QJ230, Calculations!$I$8:$QJ$8, AW$3, Calculations!$I$10:$QJ$10, AW$4) -> 112796.3709 | AX10: =SUMIFS(Calculations!$I230:$QJ230, Calculations!$I$8:$QJ$8, AX$3, Calculations!$I$10:$QJ$10, AX$4) -> 108745.4326 | AY10: =SUMIFS(Calculations!$I230:$QJ230, Calculations!$I$8:$QJ$8, AY$3, Calculations!$I$10:$QJ$10, AY$4) -> 105368.7911 | AZ10: =SUMIFS(Calculations!$I230:$QJ230, Calculations!$I$8:$QJ$8, AZ$3, Calculations!$I$10:$QJ$10, AZ$4) -> 106676.9428 | BA10: =SUMIFS(Calculations!$I230:$QJ230, Calculations!$I$8:$QJ$8, BA$3, Calculations!$I$10:$QJ$10, BA$4) -> 111162.8184 | BB10: =SUMIFS(Calculations!$I230:$QJ230, Calculations!$I$8:$QJ$8, BB$3, Calculations!$I$10:$QJ$10, BB$4) -> 106928.6244 | BC10: =SUMIFS(Calculations!$I230:$QJ230, Calculations!$I$8:$QJ$8, BC$3, Calculations!$I$10:$QJ$10, BC$4) -> 104193.9044 | BD10: =SUMIFS(Calculations!$I230:$QJ230, Calculations!$I$8:$QJ$8, BD$3, Calculations!$I$10:$QJ$10, BD$4) -> 105097.3487 | BE10: =SUMIFS(Calculations!$I230:$QJ230, Calculations!$I$8:$QJ$8, BE$3, Calculations!$I$10:$QJ$10, BE$4) -> 109541.3658 | BF10: =SUMIFS(Calculations!$I230:$QJ230, Calculations!$I$8:$QJ$8, BF$3, Calculations!$I$10:$QJ$10, BF$4) -> 105232.2212 | BG10: =SUMIFS(Calculations!$I230:$QJ230, Calculations!$I$8:$QJ$8, BG$3, Calculations!$I$10:$QJ$10, BG$4) -> 103030.7128 | BH10: =SUMIFS(Calculations!$I230:$QJ230, Calculations!$I$8:$QJ$8, BH$3, Calculations!$I$10:$QJ$10, BH$4) -> 103529.6103 | BI10: =SUMIFS(Calculations!$I230:$QJ230, Calculations!$I$8:$QJ$8, BI$3, Calculations!$I$10:$QJ$10, BI$4) -> 107032.8759 | BJ10: =SUMIFS(Calculations!$I230:$QJ230, Calculations!$I$8:$QJ$8, BJ$3, Calculations!$I$10:$QJ$10, BJ$4) -> 103547.6972 | BK10: =SUMIFS(Calculations!$I230:$QJ230, Calculations!$I$8:$QJ$8, BK$3, Calculations!$I$10:$QJ$10, BK$4) -> 101879.0999 | BL10: =SUMIFS(Calculations!$I230:$QJ230, Calculations!$I$8:$QJ$8, BL$3, Calculations!$I$10:$QJ$10, BL$4) -> 103069.3425 | BM10: =SUMIFS(Calculations!$I230:$QJ230, Calculations!$I$8:$QJ$8, BM$3, Calculations!$I$10:$QJ$10, BM$4) -> 105232.3714 | BN10: =SUMIFS(Calculations!$I230:$QJ230, Calculations!$I$8:$QJ$8, BN$3, Calculations!$I$10:$QJ$10, BN$4) -> 101874.8839 | BO10: =SUMIFS(Calculations!$I230:$QJ230, Calculations!$I$8:$QJ$8, BO$3, Calculations!$I$10:$QJ$10, BO$4) -> 100738.9506 | BP10: =SUMIFS(Calculations!$I230:$QJ230, Calculations!$I$8:$QJ$8, BP$3, Calculations!$I$10:$QJ$10, BP$4) -> 100429.0748 | BQ10: =SUMIFS(Calculations!$I230:$QJ230, Calculations!$I$8:$QJ$8, BQ$3, Calculations!$I$10:$QJ$10, BQ$4) -> 103443.7624 | BR10: =SUMIFS(Calculations!$I230:$QJ230, Calculations!$I$8:$QJ$8, BR$3, Calculations!$I$10:$QJ$10, BR$4) -> 100327.2024 | BS10: =SUMIFS(Calculations!$I230:$QJ230, Calculations!$I$8:$QJ$8, BS$3, Calculations!$I$10:$QJ$10, BS$4) -> 99610.15062 | BT10: =SUMIFS(Calculations!$I230:$QJ230, Calculations!$I$8:$QJ$8, BT$3, Calculations!$I$10:$QJ$10, BT$4) -> 98895.96777 | BU10: =SUMIFS(Calculations!$I230:$QJ230, Calculations!$I$8:$QJ$8, BU$3, Calculations!$I$10:$QJ$10, BU$4) -> 101666.8702 | BV10: =SUMIFS(Calculations!$I230:$QJ230, Calculations!$I$8:$QJ$8, BV$3, Calculations!$I$10:$QJ$10, BV$4) -> 98948.64288 | BW10: =SUMIFS(Calculations!$I230:$QJ230, Calculations!$I$8:$QJ$8, BW$3, Calculations!$I$10:$QJ$10, BW$4) -> 98492.58706 | BX10: =SUMIFS(Calculations!$I230:$QJ230, Calculations!$I$8:$QJ$8, BX$3, Calculations!$I$10:$QJ$10, BX$4) -> 97374.09661 | BY10: =SUMIFS(Calculations!$I230:$QJ230, Calculations!$I$8:$QJ$8, BY$3, Calculations!$I$10:$QJ$10, BY$4) -> 99901.51739 | BZ10: =SUMIFS(Calculations!$I230:$QJ230, Calculations!$I$8:$QJ$8, BZ$3, Calculations!$I$10:$QJ$10, BZ$4) -> 97662.72024 | CA10: =SUMIFS(Calculations!$I230:$QJ230, Calculations!$I$8:$QJ$8, CA$3, Calculations!$I$10:$QJ$10, CA$4) -> 97386.14805 | CB10: =SUMIFS(Calculations!$I230:$QJ230, Calculations!$I$8:$QJ$8, CB$3, Calculations!$I$10:$QJ$10, CB$4) -> 96910.36642 | CC10: =SUMIFS(Calculations!$I230:$QJ230, Calculations!$I$8:$QJ$8, CC$3, Calculations!$I$10:$QJ$10, CC$4) -> 98147.52751 | CD10: =SUMIFS(Calculations!$I230:$QJ230, Calculations!$I$8:$QJ$8, CD$3, Calculations!$I$10:$QJ$10, CD$4) -> 96564.54197 | CE10: =SUMIFS(Calculations!$I230:$QJ230, Calculations!$I$8:$QJ$8, CE$3, Calculations!$I$10:$QJ$10, CE$4) -> 96290.72287 | CF10: =SUMIFS(Calculations!$I230:$QJ230, Calculations!$I$8:$QJ$8, CF$3, Calculations!$I$10:$QJ$10, CF$4) -> 94363.45451 | CG10: =SUMIFS(Calculations!$I230:$QJ230, Calculations!$I$8:$QJ$8, CG$3, Calculations!$I$10:$QJ$10, CG$4) -> 96424.12469 | CH10: =SUMIFS(Calculations!$I230:$QJ230, Calculations!$I$8:$QJ$8, CH$3, Calculations!$I$10:$QJ$10, CH$4) -> 95477.2953 | CI10: =SUMIFS(Calculations!$I230:$QJ230, Calculations!$I$8:$QJ$8, CI$3, Calculations!$I$10:$QJ$10, CI$4) -> 95206.20187 | CJ10: =SUMIFS(Calculations!$I230:$QJ230, Calculations!$I$8:$QJ$8, CJ$3, Calculations!$I$10:$QJ$10, CJ$4) -> 92987.42602 | CK10: =SUMIFS(Calculations!$I230:$QJ230, Calculations!$I$8:$QJ$8, CK$3, Calculations!$I$10:$QJ$10, CK$4) -> 94934.37762 | CL10: =SUMIFS(Calculations!$I230:$QJ230, Calculations!$I$8:$QJ$8, CL$3, Calculations!$I$10:$QJ$10, CL$4) -> 94400.87139 | CM10: =SUMIFS(Calculations!$I230:$QJ230, Calculations!$I$8:$QJ$8, CM$3, Calculations!$I$10:$QJ$10, CM$4) -> 94132.47651 | CN10: =SUMIFS(Calculations!$I230:$QJ230, Calculations!$I$8:$QJ$8, CN$3, Calculations!$I$10:$QJ$10, CN$4) -> 91825.1608 | CO10: =SUMIFS(Calculations!$I230:$QJ230, Calculations!$I$8:$QJ$8, CO$3, Calculations!$I$10:$QJ$10, CO$4) -> 93599.79798 | CP10: =SUMIFS(Calculations!$I230:$QJ230, Calculations!$I$8:$QJ$8, CP$3, Calculations!$I$10:$QJ$10, CP$4) -> 93335.16253 | CQ10: =SUMIFS(Calculations!$I230:$QJ230, Calculations!$I$8:$QJ$8, CQ$3, Calculations!$I$10:$QJ$10, CQ$4) -> 93069.43933 | CR10: =SUMIFS(Calculations!$I230:$QJ230, Calculations!$I$8:$QJ$8, CR$3, Calculations!$I$10:$QJ$10, CR$4) -> 91796.58417 | CS10: =SUMIFS(Calculations!$I230:$QJ230, Calculations!$I$8:$QJ$8, CS$3, Calculations!$I$10:$QJ$10, CS$4) -> 92352.45753 | CT10: =SUMIFS(Calculations!$I230:$QJ230, Calculations!$I$8:$QJ$8, CT$3, Calculations!$I$10:$QJ$10, CT$4) -> 92280.06204 | CU10: =SUMIFS(Calculations!$I230:$QJ230, Calculations!$I$8:$QJ$8, CU$3, Calculations!$I$10:$QJ$10, CU$4) -> 92016.98393 | CV10: =SUMIFS(Calculations!$I230:$QJ230, Calculations!$I$8:$QJ$8, CV$3, Calculations!$I$10:$QJ$10, CV$4) -> 89760.82662 | CW10: =SUMIFS(Calculations!$I230:$QJ230, Calculations!$I$8:$QJ$8, CW$3, Calculations!$I$10:$QJ$10, CW$4) -> 91115.64911 | CX10: =SUMIFS(Calculations!$I230:$QJ230, Calculations!$I$8:$QJ$8, CX$3, Calculations!$I$10:$QJ$10, CX$4) -> 91235.46434 | CY10: =SUMIFS(Calculations!$I230:$QJ230, Calculations!$I$8:$QJ$8, CY$3, Calculations!$I$10:$QJ$10, CY$4) -> 90975.00498 | CZ10: =SUMIFS(Calculations!$I230:$QJ230, Calculations!$I$8:$QJ$8, CZ$3, Calculations!$I$10:$QJ$10, CZ$4) -> 88744.04558 | DA10: =SUMIFS(Calculations!$I230:$QJ230, Calculations!$I$8:$QJ$8, DA$3, Calculations!$I$10:$QJ$10, DA$4) -> 89889.24902 | DB10: =SUMIFS(Calculations!$I230:$QJ230, Calculations!$I$8:$QJ$8, DB$3, Calculations!$I$10:$QJ$10, DB$4) -> 90201.26487 | DC10: =SUMIFS(Calculations!$I230:$QJ230, Calculations!$I$8:$QJ$8, DC$3, Calculations!$I$10:$QJ$10, DC$4) -> 89943.3982 | DD10: =SUMIFS(Calculations!$I230:$QJ230, Calculations!$I$8:$QJ$8, DD$3, Calculations!$I$10:$QJ$10, DD$4) -> 87737.38588 | DE10: =SUMIFS(Calculations!$I230:$QJ230, Calculations!$I$8:$QJ$8, DE$3, Calculations!$I$10:$QJ$10, DE$4) -> 88673.13464 | DF10: =SUMIFS(Calculations!$I230:$QJ230, Calculations!$I$8:$QJ$8, DF$3, Calculations!$I$10:$QJ$10, DF$4) -> 89177.36012 | DG10: =SUMIFS(Calculations!$I230:$QJ230, Calculations!$I$8:$QJ$8, DG$3, Calculations!$I$10:$QJ$10, DG$4) -> 88922.06033 | DH10: =SUMIFS(Calculations!$I230:$QJ230, Calculations!$I$8:$QJ$8, DH$3, Calculations!$I$10:$QJ$10, DH$4) -> 87704.53257 | DI10: =SUMIFS(Calculations!$I230:$QJ230, Calculations!$I$8:$QJ$8, DI$3, Calculations!$I$10:$QJ$10, DI$4) -> 87467.18434 | DJ10: =SUMIFS(Calculations!$I230:$QJ230, Calculations!$I$8:$QJ$8, DJ$3, Calculations!$I$10:$QJ$10, DJ$4) -> 88163.64762 | DK10: =SUMIFS(Calculations!$I230:$QJ230, Calculations!$I$8:$QJ$8, DK$3, Calculations!$I$10:$QJ$10, DK$4) -> 86032.40021
C11: less: Purchased from EDA | E11: EUR | G11: -6482146.178 | H11: =SUMIFS(Calculations!$I354:$QJ354, Calculations!$I$8:$QJ$8, H$3, Calculations!$I$10:$QJ$10, H$4) -> 0 | I11: =SUMIFS(Calculations!$I354:$QJ354, Calculations!$I$8:$QJ$8, I$3, Calculations!$I$10:$QJ$10, I$4) -> 0 | J11: =SUMIFS(Calculations!$I354:$QJ354, Calculations!$I$8:$QJ$8, J$3, Calculations!$I$10:$QJ$10, J$4) -> 0 | K11: =SUMIFS(Calculations!$I354:$QJ354, Calculations!$I$8:$QJ$8, K$3, Calculations!$I$10:$QJ$10, K$4) -> 0 | L11: =SUMIFS(Calculations!$I354:$QJ354, Calculations!$I$8:$QJ$8, L$3, Calculations!$I$10:$QJ$10, L$4) -> 0 | M11: =SUMIFS(Calculations!$I354:$QJ354, Calculations!$I$8:$QJ$8, M$3, Calculations!$I$10:$QJ$10, M$4) -> 0 | N11: =SUMIFS(Calculations!$I354:$QJ354, Calculations!$I$8:$QJ$8, N$3, Calculations!$I$10:$QJ$10, N$4) -> 0 | O11: =SUMIFS(Calculations!$I354:$QJ354, Calculations!$I$8:$QJ$8, O$3, Calculations!$I$10:$QJ$10, O$4) -> 0 | P11: =SUMIFS(Calculations!$I354:$QJ354, Calculations!$I$8:$QJ$8, P$3, Calculations!$I$10:$QJ$10, P$4) -> -19346.84065 | Q11: =SUMIFS(Calculations!$I354:$QJ354, Calculations!$I$8:$QJ$8, Q$3, Calculations!$I$10:$QJ$10, Q$4) -> 0 | R11: =SUMIFS(Calculations!$I354:$QJ354, Calculations!$I$8:$QJ$8, R$3, Calculations!$I$10:$QJ$10, R$4) -> -12055.28285 | S11: =SUMIFS(Calculations!$I354:$QJ354, Calculations!$I$8:$QJ$8, S$3, Calculations!$I$10:$QJ$10, S$4) -> -96272.00899 | T11: =SUMIFS(Calculations!$I354:$QJ354, Calculations!$I$8:$QJ$8, T$3, Calculations!$I$10:$QJ$10, T$4) -> -18730.85719 | U11: =SUMIFS(Calculations!$I354:$QJ354, Calculations!$I$8:$QJ$8, U$3, Calculations!$I$10:$QJ$10, U$4) -> 0 | V11: =SUMIFS(Calculations!$I354:$QJ354, Calculations!$I$8:$QJ$8, V$3, Calculations!$I$10:$QJ$10, V$4) -> -14115.32447 | W11: =SUMIFS(Calculations!$I354:$QJ354, Calculations!$I$8:$QJ$8, W$3, Calculations!$I$10:$QJ$10, W$4) -> -99401.21378 | X11: =SUMIFS(Calculations!$I354:$QJ354, Calculations!$I$8:$QJ$8, X$3, Calculations!$I$10:$QJ$10, X$4) -> -22163.97652 | Y11: =SUMIFS(Calculations!$I354:$QJ354, Calculations!$I$8:$QJ$8, Y$3, Calculations!$I$10:$QJ$10, Y$4) -> 0 | Z11: =SUMIFS(Calculations!$I354:$QJ354, Calculations!$I$8:$QJ$8, Z$3, Calculations!$I$10:$QJ$10, Z$4) -> -18169.49952 | AA11: =SUMIFS(Calculations!$I354:$QJ354, Calculations!$I$8:$QJ$8, AA$3, Calculations!$I$10:$QJ$10, AA$4) -> -101360.4384 | AB11: =SUMIFS(Calculations!$I354:$QJ354, Calculations!$I$8:$QJ$8, AB$3, Calculations!$I$10:$QJ$10, AB$4) -> -26252.97975 | AC11: =SUMIFS(Calculations!$I354:$QJ354, Calculations!$I$8:$QJ$8, AC$3, Calculations!$I$10:$QJ$10, AC$4) -> 0 | AD11: =SUMIFS(Calculations!$I354:$QJ354, Calculations!$I$8:$QJ$8, AD$3, Calculations!$I$10:$QJ$10, AD$4) -> -22921.02422 | AE11: =SUMIFS(Calculations!$I354:$QJ354, Calculations!$I$8:$QJ$8, AE$3, Calculations!$I$10:$QJ$10, AE$4) -> -102502.2476 | AF11: =SUMIFS(Calculations!$I354:$QJ354, Calculations!$I$8:$QJ$8, AF$3, Calculations!$I$10:$QJ$10, AF$4) -> -31589.06053 | AG11: =SUMIFS(Calculations!$I354:$QJ354, Calculations!$I$8:$QJ$8, AG$3, Calculations!$I$10:$QJ$10, AG$4) -> 0 | AH11: =SUMIFS(Calculations!$I354:$QJ354, Calculations!$I$8:$QJ$8, AH$3, Calculations!$I$10:$QJ$10, AH$4) -> -30974.78629 | AI11: =SUMIFS(Calculations!$I354:$QJ354, Calculations!$I$8:$QJ$8, AI$3, Calculations!$I$10:$QJ$10, AI$4) -> -103654.8887 | AJ11: =SUMIFS(Calculations!$I354:$QJ354, Calculations!$I$8:$QJ$8, AJ$3, Calculations!$I$10:$QJ$10, AJ$4) -> -34438.78553 | AK11: =SUMIFS(Calculations!$I354:$QJ354, Calculations!$I$8:$QJ$8, AK$3, Calculations!$I$10:$QJ$10, AK$4) -> 476.8566659 | AL11: =SUMIFS(Calculations!$I354:$QJ354, Calculations!$I$8:$QJ$8, AL$3, Calculations!$I$10:$QJ$10, AL$4) -> -39031.27057 | AM11: =SUMIFS(Calculations!$I354:$QJ354, Calculations!$I$8:$QJ$8, AM$3, Calculations!$I$10:$QJ$10, AM$4) -> -103148.4787 | AN11: =SUMIFS(Calculations!$I354:$QJ354, Calculations!$I$8:$QJ$8, AN$3, Calculations!$I$10:$QJ$10, AN$4) -> -38536.40262 | AO11: =SUMIFS(Calculations!$I354:$QJ354, Calculations!$I$8:$QJ$8, AO$3, Calculations!$I$10:$QJ$10, AO$4) -> -3516.980778 | AP11: =SUMIFS(Calculations!$I354:$QJ354, Calculations!$I$8:$QJ$8, AP$3, Calculations!$I$10:$QJ$10, AP$4) -> -47091.27887 | AQ11: =SUMIFS(Calculations!$I354:$QJ354, Calculations!$I$8:$QJ$8, AQ$3, Calculations!$I$10:$QJ$10, AQ$4) -> -102021.3278 | AR11: =SUMIFS(Calculations!$I354:$QJ354, Calculations!$I$8:$QJ$8, AR$3, Calculations!$I$10:$QJ$10, AR$4) -> -42637.70603 | AS11: =SUMIFS(Calculations!$I354:$QJ354, Calculations!$I$8:$QJ$8, AS$3, Calculations!$I$10:$QJ$10, AS$4) -> -8357.583073 | AT11: =SUMIFS(Calculations!$I354:$QJ354, Calculations!$I$8:$QJ$8, AT$3, Calculations!$I$10:$QJ$10, AT$4) -> -55155.61333 | AU11: =SUMIFS(Calculations!$I354:$QJ354, Calculations!$I$8:$QJ$8, AU$3, Calculations!$I$10:$QJ$10, AU$4) -> -100905.3969 | AV11: =SUMIFS(Calculations!$I354:$QJ354, Calculations!$I$8:$QJ$8, AV$3, Calculations!$I$10:$QJ$10, AV$4) -> -47938.58497 | AW11: =SUMIFS(Calculations!$I354:$QJ354, Calculations!$I$8:$QJ$8, AW$3, Calculations!$I$10:$QJ$10, AW$4) -> -13198.80475 | AX11: =SUMIFS(Calculations!$I354:$QJ354, Calculations!$I$8:$QJ$8, AX$3, Calculations!$I$10:$QJ$10, AX$4) -> -63225.07644 | AY11: =SUMIFS(Calculations!$I354:$QJ354, Calculations!$I$8:$QJ$8, AY$3, Calculations!$I$10:$QJ$10, AY$4) -> -99800.57424 | AZ11: =SUMIFS(Calculations!$I354:$QJ354, Calculations!$I$8:$QJ$8, AZ$3, Calculations!$I$10:$QJ$10, AZ$4) -> -50853.00443 | BA11: =SUMIFS(Calculations!$I354:$QJ354, Calculations!$I$8:$QJ$8, BA$3, Calculations!$I$10:$QJ$10, BA$4) -> -18041.1277 | BB11: =SUMIFS(Calculations!$I354:$QJ354, Calculations!$I$8:$QJ$8, BB$3, Calculations!$I$10:$QJ$10, BB$4) -> -69773.63539 | BC11: =SUMIFS(Calculations!$I354:$QJ354, Calculations!$I$8:$QJ$8, BC$3, Calculations!$I$10:$QJ$10, BC$4) -> -98706.74935 | BD11: =SUMIFS(Calculations!$I354:$QJ354, Calculations!$I$8:$QJ$8, BD$3, Calculations!$I$10:$QJ$10, BD$4) -> -54967.81672 | BE11: =SUMIFS(Calculations!$I354:$QJ354, Calculations!$I$8:$QJ$8, BE$3, Calculations!$I$10:$QJ$10, BE$4) -> -22885.03387 | BF11: =SUMIFS(Calculations!$I354:$QJ354, Calculations!$I$8:$QJ$8, BF$3, Calculations!$I$10:$QJ$10, BF$4) -> -75032.76823 | BG11: =SUMIFS(Calculations!$I354:$QJ354, Calculations!$I$8:$QJ$8, BG$3, Calculations!$I$10:$QJ$10, BG$4) -> -97623.81272 | BH11: =SUMIFS(Calculations!$I354:$QJ354, Calculations!$I$8:$QJ$8, BH$3, Calculations!$I$10:$QJ$10, BH$4) -> -59087.95004 | BI11: =SUMIFS(Calculations!$I354:$QJ354, Calculations!$I$8:$QJ$8, BI$3, Calculations!$I$10:$QJ$10, BI$4) -> -27915.0837 | BJ11: =SUMIFS(Calculations!$I354:$QJ354, Calculations!$I$8:$QJ$8, BJ$3, Calculations!$I$10:$QJ$10, BJ$4) -> -80299.46308 | BK11: =SUMIFS(Calculations!$I354:$QJ354, Calculations!$I$8:$QJ$8, BK$3, Calculations!$I$10:$QJ$10, BK$4) -> -96551.65595 | BL11: =SUMIFS(Calculations!$I354:$QJ354, Calculations!$I$8:$QJ$8, BL$3, Calculations!$I$10:$QJ$10, BL$4) -> -64362.09032 | BM11: =SUMIFS(Calculations!$I354:$QJ354, Calculations!$I$8:$QJ$8, BM$3, Calculations!$I$10:$QJ$10, BM$4) -> -34841.50458 | BN11: =SUMIFS(Calculations!$I354:$QJ354, Calculations!$I$8:$QJ$8, BN$3, Calculations!$I$10:$QJ$10, BN$4) -> -85574.2438 | BO11: =SUMIFS(Calculations!$I354:$QJ354, Calculations!$I$8:$QJ$8, BO$3, Calculations!$I$10:$QJ$10, BO$4) -> -95490.17175 | BP11: =SUMIFS(Calculations!$I354:$QJ354, Calculations!$I$8:$QJ$8, BP$3, Calculations!$I$10:$QJ$10, BP$4) -> -67345.81967 | BQ11: =SUMIFS(Calculations!$I354:$QJ354, Calculations!$I$8:$QJ$8, BQ$3, Calculations!$I$10:$QJ$10, BQ$4) -> -41771.09248 | BR11: =SUMIFS(Calculations!$I354:$QJ354, Calculations!$I$8:$QJ$8, BR$3, Calculations!$I$10:$QJ$10, BR$4) -> -89498.57414 | BS11: =SUMIFS(Calculations!$I354:$QJ354, Calculations!$I$8:$QJ$8, BS$3, Calculations!$I$10:$QJ$10, BS$4) -> -94439.25387 | BT11: =SUMIFS(Calculations!$I354:$QJ354, Calculations!$I$8:$QJ$8, BT$3, Calculations!$I$10:$QJ$10, BT$4) -> -71484.37735 | BU11: =SUMIFS(Calculations!$I354:$QJ354, Calculations!$I$8:$QJ$8, BU$3, Calculations!$I$10:$QJ$10, BU$4) -> -48704.53701 | BV11: =SUMIFS(Calculations!$I354:$QJ354, Calculations!$I$8:$QJ$8, BV$3, Calculations!$I$10:$QJ$10, BV$4) -> -91544.66148 | BW11: =SUMIFS(Calculations!$I354:$QJ354, Calculations!$I$8:$QJ$8, BW$3, Calculations!$I$10:$QJ$10, BW$4) -> -93398.79714 | BX11: =SUMIFS(Calculations!$I354:$QJ354, Calculations!$I$8:$QJ$8, BX$3, Calculations!$I$10:$QJ$10, BX$4) -> -75629.89889 | BY11: =SUMIFS(Calculations!$I354:$QJ354, Calculations!$I$8:$QJ$8, BY$3, Calculations!$I$10:$QJ$10, BY$4) -> -55642.52814 | BZ11: =SUMIFS(Calculations!$I354:$QJ354, Calculations!$I$8:$QJ$8, BZ$3, Calculations!$I$10:$QJ$10, BZ$4) -> -92626.18737 | CA11: =SUMIFS(Calculations!$I354:$QJ354, Calculations!$I$8:$QJ$8, CA$3, Calculations!$I$10:$QJ$10, CA$4) -> -92368.69742 | CB11: =SUMIFS(Calculations!$I354:$QJ354, Calculations!$I$8:$QJ$8, CB$3, Calculations!$I$10:$QJ$10, CB$4) -> -80885.7193 | CC11: =SUMIFS(Calculations!$I354:$QJ354, Calculations!$I$8:$QJ$8, CC$3, Calculations!$I$10:$QJ$10, CC$4) -> -62585.75626 | CD11: =SUMIFS(Calculations!$I354:$QJ354, Calculations!$I$8:$QJ$8, CD$3, Calculations!$I$10:$QJ$10, CD$4) -> -91603.77843 | CE11: =SUMIFS(Calculations!$I354:$QJ354, Calculations!$I$8:$QJ$8, CE$3, Calculations!$I$10:$QJ$10, CE$4) -> -91348.85161 | CF11: =SUMIFS(Calculations!$I354:$QJ354, Calculations!$I$8:$QJ$8, CF$3, Calculations!$I$10:$QJ$10, CF$4) -> -83943.48337 | CG11: =SUMIFS(Calculations!$I354:$QJ354, Calculations!$I$8:$QJ$8, CG$3, Calculations!$I$10:$QJ$10, CG$4) -> -69302.80376 | CH11: =SUMIFS(Calculations!$I354:$QJ354, Calculations!$I$8:$QJ$8, CH$3, Calculations!$I$10:$QJ$10, CH$4) -> -90591.54686 | CI11: =SUMIFS(Calculations!$I354:$QJ354, Calculations!$I$8:$QJ$8, CI$3, Calculations!$I$10:$QJ$10, CI$4) -> -90339.15765 | CJ11: =SUMIFS(Calculations!$I354:$QJ354, Calculations!$I$8:$QJ$8, CJ$3, Calculations!$I$10:$QJ$10, CJ$4) -> -86759.83236 | CK11: =SUMIFS(Calculations!$I354:$QJ354, Calculations!$I$8:$QJ$8, CK$3, Calculations!$I$10:$QJ$10, CK$4) -> -73362.60266 | CL11: =SUMIFS(Calculations!$I354:$QJ354, Calculations!$I$8:$QJ$8, CL$3, Calculations!$I$10:$QJ$10, CL$4) -> -89589.39133 | CM11: =SUMIFS(Calculations!$I354:$QJ354, Calculations!$I$8:$QJ$8, CM$3, Calculations!$I$10:$QJ$10, CM$4) -> -89339.51448 | CN11: =SUMIFS(Calculations!$I354:$QJ354, Calculations!$I$8:$QJ$8, CN$3, Calculations!$I$10:$QJ$10, CN$4) -> -87154.39848 | CO11: =SUMIFS(Calculations!$I354:$QJ354, Calculations!$I$8:$QJ$8, CO$3, Calculations!$I$10:$QJ$10, CO$4) -> -75702.87251 | CP11: =SUMIFS(Calculations!$I354:$QJ354, Calculations!$I$8:$QJ$8, CP$3, Calculations!$I$10:$QJ$10, CP$4) -> -88597.21155 | CQ11: =SUMIFS(Calculations!$I354:$QJ354, Calculations!$I$8:$QJ$8, CQ$3, Calculations!$I$10:$QJ$10, CQ$4) -> -88349.82205 | CR11: =SUMIFS(Calculations!$I354:$QJ354, Calculations!$I$8:$QJ$8, CR$3, Calculations!$I$10:$QJ$10, CR$4) -> -87146.29082 | CS11: =SUMIFS(Calculations!$I354:$QJ354, Calculations!$I$8:$QJ$8, CS$3, Calculations!$I$10:$QJ$10, CS$4) -> -77134.99705 | CT11: =SUMIFS(Calculations!$I354:$QJ354, Calculations!$I$8:$QJ$8, CT$3, Calculations!$I$10:$QJ$10, CT$4) -> -87614.90823 | CU11: =SUMIFS(Calculations!$I354:$QJ354, Calculations!$I$8:$QJ$8, CU$3, Calculations!$I$10:$QJ$10, CU$4) -> -87369.98131 | CV11: =SUMIFS(Calculations!$I354:$QJ354, Calculations!$I$8:$QJ$8, CV$3, Calculations!$I$10:$QJ$10, CV$4) -> -85232.49402 | CW11: =SUMIFS(Calculations!$I354:$QJ354, Calculations!$I$8:$QJ$8, CW$3, Calculations!$I$10:$QJ$10, CW$4) -> -78575.41194 | CX11: =SUMIFS(Calculations!$I354:$QJ354, Calculations!$I$8:$QJ$8, CX$3, Calculations!$I$10:$QJ$10, CX$4) -> -86642.38303 | CY11: =SUMIFS(Calculations!$I354:$QJ354, Calculations!$I$8:$QJ$8, CY$3, Calculations!$I$10:$QJ$10, CY$4) -> -86399.89419 | CZ11: =SUMIFS(Calculations!$I354:$QJ354, Calculations!$I$8:$QJ$8, CZ$3, Calculations!$I$10:$QJ$10, CZ$4) -> -84285.86627 | DA11: =SUMIFS(Calculations!$I354:$QJ354, Calculations!$I$8:$QJ$8, DA$3, Calculations!$I$10:$QJ$10, DA$4) -> -80024.2601 | DB11: =SUMIFS(Calculations!$I354:$QJ354, Calculations!$I$8:$QJ$8, DB$3, Calculations!$I$10:$QJ$10, DB$4) -> -85679.53864 | DC11: =SUMIFS(Calculations!$I354:$QJ354, Calculations!$I$8:$QJ$8, DC$3, Calculations!$I$10:$QJ$10, DC$4) -> -85439.46361 | DD11: =SUMIFS(Calculations!$I354:$QJ354, Calculations!$I$8:$QJ$8, DD$3, Calculations!$I$10:$QJ$10, DD$4) -> -83348.66153 | DE11: =SUMIFS(Calculations!$I354:$QJ354, Calculations!$I$8:$QJ$8, DE$3, Calculations!$I$10:$QJ$10, DE$4) -> -81481.68532 | DF11: =SUMIFS(Calculations!$I354:$QJ354, Calculations!$I$8:$QJ$8, DF$3, Calculations!$I$10:$QJ$10, DF$4) -> -84726.27869 | DG11: =SUMIFS(Calculations!$I354:$QJ354, Calculations!$I$8:$QJ$8, DG$3, Calculations!$I$10:$QJ$10, DG$4) -> -84488.59343 | DH11: =SUMIFS(Calculations!$I354:$QJ354, Calculations!$I$8:$QJ$8, DH$3, Calculations!$I$10:$QJ$10, DH$4) -> -83336.57226 | DI11: =SUMIFS(Calculations!$I354:$QJ354, Calculations!$I$8:$QJ$8, DI$3, Calculations!$I$10:$QJ$10, DI$4) -> -82947.83219 | DJ11: =SUMIFS(Calculations!$I354:$QJ354, Calculations!$I$8:$QJ$8, DJ$3, Calculations!$I$10:$QJ$10, DJ$4) -> -83782.50776 | DK11: =SUMIFS(Calculations!$I354:$QJ354, Calculations!$I$8:$QJ$8, DK$3, Calculations!$I$10:$QJ$10, DK$4) -> -82533.84065
C12: Total Revenues | G12: 46415463.54 | H12: =+H9+H10+H11 -> 0 | I12: 0 | J12: 0 | K12: 0 | L12: 0 | M12: 0 | N12: 0 | O12: 0 | P12: 390519.0438 | Q12: 563594.1929 | R12: 658274.6067 | S12: 365684.0125 | T12: 391374.9156 | U12: 566711.884 | V12: 660189.4447 | W12: 363401.3322 | X12: 388621.8678 | Y12: 569885.9994 | Z12: 659374.3556 | AA12: 360453.9264 | AB12: 385792.8553 | AC12: 573116.852 | AD12: 657803.2674 | AE12: 357320.8431 | AF12: 382958.2712 | AG12: 576404.7604 | AH12: 653362.4667 | AI12: 354224.9291 | AJ12: 380253.9305 | AK12: 579537.9134 | AL12: 648988.2081 | AM12: 350715.8531 | AN12: 377543.4625 | AO12: 577842.605 | AP12: 644680.0528 | AQ12: 347073.0754 | AR12: 374871.9602 | AS12: 575996.351 | AT12: 640437.5682 | AU12: 343466.559 | AV12: 372190.1494 | AW12: 574208.4311 | AX12: 636260.3286 | AY12: 339895.9429 | AZ12: 369644.7844 | BA12: 572478.6644 | BB12: 631736.4718 | BC12: 336360.8698 | BD12: 367088.5865 | BE12: 570806.8754 | BF12: 626927.7456 | BG12: 332860.9859 | BH12: 364570.3053 | BI12: 568109.8411 | BJ12: 622183.032 | BK12: 329395.9408 | BL12: 362037.1837 | BM12: 564272.8362 | BN12: 617501.855 | BO12: 325965.3877 | BP12: 359646.4859 | BQ12: 560493.459 | BR12: 612517.5135 | BS12: =+BS9+BS10+BS11 -> 322568.9835 | BT12: 357240.4536 | BU12: 556771.3301 | BV12: 607087.1763 | BW12: 319206.388 | BX12: 354871.3495 | BY12: 553106.0761 | BZ12: 601456.4582 | CA12: 315877.2648 | CB12: 352483.0704 | CC12: 549497.329 | CD12: 595317.7349 | CE12: 312581.2806 | CF12: 350242.9787 | CG12: 545882.1793 | CH12: 589240.1182 | CI12: 309318.1057 | CJ12: 347618.7724 | CK12: 541604.9738 | CL12: 583223 | CM12: 306087.4133 | CN12: 344375.6348 | CO12: 536917.8662 | CP12: 577265.7778 | CQ12: 302888.8803 | CR12: 340712.7668 | CS12: 532038.9713 | CT12: 571367.8557 | CU12: 299722.1863 | CV12: 337258.4979 | CW12: 527214.7179 | CX12: 565528.6431 | CY12: 296587.0146 | CZ12: 333752.9754 | DA12: 522444.6229 | DB12: 559747.5558 | DC12: 293483.0512 | DD12: 330282.3479 | DE12: 517728.2086 | DF12: 554024.0152 | DG12: 290409.9857 | DH12: 326756.666 | DI12: 513065.0026 | DJ12: 548357.4483 | DK12: 284619.3679
C13: =Calculations!C356 -> less: Operating Expenses | E13: =Calculations!E356 -> EUR | G13: -16043047.95 | H13: =SUMIFS(Calculations!$I356:$QJ356, Calculations!$I$8:$QJ$8, H$3, Calculations!$I$10:$QJ$10, H$4) -> 0 | I13: =SUMIFS(Calculations!$I356:$QJ356, Calculations!$I$8:$QJ$8, I$3, Calculations!$I$10:$QJ$10, I$4) -> 0 | J13: =SUMIFS(Calculations!$I356:$QJ356, Calculations!$I$8:$QJ$8, J$3, Calculations!$I$10:$QJ$10, J$4) -> 0 | K13: =SUMIFS(Calculations!$I356:$QJ356, Calculations!$I$8:$QJ$8, K$3, Calculations!$I$10:$QJ$10, K$4) -> 0 | L13: =SUMIFS(Calculations!$I356:$QJ356, Calculations!$I$8:$QJ$8, L$3, Calculations!$I$10:$QJ$10, L$4) -> 0 | M13: =SUMIFS(Calculations!$I356:$QJ356, Calculations!$I$8:$QJ$8, M$3, Calculations!$I$10:$QJ$10, M$4) -> 0 | N13: =SUMIFS(Calculations!$I356:$QJ356, Calculations!$I$8:$QJ$8, N$3, Calculations!$I$10:$QJ$10, N$4) -> 0 | O13: =SUMIFS(Calculations!$I356:$QJ356, Calculations!$I$8:$QJ$8, O$3, Calculations!$I$10:$QJ$10, O$4) -> 0 | P13: =SUMIFS(Calculations!$I356:$QJ356, Calculations!$I$8:$QJ$8, P$3, Calculations!$I$10:$QJ$10, P$4) -> -135959.4686 | Q13: =SUMIFS(Calculations!$I356:$QJ356, Calculations!$I$8:$QJ$8, Q$3, Calculations!$I$10:$QJ$10, Q$4) -> -149170.9716 | R13: =SUMIFS(Calculations!$I356:$QJ356, Calculations!$I$8:$QJ$8, R$3, Calculations!$I$10:$QJ$10, R$4) -> -141253.8007 | S13: =SUMIFS(Calculations!$I356:$QJ356, Calculations!$I$8:$QJ$8, S$3, Calculations!$I$10:$QJ$10, S$4) -> -135401.9888 | T13: =SUMIFS(Calculations!$I356:$QJ356, Calculations!$I$8:$QJ$8, T$3, Calculations!$I$10:$QJ$10, T$4) -> -141441.6667 | U13: =SUMIFS(Calculations!$I356:$QJ356, Calculations!$I$8:$QJ$8, U$3, Calculations!$I$10:$QJ$10, U$4) -> -145167.6268 | V13: =SUMIFS(Calculations!$I356:$QJ356, Calculations!$I$8:$QJ$8, V$3, Calculations!$I$10:$QJ$10, V$4) -> -147256.3989 | W13: =SUMIFS(Calculations!$I356:$QJ356, Calculations!$I$8:$QJ$8, W$3, Calculations!$I$10:$QJ$10, W$4) -> -141320.6366 | X13: =SUMIFS(Calculations!$I356:$QJ356, Calculations!$I$8:$QJ$8, X$3, Calculations!$I$10:$QJ$10, X$4) -> -141862.5147 | Y13: =SUMIFS(Calculations!$I356:$QJ356, Calculations!$I$8:$QJ$8, Y$3, Calculations!$I$10:$QJ$10, Y$4) -> -145707.0181 | Z13: =SUMIFS(Calculations!$I356:$QJ356, Calculations!$I$8:$QJ$8, Z$3, Calculations!$I$10:$QJ$10, Z$4) -> -147716.006 | AA13: =SUMIFS(Calculations!$I356:$QJ356, Calculations!$I$8:$QJ$8, AA$3, Calculations!$I$10:$QJ$10, AA$4) -> -141737.5975 | AB13: =SUMIFS(Calculations!$I356:$QJ356, Calculations!$I$8:$QJ$8, AB$3, Calculations!$I$10:$QJ$10, AB$4) -> -142293.7411 | AC13: =SUMIFS(Calculations!$I356:$QJ356, Calculations!$I$8:$QJ$8, AC$3, Calculations!$I$10:$QJ$10, AC$4) -> -146259.4419 | AD13: =SUMIFS(Calculations!$I356:$QJ356, Calculations!$I$8:$QJ$8, AD$3, Calculations!$I$10:$QJ$10, AD$4) -> -148547.391 | AE13: =SUMIFS(Calculations!$I356:$QJ356, Calculations!$I$8:$QJ$8, AE$3, Calculations!$I$10:$QJ$10, AE$4) -> -142537.7425 | AF13: =SUMIFS(Calculations!$I356:$QJ356, Calculations!$I$8:$QJ$8, AF$3, Calculations!$I$10:$QJ$10, AF$4) -> -143331.2721 | AG13: =SUMIFS(Calculations!$I356:$QJ356, Calculations!$I$8:$QJ$8, AG$3, Calculations!$I$10:$QJ$10, AG$4) -> -147200.2019 | AH13: =SUMIFS(Calculations!$I356:$QJ356, Calculations!$I$8:$QJ$8, AH$3, Calculations!$I$10:$QJ$10, AH$4) -> -148958.5768 | AI13: =SUMIFS(Calculations!$I356:$QJ356, Calculations!$I$8:$QJ$8, AI$3, Calculations!$I$10:$QJ$10, AI$4) -> -142975.826 | AJ13: =SUMIFS(Calculations!$I356:$QJ356, Calculations!$I$8:$QJ$8, AJ$3, Calculations!$I$10:$QJ$10, AJ$4) -> -143570.4664 | AK13: =SUMIFS(Calculations!$I356:$QJ356, Calculations!$I$8:$QJ$8, AK$3, Calculations!$I$10:$QJ$10, AK$4) -> -147775.3668 | AL13: =SUMIFS(Calculations!$I356:$QJ356, Calculations!$I$8:$QJ$8, AL$3, Calculations!$I$10:$QJ$10, AL$4) -> -149383.5935 | AM13: =SUMIFS(Calculations!$I356:$QJ356, Calculations!$I$8:$QJ$8, AM$3, Calculations!$I$10:$QJ$10, AM$4) -> -143418.1464 | AN13: =SUMIFS(Calculations!$I356:$QJ356, Calculations!$I$8:$QJ$8, AN$3, Calculations!$I$10:$QJ$10, AN$4) -> -144041.5715 | AO13: =SUMIFS(Calculations!$I356:$QJ356, Calculations!$I$8:$QJ$8, AO$3, Calculations!$I$10:$QJ$10, AO$4) -> -148266.7751 | AP13: =SUMIFS(Calculations!$I356:$QJ356, Calculations!$I$8:$QJ$8, AP$3, Calculations!$I$10:$QJ$10, AP$4) -> -149822.7449 | AQ13: =SUMIFS(Calculations!$I356:$QJ356, Calculations!$I$8:$QJ$8, AQ$3, Calculations!$I$10:$QJ$10, AQ$4) -> -143870.6053 | AR13: =SUMIFS(Calculations!$I356:$QJ356, Calculations!$I$8:$QJ$8, AR$3, Calculations!$I$10:$QJ$10, AR$4) -> -144526.5887 | AS13: =SUMIFS(Calculations!$I356:$QJ356, Calculations!$I$8:$QJ$8, AS$3, Calculations!$I$10:$QJ$10, AS$4) -> -148768.2973 | AT13: =SUMIFS(Calculations!$I356:$QJ356, Calculations!$I$8:$QJ$8, AT$3, Calculations!$I$10:$QJ$10, AT$4) -> -150276.3425 | AU13: =SUMIFS(Calculations!$I356:$QJ356, Calculations!$I$8:$QJ$8, AU$3, Calculations!$I$10:$QJ$10, AU$4) -> -144336.9223 | AV13: =SUMIFS(Calculations!$I356:$QJ356, Calculations!$I$8:$QJ$8, AV$3, Calculations!$I$10:$QJ$10, AV$4) -> -145244.0818 | AW13: =SUMIFS(Calculations!$I356:$QJ356, Calculations!$I$8:$QJ$8, AW$3, Calculations!$I$10:$QJ$10, AW$4) -> -149284.4474 | AX13: =SUMIFS(Calculations!$I356:$QJ356, Calculations!$I$8:$QJ$8, AX$3, Calculations!$I$10:$QJ$10, AX$4) -> -150744.7062 | AY13: =SUMIFS(Calculations!$I356:$QJ356, Calculations!$I$8:$QJ$8, AY$3, Calculations!$I$10:$QJ$10, AY$4) -> -144817.4185 | AZ13: =SUMIFS(Calculations!$I356:$QJ356, Calculations!$I$8:$QJ$8, AZ$3, Calculations!$I$10:$QJ$10, AZ$4) -> -145539.6599 | BA13: =SUMIFS(Calculations!$I356:$QJ356, Calculations!$I$8:$QJ$8, BA$3, Calculations!$I$10:$QJ$10, BA$4) -> -149815.5583 | BB13: =SUMIFS(Calculations!$I356:$QJ356, Calculations!$I$8:$QJ$8, BB$3, Calculations!$I$10:$QJ$10, BB$4) -> -151219.9352 | BC13: =SUMIFS(Calculations!$I356:$QJ356, Calculations!$I$8:$QJ$8, BC$3, Calculations!$I$10:$QJ$10, BC$4) -> -145312.4232 | BD13: =SUMIFS(Calculations!$I356:$QJ356, Calculations!$I$8:$QJ$8, BD$3, Calculations!$I$10:$QJ$10, BD$4) -> -146068.3848 | BE13: =SUMIFS(Calculations!$I356:$QJ356, Calculations!$I$8:$QJ$8, BE$3, Calculations!$I$10:$QJ$10, BE$4) -> -150361.9714 | BF13: =SUMIFS(Calculations!$I356:$QJ356, Calculations!$I$8:$QJ$8, BF$3, Calculations!$I$10:$QJ$10, BF$4) -> -151703.6096 | BG13: =SUMIFS(Calculations!$I356:$QJ356, Calculations!$I$8:$QJ$8, BG$3, Calculations!$I$10:$QJ$10, BG$4) -> -145822.2744 | BH13: =SUMIFS(Calculations!$I356:$QJ356, Calculations!$I$8:$QJ$8, BH$3, Calculations!$I$10:$QJ$10, BH$4) -> -146612.3643 | BI13: =SUMIFS(Calculations!$I356:$QJ356, Calculations!$I$8:$QJ$8, BI$3, Calculations!$I$10:$QJ$10, BI$4) -> -150902.3758 | BJ13: =SUMIFS(Calculations!$I356:$QJ356, Calculations!$I$8:$QJ$8, BJ$3, Calculations!$I$10:$QJ$10, BJ$4) -> -152203.0604 | BK13: =SUMIFS(Calculations!$I356:$QJ356, Calculations!$I$8:$QJ$8, BK$3, Calculations!$I$10:$QJ$10, BK$4) -> -146347.3186 | BL13: =SUMIFS(Calculations!$I356:$QJ356, Calculations!$I$8:$QJ$8, BL$3, Calculations!$I$10:$QJ$10, BL$4) -> -147390.1263 | BM13: =SUMIFS(Calculations!$I356:$QJ356, Calculations!$I$8:$QJ$8, BM$3, Calculations!$I$10:$QJ$10, BM$4) -> -151434.8394 | BN13: =SUMIFS(Calculations!$I356:$QJ356, Calculations!$I$8:$QJ$8, BN$3, Calculations!$I$10:$QJ$10, BN$4) -> -152718.6406 | BO13: =SUMIFS(Calculations!$I356:$QJ356, Calculations!$I$8:$QJ$8, BO$3, Calculations!$I$10:$QJ$10, BO$4) -> -146887.9112 | BP13: =SUMIFS(Calculations!$I356:$QJ356, Calculations!$I$8:$QJ$8, BP$3, Calculations!$I$10:$QJ$10, BP$4) -> -147747.5254 | BQ13: =SUMIFS(Calculations!$I356:$QJ356, Calculations!$I$8:$QJ$8, BQ$3, Calculations!$I$10:$QJ$10, BQ$4) -> -151983.6856 | BR13: =SUMIFS(Calculations!$I356:$QJ356, Calculations!$I$8:$QJ$8, BR$3, Calculations!$I$10:$QJ$10, BR$4) -> -153243.3875 | BS13: =SUMIFS(Calculations!$I356:$QJ356, Calculations!$I$8:$QJ$8, BS$3, Calculations!$I$10:$QJ$10, BS$4) -> -147444.4169 | BT13: =SUMIFS(Calculations!$I356:$QJ356, Calculations!$I$8:$QJ$8, BT$3, Calculations!$I$10:$QJ$10, BT$4) -> -148339.4494 | BU13: =SUMIFS(Calculations!$I356:$QJ356, Calculations!$I$8:$QJ$8, BU$3, Calculations!$I$10:$QJ$10, BU$4) -> -152549.2877 | BV13: =SUMIFS(Calculations!$I356:$QJ356, Calculations!$I$8:$QJ$8, BV$3, Calculations!$I$10:$QJ$10, BV$4) -> -153774.8254 | BW13: =SUMIFS(Calculations!$I356:$QJ356, Calculations!$I$8:$QJ$8, BW$3, Calculations!$I$10:$QJ$10, BW$4) -> -148017.2097 | BX13: =SUMIFS(Calculations!$I356:$QJ356, Calculations!$I$8:$QJ$8, BX$3, Calculations!$I$10:$QJ$10, BX$4) -> -148948.113 | BY13: =SUMIFS(Calculations!$I356:$QJ356, Calculations!$I$8:$QJ$8, BY$3, Calculations!$I$10:$QJ$10, BY$4) -> -153132.0284 | BZ13: =SUMIFS(Calculations!$I356:$QJ356, Calculations!$I$8:$QJ$8, BZ$3, Calculations!$I$10:$QJ$10, BZ$4) -> -154318.2568 | CA13: =SUMIFS(Calculations!$I356:$QJ356, Calculations!$I$8:$QJ$8, CA$3, Calculations!$I$10:$QJ$10, CA$4) -> -148606.673 | CB13: =SUMIFS(Calculations!$I356:$QJ356, Calculations!$I$8:$QJ$8, CB$3, Calculations!$I$10:$QJ$10, CB$4) -> -149792.0152 | CC13: =SUMIFS(Calculations!$I356:$QJ356, Calculations!$I$8:$QJ$8, CC$3, Calculations!$I$10:$QJ$10, CC$4) -> -153732.3003 | CD13: =SUMIFS(Calculations!$I356:$QJ356, Calculations!$I$8:$QJ$8, CD$3, Calculations!$I$10:$QJ$10, CD$4) -> -154867.9293 | CE13: =SUMIFS(Calculations!$I356:$QJ356, Calculations!$I$8:$QJ$8, CE$3, Calculations!$I$10:$QJ$10, CE$4) -> -149213.2002 | CF13: =SUMIFS(Calculations!$I356:$QJ356, Calculations!$I$8:$QJ$8, CF$3, Calculations!$I$10:$QJ$10, CF$4) -> -150217.2506 | CG13: =SUMIFS(Calculations!$I356:$QJ356, Calculations!$I$8:$QJ$8, CG$3, Calculations!$I$10:$QJ$10, CG$4) -> -154349.2554 | CH13: =SUMIFS(Calculations!$I356:$QJ356, Calculations!$I$8:$QJ$8, CH$3, Calculations!$I$10:$QJ$10, CH$4) -> -155435.635 | CI13: =SUMIFS(Calculations!$I356:$QJ356, Calculations!$I$8:$QJ$8, CI$3, Calculations!$I$10:$QJ$10, CI$4) -> -149837.1948 | CJ13: =SUMIFS(Calculations!$I356:$QJ356, Calculations!$I$8:$QJ$8, CJ$3, Calculations!$I$10:$QJ$10, CJ$4) -> -150871.256 | CK13: =SUMIFS(Calculations!$I356:$QJ356, Calculations!$I$8:$QJ$8, CK$3, Calculations!$I$10:$QJ$10, CK$4) -> -154970.2008 | CL13: =SUMIFS(Calculations!$I356:$QJ356, Calculations!$I$8:$QJ$8, CL$3, Calculations!$I$10:$QJ$10, CL$4) -> -156021.7822 | CM13: =SUMIFS(Calculations!$I356:$QJ356, Calculations!$I$8:$QJ$8, CM$3, Calculations!$I$10:$QJ$10, CM$4) -> -150479.0704 | CN13: =SUMIFS(Calculations!$I356:$QJ356, Calculations!$I$8:$QJ$8, CN$3, Calculations!$I$10:$QJ$10, CN$4) -> -151530.545 | CO13: =SUMIFS(Calculations!$I356:$QJ356, Calculations!$I$8:$QJ$8, CO$3, Calculations!$I$10:$QJ$10, CO$4) -> -155600.6105 | CP13: =SUMIFS(Calculations!$I356:$QJ356, Calculations!$I$8:$QJ$8, CP$3, Calculations!$I$10:$QJ$10, CP$4) -> -156626.7895 | CQ13: =SUMIFS(Calculations!$I356:$QJ356, Calculations!$I$8:$QJ$8, CQ$3, Calculations!$I$10:$QJ$10, CQ$4) -> -151139.2515 | CR13: =SUMIFS(Calculations!$I356:$QJ356, Calculations!$I$8:$QJ$8, CR$3, Calculations!$I$10:$QJ$10, CR$4) -> -152418.764 | CS13: =SUMIFS(Calculations!$I356:$QJ356, Calculations!$I$8:$QJ$8, CS$3, Calculations!$I$10:$QJ$10, CS$4) -> -156245.2881 | CT13: =SUMIFS(Calculations!$I356:$QJ356, Calculations!$I$8:$QJ$8, CT$3, Calculations!$I$10:$QJ$10, CT$4) -> -157251.0866 | CU13: =SUMIFS(Calculations!$I356:$QJ356, Calculations!$I$8:$QJ$8, CU$3, Calculations!$I$10:$QJ$10, CU$4) -> -151818.1732 | CV13: =SUMIFS(Calculations!$I356:$QJ356, Calculations!$I$8:$QJ$8, CV$3, Calculations!$I$10:$QJ$10, CV$4) -> -152891.2698 | CW13: =SUMIFS(Calculations!$I356:$QJ356, Calculations!$I$8:$QJ$8, CW$3, Calculations!$I$10:$QJ$10, CW$4) -> -156909.615 | CX13: =SUMIFS(Calculations!$I356:$QJ356, Calculations!$I$8:$QJ$8, CX$3, Calculations!$I$10:$QJ$10, CX$4) -> -157895.1143 | CY13: =SUMIFS(Calculations!$I356:$QJ356, Calculations!$I$8:$QJ$8, CY$3, Calculations!$I$10:$QJ$10, CY$4) -> -152516.2817 | CZ13: =SUMIFS(Calculations!$I356:$QJ356, Calculations!$I$8:$QJ$8, CZ$3, Calculations!$I$10:$QJ$10, CZ$4) -> -153600.9916 | DA13: =SUMIFS(Calculations!$I356:$QJ356, Calculations!$I$8:$QJ$8, DA$3, Calculations!$I$10:$QJ$10, DA$4) -> -157594.0454 | DB13: =SUMIFS(Calculations!$I356:$QJ356, Calculations!$I$8:$QJ$8, DB$3, Calculations!$I$10:$QJ$10, DB$4) -> -158559.3248 | DC13: =SUMIFS(Calculations!$I356:$QJ356, Calculations!$I$8:$QJ$8, DC$3, Calculations!$I$10:$QJ$10, DC$4) -> -153234.0347 | DD13: =SUMIFS(Calculations!$I356:$QJ356, Calculations!$I$8:$QJ$8, DD$3, Calculations!$I$10:$QJ$10, DD$4) -> -154330.9071 | DE13: =SUMIFS(Calculations!$I356:$QJ356, Calculations!$I$8:$QJ$8, DE$3, Calculations!$I$10:$QJ$10, DE$4) -> -158299.0451 | DF13: =SUMIFS(Calculations!$I356:$QJ356, Calculations!$I$8:$QJ$8, DF$3, Calculations!$I$10:$QJ$10, DF$4) -> -159244.182 | DG13: =SUMIFS(Calculations!$I356:$QJ356, Calculations!$I$8:$QJ$8, DG$3, Calculations!$I$10:$QJ$10, DG$4) -> -153971.9015 | DH13: =SUMIFS(Calculations!$I356:$QJ356, Calculations!$I$8:$QJ$8, DH$3, Calculations!$I$10:$QJ$10, DH$4) -> -155298.9255 | DI13: =SUMIFS(Calculations!$I356:$QJ356, Calculations!$I$8:$QJ$8, DI$3, Calculations!$I$10:$QJ$10, DI$4) -> -159025.0923 | DJ13: =SUMIFS(Calculations!$I356:$QJ356, Calculations!$I$8:$QJ$8, DJ$3, Calculations!$I$10:$QJ$10, DJ$4) -> -159950.162 | DK13: =SUMIFS(Calculations!$I356:$QJ356, Calculations!$I$8:$QJ$8, DK$3, Calculations!$I$10:$QJ$10, DK$4) -> -1224616.18
C14: =Calculations!C357 -> EBITDA | G14: 30372415.59 | H14: =SUM(H12:H13) -> 0 | I14: 0 | J14: 0 | K14: 0 | L14: 0 | M14: 0 | N14: 0 | O14: 0 | P14: 254559.5751 | Q14: 414423.2213 | R14: 517020.806 | S14: 230282.0237 | T14: 249933.2489 | U14: 421544.2572 | V14: 512933.0458 | W14: 222080.6956 | X14: 246759.3531 | Y14: 424178.9813 | Z14: 511658.3496 | AA14: 218716.329 | AB14: 243499.1142 | AC14: 426857.4101 | AD14: 509255.8765 | AE14: 214783.1006 | AF14: 239626.9991 | AG14: 429204.5585 | AH14: 504403.8899 | AI14: 211249.103 | AJ14: 236683.4641 | AK14: 431762.5465 | AL14: =SUM(AL12:AL13) -> 499604.6146 | AM14: 207297.7067 | AN14: 233501.891 | AO14: 429575.8299 | AP14: 494857.3079 | AQ14: 203202.4701 | AR14: 230345.3714 | AS14: 427228.0536 | AT14: 490161.2257 | AU14: 199129.6367 | AV14: 226946.0676 | AW14: 424923.9837 | AX14: 485515.6224 | AY14: 195078.5245 | AZ14: 224105.1245 | BA14: 422663.1061 | BB14: 480516.5365 | BC14: 191048.4466 | BD14: 221020.2017 | BE14: 420444.904 | BF14: 475224.136 | BG14: 187038.7115 | BH14: 217957.9411 | BI14: 417207.4653 | BJ14: 469979.9716 | BK14: 183048.6222 | BL14: 214647.0574 | BM14: 412837.9968 | BN14: 464783.2145 | BO14: 179077.4765 | BP14: 211898.9606 | BQ14: 408509.7733 | BR14: =SUM(BR12:BR13) -> 459274.126 | BS14: 175124.5665 | BT14: 208901.0042 | BU14: 404222.0424 | BV14: 453312.3509 | BW14: 171189.1783 | BX14: 205923.2364 | BY14: 399974.0477 | BZ14: 447138.2014 | CA14: 167270.5918 | CB14: 202691.0552 | CC14: 395765.0287 | CD14: 440449.8056 | CE14: 163368.0805 | CF14: 200025.7281 | CG14: 391532.9238 | CH14: 433804.4832 | CI14: 159480.9109 | CJ14: 196747.5164 | CK14: 386634.7729 | CL14: 427201.2178 | CM14: 155608.3429 | CN14: 192845.0898 | CO14: 381317.2557 | CP14: 420638.9883 | CQ14: 151749.6287 | CR14: 188294.0027 | CS14: 375793.6831 | CT14: 414116.769 | CU14: 147904.0131 | CV14: 184367.2281 | CW14: 370305.1029 | CX14: =SUM(CX12:CX13) -> 407633.5288 | CY14: 144070.7328 | CZ14: 180151.9838 | DA14: 364850.5776 | DB14: 401188.231 | DC14: 140249.0165 | DD14: 175951.4408 | DE14: 359429.1635 | DF14: 394779.8331 | DG14: 136438.0842 | DH14: 171457.7405 | DI14: 354039.9103 | DJ14: =SUM(DJ12:DJ13) -> 388407.2864 | DK14: -939996.8117
C16: =Calculations!C359 -> less: Depreciation and Amortization | E16: =Calculations!E359 -> EUR | G16: =SUM(H16:FA16) -> -13941138.2 | H16: =SUMIFS(Calculations!$I359:$QJ359, Calculations!$I$8:$QJ$8, H$3, Calculations!$I$10:$QJ$10, H$4) -> 0 | I16: =SUMIFS(Calculations!$I359:$QJ359, Calculations!$I$8:$QJ$8, I$3, Calculations!$I$10:$QJ$10, I$4) -> 0 | J16: =SUMIFS(Calculations!$I359:$QJ359, Calculations!$I$8:$QJ$8, J$3, Calculations!$I$10:$QJ$10, J$4) -> 0 | K16: =SUMIFS(Calculations!$I359:$QJ359, Calculations!$I$8:$QJ$8, K$3, Calculations!$I$10:$QJ$10, K$4) -> 0 | L16: =SUMIFS(Calculations!$I359:$QJ359, Calculations!$I$8:$QJ$8, L$3, Calculations!$I$10:$QJ$10, L$4) -> 0 | M16: =SUMIFS(Calculations!$I359:$QJ359, Calculations!$I$8:$QJ$8, M$3, Calculations!$I$10:$QJ$10, M$4) -> 0 | N16: =SUMIFS(Calculations!$I359:$QJ359, Calculations!$I$8:$QJ$8, N$3, Calculations!$I$10:$QJ$10, N$4) -> 0 | O16: =SUMIFS(Calculations!$I359:$QJ359, Calculations!$I$8:$QJ$8, O$3, Calculations!$I$10:$QJ$10, O$4) -> 0 | P16: =SUMIFS(Calculations!$I359:$QJ359, Calculations!$I$8:$QJ$8, P$3, Calculations!$I$10:$QJ$10, P$4) -> -270062.6622 | Q16: =SUMIFS(Calculations!$I359:$QJ359, Calculations!$I$8:$QJ$8, Q$3, Calculations!$I$10:$QJ$10, Q$4) -> -270062.6622 | R16: =SUMIFS(Calculations!$I359:$QJ359, Calculations!$I$8:$QJ$8, R$3, Calculations!$I$10:$QJ$10, R$4) -> -270062.6622 | S16: =SUMIFS(Calculations!$I359:$QJ359, Calculations!$I$8:$QJ$8, S$3, Calculations!$I$10:$QJ$10, S$4) -> -270062.6622 | T16: =SUMIFS(Calculations!$I359:$QJ359, Calculations!$I$8:$QJ$8, T$3, Calculations!$I$10:$QJ$10, T$4) -> -270062.6622 | U16: =SUMIFS(Calculations!$I359:$QJ359, Calculations!$I$8:$QJ$8, U$3, Calculations!$I$10:$QJ$10, U$4) -> -270062.6622 | V16: =SUMIFS(Calculations!$I359:$QJ359, Calculations!$I$8:$QJ$8, V$3, Calculations!$I$10:$QJ$10, V$4) -> -270062.6622 | W16: =SUMIFS(Calculations!$I359:$QJ359, Calculations!$I$8:$QJ$8, W$3, Calculations!$I$10:$QJ$10, W$4) -> -270062.6622 | X16: =SUMIFS(Calculations!$I359:$QJ359, Calculations!$I$8:$QJ$8, X$3, Calculations!$I$10:$QJ$10, X$4) -> -270062.6622 | Y16: =SUMIFS(Calculations!$I359:$QJ359, Calculations!$I$8:$QJ$8, Y$3, Calculations!$I$10:$QJ$10, Y$4) -> -270062.6622 | Z16: =SUMIFS(Calculations!$I359:$QJ359, Calculations!$I$8:$QJ$8, Z$3, Calculations!$I$10:$QJ$10, Z$4) -> -270062.6622 | AA16: =SUMIFS(Calculations!$I359:$QJ359, Calculations!$I$8:$QJ$8, AA$3, Calculations!$I$10:$QJ$10, AA$4) -> -270062.6622 | AB16: =SUMIFS(Calculations!$I359:$QJ359, Calculations!$I$8:$QJ$8, AB$3, Calculations!$I$10:$QJ$10, AB$4) -> -270062.6622 | AC16: =SUMIFS(Calculations!$I359:$QJ359, Calculations!$I$8:$QJ$8, AC$3, Calculations!$I$10:$QJ$10, AC$4) -> -270062.6622 | AD16: =SUMIFS(Calculations!$I359:$QJ359, Calculations!$I$8:$QJ$8, AD$3, Calculations!$I$10:$QJ$10, AD$4) -> -270062.6622 | AE16: =SUMIFS(Calculations!$I359:$QJ359, Calculations!$I$8:$QJ$8, AE$3, Calculations!$I$10:$QJ$10, AE$4) -> -270062.6622 | AF16: =SUMIFS(Calculations!$I359:$QJ359, Calculations!$I$8:$QJ$8, AF$3, Calculations!$I$10:$QJ$10, AF$4) -> -270062.6622 | AG16: =SUMIFS(Calculations!$I359:$QJ359, Calculations!$I$8:$QJ$8, AG$3, Calculations!$I$10:$QJ$10, AG$4) -> -270062.6622 | AH16: =SUMIFS(Calculations!$I359:$QJ359, Calculations!$I$8:$QJ$8, AH$3, Calculations!$I$10:$QJ$10, AH$4) -> -270062.6622 | AI16: =SUMIFS(Calculations!$I359:$QJ359, Calculations!$I$8:$QJ$8, AI$3, Calculations!$I$10:$QJ$10, AI$4) -> -270062.6622 | AJ16: =SUMIFS(Calculations!$I359:$QJ359, Calculations!$I$8:$QJ$8, AJ$3, Calculations!$I$10:$QJ$10, AJ$4) -> -262037.6622 | AK16: =SUMIFS(Calculations!$I359:$QJ359, Calculations!$I$8:$QJ$8, AK$3, Calculations!$I$10:$QJ$10, AK$4) -> -262037.6622 | AL16: =SUMIFS(Calculations!$I359:$QJ359, Calculations!$I$8:$QJ$8, AL$3, Calculations!$I$10:$QJ$10, AL$4) -> -262037.6622 | AM16: =SUMIFS(Calculations!$I359:$QJ359, Calculations!$I$8:$QJ$8, AM$3, Calculations!$I$10:$QJ$10, AM$4) -> -262037.6622 | AN16: =SUMIFS(Calculations!$I359:$QJ359, Calculations!$I$8:$QJ$8, AN$3, Calculations!$I$10:$QJ$10, AN$4) -> -262037.6622 | AO16: =SUMIFS(Calculations!$I359:$QJ359, Calculations!$I$8:$QJ$8, AO$3, Calculations!$I$10:$QJ$10, AO$4) -> -262037.6622 | AP16: =SUMIFS(Calculations!$I359:$QJ359, Calculations!$I$8:$QJ$8, AP$3, Calculations!$I$10:$QJ$10, AP$4) -> -262037.6622 | AQ16: =SUMIFS(Calculations!$I359:$QJ359, Calculations!$I$8:$QJ$8, AQ$3, Calculations!$I$10:$QJ$10, AQ$4) -> -262037.6622 | AR16: =SUMIFS(Calculations!$I359:$QJ359, Calculations!$I$8:$QJ$8, AR$3, Calculations!$I$10:$QJ$10, AR$4) -> -157319.8462 | AS16: =SUMIFS(Calculations!$I359:$QJ359, Calculations!$I$8:$QJ$8, AS$3, Calculations!$I$10:$QJ$10, AS$4) -> -157319.8462 | AT16: =SUMIFS(Calculations!$I359:$QJ359, Calculations!$I$8:$QJ$8, AT$3, Calculations!$I$10:$QJ$10, AT$4) -> -157319.8462 | AU16: =SUMIFS(Calculations!$I359:$QJ359, Calculations!$I$8:$QJ$8, AU$3, Calculations!$I$10:$QJ$10, AU$4) -> -157319.8462 | AV16: =SUMIFS(Calculations!$I359:$QJ359, Calculations!$I$8:$QJ$8, AV$3, Calculations!$I$10:$QJ$10, AV$4) -> -157319.8462 | AW16: =SUMIFS(Calculations!$I359:$QJ359, Calculations!$I$8:$QJ$8, AW$3, Calculations!$I$10:$QJ$10, AW$4) -> -157319.8462 | AX16: =SUMIFS(Calculations!$I359:$QJ359, Calculations!$I$8:$QJ$8, AX$3, Calculations!$I$10:$QJ$10, AX$4) -> -157319.8462 | AY16: =SUMIFS(Calculations!$I359:$QJ359, Calculations!$I$8:$QJ$8, AY$3, Calculations!$I$10:$QJ$10, AY$4) -> -157319.8462 | AZ16: =SUMIFS(Calculations!$I359:$QJ359, Calculations!$I$8:$QJ$8, AZ$3, Calculations!$I$10:$QJ$10, AZ$4) -> -157319.8462 | BA16: =SUMIFS(Calculations!$I359:$QJ359, Calculations!$I$8:$QJ$8, BA$3, Calculations!$I$10:$QJ$10, BA$4) -> -157319.8462 | BB16: =SUMIFS(Calculations!$I359:$QJ359, Calculations!$I$8:$QJ$8, BB$3, Calculations!$I$10:$QJ$10, BB$4) -> -157209.8462 | BC16: =SUMIFS(Calculations!$I359:$QJ359, Calculations!$I$8:$QJ$8, BC$3, Calculations!$I$10:$QJ$10, BC$4) -> -157209.8462 | BD16: =SUMIFS(Calculations!$I359:$QJ359, Calculations!$I$8:$QJ$8, BD$3, Calculations!$I$10:$QJ$10, BD$4) -> -100648.7169 | BE16: =SUMIFS(Calculations!$I359:$QJ359, Calculations!$I$8:$QJ$8, BE$3, Calculations!$I$10:$QJ$10, BE$4) -> -100648.7169 | BF16: =SUMIFS(Calculations!$I359:$QJ359, Calculations!$I$8:$QJ$8, BF$3, Calculations!$I$10:$QJ$10, BF$4) -> -100648.7169 | BG16: =SUMIFS(Calculations!$I359:$QJ359, Calculations!$I$8:$QJ$8, BG$3, Calculations!$I$10:$QJ$10, BG$4) -> -100648.7169 | BH16: =SUMIFS(Calculations!$I359:$QJ359, Calculations!$I$8:$QJ$8, BH$3, Calculations!$I$10:$QJ$10, BH$4) -> -100648.7169 | BI16: =SUMIFS(Calculations!$I359:$QJ359, Calculations!$I$8:$QJ$8, BI$3, Calculations!$I$10:$QJ$10, BI$4) -> -100648.7169 | BJ16: =SUMIFS(Calculations!$I359:$QJ359, Calculations!$I$8:$QJ$8, BJ$3, Calculations!$I$10:$QJ$10, BJ$4) -> -100648.7169 | BK16: =SUMIFS(Calculations!$I359:$QJ359, Calculations!$I$8:$QJ$8, BK$3, Calculations!$I$10:$QJ$10, BK$4) -> -100648.7169 | BL16: =SUMIFS(Calculations!$I359:$QJ359, Calculations!$I$8:$QJ$8, BL$3, Calculations!$I$10:$QJ$10, BL$4) -> -100648.7169 | BM16: =SUMIFS(Calculations!$I359:$QJ359, Calculations!$I$8:$QJ$8, BM$3, Calculations!$I$10:$QJ$10, BM$4) -> -100648.7169 | BN16: =SUMIFS(Calculations!$I359:$QJ359, Calculations!$I$8:$QJ$8, BN$3, Calculations!$I$10:$QJ$10, BN$4) -> -70962.23116 | BO16: =SUMIFS(Calculations!$I359:$QJ359, Calculations!$I$8:$QJ$8, BO$3, Calculations!$I$10:$QJ$10, BO$4) -> -70962.23116 | BP16: =SUMIFS(Calculations!$I359:$QJ359, Calculations!$I$8:$QJ$8, BP$3, Calculations!$I$10:$QJ$10, BP$4) -> -70962.23116 | BQ16: =SUMIFS(Calculations!$I359:$QJ359, Calculations!$I$8:$QJ$8, BQ$3, Calculations!$I$10:$QJ$10, BQ$4) -> -70962.23116 | BR16: =SUMIFS(Calculations!$I359:$QJ359, Calculations!$I$8:$QJ$8, BR$3, Calculations!$I$10:$QJ$10, BR$4) -> -70962.23116 | BS16: =SUMIFS(Calculations!$I359:$QJ359, Calculations!$I$8:$QJ$8, BS$3, Calculations!$I$10:$QJ$10, BS$4) -> -70962.23116 | BT16: =SUMIFS(Calculations!$I359:$QJ359, Calculations!$I$8:$QJ$8, BT$3, Calculations!$I$10:$QJ$10, BT$4) -> -70962.23116 | BU16: =SUMIFS(Calculations!$I359:$QJ359, Calculations!$I$8:$QJ$8, BU$3, Calculations!$I$10:$QJ$10, BU$4) -> -70962.23116 | BV16: =SUMIFS(Calculations!$I359:$QJ359, Calculations!$I$8:$QJ$8, BV$3, Calculations!$I$10:$QJ$10, BV$4) -> -70962.23116 | BW16: =SUMIFS(Calculations!$I359:$QJ359, Calculations!$I$8:$QJ$8, BW$3, Calculations!$I$10:$QJ$10, BW$4) -> -70962.23116 | BX16: =SUMIFS(Calculations!$I359:$QJ359, Calculations!$I$8:$QJ$8, BX$3, Calculations!$I$10:$QJ$10, BX$4) -> -70962.23116 | BY16: =SUMIFS(Calculations!$I359:$QJ359, Calculations!$I$8:$QJ$8, BY$3, Calculations!$I$10:$QJ$10, BY$4) -> -70962.23116 | BZ16: =SUMIFS(Calculations!$I359:$QJ359, Calculations!$I$8:$QJ$8, BZ$3, Calculations!$I$10:$QJ$10, BZ$4) -> -70962.23116 | CA16: =SUMIFS(Calculations!$I359:$QJ359, Calculations!$I$8:$QJ$8, CA$3, Calculations!$I$10:$QJ$10, CA$4) -> -70962.23116 | CB16: =SUMIFS(Calculations!$I359:$QJ359, Calculations!$I$8:$QJ$8, CB$3, Calculations!$I$10:$QJ$10, CB$4) -> -70962.23116 | CC16: =SUMIFS(Calculations!$I359:$QJ359, Calculations!$I$8:$QJ$8, CC$3, Calculations!$I$10:$QJ$10, CC$4) -> -70962.23116 | CD16: =SUMIFS(Calculations!$I359:$QJ359, Calculations!$I$8:$QJ$8, CD$3, Calculations!$I$10:$QJ$10, CD$4) -> -70962.23116 | CE16: =SUMIFS(Calculations!$I359:$QJ359, Calculations!$I$8:$QJ$8, CE$3, Calculations!$I$10:$QJ$10, CE$4) -> -70962.23116 | CF16: =SUMIFS(Calculations!$I359:$QJ359, Calculations!$I$8:$QJ$8, CF$3, Calculations!$I$10:$QJ$10, CF$4) -> -70962.23116 | CG16: =SUMIFS(Calculations!$I359:$QJ359, Calculations!$I$8:$QJ$8, CG$3, Calculations!$I$10:$QJ$10, CG$4) -> -70962.23116 | CH16: =SUMIFS(Calculations!$I359:$QJ359, Calculations!$I$8:$QJ$8, CH$3, Calculations!$I$10:$QJ$10, CH$4) -> -71007.79036 | CI16: =SUMIFS(Calculations!$I359:$QJ359, Calculations!$I$8:$QJ$8, CI$3, Calculations!$I$10:$QJ$10, CI$4) -> -71007.79036 | CJ16: =SUMIFS(Calculations!$I359:$QJ359, Calculations!$I$8:$QJ$8, CJ$3, Calculations!$I$10:$QJ$10, CJ$4) -> -71007.79036 | CK16: =SUMIFS(Calculations!$I359:$QJ359, Calculations!$I$8:$QJ$8, CK$3, Calculations!$I$10:$QJ$10, CK$4) -> -71007.79036 | CL16: =SUMIFS(Calculations!$I359:$QJ359, Calculations!$I$8:$QJ$8, CL$3, Calculations!$I$10:$QJ$10, CL$4) -> -71007.79036 | CM16: =SUMIFS(Calculations!$I359:$QJ359, Calculations!$I$8:$QJ$8, CM$3, Calculations!$I$10:$QJ$10, CM$4) -> -71007.79036 | CN16: =SUMIFS(Calculations!$I359:$QJ359, Calculations!$I$8:$QJ$8, CN$3, Calculations!$I$10:$QJ$10, CN$4) -> -71007.79036 | CO16: =SUMIFS(Calculations!$I359:$QJ359, Calculations!$I$8:$QJ$8, CO$3, Calculations!$I$10:$QJ$10, CO$4) -> -71007.79036 | CP16: =SUMIFS(Calculations!$I359:$QJ359, Calculations!$I$8:$QJ$8, CP$3, Calculations!$I$10:$QJ$10, CP$4) -> -71007.79036 | CQ16: =SUMIFS(Calculations!$I359:$QJ359, Calculations!$I$8:$QJ$8, CQ$3, Calculations!$I$10:$QJ$10, CQ$4) -> -71007.79036 | CR16: =SUMIFS(Calculations!$I359:$QJ359, Calculations!$I$8:$QJ$8, CR$3, Calculations!$I$10:$QJ$10, CR$4) -> -71007.79036 | CS16: =SUMIFS(Calculations!$I359:$QJ359, Calculations!$I$8:$QJ$8, CS$3, Calculations!$I$10:$QJ$10, CS$4) -> -71007.79036 | CT16: =SUMIFS(Calculations!$I359:$QJ359, Calculations!$I$8:$QJ$8, CT$3, Calculations!$I$10:$QJ$10, CT$4) -> -71007.79036 | CU16: =SUMIFS(Calculations!$I359:$QJ359, Calculations!$I$8:$QJ$8, CU$3, Calculations!$I$10:$QJ$10, CU$4) -> -71007.79036 | CV16: =SUMIFS(Calculations!$I359:$QJ359, Calculations!$I$8:$QJ$8, CV$3, Calculations!$I$10:$QJ$10, CV$4) -> -71007.79036 | CW16: =SUMIFS(Calculations!$I359:$QJ359, Calculations!$I$8:$QJ$8, CW$3, Calculations!$I$10:$QJ$10, CW$4) -> -71007.79036 | CX16: =SUMIFS(Calculations!$I359:$QJ359, Calculations!$I$8:$QJ$8, CX$3, Calculations!$I$10:$QJ$10, CX$4) -> -71007.79036 | CY16: =SUMIFS(Calculations!$I359:$QJ359, Calculations!$I$8:$QJ$8, CY$3, Calculations!$I$10:$QJ$10, CY$4) -> -71007.79036 | CZ16: =SUMIFS(Calculations!$I359:$QJ359, Calculations!$I$8:$QJ$8, CZ$3, Calculations!$I$10:$QJ$10, CZ$4) -> -71007.79036 | DA16: =SUMIFS(Calculations!$I359:$QJ359, Calculations!$I$8:$QJ$8, DA$3, Calculations!$I$10:$QJ$10, DA$4) -> -71007.79036 | DB16: =SUMIFS(Calculations!$I359:$QJ359, Calculations!$I$8:$QJ$8, DB$3, Calculations!$I$10:$QJ$10, DB$4) -> -71007.79036 | DC16: =SUMIFS(Calculations!$I359:$QJ359, Calculations!$I$8:$QJ$8, DC$3, Calculations!$I$10:$QJ$10, DC$4) -> -71007.79036 | DD16: =SUMIFS(Calculations!$I359:$QJ359, Calculations!$I$8:$QJ$8, DD$3, Calculations!$I$10:$QJ$10, DD$4) -> -71007.79036 | DE16: =SUMIFS(Calculations!$I359:$QJ359, Calculations!$I$8:$QJ$8, DE$3, Calculations!$I$10:$QJ$10, DE$4) -> -71007.79036 | DF16: =SUMIFS(Calculations!$I359:$QJ359, Calculations!$I$8:$QJ$8, DF$3, Calculations!$I$10:$QJ$10, DF$4) -> -71007.79036 | DG16: =SUMIFS(Calculations!$I359:$QJ359, Calculations!$I$8:$QJ$8, DG$3, Calculations!$I$10:$QJ$10, DG$4) -> -71007.79036 | DH16: =SUMIFS(Calculations!$I359:$QJ359, Calculations!$I$8:$QJ$8, DH$3, Calculations!$I$10:$QJ$10, DH$4) -> -71007.79036 | DI16: =SUMIFS(Calculations!$I359:$QJ359, Calculations!$I$8:$QJ$8, DI$3, Calculations!$I$10:$QJ$10, DI$4) -> -71007.79036 | DJ16: =SUMIFS(Calculations!$I359:$QJ359, Calculations!$I$8:$QJ$8, DJ$3, Calculations!$I$10:$QJ$10, DJ$4) -> -71007.79036 | DK16: =SUMIFS(Calculations!$I359:$QJ359, Calculations!$I$8:$QJ$8, DK$3, Calculations!$I$10:$QJ$10, DK$4) -> -71007.79036
C17: =Calculations!C360 -> EBIT | E17: =Calculations!E360 -> EUR | G17: =SUM(H17:FA17) -> 16431277.39 | H17: =H14+H16 -> 0 | I17: 0 | J17: 0 | K17: 0 | L17: 0 | M17: 0 | N17: 0 | O17: 0 | P17: -15503.08708 | Q17: 144360.5591 | R17: 246958.1438 | S17: -39780.63853 | T17: -20129.41329 | U17: 151481.595 | V17: 242870.3836 | W17: -47981.96665 | X17: -23303.30913 | Y17: 154116.3191 | Z17: 241595.6874 | AA17: -51346.33326 | AB17: -26563.54799 | AC17: 156794.7479 | AD17: 239193.2143 | AE17: -55279.56163 | AF17: -30435.6631 | AG17: 159141.8963 | AH17: 234341.2277 | AI17: -58813.55918 | AJ17: -25354.19806 | AK17: 169724.8843 | AL17: 237566.9524 | AM17: -54739.95553 | AN17: -28535.77119 | AO17: 167538.1677 | AP17: 232819.6457 | AQ17: -58835.19211 | AR17: 73025.5252 | AS17: 269908.2074 | AT17: 332841.3795 | AU17: 41809.79048 | AV17: 69626.22137 | AW17: 267604.1375 | AX17: 328195.7762 | AY17: 37758.67823 | AZ17: 66785.27829 | BA17: 265343.2598 | BB17: 323306.6903 | BC17: 33838.60037 | BD17: 120371.4849 | BE17: 319796.1871 | BF17: 374575.4192 | BG17: 86389.99459 | BH17: 117309.2242 | BI17: 316558.7484 | BJ17: 369331.2547 | BK17: 82399.90532 | BL17: 113998.3405 | BM17: 312189.2799 | BN17: 393820.9833 | BO17: 108115.2454 | BP17: 140936.7294 | BQ17: 337547.5422 | BR17: 388311.8948 | BS17: =BS14+BS16 -> 104162.3354 | BT17: 137938.773 | BU17: 333259.8113 | BV17: 382350.1197 | BW17: 100226.9472 | BX17: 134961.0053 | BY17: 329011.8166 | BZ17: 376175.9702 | CA17: 96308.36066 | CB17: 131728.8241 | CC17: 324802.7975 | CD17: 369487.5745 | CE17: 92405.8493 | CF17: 129063.4969 | CG17: 320570.6927 | CH17: 362796.6929 | CI17: 88473.12058 | CJ17: 125739.726 | CK17: 315626.9826 | CL17: 356193.4274 | CM17: 84600.55255 | CN17: 121837.2995 | CO17: 310309.4653 | CP17: 349631.198 | CQ17: 80741.83836 | CR17: 117286.2124 | CS17: 304785.8928 | CT17: 343108.9787 | CU17: 76896.22273 | CV17: 113359.4378 | CW17: 299297.3125 | CX17: 336625.7385 | CY17: 73062.94247 | CZ17: 109144.1935 | DA17: 293842.7872 | DB17: =DB14+DB16 -> 330180.4407 | DC17: 69241.22616 | DD17: 104943.6505 | DE17: 288421.3732 | DF17: 323772.0428 | DG17: 65430.29385 | DH17: 100449.9501 | DI17: 283032.12 | DJ17: =DJ14+DJ16 -> 317399.496 | DK17: -1011004.602
C19: =Calculations!C362 -> less: Senior Debt Interest Expense | E19: =Calculations!E362 -> EUR | G19: =SUM(H19:FA19) -> -4404775.44 | H19: =SUMIFS(Calculations!$I362:$QJ362, Calculations!$I$8:$QJ$8, H$3, Calculations!$I$10:$QJ$10, H$4) -> 0 | I19: =SUMIFS(Calculations!$I362:$QJ362, Calculations!$I$8:$QJ$8, I$3, Calculations!$I$10:$QJ$10, I$4) -> 0 | J19: =SUMIFS(Calculations!$I362:$QJ362, Calculations!$I$8:$QJ$8, J$3, Calculations!$I$10:$QJ$10, J$4) -> 0 | K19: =SUMIFS(Calculations!$I362:$QJ362, Calculations!$I$8:$QJ$8, K$3, Calculations!$I$10:$QJ$10, K$4) -> 0 | L19: =SUMIFS(Calculations!$I362:$QJ362, Calculations!$I$8:$QJ$8, L$3, Calculations!$I$10:$QJ$10, L$4) -> 0 | M19: =SUMIFS(Calculations!$I362:$QJ362, Calculations!$I$8:$QJ$8, M$3, Calculations!$I$10:$QJ$10, M$4) -> 0 | N19: =SUMIFS(Calculations!$I362:$QJ362, Calculations!$I$8:$QJ$8, N$3, Calculations!$I$10:$QJ$10, N$4) -> 0 | O19: =SUMIFS(Calculations!$I362:$QJ362, Calculations!$I$8:$QJ$8, O$3, Calculations!$I$10:$QJ$10, O$4) -> 0 | P19: =SUMIFS(Calculations!$I362:$QJ362, Calculations!$I$8:$QJ$8, P$3, Calculations!$I$10:$QJ$10, P$4) -> -104772.4933 | Q19: =SUMIFS(Calculations!$I362:$QJ362, Calculations!$I$8:$QJ$8, Q$3, Calculations!$I$10:$QJ$10, Q$4) -> -104663.0452 | R19: =SUMIFS(Calculations!$I362:$QJ362, Calculations!$I$8:$QJ$8, R$3, Calculations!$I$10:$QJ$10, R$4) -> -103768.3886 | S19: =SUMIFS(Calculations!$I362:$QJ362, Calculations!$I$8:$QJ$8, S$3, Calculations!$I$10:$QJ$10, S$4) -> -102861.374 | T19: =SUMIFS(Calculations!$I362:$QJ362, Calculations!$I$8:$QJ$8, T$3, Calculations!$I$10:$QJ$10, T$4) -> -101941.8307 | U19: =SUMIFS(Calculations!$I362:$QJ362, Calculations!$I$8:$QJ$8, U$3, Calculations!$I$10:$QJ$10, U$4) -> -101009.5856 | V19: =SUMIFS(Calculations!$I362:$QJ362, Calculations!$I$8:$QJ$8, V$3, Calculations!$I$10:$QJ$10, V$4) -> -100064.4633 | W19: =SUMIFS(Calculations!$I362:$QJ362, Calculations!$I$8:$QJ$8, W$3, Calculations!$I$10:$QJ$10, W$4) -> -99106.286 | X19: =SUMIFS(Calculations!$I362:$QJ362, Calculations!$I$8:$QJ$8, X$3, Calculations!$I$10:$QJ$10, X$4) -> -98134.87324 | Y19: =SUMIFS(Calculations!$I362:$QJ362, Calculations!$I$8:$QJ$8, Y$3, Calculations!$I$10:$QJ$10, Y$4) -> -97150.04223 | Z19: =SUMIFS(Calculations!$I362:$QJ362, Calculations!$I$8:$QJ$8, Z$3, Calculations!$I$10:$QJ$10, Z$4) -> -96151.60765 | AA19: =SUMIFS(Calculations!$I362:$QJ362, Calculations!$I$8:$QJ$8, AA$3, Calculations!$I$10:$QJ$10, AA$4) -> -95139.38156 | AB19: =SUMIFS(Calculations!$I362:$QJ362, Calculations!$I$8:$QJ$8, AB$3, Calculations!$I$10:$QJ$10, AB$4) -> -94113.17348 | AC19: =SUMIFS(Calculations!$I362:$QJ362, Calculations!$I$8:$QJ$8, AC$3, Calculations!$I$10:$QJ$10, AC$4) -> -93072.79027 | AD19: =SUMIFS(Calculations!$I362:$QJ362, Calculations!$I$8:$QJ$8, AD$3, Calculations!$I$10:$QJ$10, AD$4) -> -92018.03612 | AE19: =SUMIFS(Calculations!$I362:$QJ362, Calculations!$I$8:$QJ$8, AE$3, Calculations!$I$10:$QJ$10, AE$4) -> -90948.71253 | AF19: =SUMIFS(Calculations!$I362:$QJ362, Calculations!$I$8:$QJ$8, AF$3, Calculations!$I$10:$QJ$10, AF$4) -> -89864.61825 | AG19: =SUMIFS(Calculations!$I362:$QJ362, Calculations!$I$8:$QJ$8, AG$3, Calculations!$I$10:$QJ$10, AG$4) -> -88765.54925 | AH19: =SUMIFS(Calculations!$I362:$QJ362, Calculations!$I$8:$QJ$8, AH$3, Calculations!$I$10:$QJ$10, AH$4) -> -87651.29868 | AI19: =SUMIFS(Calculations!$I362:$QJ362, Calculations!$I$8:$QJ$8, AI$3, Calculations!$I$10:$QJ$10, AI$4) -> -86521.65683 | AJ19: =SUMIFS(Calculations!$I362:$QJ362, Calculations!$I$8:$QJ$8, AJ$3, Calculations!$I$10:$QJ$10, AJ$4) -> -85376.41111 | AK19: =SUMIFS(Calculations!$I362:$QJ362, Calculations!$I$8:$QJ$8, AK$3, Calculations!$I$10:$QJ$10, AK$4) -> -84215.34598 | AL19: =SUMIFS(Calculations!$I362:$QJ362, Calculations!$I$8:$QJ$8, AL$3, Calculations!$I$10:$QJ$10, AL$4) -> -83038.24291 | AM19: =SUMIFS(Calculations!$I362:$QJ362, Calculations!$I$8:$QJ$8, AM$3, Calculations!$I$10:$QJ$10, AM$4) -> -81844.88039 | AN19: =SUMIFS(Calculations!$I362:$QJ362, Calculations!$I$8:$QJ$8, AN$3, Calculations!$I$10:$QJ$10, AN$4) -> -80635.03381 | AO19: =SUMIFS(Calculations!$I362:$QJ362, Calculations!$I$8:$QJ$8, AO$3, Calculations!$I$10:$QJ$10, AO$4) -> -79408.47547 | AP19: =SUMIFS(Calculations!$I362:$QJ362, Calculations!$I$8:$QJ$8, AP$3, Calculations!$I$10:$QJ$10, AP$4) -> -78164.97454 | AQ19: =SUMIFS(Calculations!$I362:$QJ362, Calculations!$I$8:$QJ$8, AQ$3, Calculations!$I$10:$QJ$10, AQ$4) -> -76904.29699 | AR19: =SUMIFS(Calculations!$I362:$QJ362, Calculations!$I$8:$QJ$8, AR$3, Calculations!$I$10:$QJ$10, AR$4) -> -75626.20555 | AS19: =SUMIFS(Calculations!$I362:$QJ362, Calculations!$I$8:$QJ$8, AS$3, Calculations!$I$10:$QJ$10, AS$4) -> -74330.45969 | AT19: =SUMIFS(Calculations!$I362:$QJ362, Calculations!$I$8:$QJ$8, AT$3, Calculations!$I$10:$QJ$10, AT$4) -> -73016.81553 | AU19: =SUMIFS(Calculations!$I362:$QJ362, Calculations!$I$8:$QJ$8, AU$3, Calculations!$I$10:$QJ$10, AU$4) -> -71685.02586 | AV19: =SUMIFS(Calculations!$I362:$QJ362, Calculations!$I$8:$QJ$8, AV$3, Calculations!$I$10:$QJ$10, AV$4) -> -70334.84002 | AW19: =SUMIFS(Calculations!$I362:$QJ362, Calculations!$I$8:$QJ$8, AW$3, Calculations!$I$10:$QJ$10, AW$4) -> -68966.0039 | AX19: =SUMIFS(Calculations!$I362:$QJ362, Calculations!$I$8:$QJ$8, AX$3, Calculations!$I$10:$QJ$10, AX$4) -> -67578.25989 | AY19: =SUMIFS(Calculations!$I362:$QJ362, Calculations!$I$8:$QJ$8, AY$3, Calculations!$I$10:$QJ$10, AY$4) -> -66171.34681 | AZ19: =SUMIFS(Calculations!$I362:$QJ362, Calculations!$I$8:$QJ$8, AZ$3, Calculations!$I$10:$QJ$10, AZ$4) -> -64744.99987 | BA19: =SUMIFS(Calculations!$I362:$QJ362, Calculations!$I$8:$QJ$8, BA$3, Calculations!$I$10:$QJ$10, BA$4) -> -63298.95064 | BB19: =SUMIFS(Calculations!$I362:$QJ362, Calculations!$I$8:$QJ$8, BB$3, Calculations!$I$10:$QJ$10, BB$4) -> -61832.92696 | BC19: =SUMIFS(Calculations!$I362:$QJ362, Calculations!$I$8:$QJ$8, BC$3, Calculations!$I$10:$QJ$10, BC$4) -> -60346.65292 | BD19: =SUMIFS(Calculations!$I362:$QJ362, Calculations!$I$8:$QJ$8, BD$3, Calculations!$I$10:$QJ$10, BD$4) -> -58839.8488 | BE19: =SUMIFS(Calculations!$I362:$QJ362, Calculations!$I$8:$QJ$8, BE$3, Calculations!$I$10:$QJ$10, BE$4) -> -57312.23102 | BF19: =SUMIFS(Calculations!$I362:$QJ362, Calculations!$I$8:$QJ$8, BF$3, Calculations!$I$10:$QJ$10, BF$4) -> -55763.51208 | BG19: =SUMIFS(Calculations!$I362:$QJ362, Calculations!$I$8:$QJ$8, BG$3, Calculations!$I$10:$QJ$10, BG$4) -> -54193.40051 | BH19: =SUMIFS(Calculations!$I362:$QJ362, Calculations!$I$8:$QJ$8, BH$3, Calculations!$I$10:$QJ$10, BH$4) -> -52601.6008 | BI19: =SUMIFS(Calculations!$I362:$QJ362, Calculations!$I$8:$QJ$8, BI$3, Calculations!$I$10:$QJ$10, BI$4) -> -50987.81337 | BJ19: =SUMIFS(Calculations!$I362:$QJ362, Calculations!$I$8:$QJ$8, BJ$3, Calculations!$I$10:$QJ$10, BJ$4) -> -49351.73451 | BK19: =SUMIFS(Calculations!$I362:$QJ362, Calculations!$I$8:$QJ$8, BK$3, Calculations!$I$10:$QJ$10, BK$4) -> -47693.0563 | BL19: =SUMIFS(Calculations!$I362:$QJ362, Calculations!$I$8:$QJ$8, BL$3, Calculations!$I$10:$QJ$10, BL$4) -> -46011.46657 | BM19: =SUMIFS(Calculations!$I362:$QJ362, Calculations!$I$8:$QJ$8, BM$3, Calculations!$I$10:$QJ$10, BM$4) -> -44306.64884 | BN19: =SUMIFS(Calculations!$I362:$QJ362, Calculations!$I$8:$QJ$8, BN$3, Calculations!$I$10:$QJ$10, BN$4) -> -42578.28227 | BO19: =SUMIFS(Calculations!$I362:$QJ362, Calculations!$I$8:$QJ$8, BO$3, Calculations!$I$10:$QJ$10, BO$4) -> -40826.04157 | BP19: =SUMIFS(Calculations!$I362:$QJ362, Calculations!$I$8:$QJ$8, BP$3, Calculations!$I$10:$QJ$10, BP$4) -> -39049.59697 | BQ19: =SUMIFS(Calculations!$I362:$QJ362, Calculations!$I$8:$QJ$8, BQ$3, Calculations!$I$10:$QJ$10, BQ$4) -> -37248.61413 | BR19: =SUMIFS(Calculations!$I362:$QJ362, Calculations!$I$8:$QJ$8, BR$3, Calculations!$I$10:$QJ$10, BR$4) -> -35422.75409 | BS19: =SUMIFS(Calculations!$I362:$QJ362, Calculations!$I$8:$QJ$8, BS$3, Calculations!$I$10:$QJ$10, BS$4) -> -33571.67325 | BT19: =SUMIFS(Calculations!$I362:$QJ362, Calculations!$I$8:$QJ$8, BT$3, Calculations!$I$10:$QJ$10, BT$4) -> -31695.0232 | BU19: =SUMIFS(Calculations!$I362:$QJ362, Calculations!$I$8:$QJ$8, BU$3, Calculations!$I$10:$QJ$10, BU$4) -> -29792.45077 | BV19: =SUMIFS(Calculations!$I362:$QJ362, Calculations!$I$8:$QJ$8, BV$3, Calculations!$I$10:$QJ$10, BV$4) -> -27863.59788 | BW19: =SUMIFS(Calculations!$I362:$QJ362, Calculations!$I$8:$QJ$8, BW$3, Calculations!$I$10:$QJ$10, BW$4) -> -25908.10152 | BX19: =SUMIFS(Calculations!$I362:$QJ362, Calculations!$I$8:$QJ$8, BX$3, Calculations!$I$10:$QJ$10, BX$4) -> -23925.59366 | BY19: =SUMIFS(Calculations!$I362:$QJ362, Calculations!$I$8:$QJ$8, BY$3, Calculations!$I$10:$QJ$10, BY$4) -> -21915.70119 | BZ19: =SUMIFS(Calculations!$I362:$QJ362, Calculations!$I$8:$QJ$8, BZ$3, Calculations!$I$10:$QJ$10, BZ$4) -> -19878.04584 | CA19: =SUMIFS(Calculations!$I362:$QJ362, Calculations!$I$8:$QJ$8, CA$3, Calculations!$I$10:$QJ$10, CA$4) -> -17812.24411 | CB19: =SUMIFS(Calculations!$I362:$QJ362, Calculations!$I$8:$QJ$8, CB$3, Calculations!$I$10:$QJ$10, CB$4) -> -15717.90723 | CC19: =SUMIFS(Calculations!$I362:$QJ362, Calculations!$I$8:$QJ$8, CC$3, Calculations!$I$10:$QJ$10, CC$4) -> -13594.64102 | CD19: =SUMIFS(Calculations!$I362:$QJ362, Calculations!$I$8:$QJ$8, CD$3, Calculations!$I$10:$QJ$10, CD$4) -> -11442.04589 | CE19: =SUMIFS(Calculations!$I362:$QJ362, Calculations!$I$8:$QJ$8, CE$3, Calculations!$I$10:$QJ$10, CE$4) -> -9259.716711 | CF19: =SUMIFS(Calculations!$I362:$QJ362, Calculations!$I$8:$QJ$8, CF$3, Calculations!$I$10:$QJ$10, CF$4) -> -7047.242762 | CG19: =SUMIFS(Calculations!$I362:$QJ362, Calculations!$I$8:$QJ$8, CG$3, Calculations!$I$10:$QJ$10, CG$4) -> -4804.207652 | CH19: =SUMIFS(Calculations!$I362:$QJ362, Calculations!$I$8:$QJ$8, CH$3, Calculations!$I$10:$QJ$10, CH$4) -> -2530.189236 | CI19: =SUMIFS(Calculations!$I362:$QJ362, Calculations!$I$8:$QJ$8, CI$3, Calculations!$I$10:$QJ$10, CI$4) -> -591.1007886 | CJ19: =SUMIFS(Calculations!$I362:$QJ362, Calculations!$I$8:$QJ$8, CJ$3, Calculations!$I$10:$QJ$10, CJ$4) -> 0 | CK19: =SUMIFS(Calculations!$I362:$QJ362, Calculations!$I$8:$QJ$8, CK$3, Calculations!$I$10:$QJ$10, CK$4) -> 0 | CL19: =SUMIFS(Calculations!$I362:$QJ362, Calculations!$I$8:$QJ$8, CL$3, Calculations!$I$10:$QJ$10, CL$4) -> 0 | CM19: =SUMIFS(Calculations!$I362:$QJ362, Calculations!$I$8:$QJ$8, CM$3, Calculations!$I$10:$QJ$10, CM$4) -> 0 | CN19: =SUMIFS(Calculations!$I362:$QJ362, Calculations!$I$8:$QJ$8, CN$3, Calculations!$I$10:$QJ$10, CN$4) -> 0 | CO19: =SUMIFS(Calculations!$I362:$QJ362, Calculations!$I$8:$QJ$8, CO$3, Calculations!$I$10:$QJ$10, CO$4) -> 0 | CP19: =SUMIFS(Calculations!$I362:$QJ362, Calculations!$I$8:$QJ$8, CP$3, Calculations!$I$10:$QJ$10, CP$4) -> 0 | CQ19: =SUMIFS(Calculations!$I362:$QJ362, Calculations!$I$8:$QJ$8, CQ$3, Calculations!$I$10:$QJ$10, CQ$4) -> 0 | CR19: =SUMIFS(Calculations!$I362:$QJ362, Calculations!$I$8:$QJ$8, CR$3, Calculations!$I$10:$QJ$10, CR$4) -> 0 | CS19: =SUMIFS(Calculations!$I362:$QJ362, Calculations!$I$8:$QJ$8, CS$3, Calculations!$I$10:$QJ$10, CS$4) -> 0 | CT19: =SUMIFS(Calculations!$I362:$QJ362, Calculations!$I$8:$QJ$8, CT$3, Calculations!$I$10:$QJ$10, CT$4) -> 0 | CU19: =SUMIFS(Calculations!$I362:$QJ362, Calculations!$I$8:$QJ$8, CU$3, Calculations!$I$10:$QJ$10, CU$4) -> 0 | CV19: =SUMIFS(Calculations!$I362:$QJ362, Calculations!$I$8:$QJ$8, CV$3, Calculations!$I$10:$QJ$10, CV$4) -> 0 | CW19: =SUMIFS(Calculations!$I362:$QJ362, Calculations!$I$8:$QJ$8, CW$3, Calculations!$I$10:$QJ$10, CW$4) -> 0 | CX19: =SUMIFS(Calculations!$I362:$QJ362, Calculations!$I$8:$QJ$8, CX$3, Calculations!$I$10:$QJ$10, CX$4) -> 0 | CY19: =SUMIFS(Calculations!$I362:$QJ362, Calculations!$I$8:$QJ$8, CY$3, Calculations!$I$10:$QJ$10, CY$4) -> 0 | CZ19: =SUMIFS(Calculations!$I362:$QJ362, Calculations!$I$8:$QJ$8, CZ$3, Calculations!$I$10:$QJ$10, CZ$4) -> 0 | DA19: =SUMIFS(Calculations!$I362:$QJ362, Calculations!$I$8:$QJ$8, DA$3, Calculations!$I$10:$QJ$10, DA$4) -> 0 | DB19: =SUMIFS(Calculations!$I362:$QJ362, Calculations!$I$8:$QJ$8, DB$3, Calculations!$I$10:$QJ$10, DB$4) -> 0 | DC19: =SUMIFS(Calculations!$I362:$QJ362, Calculations!$I$8:$QJ$8, DC$3, Calculations!$I$10:$QJ$10, DC$4) -> 0 | DD19: =SUMIFS(Calculations!$I362:$QJ362, Calculations!$I$8:$QJ$8, DD$3, Calculations!$I$10:$QJ$10, DD$4) -> 0 | DE19: =SUMIFS(Calculations!$I362:$QJ362, Calculations!$I$8:$QJ$8, DE$3, Calculations!$I$10:$QJ$10, DE$4) -> 0 | DF19: =SUMIFS(Calculations!$I362:$QJ362, Calculations!$I$8:$QJ$8, DF$3, Calculations!$I$10:$QJ$10, DF$4) -> 0 | DG19: =SUMIFS(Calculations!$I362:$QJ362, Calculations!$I$8:$QJ$8, DG$3, Calculations!$I$10:$QJ$10, DG$4) -> 0 | DH19: =SUMIFS(Calculations!$I362:$QJ362, Calculations!$I$8:$QJ$8, DH$3, Calculations!$I$10:$QJ$10, DH$4) -> 0 | DI19: =SUMIFS(Calculations!$I362:$QJ362, Calculations!$I$8:$QJ$8, DI$3, Calculations!$I$10:$QJ$10, DI$4) -> 0 | DJ19: =SUMIFS(Calculations!$I362:$QJ362, Calculations!$I$8:$QJ$8, DJ$3, Calculations!$I$10:$QJ$10, DJ$4) -> 0 | DK19: =SUMIFS(Calculations!$I362:$QJ362, Calculations!$I$8:$QJ$8, DK$3, Calculations!$I$10:$QJ$10, DK$4) -> 0
C20: =Calculations!C363 -> less: Subordinated Debt Interest Expense | E20: =Calculations!E363 -> EUR | G20: =SUM(H20:FA20) -> -4759268.164 | H20: =SUMIFS(Calculations!$I363:$QJ363, Calculations!$I$8:$QJ$8, H$3, Calculations!$I$10:$QJ$10, H$4) -> 0 | I20: =SUMIFS(Calculations!$I363:$QJ363, Calculations!$I$8:$QJ$8, I$3, Calculations!$I$10:$QJ$10, I$4) -> 0 | J20: =SUMIFS(Calculations!$I363:$QJ363, Calculations!$I$8:$QJ$8, J$3, Calculations!$I$10:$QJ$10, J$4) -> 0 | K20: =SUMIFS(Calculations!$I363:$QJ363, Calculations!$I$8:$QJ$8, K$3, Calculations!$I$10:$QJ$10, K$4) -> 0 | L20: =SUMIFS(Calculations!$I363:$QJ363, Calculations!$I$8:$QJ$8, L$3, Calculations!$I$10:$QJ$10, L$4) -> 0 | M20: =SUMIFS(Calculations!$I363:$QJ363, Calculations!$I$8:$QJ$8, M$3, Calculations!$I$10:$QJ$10, M$4) -> 0 | N20: =SUMIFS(Calculations!$I363:$QJ363, Calculations!$I$8:$QJ$8, N$3, Calculations!$I$10:$QJ$10, N$4) -> 0 | O20: =SUMIFS(Calculations!$I363:$QJ363, Calculations!$I$8:$QJ$8, O$3, Calculations!$I$10:$QJ$10, O$4) -> 0 | P20: =SUMIFS(Calculations!$I363:$QJ363, Calculations!$I$8:$QJ$8, P$3, Calculations!$I$10:$QJ$10, P$4) -> -114916.5425 | Q20: =SUMIFS(Calculations!$I363:$QJ363, Calculations!$I$8:$QJ$8, Q$3, Calculations!$I$10:$QJ$10, Q$4) -> -115003.5589 | R20: =SUMIFS(Calculations!$I363:$QJ363, Calculations!$I$8:$QJ$8, R$3, Calculations!$I$10:$QJ$10, R$4) -> -114147.7864 | S20: =SUMIFS(Calculations!$I363:$QJ363, Calculations!$I$8:$QJ$8, S$3, Calculations!$I$10:$QJ$10, S$4) -> -113660.7323 | T20: =SUMIFS(Calculations!$I363:$QJ363, Calculations!$I$8:$QJ$8, T$3, Calculations!$I$10:$QJ$10, T$4) -> -113158.9199 | U20: =SUMIFS(Calculations!$I363:$QJ363, Calculations!$I$8:$QJ$8, U$3, Calculations!$I$10:$QJ$10, U$4) -> -112641.9021 | V20: =SUMIFS(Calculations!$I363:$QJ363, Calculations!$I$8:$QJ$8, V$3, Calculations!$I$10:$QJ$10, V$4) -> -112109.2181 | W20: =SUMIFS(Calculations!$I363:$QJ363, Calculations!$I$8:$QJ$8, W$3, Calculations!$I$10:$QJ$10, W$4) -> -111560.3933 | X20: =SUMIFS(Calculations!$I363:$QJ363, Calculations!$I$8:$QJ$8, X$3, Calculations!$I$10:$QJ$10, X$4) -> -110994.9385 | Y20: =SUMIFS(Calculations!$I363:$QJ363, Calculations!$I$8:$QJ$8, Y$3, Calculations!$I$10:$QJ$10, Y$4) -> -110412.3499 | Z20: =SUMIFS(Calculations!$I363:$QJ363, Calculations!$I$8:$QJ$8, Z$3, Calculations!$I$10:$QJ$10, Z$4) -> -109812.1083 | AA20: =SUMIFS(Calculations!$I363:$QJ363, Calculations!$I$8:$QJ$8, AA$3, Calculations!$I$10:$QJ$10, AA$4) -> -109193.6788 | AB20: =SUMIFS(Calculations!$I363:$QJ363, Calculations!$I$8:$QJ$8, AB$3, Calculations!$I$10:$QJ$10, AB$4) -> -108556.5102 | AC20: =SUMIFS(Calculations!$I363:$QJ363, Calculations!$I$8:$QJ$8, AC$3, Calculations!$I$10:$QJ$10, AC$4) -> -107900.0348 | AD20: =SUMIFS(Calculations!$I363:$QJ363, Calculations!$I$8:$QJ$8, AD$3, Calculations!$I$10:$QJ$10, AD$4) -> -107223.6675 | AE20: =SUMIFS(Calculations!$I363:$QJ363, Calculations!$I$8:$QJ$8, AE$3, Calculations!$I$10:$QJ$10, AE$4) -> -106526.8056 | AF20: =SUMIFS(Calculations!$I363:$QJ363, Calculations!$I$8:$QJ$8, AF$3, Calculations!$I$10:$QJ$10, AF$4) -> -105808.8281 | AG20: =SUMIFS(Calculations!$I363:$QJ363, Calculations!$I$8:$QJ$8, AG$3, Calculations!$I$10:$QJ$10, AG$4) -> -105069.0952 | AH20: =SUMIFS(Calculations!$I363:$QJ363, Calculations!$I$8:$QJ$8, AH$3, Calculations!$I$10:$QJ$10, AH$4) -> -104306.9476 | AI20: =SUMIFS(Calculations!$I363:$QJ363, Calculations!$I$8:$QJ$8, AI$3, Calculations!$I$10:$QJ$10, AI$4) -> -103521.7062 | AJ20: =SUMIFS(Calculations!$I363:$QJ363, Calculations!$I$8:$QJ$8, AJ$3, Calculations!$I$10:$QJ$10, AJ$4) -> -102712.6712 | AK20: =SUMIFS(Calculations!$I363:$QJ363, Calculations!$I$8:$QJ$8, AK$3, Calculations!$I$10:$QJ$10, AK$4) -> -101879.1216 | AL20: =SUMIFS(Calculations!$I363:$QJ363, Calculations!$I$8:$QJ$8, AL$3, Calculations!$I$10:$QJ$10, AL$4) -> -101020.3146 | AM20: =SUMIFS(Calculations!$I363:$QJ363, Calculations!$I$8:$QJ$8, AM$3, Calculations!$I$10:$QJ$10, AM$4) -> -100135.4849 | AN20: =SUMIFS(Calculations!$I363:$QJ363, Calculations!$I$8:$QJ$8, AN$3, Calculations!$I$10:$QJ$10, AN$4) -> -99223.84403 | AO20: =SUMIFS(Calculations!$I363:$QJ363, Calculations!$I$8:$QJ$8, AO$3, Calculations!$I$10:$QJ$10, AO$4) -> -98284.57949 | AP20: =SUMIFS(Calculations!$I363:$QJ363, Calculations!$I$8:$QJ$8, AP$3, Calculations!$I$10:$QJ$10, AP$4) -> -97316.8543 | AQ20: =SUMIFS(Calculations!$I363:$QJ363, Calculations!$I$8:$QJ$8, AQ$3, Calculations!$I$10:$QJ$10, AQ$4) -> -96319.80607 | AR20: =SUMIFS(Calculations!$I363:$QJ363, Calculations!$I$8:$QJ$8, AR$3, Calculations!$I$10:$QJ$10, AR$4) -> -95292.54627 | AS20: =SUMIFS(Calculations!$I363:$QJ363, Calculations!$I$8:$QJ$8, AS$3, Calculations!$I$10:$QJ$10, AS$4) -> -94234.15948 | AT20: =SUMIFS(Calculations!$I363:$QJ363, Calculations!$I$8:$QJ$8, AT$3, Calculations!$I$10:$QJ$10, AT$4) -> -93143.70252 | AU20: =SUMIFS(Calculations!$I363:$QJ363, Calculations!$I$8:$QJ$8, AU$3, Calculations!$I$10:$QJ$10, AU$4) -> -92020.20361 | AV20: =SUMIFS(Calculations!$I363:$QJ363, Calculations!$I$8:$QJ$8, AV$3, Calculations!$I$10:$QJ$10, AV$4) -> -90862.66156 | AW20: =SUMIFS(Calculations!$I363:$QJ363, Calculations!$I$8:$QJ$8, AW$3, Calculations!$I$10:$QJ$10, AW$4) -> -89670.04484 | AX20: =SUMIFS(Calculations!$I363:$QJ363, Calculations!$I$8:$QJ$8, AX$3, Calculations!$I$10:$QJ$10, AX$4) -> -88441.29063 | AY20: =SUMIFS(Calculations!$I363:$QJ363, Calculations!$I$8:$QJ$8, AY$3, Calculations!$I$10:$QJ$10, AY$4) -> -87175.30394 | AZ20: =SUMIFS(Calculations!$I363:$QJ363, Calculations!$I$8:$QJ$8, AZ$3, Calculations!$I$10:$QJ$10, AZ$4) -> -85870.95659 | BA20: =SUMIFS(Calculations!$I363:$QJ363, Calculations!$I$8:$QJ$8, BA$3, Calculations!$I$10:$QJ$10, BA$4) -> -84527.08621 | BB20: =SUMIFS(Calculations!$I363:$QJ363, Calculations!$I$8:$QJ$8, BB$3, Calculations!$I$10:$QJ$10, BB$4) -> -83142.49522 | BC20: =SUMIFS(Calculations!$I363:$QJ363, Calculations!$I$8:$QJ$8, BC$3, Calculations!$I$10:$QJ$10, BC$4) -> -81715.94973 | BD20: =SUMIFS(Calculations!$I363:$QJ363, Calculations!$I$8:$QJ$8, BD$3, Calculations!$I$10:$QJ$10, BD$4) -> -80246.17849 | BE20: =SUMIFS(Calculations!$I363:$QJ363, Calculations!$I$8:$QJ$8, BE$3, Calculations!$I$10:$QJ$10, BE$4) -> -78731.87171 | BF20: =SUMIFS(Calculations!$I363:$QJ363, Calculations!$I$8:$QJ$8, BF$3, Calculations!$I$10:$QJ$10, BF$4) -> -77171.67991 | BG20: =SUMIFS(Calculations!$I363:$QJ363, Calculations!$I$8:$QJ$8, BG$3, Calculations!$I$10:$QJ$10, BG$4) -> -75564.21275 | BH20: =SUMIFS(Calculations!$I363:$QJ363, Calculations!$I$8:$QJ$8, BH$3, Calculations!$I$10:$QJ$10, BH$4) -> -73908.03773 | BI20: =SUMIFS(Calculations!$I363:$QJ363, Calculations!$I$8:$QJ$8, BI$3, Calculations!$I$10:$QJ$10, BI$4) -> -72201.67894 | BJ20: =SUMIFS(Calculations!$I363:$QJ363, Calculations!$I$8:$QJ$8, BJ$3, Calculations!$I$10:$QJ$10, BJ$4) -> -70443.61578 | BK20: =SUMIFS(Calculations!$I363:$QJ363, Calculations!$I$8:$QJ$8, BK$3, Calculations!$I$10:$QJ$10, BK$4) -> -68632.28155 | BL20: =SUMIFS(Calculations!$I363:$QJ363, Calculations!$I$8:$QJ$8, BL$3, Calculations!$I$10:$QJ$10, BL$4) -> -66766.06208 | BM20: =SUMIFS(Calculations!$I363:$QJ363, Calculations!$I$8:$QJ$8, BM$3, Calculations!$I$10:$QJ$10, BM$4) -> -64843.29429 | BN20: =SUMIFS(Calculations!$I363:$QJ363, Calculations!$I$8:$QJ$8, BN$3, Calculations!$I$10:$QJ$10, BN$4) -> -62862.26471 | BO20: =SUMIFS(Calculations!$I363:$QJ363, Calculations!$I$8:$QJ$8, BO$3, Calculations!$I$10:$QJ$10, BO$4) -> -60821.20796 | BP20: =SUMIFS(Calculations!$I363:$QJ363, Calculations!$I$8:$QJ$8, BP$3, Calculations!$I$10:$QJ$10, BP$4) -> -58718.30515 | BQ20: =SUMIFS(Calculations!$I363:$QJ363, Calculations!$I$8:$QJ$8, BQ$3, Calculations!$I$10:$QJ$10, BQ$4) -> -56551.68228 | BR20: =SUMIFS(Calculations!$I363:$QJ363, Calculations!$I$8:$QJ$8, BR$3, Calculations!$I$10:$QJ$10, BR$4) -> -54319.40857 | BS20: =SUMIFS(Calculations!$I363:$QJ363, Calculations!$I$8:$QJ$8, BS$3, Calculations!$I$10:$QJ$10, BS$4) -> -52019.49473 | BT20: =SUMIFS(Calculations!$I363:$QJ363, Calculations!$I$8:$QJ$8, BT$3, Calculations!$I$10:$QJ$10, BT$4) -> -49649.89121 | BU20: =SUMIFS(Calculations!$I363:$QJ363, Calculations!$I$8:$QJ$8, BU$3, Calculations!$I$10:$QJ$10, BU$4) -> -47208.48632 | BV20: =SUMIFS(Calculations!$I363:$QJ363, Calculations!$I$8:$QJ$8, BV$3, Calculations!$I$10:$QJ$10, BV$4) -> -44693.10443 | BW20: =SUMIFS(Calculations!$I363:$QJ363, Calculations!$I$8:$QJ$8, BW$3, Calculations!$I$10:$QJ$10, BW$4) -> -42101.50395 | BX20: =SUMIFS(Calculations!$I363:$QJ363, Calculations!$I$8:$QJ$8, BX$3, Calculations!$I$10:$QJ$10, BX$4) -> -39431.37539 | BY20: =SUMIFS(Calculations!$I363:$QJ363, Calculations!$I$8:$QJ$8, BY$3, Calculations!$I$10:$QJ$10, BY$4) -> -36680.33926 | BZ20: =SUMIFS(Calculations!$I363:$QJ363, Calculations!$I$8:$QJ$8, BZ$3, Calculations!$I$10:$QJ$10, BZ$4) -> -33845.94399 | CA20: =SUMIFS(Calculations!$I363:$QJ363, Calculations!$I$8:$QJ$8, CA$3, Calculations!$I$10:$QJ$10, CA$4) -> -30925.6637 | CB20: =SUMIFS(Calculations!$I363:$QJ363, Calculations!$I$8:$QJ$8, CB$3, Calculations!$I$10:$QJ$10, CB$4) -> -27916.896 | CC20: =SUMIFS(Calculations!$I363:$QJ363, Calculations!$I$8:$QJ$8, CC$3, Calculations!$I$10:$QJ$10, CC$4) -> -24816.95963 | CD20: =SUMIFS(Calculations!$I363:$QJ363, Calculations!$I$8:$QJ$8, CD$3, Calculations!$I$10:$QJ$10, CD$4) -> -21623.09209 | CE20: =SUMIFS(Calculations!$I363:$QJ363, Calculations!$I$8:$QJ$8, CE$3, Calculations!$I$10:$QJ$10, CE$4) -> -18332.44717 | CF20: =SUMIFS(Calculations!$I363:$QJ363, Calculations!$I$8:$QJ$8, CF$3, Calculations!$I$10:$QJ$10, CF$4) -> -14942.09241 | CG20: =SUMIFS(Calculations!$I363:$QJ363, Calculations!$I$8:$QJ$8, CG$3, Calculations!$I$10:$QJ$10, CG$4) -> -11449.00652 | CH20: =SUMIFS(Calculations!$I363:$QJ363, Calculations!$I$8:$QJ$8, CH$3, Calculations!$I$10:$QJ$10, CH$4) -> -7850.076631 | CI20: =SUMIFS(Calculations!$I363:$QJ363, Calculations!$I$8:$QJ$8, CI$3, Calculations!$I$10:$QJ$10, CI$4) -> -4142.095568 | CJ20: =SUMIFS(Calculations!$I363:$QJ363, Calculations!$I$8:$QJ$8, CJ$3, Calculations!$I$10:$QJ$10, CJ$4) -> -321.7589706 | CK20: =SUMIFS(Calculations!$I363:$QJ363, Calculations!$I$8:$QJ$8, CK$3, Calculations!$I$10:$QJ$10, CK$4) -> 3614.337646 | CL20: =SUMIFS(Calculations!$I363:$QJ363, Calculations!$I$8:$QJ$8, CL$3, Calculations!$I$10:$QJ$10, CL$4) -> 7669.701926 | CM20: =SUMIFS(Calculations!$I363:$QJ363, Calculations!$I$8:$QJ$8, CM$3, Calculations!$I$10:$QJ$10, CM$4) -> 11847.9478 | CN20: =SUMIFS(Calculations!$I363:$QJ363, Calculations!$I$8:$QJ$8, CN$3, Calculations!$I$10:$QJ$10, CN$4) -> 16152.7987 | CO20: =SUMIFS(Calculations!$I363:$QJ363, Calculations!$I$8:$QJ$8, CO$3, Calculations!$I$10:$QJ$10, CO$4) -> 20588.09089 | CP20: =SUMIFS(Calculations!$I363:$QJ363, Calculations!$I$8:$QJ$8, CP$3, Calculations!$I$10:$QJ$10, CP$4) -> 25157.77687 | CQ20: =SUMIFS(Calculations!$I363:$QJ363, Calculations!$I$8:$QJ$8, CQ$3, Calculations!$I$10:$QJ$10, CQ$4) -> 29865.9289 | CR20: =SUMIFS(Calculations!$I363:$QJ363, Calculations!$I$8:$QJ$8, CR$3, Calculations!$I$10:$QJ$10, CR$4) -> 34716.74265 | CS20: =SUMIFS(Calculations!$I363:$QJ363, Calculations!$I$8:$QJ$8, CS$3, Calculations!$I$10:$QJ$10, CS$4) -> 39714.5409 | CT20: =SUMIFS(Calculations!$I363:$QJ363, Calculations!$I$8:$QJ$8, CT$3, Calculations!$I$10:$QJ$10, CT$4) -> 44863.77744 | CU20: =SUMIFS(Calculations!$I363:$QJ363, Calculations!$I$8:$QJ$8, CU$3, Calculations!$I$10:$QJ$10, CU$4) -> 50169.04099 | CV20: =SUMIFS(Calculations!$I363:$QJ363, Calculations!$I$8:$QJ$8, CV$3, Calculations!$I$10:$QJ$10, CV$4) -> 55635.05934 | CW20: =SUMIFS(Calculations!$I363:$QJ363, Calculations!$I$8:$QJ$8, CW$3, Calculations!$I$10:$QJ$10, CW$4) -> 61266.70351 | CX20: =SUMIFS(Calculations!$I363:$QJ363, Calculations!$I$8:$QJ$8, CX$3, Calculations!$I$10:$QJ$10, CX$4) -> 67068.99213 | CY20: =SUMIFS(Calculations!$I363:$QJ363, Calculations!$I$8:$QJ$8, CY$3, Calculations!$I$10:$QJ$10, CY$4) -> 73047.09589 | CZ20: =SUMIFS(Calculations!$I363:$QJ363, Calculations!$I$8:$QJ$8, CZ$3, Calculations!$I$10:$QJ$10, CZ$4) -> 79206.34218 | DA20: =SUMIFS(Calculations!$I363:$QJ363, Calculations!$I$8:$QJ$8, DA$3, Calculations!$I$10:$QJ$10, DA$4) -> 85552.21979 | DB20: =SUMIFS(Calculations!$I363:$QJ363, Calculations!$I$8:$QJ$8, DB$3, Calculations!$I$10:$QJ$10, DB$4) -> 92090.38384 | DC20: =SUMIFS(Calculations!$I363:$QJ363, Calculations!$I$8:$QJ$8, DC$3, Calculations!$I$10:$QJ$10, DC$4) -> 31751.16518 | DD20: =SUMIFS(Calculations!$I363:$QJ363, Calculations!$I$8:$QJ$8, DD$3, Calculations!$I$10:$QJ$10, DD$4) -> 0 | DE20: =SUMIFS(Calculations!$I363:$QJ363, Calculations!$I$8:$QJ$8, DE$3, Calculations!$I$10:$QJ$10, DE$4) -> 0 | DF20: =SUMIFS(Calculations!$I363:$QJ363, Calculations!$I$8:$QJ$8, DF$3, Calculations!$I$10:$QJ$10, DF$4) -> 0 | DG20: =SUMIFS(Calculations!$I363:$QJ363, Calculations!$I$8:$QJ$8, DG$3, Calculations!$I$10:$QJ$10, DG$4) -> 0 | DH20: =SUMIFS(Calculations!$I363:$QJ363, Calculations!$I$8:$QJ$8, DH$3, Calculations!$I$10:$QJ$10, DH$4) -> 0 | DI20: =SUMIFS(Calculations!$I363:$QJ363, Calculations!$I$8:$QJ$8, DI$3, Calculations!$I$10:$QJ$10, DI$4) -> 0 | DJ20: =SUMIFS(Calculations!$I363:$QJ363, Calculations!$I$8:$QJ$8, DJ$3, Calculations!$I$10:$QJ$10, DJ$4) -> 0 | DK20: =SUMIFS(Calculations!$I363:$QJ363, Calculations!$I$8:$QJ$8, DK$3, Calculations!$I$10:$QJ$10, DK$4) -> 0
